Workbook

Sheet Title Page

Sheet Directions
B2: Directions for using the TAWP Calculator
B3: (1) To use the calculator you must enable macros in Excel. For most versions of excel you can enable content by clicking on the "Options" button to the right of the Security Warning that appears to the upper left of your Excel Window and enabling macros in this workbook. Or by closing and reopening this workbook and enabling macros when the security warning appears.
B4: (2) There are 2 user-input areas on the "TAWP Calculator" worksheet.
C5: (i) The user must type either Y or N, indicating which gases are to be included in the calculation. Y means yes, N means no.
C6: (ii) The user must enter the emissions profiles for each gas that should be modeled. The "Clear Emissions Profile" button will clear the emissions profile table ensuring no unintended entries are left behind when a new profile is entered.
B7: (3) Pressing the "Run Tawp Calculator" will activate a macro which will calculate the time-corrected CO2-equivalence (CO2e) for each gas, as well as the total CO2e for the system
B8: (4) Pressing "Clear Emissions Profiles" will clear the emissions profile area and the calculated CO2e
B10: TAWP Calculator V2.0
B11: Copyright © 2015 The Regents of the University of California
B13: Cite as: Kendall, A. (2017) TAWP v2.0. University of California. Davis, CA.

Sheet TAWP Calculator
A1: NOTES
A2: Time horizon of emissions profile must be less than or equal to 99 years. | H2: Enter emissions by year below, be sure to use consistent units. Blanks will be treated as zeros.
A3: Any emissions occuring after the specified analytical time horizon (see column P) will be treated as zero
P4: Analytical Time Horizon | Q4: CO2 as time-corrected CO2e | R4: CH4 as time-corrected CO2e | S4: N2O as time-corrected CO2e | T4: SF6 as time-corrected CO2e | U4: PFC14 as time-corrected CO2e | V4: PFC116 as time-corrected CO2e | W4: Fossil CH4 as time-corrected CO2e | X4: Total
A5: Greenhouse Gases to be modeled | B5: Y/N | G5: year | H5: CO2 | I5: CH4 | J5: N2O | K5: SF6 | L5: PFC-14 | M5: PFC-116 | N5: CH4F
A6: =H5 -> CO2 | B6: Y | G6: 0 | H6: 1000000 | P6: 20 | Q6: 84812.58734 | R6: 0 | S6: 0 | W6: 0 | X6: =SUM(Q6:W6) -> 84812.58734
A7: =I5 -> CH4 | B7: Y | G7: 1 | P7: year 2050 | Q7: 7619.417896 | R7: 0 | S7: 0 | W7: 0 | X7: =SUM(Q7:W7) -> 7619.417896
A8: =J5 -> N2O | B8: Y | G8: 2 | P8: 50 | Q8: -92273.0016 | R8: 0 | S8: 0 | W8: 0 | X8: -92273.0016
A9: =K5 -> SF6 | B9: N | G9: 3 | H9: -100000 | P9: 100 | Q9: -148031.2048 | R9: 0 | S9: 0 | W9: 0 | X9: -148031.2048
A10: PFC-14 | B10: N | G10: 4 | H10: -200000 | P10: 500 | Q10: -189886.1784 | R10: 0 | S10: 0 | W10: 0 | X10: -189886.1784
A11: PFC-116 | B11: N | G11: 5 | H11: -250000 | P11: No TAWP | Q11: =SUM(H6:H65) -> -200000 | R11: =SUM(I6:I65)*28 -> 0 | S11: =SUM(J6:J65)*265 -> 0 | T11: =SUM(K6:K65)*23500 -> 0 | W11: =SUM(N6:N65)*30 -> 0 | X11: -200000
A12: CH4F | B12: Y | G12: 6 | H12: -300000
G13: 7 | H13: -350000
G14: 8
G15: 9
A16: Y | G16: 10 | Q16: NOTE ONLY CO2, CH4, CH4 Fossil, N2O and SF6 have been updated in the TAWP sheets. The CRF calculator has been updated for all gases included in the model
A17: N | G17: 11
G18: 12
G19: 13
G20: 14
G21: 15
G22: 16
G23: 17
G24: 18
G25: 19
G26: 20
G27: 21
G28: 22
G29: 23
G30: 24
G31: 25
G32: 26
G33: 27
G34: 28
G35: 29
G36: 30
G37: 31
G38: 32
G39: 33
G40: 34
G41: 35
G42: 36
G43: 37
G44: 38
G45: 39
G46: 40
G47: 41
G48: 42
G49: 43
G50: 44
G51: 45
G52: 46
G53: 47
G54: 48
G55: 49
G56: 50
G57: 51
G58: 52
G59: 53
G60: 54
G61: 55
G62: 56
G63: 57
G64: 58
G65: 59
G66: 60
G67: 61
G68: 62
G69: 63
G70: 64
G71: 65
G72: 66
G73: 67
G74: 68
G75: 69
G76: 70
G77: 71
G78: 72
G79: 73
G80: 74
G81: 75
G82: 76
G83: 77
G84: 78
G85: 79
G86: 80
G87: 81
G88: 82
G89: 83
G90: 84
G91: 85
G92: 86
G93: 87
G94: 88
G95: 89
G96: 90
G97: 91
G98: 92
G99: 93
G100: 94
G101: 95
G102: 96
G103: 97
G104: 98
G105: 99
G106: 100
I107: 9.809534945e-05
I108: 9.519619374e-05
I109: 9.238272102e-05
I110: 8.9652399e-05
I111: 8.700277018e-05
I112: 8.443144972e-05
I113: 8.193612328e-05
I114: 7.951454487e-05
I115: 7.716453492e-05

Sheet CO2 (hidden)
B2: year | C2: 0 | D2: 1 | E2: 2 | F2: 3 | G2: 4 | H2: 5 | I2: 6 | J2: 7 | K2: 8 | L2: 9 | M2: 10 | N2: 11 | O2: 12 | P2: 13 | Q2: 14 | R2: 15 | S2: 16 | T2: 17 | U2: 18 | V2: 19 | W2: 20 | X2: 21 | Y2: 22 | Z2: 23 | AA2: 24 | AB2: 25 | AC2: 26 | AD2: 27 | AE2: 28 | AF2: 29 | AG2: 30 | AH2: 31 | AI2: 32 | AJ2: 33 | AK2: 34 | AL2: 35 | AM2: 36 | AN2: 37 | AO2: 38 | AP2: 39 | AQ2: 40 | AR2: 41 | AS2: 42 | AT2: 43 | AU2: 44 | AV2: 45 | AW2: 46 | AX2: 47 | AY2: 48 | AZ2: 49 | BA2: 50 | BB2: 51 | BC2: 52 | BD2: 53 | BE2: 54 | BF2: 55 | BG2: 56 | BH2: 57 | BI2: 58 | BJ2: 59 | BK2: 60 | BL2: 61 | BM2: 62 | BN2: 63 | BO2: 64 | BP2: 65 | BQ2: 66 | BR2: 67 | BS2: 68 | BT2: 69 | BU2: 70 | BV2: 71 | BW2: 72 | BX2: 73 | BY2: 74 | BZ2: 75 | CA2: 76 | CB2: 77 | CC2: 78 | CD2: 79 | CE2: 80 | CF2: 81 | CG2: 82 | CH2: 83 | CI2: 84 | CJ2: 85 | CK2: 86 | CL2: 87 | CM2: 88 | CN2: 89 | CO2: 90 | CP2: 91 | CQ2: 92 | CR2: 93 | CS2: 94 | CT2: 95 | CU2: 96 | CV2: 97 | CW2: 98 | CX2: 99 | CY2: 100 | CZ2: 101
B3: 20 | C3: =C30/$B30 -> 1 | D3: =D30/$B30 -> 0.9579335155 | E3: =E30/$B30 -> 0.9154515813 | F3: 0.8725308181 | G3: 0.8291438499 | H3: 0.7852583166 | I3: 0.7408356303 | J3: 0.6958294076 | K3: 0.6501834941 | L3: 0.6038294732 | M3: 0.5566835261 | N3: 0.5086424713 | O3: 0.4595787709 | P3: 0.4093342328 | Q3: 0.3577120669 | R3: 0.3044668664 | S3: 0.2492919707 | T3: 0.1918035249 | U3: 0.1315203727 | V3: 0.06783869212 | W3: 0 | X3: 0 | Y3: 0 | Z3: 0 | AA3: 0 | AB3: 0 | AC3: 0 | AD3: 0 | AE3: 0 | AF3: 0 | AG3: 0 | AH3: 0 | AI3: 0 | AJ3: 0 | AK3: 0 | AL3: 0 | AM3: 0 | AN3: 0 | AO3: 0 | AP3: 0 | AQ3: 0 | AR3: 0 | AS3: 0 | AT3: 0 | AU3: 0 | AV3: 0 | AW3: 0 | AX3: 0 | AY3: 0 | AZ3: 0 | BA3: 0 | BB3: 0 | BC3: 0 | BD3: 0 | BE3: 0 | BF3: 0 | BG3: 0 | BH3: 0 | BI3: 0 | BJ3: 0 | BK3: 0 | BL3: 0 | BM3: 0 | BN3: 0 | BO3: 0 | BP3: =BP30/$B30 -> 0 | BQ3: 0 | BR3: 0 | BS3: 0 | BT3: 0 | BU3: 0 | BV3: 0 | BW3: 0 | BX3: 0 | BY3: 0 | BZ3: 0 | CA3: 0 | CB3: 0 | CC3: 0 | CD3: 0 | CE3: 0 | CF3: 0 | CG3: 0 | CH3: 0 | CI3: 0 | CJ3: 0 | CK3: 0 | CL3: 0 | CM3: 0 | CN3: 0 | CO3: 0 | CP3: 0 | CQ3: 0 | CR3: 0 | CS3: 0 | CT3: 0 | CU3: 0 | CV3: 0 | CW3: 0 | CX3: 0
B4: 2050 | C4: =C40/$B40 -> 1 | D4: =D37/$B37 -> 0.9691592213 | E4: =E37/$B37 -> 0.9380735434 | F4: 0.906734943 | G4: 0.8751346627 | H4: 0.843263057 | I4: 0.8111093983 | J4: 0.7786616329 | K4: 0.7459060755 | L4: 0.7128270232 | M4: 0.6794062716 | N4: 0.6456225041 | O4: 0.6114505231 | P4: 0.5768602816 | Q4: 0.5418156628 | R4: 0.5062729412 | S4: 0.4701788436 | T4: 0.4334681035 | U4: 0.3960603773 | V4: 0.3578563562 | W4: 0.3187328622 | X4: 0.2785366621 | Y4: 0.2370766674 | Z4: 0.194114093 | AA4: 0.1493500459 | AB4: 0.1024098682 | AC4: 0.05282338678 | AD4: 0 | AE4: 0 | AF4: 0 | AG4: 0 | AH4: 0 | AI4: 0 | AJ4: 0 | AK4: 0 | AL4: 0 | AM4: 0 | AN4: 0 | AO4: 0 | AP4: 0 | AQ4: 0 | AR4: 0 | AS4: 0 | AT4: 0 | AU4: 0 | AV4: 0 | AW4: 0 | AX4: 0 | AY4: 0 | AZ4: 0 | BA4: 0 | BB4: 0 | BC4: 0 | BD4: 0 | BE4: 0 | BF4: 0 | BG4: 0 | BH4: 0 | BI4: 0 | BJ4: 0 | BK4: 0 | BL4: 0 | BM4: 0 | BN4: 0 | BO4: 0 | BP4: 0 | BQ4: =BQ37/$B37 -> 0 | BR4: 0 | BS4: 0 | BT4: 0 | BU4: 0 | BV4: 0 | BW4: 0 | BX4: 0 | BY4: 0 | BZ4: 0 | CA4: 0 | CB4: 0 | CC4: 0 | CD4: 0 | CE4: 0 | CF4: 0 | CG4: 0 | CH4: 0 | CI4: 0 | CJ4: 0 | CK4: 0 | CL4: 0 | CM4: 0 | CN4: 0 | CO4: 0 | CP4: 0 | CQ4: 0 | CR4: 0 | CS4: 0 | CT4: 0 | CU4: 0 | CV4: 0 | CW4: 0 | CX4: 0
B5: 50 | C5: =C60/$B60 -> 1 | D5: =D60/$B60 -> 0.9838843979 | E5: 0.9676853974 | F5: 0.9514010967 | G5: 0.9350295409 | H5: 0.9185687198 | I5: 0.9020165663 | J5: 0.8853709541 | K5: 0.8686296951 | L5: 0.8517905369 | M5: 0.8348511597 | N5: 0.8178091729 | O5: 0.8006621112 | P5: 0.7834074298 | Q5: 0.7660424994 | R5: 0.7485645999 | S5: 0.7309709124 | T5: 0.713258511 | U5: 0.6954243508 | V5: 0.6774652559 | W5: 0.6593779018 | X5: 0.6411587964 | Y5: 0.6228042545 | Z5: 0.6043103676 | AA5: 0.5856729652 | AB5: 0.5668875678 | AC5: 0.5479493267 | AD5: 0.5288529497 | AE5: 0.5095926079 | AF5: 0.4901618186 | AG5: 0.4705532976 | AH5: 0.4507587746 | AI5: 0.4307687604 | AJ5: 0.4105722537 | AK5: 0.3901563727 | AL5: 0.3695058903 | AM5: 0.3486026488 | AN5: 0.3274248223 | AO5: 0.3059459872 | AP5: 0.2841339498 | AQ5: 0.2619492689 | AR5: 0.2393433922 | AS5: 0.2162563062 | AT5: 0.1926135731 | AU5: 0.1683225927 | AV5: 0.143267888 | AW5: 0.1173051589 | AX5: 0.09025378115 | AY5: 0.06188734508 | AZ5: 0.03192172028 | BA5: 0 | BB5: 0 | BC5: 0 | BD5: 0 | BE5: 0 | BF5: 0 | BG5: 0 | BH5: 0 | BI5: 0 | BJ5: 0 | BK5: 0 | BL5: 0 | BM5: 0 | BN5: 0 | BO5: 0 | BP5: =BP60/$B60 -> 0 | BQ5: 0 | BR5: 0 | BS5: 0 | BT5: 0 | BU5: 0 | BV5: 0 | BW5: 0 | BX5: 0 | BY5: 0 | BZ5: 0 | CA5: 0 | CB5: 0 | CC5: 0 | CD5: 0 | CE5: 0 | CF5: 0 | CG5: 0 | CH5: 0 | CI5: 0 | CJ5: 0 | CK5: 0 | CL5: 0 | CM5: 0 | CN5: 0 | CO5: 0 | CP5: 0 | CQ5: 0 | CR5: 0 | CS5: 0 | CT5: 0 | CU5: 0 | CV5: 0 | CW5: 0 | CX5: 0
B6: 100 | C6: =C110/$B110 -> 1 | D6: =D110/$B110 -> 0.9921707988 | E6: 0.984323329 | F6: 0.9764572963 | G6: 0.968572399 | H6: 0.9606683275 | I6: 0.9527447643 | J6: 0.9448013834 | K6: 0.9368378503 | L6: 0.9288538221 | M6: 0.9208489466 | N6: 0.9128228625 | O6: 0.904775199 | P6: 0.8967055755 | Q6: 0.8886136017 | R6: 0.8804988765 | S6: 0.8723609888 | T6: 0.8641995161 | U6: 0.8560140253 | V6: 0.8478040714 | W6: 0.8395691978 | X6: 0.8313089357 | Y6: 0.8230228041 | Z6: 0.8147103089 | AA6: 0.8063709431 | AB6: 0.798004186 | AC6: 0.7896095032 | AD6: 0.781186346 | AE6: 0.772734151 | AF6: 0.7642523398 | AG6: 0.7557403184 | AH6: 0.747197477 | AI6: 0.7386231895 | AJ6: 0.7300168129 | AK6: 0.721377687 | AL6: 0.7127051339 | AM6: 0.7039984573 | AN6: 0.6952569422 | AO6: 0.6864798545 | AP6: 0.6776664402 | AQ6: 0.6688159247 | AR6: 0.659927513 | AS6: 0.651000388 | AT6: 0.6420337108 | AU6: 0.6330266196 | AV6: 0.6239782294 | AW6: 0.6148876308 | AX6: 0.6057538898 | AY6: 0.5965760469 | AZ6: 0.5873531162 | BA6: 0.5780840847 | BB6: 0.5687679116 | BC6: 0.5594035272 | BD6: 0.5499898322 | BE6: 0.5405256963 | BF6: 0.5310099576 | BG6: 0.5214414211 | BH6: 0.5118188576 | BI6: 0.5021410022 | BJ6: 0.4924065529 | BK6: 0.4826141685 | BL6: 0.4727624672 | BM6: 0.4628500237 | BN6: 0.452875367 | BO6: 0.4428369771 | BP6: =BP110/$B110 -> 0.4327332815 | BQ6: 0.4225626508 | BR6: 0.4123233934 | BS6: 0.4020137493 | BT6: 0.3916318823 | BU6: 0.3811758708 | BV6: 0.3706436959 | BW6: 0.3600332274 | BX6: 0.3493422057 | BY6: 0.33856822 | BZ6: 0.3277086808 | CA6: 0.3167607849 | CB6: 0.3057214733 | CC6: 0.2945873763 | CD6: 0.2833547463 | CE6: 0.2720193723 | CF6: 0.2605764736 | CG6: 0.2490205645 | CH6: 0.2373452855 | CI6: 0.2255431896 | CJ6: 0.2136054744 | CK6: 0.2015216431 | CL6: 0.1892790787 | CM6: 0.176862506 | CN6: 0.1642533143 | CO6: 0.1514287034 | CP6: 0.1383606058 | CQ6: 0.1250143288 | CR6: 0.1113468411 | CS6: 0.09730461192 | CT6: 0.0828208859 | CU6: 0.06781224541 | CV6: 0.05217427447 | CW6: 0.03577608923 | CX6: 0.01845343845 | CY6: =CY109/$B109 -> 0 | CZ6: 0
B7: 500 | C7: =C509/$B509 -> 1 | D7: =D509/$B509 -> 0.9984697146 | E7: 0.9969385529 | F7: 0.9954065126 | G7: 0.9938735916 | H7: 0.9923397875 | I7: 0.9908050982 | J7: 0.9892695214 | K7: 0.9877330548 | L7: 0.9861956961 | M7: 0.9846574432 | N7: 0.9831182937 | O7: 0.9815782454 | P7: 0.9800372959 | Q7: 0.9784954431 | R7: 0.9769526845 | S7: 0.9754090179 | T7: 0.973864441 | U7: 0.9723189514 | V7: 0.9707725469 | W7: 0.9692252251 | X7: 0.9676769838 | Y7: 0.9661278204 | Z7: 0.9645777328 | AA7: 0.9630267186 | AB7: 0.9614747754 | AC7: 0.9599219008 | AD7: 0.9583680925 | AE7: 0.9568133481 | AF7: 0.9552576652 | AG7: 0.9537010415 | AH7: 0.9521434745 | AI7: 0.9505849619 | AJ7: 0.9490255013 | AK7: 0.9474650902 | AL7: 0.9459037262 | AM7: 0.9443414069 | AN7: 0.9427781299 | AO7: 0.9412138928 | AP7: 0.939648693 | AQ7: 0.9380825282 | AR7: 0.9365153959 | AS7: 0.9349472936 | AT7: 0.933378219 | AU7: 0.9318081694 | AV7: 0.9302371424 | AW7: 0.9286651356 | AX7: 0.9270921464 | AY7: 0.9255181723 | AZ7: 0.9239432109 | BA7: 0.9223672597 | BB7: 0.920790316 | BC7: 0.9192123775 | BD7: 0.9176334415 | BE7: 0.9160535055 | BF7: 0.914472567 | BG7: 0.9128906234 | BH7: 0.9113076721 | BI7: 0.9097237107 | BJ7: 0.9081387366 | BK7: 0.906552747 | BL7: 0.9049657396 | BM7: 0.9033777116 | BN7: 0.9017886605 | BO7: 0.9001985837 | BP7: =BP509/$B509 -> 0.8986074786 | BQ7: 0.8970153425 | BR7: 0.8954221729 | BS7: 0.893827967 | BT7: 0.8922327223 | BU7: 0.8906364361 | BV7: 0.8890391058 | BW7: 0.8874407286 | BX7: 0.885841302 | BY7: 0.8842408233 | BZ7: 0.8826392898 | CA7: 0.8810366987 | CB7: 0.8794330474 | CC7: 0.8778283333 | CD7: 0.8762225535 | CE7: 0.8746157054 | CF7: 0.8730077862 | CG7: 0.8713987933 | CH7: 0.8697887238 | CI7: 0.8681775751 | CJ7: 0.8665653444 | CK7: 0.8649520289 | CL7: 0.8633376258 | CM7: 0.8617221325 | CN7: 0.860105546 | CO7: 0.8584878637 | CP7: 0.8568690827 | CQ7: 0.8552492002 | CR7: 0.8536282134 | CS7: 0.8520061194 | CT7: 0.8503829156 | CU7: 0.8487585989 | CV7: 0.8471331667 | CW7: 0.845506616 | CX7: 0.8438789439 | CY7: =CY509/$B509 -> 0.8422501477
A9: Year | B9: Carbon dioxide | C9: 0 | D9: 1 | E9: 2 | F9: 3 | G9: 4 | H9: 5 | I9: 6 | J9: 7 | K9: 8 | L9: 9 | M9: 10 | N9: 11 | O9: 12 | P9: 13 | Q9: 14 | R9: 15 | S9: 16 | T9: 17 | U9: 18 | V9: 19 | W9: 20 | X9: 21 | Y9: 22 | Z9: 23 | AA9: 24 | AB9: 25 | AC9: 26 | AD9: 27 | AE9: 28 | AF9: 29 | AG9: 30 | AH9: 31 | AI9: 32 | AJ9: 33 | AK9: 34 | AL9: 35 | AM9: 36 | AN9: 37 | AO9: 38 | AP9: 39 | AQ9: 40 | AR9: 41 | AS9: 42 | AT9: 43 | AU9: 44 | AV9: 45 | AW9: 46 | AX9: 47 | AY9: 48 | AZ9: 49 | BA9: 50 | BB9: 51 | BC9: 52 | BD9: 53 | BE9: 54 | BF9: 55 | BG9: 56 | BH9: 57 | BI9: 58 | BJ9: 59 | BK9: 60 | BL9: 61 | BM9: 62 | BN9: 63 | BO9: 64 | BP9: 65 | BQ9: 66 | BR9: 67 | BS9: 68 | BT9: 69 | BU9: 70 | BV9: 71 | BW9: 72 | BX9: 73 | BY9: 74 | BZ9: 75 | CA9: 76 | CB9: 77 | CC9: 78 | CD9: 79 | CE9: 80 | CF9: 81 | CG9: 82 | CH9: 83 | CI9: 84 | CJ9: 85 | CK9: 86 | CL9: 87 | CM9: 88 | CN9: 89 | CO9: 90 | CP9: 91 | CQ9: 92 | CR9: 93 | CS9: 94 | CT9: 95 | CU9: 96 | CV9: 97 | CW9: 98 | CX9: 99 | CY9: 100
A10: 0 | B10: 0 | C10: 0
A11: 1 | B11: 1.692380279e-15 | C11: 1.692380279e-15 | D11: 0
A12: 2 | B12: 3.281055075e-15 | C12: 3.281055075e-15 | D12: 1.692380279e-15 | E12: 0
A13: 3 | B13: 4.784946362e-15 | C13: 4.784946362e-15 | D13: 3.281055075e-15 | E13: 1.692380279e-15 | F13: 0
A14: 4 | B14: 6.219117761e-15 | C14: 6.219117761e-15 | D14: 4.784946362e-15 | E14: 3.281055075e-15 | F14: 1.692380279e-15 | G14: 0
A15: 5 | B15: 7.595572738e-15 | C15: 7.595572738e-15 | D15: 6.219117761e-15 | E15: 4.784946362e-15 | F15: 3.281055075e-15 | G15: 1.692380279e-15 | H15: 0
A16: 6 | B16: 8.923887368e-15 | C16: 8.923887368e-15 | D16: 7.595572738e-15 | E16: 6.219117761e-15 | F16: 4.784946362e-15 | G16: 3.281055075e-15 | H16: 1.692380279e-15 | I16: 0
A17: 7 | B17: 1.021171195e-14 | C17: 1.021171195e-14 | D17: 8.923887368e-15 | E17: 7.595572738e-15 | F17: 6.219117761e-15 | G17: 4.784946362e-15 | H17: 3.281055075e-15 | I17: 1.692380279e-15 | J17: 0
A18: 8 | B18: 1.146516869e-14 | C18: 1.146516869e-14 | D18: 1.021171195e-14 | E18: 8.923887368e-15 | F18: 7.595572738e-15 | G18: 6.219117761e-15 | H18: 4.784946362e-15 | I18: 3.281055075e-15 | J18: 1.692380279e-15 | K18: 0
A19: 9 | B19: 1.268916691e-14 | C19: 1.268916691e-14 | D19: 1.146516869e-14 | E19: 1.021171195e-14 | F19: 8.923887368e-15 | G19: 7.595572738e-15 | H19: 6.219117761e-15 | I19: 4.784946362e-15 | J19: 3.281055075e-15 | K19: 1.692380279e-15 | L19: 0
A20: 10 | B20: 1.388765308e-14 | C20: 1.388765308e-14 | D20: 1.268916691e-14 | E20: 1.146516869e-14 | F20: 1.021171195e-14 | G20: 8.923887368e-15 | H20: 7.595572738e-15 | I20: 6.219117761e-15 | J20: 4.784946362e-15 | K20: 3.281055075e-15 | L20: 1.692380279e-15 | M20: 0
A21: 11 | B21: 1.506380888e-14 | C21: 1.506380888e-14 | D21: 1.388765308e-14 | E21: 1.268916691e-14 | F21: 1.146516869e-14 | G21: 1.021171195e-14 | H21: 8.923887368e-15 | I21: 7.595572738e-15 | J21: 6.219117761e-15 | K21: 4.784946362e-15 | L21: 3.281055075e-15 | M21: 1.692380279e-15 | N21: 0
A22: 12 | B22: 1.622020839e-14 | C22: 1.622020839e-14 | D22: 1.506380888e-14 | E22: 1.388765308e-14 | F22: 1.268916691e-14 | G22: 1.146516869e-14 | H22: 1.021171195e-14 | I22: 8.923887368e-15 | J22: 7.595572738e-15 | K22: 6.219117761e-15 | L22: 4.784946362e-15 | M22: 3.281055075e-15 | N22: 1.692380279e-15 | O22: 0
A23: 13 | B23: 1.735894267e-14 | C23: 1.735894267e-14 | D23: 1.622020839e-14 | E23: 1.506380888e-14 | F23: 1.388765308e-14 | G23: 1.268916691e-14 | H23: 1.146516869e-14 | I23: 1.021171195e-14 | J23: 8.923887368e-15 | K23: 7.595572738e-15 | L23: 6.219117761e-15 | M23: 4.784946362e-15 | N23: 3.281055075e-15 | O23: 1.692380279e-15 | P23: 0
A24: 14 | B24: 1.848171849e-14 | C24: 1.848171849e-14 | D24: 1.735894267e-14 | E24: 1.622020839e-14 | F24: 1.506380888e-14 | G24: 1.388765308e-14 | H24: 1.268916691e-14 | I24: 1.146516869e-14 | J24: 1.021171195e-14 | K24: 8.923887368e-15 | L24: 7.595572738e-15 | M24: 6.219117761e-15 | N24: 4.784946362e-15 | O24: 3.281055075e-15 | P24: 1.692380279e-15 | Q24: 0
A25: 15 | B25: 1.958993677e-14 | C25: 1.958993677e-14 | D25: 1.848171849e-14 | E25: 1.735894267e-14 | F25: 1.622020839e-14 | G25: 1.506380888e-14 | H25: 1.388765308e-14 | I25: 1.268916691e-14 | J25: 1.146516869e-14 | K25: 1.021171195e-14 | L25: 8.923887368e-15 | M25: 7.595572738e-15 | N25: 6.219117761e-15 | O25: 4.784946362e-15 | P25: 3.281055075e-15 | Q25: 1.692380279e-15 | R25: 0
A26: 16 | B26: 2.068475462e-14 | C26: 2.068475462e-14 | D26: 1.958993677e-14 | E26: 1.848171849e-14 | F26: 1.735894267e-14 | G26: 1.622020839e-14 | H26: 1.506380888e-14 | I26: 1.388765308e-14 | J26: 1.268916691e-14 | K26: 1.146516869e-14 | L26: 1.021171195e-14 | M26: 8.923887368e-15 | N26: 7.595572738e-15 | O26: 6.219117761e-15 | P26: 4.784946362e-15 | Q26: 3.281055075e-15 | R26: 1.692380279e-15 | S26: 0
A27: 17 | B27: 2.17671347e-14 | C27: 2.17671347e-14 | D27: 2.068475462e-14 | E27: 1.958993677e-14 | F27: 1.848171849e-14 | G27: 1.735894267e-14 | H27: 1.622020839e-14 | I27: 1.506380888e-14 | J27: 1.388765308e-14 | K27: 1.268916691e-14 | L27: 1.146516869e-14 | M27: 1.021171195e-14 | N27: 8.923887368e-15 | O27: 7.595572738e-15 | P27: 6.219117761e-15 | Q27: 4.784946362e-15 | R27: 3.281055075e-15 | S27: 1.692380279e-15 | T27: 0
A28: 18 | B28: 2.283788432e-14 | C28: 2.283788432e-14 | D28: 2.17671347e-14 | E28: 2.068475462e-14 | F28: 1.958993677e-14 | G28: 1.848171849e-14 | H28: 1.735894267e-14 | I28: 1.622020839e-14 | J28: 1.506380888e-14 | K28: 1.388765308e-14 | L28: 1.268916691e-14 | M28: 1.146516869e-14 | N28: 1.021171195e-14 | O28: 8.923887368e-15 | P28: 7.595572738e-15 | Q28: 6.219117761e-15 | R28: 4.784946362e-15 | S28: 3.281055075e-15 | T28: 1.692380279e-15 | U28: 0
A29: 19 | B29: 2.389768641e-14 | C29: 2.389768641e-14 | D29: 2.283788432e-14 | E29: 2.17671347e-14 | F29: 2.068475462e-14 | G29: 1.958993677e-14 | H29: 1.848171849e-14 | I29: 1.735894267e-14 | J29: 1.622020839e-14 | K29: 1.506380888e-14 | L29: 1.388765308e-14 | M29: 1.268916691e-14 | N29: 1.146516869e-14 | O29: 1.021171195e-14 | P29: 8.923887368e-15 | Q29: 7.595572738e-15 | R29: 6.219117761e-15 | S29: 4.784946362e-15 | T29: 3.281055075e-15 | U29: 1.692380279e-15 | V29: 0
A30: 20 | B30: 2.494712422e-14 | C30: 2.494712422e-14 | D30: 2.389768641e-14 | E30: 2.283788432e-14 | F30: 2.17671347e-14 | G30: 2.068475462e-14 | H30: 1.958993677e-14 | I30: 1.848171849e-14 | J30: 1.735894267e-14 | K30: 1.622020839e-14 | L30: 1.506380888e-14 | M30: 1.388765308e-14 | N30: 1.268916691e-14 | O30: 1.146516869e-14 | P30: 1.021171195e-14 | Q30: 8.923887368e-15 | R30: 7.595572738e-15 | S30: 6.219117761e-15 | T30: 4.784946362e-15 | U30: 3.281055075e-15 | V30: 1.692380279e-15 | W30: 0
A31: 21 | B31: 2.598670085e-14 | C31: 2.598670085e-14 | D31: 2.494712422e-14 | E31: 2.389768641e-14 | F31: 2.283788432e-14 | G31: 2.17671347e-14 | H31: 2.068475462e-14 | I31: 1.958993677e-14 | J31: 1.848171849e-14 | K31: 1.735894267e-14 | L31: 1.622020839e-14 | M31: 1.506380888e-14 | N31: 1.388765308e-14 | O31: 1.268916691e-14 | P31: 1.146516869e-14 | Q31: 1.021171195e-14 | R31: 8.923887368e-15 | S31: 7.595572738e-15 | T31: 6.219117761e-15 | U31: 4.784946362e-15 | V31: 3.281055075e-15 | W31: 1.692380279e-15 | X31: 0
A32: 22 | B32: 2.701685475e-14 | C32: 2.701685475e-14 | D32: 2.598670085e-14 | E32: 2.494712422e-14 | F32: 2.389768641e-14 | G32: 2.283788432e-14 | H32: 2.17671347e-14 | I32: 2.068475462e-14 | J32: 1.958993677e-14 | K32: 1.848171849e-14 | L32: 1.735894267e-14 | M32: 1.622020839e-14 | N32: 1.506380888e-14 | O32: 1.388765308e-14 | P32: 1.268916691e-14 | Q32: 1.146516869e-14 | R32: 1.021171195e-14 | S32: 8.923887368e-15 | T32: 7.595572738e-15 | U32: 6.219117761e-15 | V32: 4.784946362e-15 | W32: 3.281055075e-15 | X32: 1.692380279e-15 | Y32: 0
A33: 23 | B33: 2.80379721e-14 | C33: 2.80379721e-14 | D33: 2.701685475e-14 | E33: 2.598670085e-14 | F33: 2.494712422e-14 | G33: 2.389768641e-14 | H33: 2.283788432e-14 | I33: 2.17671347e-14 | J33: 2.068475462e-14 | K33: 1.958993677e-14 | L33: 1.848171849e-14 | M33: 1.735894267e-14 | N33: 1.622020839e-14 | O33: 1.506380888e-14 | P33: 1.388765308e-14 | Q33: 1.268916691e-14 | R33: 1.146516869e-14 | S33: 1.021171195e-14 | T33: 8.923887368e-15 | U33: 7.595572738e-15 | V33: 6.219117761e-15 | W33: 4.784946362e-15 | X33: 3.281055075e-15 | Y33: 1.692380279e-15 | Z33: 0
A34: 24 | B34: 2.90503966e-14 | C34: 2.90503966e-14 | D34: 2.80379721e-14 | E34: 2.701685475e-14 | F34: 2.598670085e-14 | G34: 2.494712422e-14 | H34: 2.389768641e-14 | I34: 2.283788432e-14 | J34: 2.17671347e-14 | K34: 2.068475462e-14 | L34: 1.958993677e-14 | M34: 1.848171849e-14 | N34: 1.735894267e-14 | O34: 1.622020839e-14 | P34: 1.506380888e-14 | Q34: 1.388765308e-14 | R34: 1.268916691e-14 | S34: 1.146516869e-14 | T34: 1.021171195e-14 | U34: 8.923887368e-15 | V34: 7.595572738e-15 | W34: 6.219117761e-15 | X34: 4.784946362e-15 | Y34: 3.281055075e-15 | Z34: 1.692380279e-15 | AA34: 0
A35: 25 | B35: 3.005443729e-14 | C35: 3.005443729e-14 | D35: 2.90503966e-14 | E35: 2.80379721e-14 | F35: 2.701685475e-14 | G35: 2.598670085e-14 | H35: 2.494712422e-14 | I35: 2.389768641e-14 | J35: 2.283788432e-14 | K35: 2.17671347e-14 | L35: 2.068475462e-14 | M35: 1.958993677e-14 | N35: 1.848171849e-14 | O35: 1.735894267e-14 | P35: 1.622020839e-14 | Q35: 1.506380888e-14 | R35: 1.388765308e-14 | S35: 1.268916691e-14 | T35: 1.146516869e-14 | U35: 1.021171195e-14 | V35: 8.923887368e-15 | W35: 7.595572738e-15 | X35: 6.219117761e-15 | Y35: 4.784946362e-15 | Z35: 3.281055075e-15 | AA35: 1.692380279e-15 | AB35: 0
A36: 26 | B36: 3.105037472e-14 | C36: 3.105037472e-14 | D36: 3.005443729e-14 | E36: 2.90503966e-14 | F36: 2.80379721e-14 | G36: 2.701685475e-14 | H36: 2.598670085e-14 | I36: 2.494712422e-14 | J36: 2.389768641e-14 | K36: 2.283788432e-14 | L36: 2.17671347e-14 | M36: 2.068475462e-14 | N36: 1.958993677e-14 | O36: 1.848171849e-14 | P36: 1.735894267e-14 | Q36: 1.622020839e-14 | R36: 1.506380888e-14 | S36: 1.388765308e-14 | T36: 1.268916691e-14 | U36: 1.146516869e-14 | V36: 1.021171195e-14 | W36: 8.923887368e-15 | X36: 7.595572738e-15 | Y36: 6.219117761e-15 | Z36: 4.784946362e-15 | AA36: 3.281055075e-15 | AB36: 1.692380279e-15 | AC36: 0
A37: 27 | B37: 3.203846596e-14 | C37: 3.203846596e-14 | D37: 3.105037472e-14 | E37: 3.005443729e-14 | F37: 2.90503966e-14 | G37: 2.80379721e-14 | H37: 2.701685475e-14 | I37: 2.598670085e-14 | J37: 2.494712422e-14 | K37: 2.389768641e-14 | L37: 2.283788432e-14 | M37: 2.17671347e-14 | N37: 2.068475462e-14 | O37: 1.958993677e-14 | P37: 1.848171849e-14 | Q37: 1.735894267e-14 | R37: 1.622020839e-14 | S37: 1.506380888e-14 | T37: 1.388765308e-14 | U37: 1.268916691e-14 | V37: 1.146516869e-14 | W37: 1.021171195e-14 | X37: 8.923887368e-15 | Y37: 7.595572738e-15 | Z37: 6.219117761e-15 | AA37: 4.784946362e-15 | AB37: 3.281055075e-15 | AC37: 1.692380279e-15 | AD37: 0
A38: 28 | B38: 3.30189485e-14 | C38: 3.30189485e-14 | D38: 3.203846596e-14 | E38: 3.105037472e-14 | F38: 3.005443729e-14 | G38: 2.90503966e-14 | H38: 2.80379721e-14 | I38: 2.701685475e-14 | J38: 2.598670085e-14 | K38: 2.494712422e-14 | L38: 2.389768641e-14 | M38: 2.283788432e-14 | N38: 2.17671347e-14 | O38: 2.068475462e-14 | P38: 1.958993677e-14 | Q38: 1.848171849e-14 | R38: 1.735894267e-14 | S38: 1.622020839e-14 | T38: 1.506380888e-14 | U38: 1.388765308e-14 | V38: 1.268916691e-14 | W38: 1.146516869e-14 | X38: 1.021171195e-14 | Y38: 8.923887368e-15 | Z38: 7.595572738e-15 | AA38: 6.219117761e-15 | AB38: 4.784946362e-15 | AC38: 3.281055075e-15 | AD38: 1.692380279e-15 | AE38: 0
A39: 29 | B39: 3.399204345e-14 | C39: 3.399204345e-14 | D39: 3.30189485e-14 | E39: 3.203846596e-14 | F39: 3.105037472e-14 | G39: 3.005443729e-14 | H39: 2.90503966e-14 | I39: 2.80379721e-14 | J39: 2.701685475e-14 | K39: 2.598670085e-14 | L39: 2.494712422e-14 | M39: 2.389768641e-14 | N39: 2.283788432e-14 | O39: 2.17671347e-14 | P39: 2.068475462e-14 | Q39: 1.958993677e-14 | R39: 1.848171849e-14 | S39: 1.735894267e-14 | T39: 1.622020839e-14 | U39: 1.506380888e-14 | V39: 1.388765308e-14 | W39: 1.268916691e-14 | X39: 1.146516869e-14 | Y39: 1.021171195e-14 | Z39: 8.923887368e-15 | AA39: 7.595572738e-15 | AB39: 6.219117761e-15 | AC39: 4.784946362e-15 | AD39: 3.281055075e-15 | AE39: 1.692380279e-15 | AF39: 0
A40: 30 | B40: 3.495795802e-14 | C40: 3.495795802e-14 | D40: 3.399204345e-14 | E40: 3.30189485e-14 | F40: 3.203846596e-14 | G40: 3.105037472e-14 | H40: 3.005443729e-14 | I40: 2.90503966e-14 | J40: 2.80379721e-14 | K40: 2.701685475e-14 | L40: 2.598670085e-14 | M40: 2.494712422e-14 | N40: 2.389768641e-14 | O40: 2.283788432e-14 | P40: 2.17671347e-14 | Q40: 2.068475462e-14 | R40: 1.958993677e-14 | S40: 1.848171849e-14 | T40: 1.735894267e-14 | U40: 1.622020839e-14 | V40: 1.506380888e-14 | W40: 1.388765308e-14 | X40: 1.268916691e-14 | Y40: 1.146516869e-14 | Z40: 1.021171195e-14 | AA40: 8.923887368e-15 | AB40: 7.595572738e-15 | AC40: 6.219117761e-15 | AD40: 4.784946362e-15 | AE40: 3.281055075e-15 | AF40: 1.692380279e-15 | AG40: 0
A41: 31 | B41: 3.591688758e-14 | C41: 3.591688758e-14 | D41: 3.495795802e-14 | E41: 3.399204345e-14 | F41: 3.30189485e-14 | G41: 3.203846596e-14 | H41: 3.105037472e-14 | I41: 3.005443729e-14 | J41: 2.90503966e-14 | K41: 2.80379721e-14 | L41: 2.701685475e-14 | M41: 2.598670085e-14 | N41: 2.494712422e-14 | O41: 2.389768641e-14 | P41: 2.283788432e-14 | Q41: 2.17671347e-14 | R41: 2.068475462e-14 | S41: 1.958993677e-14 | T41: 1.848171849e-14 | U41: 1.735894267e-14 | V41: 1.622020839e-14 | W41: 1.506380888e-14 | X41: 1.388765308e-14 | Y41: 1.268916691e-14 | Z41: 1.146516869e-14 | AA41: 1.021171195e-14 | AB41: 8.923887368e-15 | AC41: 7.595572738e-15 | AD41: 6.219117761e-15 | AE41: 4.784946362e-15 | AF41: 3.281055075e-15 | AG41: 1.692380279e-15 | AH41: 0
A42: 32 | B42: 3.686901729e-14 | C42: 3.686901729e-14 | D42: 3.591688758e-14 | E42: 3.495795802e-14 | F42: 3.399204345e-14 | G42: 3.30189485e-14 | H42: 3.203846596e-14 | I42: 3.105037472e-14 | J42: 3.005443729e-14 | K42: 2.90503966e-14 | L42: 2.80379721e-14 | M42: 2.701685475e-14 | N42: 2.598670085e-14 | O42: 2.494712422e-14 | P42: 2.389768641e-14 | Q42: 2.283788432e-14 | R42: 2.17671347e-14 | S42: 2.068475462e-14 | T42: 1.958993677e-14 | U42: 1.848171849e-14 | V42: 1.735894267e-14 | W42: 1.622020839e-14 | X42: 1.506380888e-14 | Y42: 1.388765308e-14 | Z42: 1.268916691e-14 | AA42: 1.146516869e-14 | AB42: 1.021171195e-14 | AC42: 8.923887368e-15 | AD42: 7.595572738e-15 | AE42: 6.219117761e-15 | AF42: 4.784946362e-15 | AG42: 3.281055075e-15 | AH42: 1.692380279e-15 | AI42: 0
A43: 33 | B43: 3.781452338e-14 | C43: 3.781452338e-14 | D43: 3.686901729e-14 | E43: 3.591688758e-14 | F43: 3.495795802e-14 | G43: 3.399204345e-14 | H43: 3.30189485e-14 | I43: 3.203846596e-14 | J43: 3.105037472e-14 | K43: 3.005443729e-14 | L43: 2.90503966e-14 | M43: 2.80379721e-14 | N43: 2.701685475e-14 | O43: 2.598670085e-14 | P43: 2.494712422e-14 | Q43: 2.389768641e-14 | R43: 2.283788432e-14 | S43: 2.17671347e-14 | T43: 2.068475462e-14 | U43: 1.958993677e-14 | V43: 1.848171849e-14 | W43: 1.735894267e-14 | X43: 1.622020839e-14 | Y43: 1.506380888e-14 | Z43: 1.388765308e-14 | AA43: 1.268916691e-14 | AB43: 1.146516869e-14 | AC43: 1.021171195e-14 | AD43: 8.923887368e-15 | AE43: 7.595572738e-15 | AF43: 6.219117761e-15 | AG43: 4.784946362e-15 | AH43: 3.281055075e-15 | AI43: 1.692380279e-15 | AJ43: 0
A44: 34 | B44: 3.875357424e-14 | C44: 3.875357424e-14 | D44: 3.781452338e-14 | E44: 3.686901729e-14 | F44: 3.591688758e-14 | G44: 3.495795802e-14 | H44: 3.399204345e-14 | I44: 3.30189485e-14 | J44: 3.203846596e-14 | K44: 3.105037472e-14 | L44: 3.005443729e-14 | M44: 2.90503966e-14 | N44: 2.80379721e-14 | O44: 2.701685475e-14 | P44: 2.598670085e-14 | Q44: 2.494712422e-14 | R44: 2.389768641e-14 | S44: 2.283788432e-14 | T44: 2.17671347e-14 | U44: 2.068475462e-14 | V44: 1.958993677e-14 | W44: 1.848171849e-14 | X44: 1.735894267e-14 | Y44: 1.622020839e-14 | Z44: 1.506380888e-14 | AA44: 1.388765308e-14 | AB44: 1.268916691e-14 | AC44: 1.146516869e-14 | AD44: 1.021171195e-14 | AE44: 8.923887368e-15 | AF44: 7.595572738e-15 | AG44: 6.219117761e-15 | AH44: 4.784946362e-15 | AI44: 3.281055075e-15 | AJ44: 1.692380279e-15 | AK44: 0
A45: 35 | B45: 3.968633129e-14 | C45: 3.968633129e-14 | D45: 3.875357424e-14 | E45: 3.781452338e-14 | F45: 3.686901729e-14 | G45: 3.591688758e-14 | H45: 3.495795802e-14 | I45: 3.399204345e-14 | J45: 3.30189485e-14 | K45: 3.203846596e-14 | L45: 3.105037472e-14 | M45: 3.005443729e-14 | N45: 2.90503966e-14 | O45: 2.80379721e-14 | P45: 2.701685475e-14 | Q45: 2.598670085e-14 | R45: 2.494712422e-14 | S45: 2.389768641e-14 | T45: 2.283788432e-14 | U45: 2.17671347e-14 | V45: 2.068475462e-14 | W45: 1.958993677e-14 | X45: 1.848171849e-14 | Y45: 1.735894267e-14 | Z45: 1.622020839e-14 | AA45: 1.506380888e-14 | AB45: 1.388765308e-14 | AC45: 1.268916691e-14 | AD45: 1.146516869e-14 | AE45: 1.021171195e-14 | AF45: 8.923887368e-15 | AG45: 7.595572738e-15 | AH45: 6.219117761e-15 | AI45: 4.784946362e-15 | AJ45: 3.281055075e-15 | AK45: 1.692380279e-15 | AL45: 0
A46: 36 | B46: 4.061294967e-14 | C46: 4.061294967e-14 | D46: 3.968633129e-14 | E46: 3.875357424e-14 | F46: 3.781452338e-14 | G46: 3.686901729e-14 | H46: 3.591688758e-14 | I46: 3.495795802e-14 | J46: 3.399204345e-14 | K46: 3.30189485e-14 | L46: 3.203846596e-14 | M46: 3.105037472e-14 | N46: 3.005443729e-14 | O46: 2.90503966e-14 | P46: 2.80379721e-14 | Q46: 2.701685475e-14 | R46: 2.598670085e-14 | S46: 2.494712422e-14 | T46: 2.389768641e-14 | U46: 2.283788432e-14 | V46: 2.17671347e-14 | W46: 2.068475462e-14 | X46: 1.958993677e-14 | Y46: 1.848171849e-14 | Z46: 1.735894267e-14 | AA46: 1.622020839e-14 | AB46: 1.506380888e-14 | AC46: 1.388765308e-14 | AD46: 1.268916691e-14 | AE46: 1.146516869e-14 | AF46: 1.021171195e-14 | AG46: 8.923887368e-15 | AH46: 7.595572738e-15 | AI46: 6.219117761e-15 | AJ46: 4.784946362e-15 | AK46: 3.281055075e-15 | AL46: 1.692380279e-15 | AM46: 0
A47: 37 | B47: 4.15335788e-14 | C47: 4.15335788e-14 | D47: 4.061294967e-14 | E47: 3.968633129e-14 | F47: 3.875357424e-14 | G47: 3.781452338e-14 | H47: 3.686901729e-14 | I47: 3.591688758e-14 | J47: 3.495795802e-14 | K47: 3.399204345e-14 | L47: 3.30189485e-14 | M47: 3.203846596e-14 | N47: 3.105037472e-14 | O47: 3.005443729e-14 | P47: 2.90503966e-14 | Q47: 2.80379721e-14 | R47: 2.701685475e-14 | S47: 2.598670085e-14 | T47: 2.494712422e-14 | U47: 2.389768641e-14 | V47: 2.283788432e-14 | W47: 2.17671347e-14 | X47: 2.068475462e-14 | Y47: 1.958993677e-14 | Z47: 1.848171849e-14 | AA47: 1.735894267e-14 | AB47: 1.622020839e-14 | AC47: 1.506380888e-14 | AD47: 1.388765308e-14 | AE47: 1.268916691e-14 | AF47: 1.146516869e-14 | AG47: 1.021171195e-14 | AH47: 8.923887368e-15 | AI47: 7.595572738e-15 | AJ47: 6.219117761e-15 | AK47: 4.784946362e-15 | AL47: 3.281055075e-15 | AM47: 1.692380279e-15 | AN47: 0
A48: 38 | B48: 4.244836291e-14 | C48: 4.244836291e-14 | D48: 4.15335788e-14 | E48: 4.061294967e-14 | F48: 3.968633129e-14 | G48: 3.875357424e-14 | H48: 3.781452338e-14 | I48: 3.686901729e-14 | J48: 3.591688758e-14 | K48: 3.495795802e-14 | L48: 3.399204345e-14 | M48: 3.30189485e-14 | N48: 3.203846596e-14 | O48: 3.105037472e-14 | P48: 3.005443729e-14 | Q48: 2.90503966e-14 | R48: 2.80379721e-14 | S48: 2.701685475e-14 | T48: 2.598670085e-14 | U48: 2.494712422e-14 | V48: 2.389768641e-14 | W48: 2.283788432e-14 | X48: 2.17671347e-14 | Y48: 2.068475462e-14 | Z48: 1.958993677e-14 | AA48: 1.848171849e-14 | AB48: 1.735894267e-14 | AC48: 1.622020839e-14 | AD48: 1.506380888e-14 | AE48: 1.388765308e-14 | AF48: 1.268916691e-14 | AG48: 1.146516869e-14 | AH48: 1.021171195e-14 | AI48: 8.923887368e-15 | AJ48: 7.595572738e-15 | AK48: 6.219117761e-15 | AL48: 4.784946362e-15 | AM48: 3.281055075e-15 | AN48: 1.692380279e-15 | AO48: 0
A49: 39 | B49: 4.33574414e-14 | C49: 4.33574414e-14 | D49: 4.244836291e-14 | E49: 4.15335788e-14 | F49: 4.061294967e-14 | G49: 3.968633129e-14 | H49: 3.875357424e-14 | I49: 3.781452338e-14 | J49: 3.686901729e-14 | K49: 3.591688758e-14 | L49: 3.495795802e-14 | M49: 3.399204345e-14 | N49: 3.30189485e-14 | O49: 3.203846596e-14 | P49: 3.105037472e-14 | Q49: 3.005443729e-14 | R49: 2.90503966e-14 | S49: 2.80379721e-14 | T49: 2.701685475e-14 | U49: 2.598670085e-14 | V49: 2.494712422e-14 | W49: 2.389768641e-14 | X49: 2.283788432e-14 | Y49: 2.17671347e-14 | Z49: 2.068475462e-14 | AA49: 1.958993677e-14 | AB49: 1.848171849e-14 | AC49: 1.735894267e-14 | AD49: 1.622020839e-14 | AE49: 1.506380888e-14 | AF49: 1.388765308e-14 | AG49: 1.268916691e-14 | AH49: 1.146516869e-14 | AI49: 1.021171195e-14 | AJ49: 8.923887368e-15 | AK49: 7.595572738e-15 | AL49: 6.219117761e-15 | AM49: 4.784946362e-15 | AN49: 3.281055075e-15 | AO49: 1.692380279e-15 | AP49: 0
A50: 40 | B50: 4.426094917e-14 | C50: 4.426094917e-14 | D50: 4.33574414e-14 | E50: 4.244836291e-14 | F50: 4.15335788e-14 | G50: 4.061294967e-14 | H50: 3.968633129e-14 | I50: 3.875357424e-14 | J50: 3.781452338e-14 | K50: 3.686901729e-14 | L50: 3.591688758e-14 | M50: 3.495795802e-14 | N50: 3.399204345e-14 | O50: 3.30189485e-14 | P50: 3.203846596e-14 | Q50: 3.105037472e-14 | R50: 3.005443729e-14 | S50: 2.90503966e-14 | T50: 2.80379721e-14 | U50: 2.701685475e-14 | V50: 2.598670085e-14 | W50: 2.494712422e-14 | X50: 2.389768641e-14 | Y50: 2.283788432e-14 | Z50: 2.17671347e-14 | AA50: 2.068475462e-14 | AB50: 1.958993677e-14 | AC50: 1.848171849e-14 | AD50: 1.735894267e-14 | AE50: 1.622020839e-14 | AF50: 1.506380888e-14 | AG50: 1.388765308e-14 | AH50: 1.268916691e-14 | AI50: 1.146516869e-14 | AJ50: 1.021171195e-14 | AK50: 8.923887368e-15 | AL50: 7.595572738e-15 | AM50: 6.219117761e-15 | AN50: 4.784946362e-15 | AO50: 3.281055075e-15 | AP50: 1.692380279e-15 | AQ50: 0
A51: 41 | B51: 4.515901693e-14 | C51: 4.515901693e-14 | D51: 4.426094917e-14 | E51: 4.33574414e-14 | F51: 4.244836291e-14 | G51: 4.15335788e-14 | H51: 4.061294967e-14 | I51: 3.968633129e-14 | J51: 3.875357424e-14 | K51: 3.781452338e-14 | L51: 3.686901729e-14 | M51: 3.591688758e-14 | N51: 3.495795802e-14 | O51: 3.399204345e-14 | P51: 3.30189485e-14 | Q51: 3.203846596e-14 | R51: 3.105037472e-14 | S51: 3.005443729e-14 | T51: 2.90503966e-14 | U51: 2.80379721e-14 | V51: 2.701685475e-14 | W51: 2.598670085e-14 | X51: 2.494712422e-14 | Y51: 2.389768641e-14 | Z51: 2.283788432e-14 | AA51: 2.17671347e-14 | AB51: 2.068475462e-14 | AC51: 1.958993677e-14 | AD51: 1.848171849e-14 | AE51: 1.735894267e-14 | AF51: 1.622020839e-14 | AG51: 1.506380888e-14 | AH51: 1.388765308e-14 | AI51: 1.268916691e-14 | AJ51: 1.146516869e-14 | AK51: 1.021171195e-14 | AL51: 8.923887368e-15 | AM51: 7.595572738e-15 | AN51: 6.219117761e-15 | AO51: 4.784946362e-15 | AP51: 3.281055075e-15 | AQ51: 1.692380279e-15 | AR51: 0
A52: 42 | B52: 4.605177142e-14 | C52: 4.605177142e-14 | D52: 4.515901693e-14 | E52: 4.426094917e-14 | F52: 4.33574414e-14 | G52: 4.244836291e-14 | H52: 4.15335788e-14 | I52: 4.061294967e-14 | J52: 3.968633129e-14 | K52: 3.875357424e-14 | L52: 3.781452338e-14 | M52: 3.686901729e-14 | N52: 3.591688758e-14 | O52: 3.495795802e-14 | P52: 3.399204345e-14 | Q52: 3.30189485e-14 | R52: 3.203846596e-14 | S52: 3.105037472e-14 | T52: 3.005443729e-14 | U52: 2.90503966e-14 | V52: 2.80379721e-14 | W52: 2.701685475e-14 | X52: 2.598670085e-14 | Y52: 2.494712422e-14 | Z52: 2.389768641e-14 | AA52: 2.283788432e-14 | AB52: 2.17671347e-14 | AC52: 2.068475462e-14 | AD52: 1.958993677e-14 | AE52: 1.848171849e-14 | AF52: 1.735894267e-14 | AG52: 1.622020839e-14 | AH52: 1.506380888e-14 | AI52: 1.388765308e-14 | AJ52: 1.268916691e-14 | AK52: 1.146516869e-14 | AL52: 1.021171195e-14 | AM52: 8.923887368e-15 | AN52: 7.595572738e-15 | AO52: 6.219117761e-15 | AP52: 4.784946362e-15 | AQ52: 3.281055075e-15 | AR52: 1.692380279e-15 | AS52: 0
A53: 43 | B53: 4.693933564e-14 | C53: 4.693933564e-14 | D53: 4.605177142e-14 | E53: 4.515901693e-14 | F53: 4.426094917e-14 | G53: 4.33574414e-14 | H53: 4.244836291e-14 | I53: 4.15335788e-14 | J53: 4.061294967e-14 | K53: 3.968633129e-14 | L53: 3.875357424e-14 | M53: 3.781452338e-14 | N53: 3.686901729e-14 | O53: 3.591688758e-14 | P53: 3.495795802e-14 | Q53: 3.399204345e-14 | R53: 3.30189485e-14 | S53: 3.203846596e-14 | T53: 3.105037472e-14 | U53: 3.005443729e-14 | V53: 2.90503966e-14 | W53: 2.80379721e-14 | X53: 2.701685475e-14 | Y53: 2.598670085e-14 | Z53: 2.494712422e-14 | AA53: 2.389768641e-14 | AB53: 2.283788432e-14 | AC53: 2.17671347e-14 | AD53: 2.068475462e-14 | AE53: 1.958993677e-14 | AF53: 1.848171849e-14 | AG53: 1.735894267e-14 | AH53: 1.622020839e-14 | AI53: 1.506380888e-14 | AJ53: 1.388765308e-14 | AK53: 1.268916691e-14 | AL53: 1.146516869e-14 | AM53: 1.021171195e-14 | AN53: 8.923887368e-15 | AO53: 7.595572738e-15 | AP53: 6.219117761e-15 | AQ53: 4.784946362e-15 | AR53: 3.281055075e-15 | AS53: 1.692380279e-15 | AT53: 0
A54: 44 | B54: 4.782182899e-14 | C54: 4.782182899e-14 | D54: 4.693933564e-14 | E54: 4.605177142e-14 | F54: 4.515901693e-14 | G54: 4.426094917e-14 | H54: 4.33574414e-14 | I54: 4.244836291e-14 | J54: 4.15335788e-14 | K54: 4.061294967e-14 | L54: 3.968633129e-14 | M54: 3.875357424e-14 | N54: 3.781452338e-14 | O54: 3.686901729e-14 | P54: 3.591688758e-14 | Q54: 3.495795802e-14 | R54: 3.399204345e-14 | S54: 3.30189485e-14 | T54: 3.203846596e-14 | U54: 3.105037472e-14 | V54: 3.005443729e-14 | W54: 2.90503966e-14 | X54: 2.80379721e-14 | Y54: 2.701685475e-14 | Z54: 2.598670085e-14 | AA54: 2.494712422e-14 | AB54: 2.389768641e-14 | AC54: 2.283788432e-14 | AD54: 2.17671347e-14 | AE54: 2.068475462e-14 | AF54: 1.958993677e-14 | AG54: 1.848171849e-14 | AH54: 1.735894267e-14 | AI54: 1.622020839e-14 | AJ54: 1.506380888e-14 | AK54: 1.388765308e-14 | AL54: 1.268916691e-14 | AM54: 1.146516869e-14 | AN54: 1.021171195e-14 | AO54: 8.923887368e-15 | AP54: 7.595572738e-15 | AQ54: 6.219117761e-15 | AR54: 4.784946362e-15 | AS54: 3.281055075e-15 | AT54: 1.692380279e-15 | AU54: 0
A55: 45 | B55: 4.869936747e-14 | C55: 4.869936747e-14 | D55: 4.782182899e-14 | E55: 4.693933564e-14 | F55: 4.605177142e-14 | G55: 4.515901693e-14 | H55: 4.426094917e-14 | I55: 4.33574414e-14 | J55: 4.244836291e-14 | K55: 4.15335788e-14 | L55: 4.061294967e-14 | M55: 3.968633129e-14 | N55: 3.875357424e-14 | O55: 3.781452338e-14 | P55: 3.686901729e-14 | Q55: 3.591688758e-14 | R55: 3.495795802e-14 | S55: 3.399204345e-14 | T55: 3.30189485e-14 | U55: 3.203846596e-14 | V55: 3.105037472e-14 | W55: 3.005443729e-14 | X55: 2.90503966e-14 | Y55: 2.80379721e-14 | Z55: 2.701685475e-14 | AA55: 2.598670085e-14 | AB55: 2.494712422e-14 | AC55: 2.389768641e-14 | AD55: 2.283788432e-14 | AE55: 2.17671347e-14 | AF55: 2.068475462e-14 | AG55: 1.958993677e-14 | AH55: 1.848171849e-14 | AI55: 1.735894267e-14 | AJ55: 1.622020839e-14 | AK55: 1.506380888e-14 | AL55: 1.388765308e-14 | AM55: 1.268916691e-14 | AN55: 1.146516869e-14 | AO55: 1.021171195e-14 | AP55: 8.923887368e-15 | AQ55: 7.595572738e-15 | AR55: 6.219117761e-15 | AS55: 4.784946362e-15 | AT55: 3.281055075e-15 | AU55: 1.692380279e-15 | AV55: 0
A56: 46 | B56: 4.957206383e-14 | C56: 4.957206383e-14 | D56: 4.869936747e-14 | E56: 4.782182899e-14 | F56: 4.693933564e-14 | G56: 4.605177142e-14 | H56: 4.515901693e-14 | I56: 4.426094917e-14 | J56: 4.33574414e-14 | K56: 4.244836291e-14 | L56: 4.15335788e-14 | M56: 4.061294967e-14 | N56: 3.968633129e-14 | O56: 3.875357424e-14 | P56: 3.781452338e-14 | Q56: 3.686901729e-14 | R56: 3.591688758e-14 | S56: 3.495795802e-14 | T56: 3.399204345e-14 | U56: 3.30189485e-14 | V56: 3.203846596e-14 | W56: 3.105037472e-14 | X56: 3.005443729e-14 | Y56: 2.90503966e-14 | Z56: 2.80379721e-14 | AA56: 2.701685475e-14 | AB56: 2.598670085e-14 | AC56: 2.494712422e-14 | AD56: 2.389768641e-14 | AE56: 2.283788432e-14 | AF56: 2.17671347e-14 | AG56: 2.068475462e-14 | AH56: 1.958993677e-14 | AI56: 1.848171849e-14 | AJ56: 1.735894267e-14 | AK56: 1.622020839e-14 | AL56: 1.506380888e-14 | AM56: 1.388765308e-14 | AN56: 1.268916691e-14 | AO56: 1.146516869e-14 | AP56: 1.021171195e-14 | AQ56: 8.923887368e-15 | AR56: 7.595572738e-15 | AS56: 6.219117761e-15 | AT56: 4.784946362e-15 | AU56: 3.281055075e-15 | AV56: 1.692380279e-15 | AW56: 0
A57: 47 | B57: 5.044002765e-14 | C57: 5.044002765e-14 | D57: 4.957206383e-14 | E57: 4.869936747e-14 | F57: 4.782182899e-14 | G57: 4.693933564e-14 | H57: 4.605177142e-14 | I57: 4.515901693e-14 | J57: 4.426094917e-14 | K57: 4.33574414e-14 | L57: 4.244836291e-14 | M57: 4.15335788e-14 | N57: 4.061294967e-14 | O57: 3.968633129e-14 | P57: 3.875357424e-14 | Q57: 3.781452338e-14 | R57: 3.686901729e-14 | S57: 3.591688758e-14 | T57: 3.495795802e-14 | U57: 3.399204345e-14 | V57: 3.30189485e-14 | W57: 3.203846596e-14 | X57: 3.105037472e-14 | Y57: 3.005443729e-14 | Z57: 2.90503966e-14 | AA57: 2.80379721e-14 | AB57: 2.701685475e-14 | AC57: 2.598670085e-14 | AD57: 2.494712422e-14 | AE57: 2.389768641e-14 | AF57: 2.283788432e-14 | AG57: 2.17671347e-14 | AH57: 2.068475462e-14 | AI57: 1.958993677e-14 | AJ57: 1.848171849e-14 | AK57: 1.735894267e-14 | AL57: 1.622020839e-14 | AM57: 1.506380888e-14 | AN57: 1.388765308e-14 | AO57: 1.268916691e-14 | AP57: 1.146516869e-14 | AQ57: 1.021171195e-14 | AR57: 8.923887368e-15 | AS57: 7.595572738e-15 | AT57: 6.219117761e-15 | AU57: 4.784946362e-15 | AV57: 3.281055075e-15 | AW57: 1.692380279e-15 | AX57: 0
A58: 48 | B58: 5.13033655e-14 | C58: 5.13033655e-14 | D58: 5.044002765e-14 | E58: 4.957206383e-14 | F58: 4.869936747e-14 | G58: 4.782182899e-14 | H58: 4.693933564e-14 | I58: 4.605177142e-14 | J58: 4.515901693e-14 | K58: 4.426094917e-14 | L58: 4.33574414e-14 | M58: 4.244836291e-14 | N58: 4.15335788e-14 | O58: 4.061294967e-14 | P58: 3.968633129e-14 | Q58: 3.875357424e-14 | R58: 3.781452338e-14 | S58: 3.686901729e-14 | T58: 3.591688758e-14 | U58: 3.495795802e-14 | V58: 3.399204345e-14 | W58: 3.30189485e-14 | X58: 3.203846596e-14 | Y58: 3.105037472e-14 | Z58: 3.005443729e-14 | AA58: 2.90503966e-14 | AB58: 2.80379721e-14 | AC58: 2.701685475e-14 | AD58: 2.598670085e-14 | AE58: 2.494712422e-14 | AF58: 2.389768641e-14 | AG58: 2.283788432e-14 | AH58: 2.17671347e-14 | AI58: 2.068475462e-14 | AJ58: 1.958993677e-14 | AK58: 1.848171849e-14 | AL58: 1.735894267e-14 | AM58: 1.622020839e-14 | AN58: 1.506380888e-14 | AO58: 1.388765308e-14 | AP58: 1.268916691e-14 | AQ58: 1.146516869e-14 | AR58: 1.021171195e-14 | AS58: 8.923887368e-15 | AT58: 7.595572738e-15 | AU58: 6.219117761e-15 | AV58: 4.784946362e-15 | AW58: 3.281055075e-15 | AX58: 1.692380279e-15 | AY58: 0
A59: 49 | B59: 5.216218103e-14 | C59: 5.216218103e-14 | D59: 5.13033655e-14 | E59: 5.044002765e-14 | F59: 4.957206383e-14 | G59: 4.869936747e-14 | H59: 4.782182899e-14 | I59: 4.693933564e-14 | J59: 4.605177142e-14 | K59: 4.515901693e-14 | L59: 4.426094917e-14 | M59: 4.33574414e-14 | N59: 4.244836291e-14 | O59: 4.15335788e-14 | P59: 4.061294967e-14 | Q59: 3.968633129e-14 | R59: 3.875357424e-14 | S59: 3.781452338e-14 | T59: 3.686901729e-14 | U59: 3.591688758e-14 | V59: 3.495795802e-14 | W59: 3.399204345e-14 | X59: 3.30189485e-14 | Y59: 3.203846596e-14 | Z59: 3.105037472e-14 | AA59: 3.005443729e-14 | AB59: 2.90503966e-14 | AC59: 2.80379721e-14 | AD59: 2.701685475e-14 | AE59: 2.598670085e-14 | AF59: 2.494712422e-14 | AG59: 2.389768641e-14 | AH59: 2.283788432e-14 | AI59: 2.17671347e-14 | AJ59: 2.068475462e-14 | AK59: 1.958993677e-14 | AL59: 1.848171849e-14 | AM59: 1.735894267e-14 | AN59: 1.622020839e-14 | AO59: 1.506380888e-14 | AP59: 1.388765308e-14 | AQ59: 1.268916691e-14 | AR59: 1.146516869e-14 | AS59: 1.021171195e-14 | AT59: 8.923887368e-15 | AU59: 7.595572738e-15 | AV59: 6.219117761e-15 | AW59: 4.784946362e-15 | AX59: 3.281055075e-15 | AY59: 1.692380279e-15 | AZ59: 0
A60: 50 | B60: 5.301657505e-14 | C60: 5.301657505e-14 | D60: 5.216218103e-14 | E60: 5.13033655e-14 | F60: 5.044002765e-14 | G60: 4.957206383e-14 | H60: 4.869936747e-14 | I60: 4.782182899e-14 | J60: 4.693933564e-14 | K60: 4.605177142e-14 | L60: 4.515901693e-14 | M60: 4.426094917e-14 | N60: 4.33574414e-14 | O60: 4.244836291e-14 | P60: 4.15335788e-14 | Q60: 4.061294967e-14 | R60: 3.968633129e-14 | S60: 3.875357424e-14 | T60: 3.781452338e-14 | U60: 3.686901729e-14 | V60: 3.591688758e-14 | W60: 3.495795802e-14 | X60: 3.399204345e-14 | Y60: 3.30189485e-14 | Z60: 3.203846596e-14 | AA60: 3.105037472e-14 | AB60: 3.005443729e-14 | AC60: 2.90503966e-14 | AD60: 2.80379721e-14 | AE60: 2.701685475e-14 | AF60: 2.598670085e-14 | AG60: 2.494712422e-14 | AH60: 2.389768641e-14 | AI60: 2.283788432e-14 | AJ60: 2.17671347e-14 | AK60: 2.068475462e-14 | AL60: 1.958993677e-14 | AM60: 1.848171849e-14 | AN60: 1.735894267e-14 | AO60: 1.622020839e-14 | AP60: 1.506380888e-14 | AQ60: 1.388765308e-14 | AR60: 1.268916691e-14 | AS60: 1.146516869e-14 | AT60: 1.021171195e-14 | AU60: 8.923887368e-15 | AV60: 7.595572738e-15 | AW60: 6.219117761e-15 | AX60: 4.784946362e-15 | AY60: 3.281055075e-15 | AZ60: 1.692380279e-15 | BA60: 0
A61: 51 | B61: 5.386664569e-14 | C61: 5.386664569e-14 | D61: 5.301657505e-14 | E61: 5.216218103e-14 | F61: 5.13033655e-14 | G61: 5.044002765e-14 | H61: 4.957206383e-14 | I61: 4.869936747e-14 | J61: 4.782182899e-14 | K61: 4.693933564e-14 | L61: 4.605177142e-14 | M61: 4.515901693e-14 | N61: 4.426094917e-14 | O61: 4.33574414e-14 | P61: 4.244836291e-14 | Q61: 4.15335788e-14 | R61: 4.061294967e-14 | S61: 3.968633129e-14 | T61: 3.875357424e-14 | U61: 3.781452338e-14 | V61: 3.686901729e-14 | W61: 3.591688758e-14 | X61: 3.495795802e-14 | Y61: 3.399204345e-14 | Z61: 3.30189485e-14 | AA61: 3.203846596e-14 | AB61: 3.105037472e-14 | AC61: 3.005443729e-14 | AD61: 2.90503966e-14 | AE61: 2.80379721e-14 | AF61: 2.701685475e-14 | AG61: 2.598670085e-14 | AH61: 2.494712422e-14 | AI61: 2.389768641e-14 | AJ61: 2.283788432e-14 | AK61: 2.17671347e-14 | AL61: 2.068475462e-14 | AM61: 1.958993677e-14 | AN61: 1.848171849e-14 | AO61: 1.735894267e-14 | AP61: 1.622020839e-14 | AQ61: 1.506380888e-14 | AR61: 1.388765308e-14 | AS61: 1.268916691e-14 | AT61: 1.146516869e-14 | AU61: 1.021171195e-14 | AV61: 8.923887368e-15 | AW61: 7.595572738e-15 | AX61: 6.219117761e-15 | AY61: 4.784946362e-15 | AZ61: 3.281055075e-15 | BA61: 1.692380279e-15 | BB61: 0
A62: 52 | B62: 5.471248838e-14 | C62: 5.471248838e-14 | D62: 5.386664569e-14 | E62: 5.301657505e-14 | F62: 5.216218103e-14 | G62: 5.13033655e-14 | H62: 5.044002765e-14 | I62: 4.957206383e-14 | J62: 4.869936747e-14 | K62: 4.782182899e-14 | L62: 4.693933564e-14 | M62: 4.605177142e-14 | N62: 4.515901693e-14 | O62: 4.426094917e-14 | P62: 4.33574414e-14 | Q62: 4.244836291e-14 | R62: 4.15335788e-14 | S62: 4.061294967e-14 | T62: 3.968633129e-14 | U62: 3.875357424e-14 | V62: 3.781452338e-14 | W62: 3.686901729e-14 | X62: 3.591688758e-14 | Y62: 3.495795802e-14 | Z62: 3.399204345e-14 | AA62: 3.30189485e-14 | AB62: 3.203846596e-14 | AC62: 3.105037472e-14 | AD62: 3.005443729e-14 | AE62: 2.90503966e-14 | AF62: 2.80379721e-14 | AG62: 2.701685475e-14 | AH62: 2.598670085e-14 | AI62: 2.494712422e-14 | AJ62: 2.389768641e-14 | AK62: 2.283788432e-14 | AL62: 2.17671347e-14 | AM62: 2.068475462e-14 | AN62: 1.958993677e-14 | AO62: 1.848171849e-14 | AP62: 1.735894267e-14 | AQ62: 1.622020839e-14 | AR62: 1.506380888e-14 | AS62: 1.388765308e-14 | AT62: 1.268916691e-14 | AU62: 1.146516869e-14 | AV62: 1.021171195e-14 | AW62: 8.923887368e-15 | AX62: 7.595572738e-15 | AY62: 6.219117761e-15 | AZ62: 4.784946362e-15 | BA62: 3.281055075e-15 | BB62: 1.692380279e-15 | BC62: 0
A63: 53 | B63: 5.555419604e-14 | C63: 5.555419604e-14 | D63: 5.471248838e-14 | E63: 5.386664569e-14 | F63: 5.301657505e-14 | G63: 5.216218103e-14 | H63: 5.13033655e-14 | I63: 5.044002765e-14 | J63: 4.957206383e-14 | K63: 4.869936747e-14 | L63: 4.782182899e-14 | M63: 4.693933564e-14 | N63: 4.605177142e-14 | O63: 4.515901693e-14 | P63: 4.426094917e-14 | Q63: 4.33574414e-14 | R63: 4.244836291e-14 | S63: 4.15335788e-14 | T63: 4.061294967e-14 | U63: 3.968633129e-14 | V63: 3.875357424e-14 | W63: 3.781452338e-14 | X63: 3.686901729e-14 | Y63: 3.591688758e-14 | Z63: 3.495795802e-14 | AA63: 3.399204345e-14 | AB63: 3.30189485e-14 | AC63: 3.203846596e-14 | AD63: 3.105037472e-14 | AE63: 3.005443729e-14 | AF63: 2.90503966e-14 | AG63: 2.80379721e-14 | AH63: 2.701685475e-14 | AI63: 2.598670085e-14 | AJ63: 2.494712422e-14 | AK63: 2.389768641e-14 | AL63: 2.283788432e-14 | AM63: 2.17671347e-14 | AN63: 2.068475462e-14 | AO63: 1.958993677e-14 | AP63: 1.848171849e-14 | AQ63: 1.735894267e-14 | AR63: 1.622020839e-14 | AS63: 1.506380888e-14 | AT63: 1.388765308e-14 | AU63: 1.268916691e-14 | AV63: 1.146516869e-14 | AW63: 1.021171195e-14 | AX63: 8.923887368e-15 | AY63: 7.595572738e-15 | AZ63: 6.219117761e-15 | BA63: 4.784946362e-15 | BB63: 3.281055075e-15 | BC63: 1.692380279e-15 | BD63: 0
A64: 54 | B64: 5.639185906e-14 | C64: 5.639185906e-14 | D64: 5.555419604e-14 | E64: 5.471248838e-14 | F64: 5.386664569e-14 | G64: 5.301657505e-14 | H64: 5.216218103e-14 | I64: 5.13033655e-14 | J64: 5.044002765e-14 | K64: 4.957206383e-14 | L64: 4.869936747e-14 | M64: 4.782182899e-14 | N64: 4.693933564e-14 | O64: 4.605177142e-14 | P64: 4.515901693e-14 | Q64: 4.426094917e-14 | R64: 4.33574414e-14 | S64: 4.244836291e-14 | T64: 4.15335788e-14 | U64: 4.061294967e-14 | V64: 3.968633129e-14 | W64: 3.875357424e-14 | X64: 3.781452338e-14 | Y64: 3.686901729e-14 | Z64: 3.591688758e-14 | AA64: 3.495795802e-14 | AB64: 3.399204345e-14 | AC64: 3.30189485e-14 | AD64: 3.203846596e-14 | AE64: 3.105037472e-14 | AF64: 3.005443729e-14 | AG64: 2.90503966e-14 | AH64: 2.80379721e-14 | AI64: 2.701685475e-14 | AJ64: 2.598670085e-14 | AK64: 2.494712422e-14 | AL64: 2.389768641e-14 | AM64: 2.283788432e-14 | AN64: 2.17671347e-14 | AO64: 2.068475462e-14 | AP64: 1.958993677e-14 | AQ64: 1.848171849e-14 | AR64: 1.735894267e-14 | AS64: 1.622020839e-14 | AT64: 1.506380888e-14 | AU64: 1.388765308e-14 | AV64: 1.268916691e-14 | AW64: 1.146516869e-14 | AX64: 1.021171195e-14 | AY64: 8.923887368e-15 | AZ64: 7.595572738e-15 | BA64: 6.219117761e-15 | BB64: 4.784946362e-15 | BC64: 3.281055075e-15 | BD64: 1.692380279e-15 | BE64: 0
A65: 55 | B65: 5.722556546e-14 | C65: 5.722556546e-14 | D65: 5.639185906e-14 | E65: 5.555419604e-14 | F65: 5.471248838e-14 | G65: 5.386664569e-14 | H65: 5.301657505e-14 | I65: 5.216218103e-14 | J65: 5.13033655e-14 | K65: 5.044002765e-14 | L65: 4.957206383e-14 | M65: 4.869936747e-14 | N65: 4.782182899e-14 | O65: 4.693933564e-14 | P65: 4.605177142e-14 | Q65: 4.515901693e-14 | R65: 4.426094917e-14 | S65: 4.33574414e-14 | T65: 4.244836291e-14 | U65: 4.15335788e-14 | V65: 4.061294967e-14 | W65: 3.968633129e-14 | X65: 3.875357424e-14 | Y65: 3.781452338e-14 | Z65: 3.686901729e-14 | AA65: 3.591688758e-14 | AB65: 3.495795802e-14 | AC65: 3.399204345e-14 | AD65: 3.30189485e-14 | AE65: 3.203846596e-14 | AF65: 3.105037472e-14 | AG65: 3.005443729e-14 | AH65: 2.90503966e-14 | AI65: 2.80379721e-14 | AJ65: 2.701685475e-14 | AK65: 2.598670085e-14 | AL65: 2.494712422e-14 | AM65: 2.389768641e-14 | AN65: 2.283788432e-14 | AO65: 2.17671347e-14 | AP65: 2.068475462e-14 | AQ65: 1.958993677e-14 | AR65: 1.848171849e-14 | AS65: 1.735894267e-14 | AT65: 1.622020839e-14 | AU65: 1.506380888e-14 | AV65: 1.388765308e-14 | AW65: 1.268916691e-14 | AX65: 1.146516869e-14 | AY65: 1.021171195e-14 | AZ65: 8.923887368e-15 | BA65: 7.595572738e-15 | BB65: 6.219117761e-15 | BC65: 4.784946362e-15 | BD65: 3.281055075e-15 | BE65: 1.692380279e-15 | BF65: 0
A66: 56 | B66: 5.80554009e-14 | C66: 5.80554009e-14 | D66: 5.722556546e-14 | E66: 5.639185906e-14 | F66: 5.555419604e-14 | G66: 5.471248838e-14 | H66: 5.386664569e-14 | I66: 5.301657505e-14 | J66: 5.216218103e-14 | K66: 5.13033655e-14 | L66: 5.044002765e-14 | M66: 4.957206383e-14 | N66: 4.869936747e-14 | O66: 4.782182899e-14 | P66: 4.693933564e-14 | Q66: 4.605177142e-14 | R66: 4.515901693e-14 | S66: 4.426094917e-14 | T66: 4.33574414e-14 | U66: 4.244836291e-14 | V66: 4.15335788e-14 | W66: 4.061294967e-14 | X66: 3.968633129e-14 | Y66: 3.875357424e-14 | Z66: 3.781452338e-14 | AA66: 3.686901729e-14 | AB66: 3.591688758e-14 | AC66: 3.495795802e-14 | AD66: 3.399204345e-14 | AE66: 3.30189485e-14 | AF66: 3.203846596e-14 | AG66: 3.105037472e-14 | AH66: 3.005443729e-14 | AI66: 2.90503966e-14 | AJ66: 2.80379721e-14 | AK66: 2.701685475e-14 | AL66: 2.598670085e-14 | AM66: 2.494712422e-14 | AN66: 2.389768641e-14 | AO66: 2.283788432e-14 | AP66: 2.17671347e-14 | AQ66: 2.068475462e-14 | AR66: 1.958993677e-14 | AS66: 1.848171849e-14 | AT66: 1.735894267e-14 | AU66: 1.622020839e-14 | AV66: 1.506380888e-14 | AW66: 1.388765308e-14 | AX66: 1.268916691e-14 | AY66: 1.146516869e-14 | AZ66: 1.021171195e-14 | BA66: 8.923887368e-15 | BB66: 7.595572738e-15 | BC66: 6.219117761e-15 | BD66: 4.784946362e-15 | BE66: 3.281055075e-15 | BF66: 1.692380279e-15 | BG66: 0
A67: 57 | B67: 5.888144877e-14 | C67: 5.888144877e-14 | D67: 5.80554009e-14 | E67: 5.722556546e-14 | F67: 5.639185906e-14 | G67: 5.555419604e-14 | H67: 5.471248838e-14 | I67: 5.386664569e-14 | J67: 5.301657505e-14 | K67: 5.216218103e-14 | L67: 5.13033655e-14 | M67: 5.044002765e-14 | N67: 4.957206383e-14 | O67: 4.869936747e-14 | P67: 4.782182899e-14 | Q67: 4.693933564e-14 | R67: 4.605177142e-14 | S67: 4.515901693e-14 | T67: 4.426094917e-14 | U67: 4.33574414e-14 | V67: 4.244836291e-14 | W67: 4.15335788e-14 | X67: 4.061294967e-14 | Y67: 3.968633129e-14 | Z67: 3.875357424e-14 | AA67: 3.781452338e-14 | AB67: 3.686901729e-14 | AC67: 3.591688758e-14 | AD67: 3.495795802e-14 | AE67: 3.399204345e-14 | AF67: 3.30189485e-14 | AG67: 3.203846596e-14 | AH67: 3.105037472e-14 | AI67: 3.005443729e-14 | AJ67: 2.90503966e-14 | AK67: 2.80379721e-14 | AL67: 2.701685475e-14 | AM67: 2.598670085e-14 | AN67: 2.494712422e-14 | AO67: 2.389768641e-14 | AP67: 2.283788432e-14 | AQ67: 2.17671347e-14 | AR67: 2.068475462e-14 | AS67: 1.958993677e-14 | AT67: 1.848171849e-14 | AU67: 1.735894267e-14 | AV67: 1.622020839e-14 | AW67: 1.506380888e-14 | AX67: 1.388765308e-14 | AY67: 1.268916691e-14 | AZ67: 1.146516869e-14 | BA67: 1.021171195e-14 | BB67: 8.923887368e-15 | BC67: 7.595572738e-15 | BD67: 6.219117761e-15 | BE67: 4.784946362e-15 | BF67: 3.281055075e-15 | BG67: 1.692380279e-15 | BH67: 0
A68: 58 | B68: 5.970379023e-14 | C68: 5.970379023e-14 | D68: 5.888144877e-14 | E68: 5.80554009e-14 | F68: 5.722556546e-14 | G68: 5.639185906e-14 | H68: 5.555419604e-14 | I68: 5.471248838e-14 | J68: 5.386664569e-14 | K68: 5.301657505e-14 | L68: 5.216218103e-14 | M68: 5.13033655e-14 | N68: 5.044002765e-14 | O68: 4.957206383e-14 | P68: 4.869936747e-14 | Q68: 4.782182899e-14 | R68: 4.693933564e-14 | S68: 4.605177142e-14 | T68: 4.515901693e-14 | U68: 4.426094917e-14 | V68: 4.33574414e-14 | W68: 4.244836291e-14 | X68: 4.15335788e-14 | Y68: 4.061294967e-14 | Z68: 3.968633129e-14 | AA68: 3.875357424e-14 | AB68: 3.781452338e-14 | AC68: 3.686901729e-14 | AD68: 3.591688758e-14 | AE68: 3.495795802e-14 | AF68: 3.399204345e-14 | AG68: 3.30189485e-14 | AH68: 3.203846596e-14 | AI68: 3.105037472e-14 | AJ68: 3.005443729e-14 | AK68: 2.90503966e-14 | AL68: 2.80379721e-14 | AM68: 2.701685475e-14 | AN68: 2.598670085e-14 | AO68: 2.494712422e-14 | AP68: 2.389768641e-14 | AQ68: 2.283788432e-14 | AR68: 2.17671347e-14 | AS68: 2.068475462e-14 | AT68: 1.958993677e-14 | AU68: 1.848171849e-14 | AV68: 1.735894267e-14 | AW68: 1.622020839e-14 | AX68: 1.506380888e-14 | AY68: 1.388765308e-14 | AZ68: 1.268916691e-14 | BA68: 1.146516869e-14 | BB68: 1.021171195e-14 | BC68: 8.923887368e-15 | BD68: 7.595572738e-15 | BE68: 6.219117761e-15 | BF68: 4.784946362e-15 | BG68: 3.281055075e-15 | BH68: 1.692380279e-15 | BI68: 0
A69: 59 | B69: 6.052250434e-14 | C69: 6.052250434e-14 | D69: 5.970379023e-14 | E69: 5.888144877e-14 | F69: 5.80554009e-14 | G69: 5.722556546e-14 | H69: 5.639185906e-14 | I69: 5.555419604e-14 | J69: 5.471248838e-14 | K69: 5.386664569e-14 | L69: 5.301657505e-14 | M69: 5.216218103e-14 | N69: 5.13033655e-14 | O69: 5.044002765e-14 | P69: 4.957206383e-14 | Q69: 4.869936747e-14 | R69: 4.782182899e-14 | S69: 4.693933564e-14 | T69: 4.605177142e-14 | U69: 4.515901693e-14 | V69: 4.426094917e-14 | W69: 4.33574414e-14 | X69: 4.244836291e-14 | Y69: 4.15335788e-14 | Z69: 4.061294967e-14 | AA69: 3.968633129e-14 | AB69: 3.875357424e-14 | AC69: 3.781452338e-14 | AD69: 3.686901729e-14 | AE69: 3.591688758e-14 | AF69: 3.495795802e-14 | AG69: 3.399204345e-14 | AH69: 3.30189485e-14 | AI69: 3.203846596e-14 | AJ69: 3.105037472e-14 | AK69: 3.005443729e-14 | AL69: 2.90503966e-14 | AM69: 2.80379721e-14 | AN69: 2.701685475e-14 | AO69: 2.598670085e-14 | AP69: 2.494712422e-14 | AQ69: 2.389768641e-14 | AR69: 2.283788432e-14 | AS69: 2.17671347e-14 | AT69: 2.068475462e-14 | AU69: 1.958993677e-14 | AV69: 1.848171849e-14 | AW69: 1.735894267e-14 | AX69: 1.622020839e-14 | AY69: 1.506380888e-14 | AZ69: 1.388765308e-14 | BA69: 1.268916691e-14 | BB69: 1.146516869e-14 | BC69: 1.021171195e-14 | BD69: 8.923887368e-15 | BE69: 7.595572738e-15 | BF69: 6.219117761e-15 | BG69: 4.784946362e-15 | BH69: 3.281055075e-15 | BI69: 1.692380279e-15 | BJ69: 0
A70: 60 | B70: 6.133766802e-14 | C70: 6.133766802e-14 | D70: 6.052250434e-14 | E70: 5.970379023e-14 | F70: 5.888144877e-14 | G70: 5.80554009e-14 | H70: 5.722556546e-14 | I70: 5.639185906e-14 | J70: 5.555419604e-14 | K70: 5.471248838e-14 | L70: 5.386664569e-14 | M70: 5.301657505e-14 | N70: 5.216218103e-14 | O70: 5.13033655e-14 | P70: 5.044002765e-14 | Q70: 4.957206383e-14 | R70: 4.869936747e-14 | S70: 4.782182899e-14 | T70: 4.693933564e-14 | U70: 4.605177142e-14 | V70: 4.515901693e-14 | W70: 4.426094917e-14 | X70: 4.33574414e-14 | Y70: 4.244836291e-14 | Z70: 4.15335788e-14 | AA70: 4.061294967e-14 | AB70: 3.968633129e-14 | AC70: 3.875357424e-14 | AD70: 3.781452338e-14 | AE70: 3.686901729e-14 | AF70: 3.591688758e-14 | AG70: 3.495795802e-14 | AH70: 3.399204345e-14 | AI70: 3.30189485e-14 | AJ70: 3.203846596e-14 | AK70: 3.105037472e-14 | AL70: 3.005443729e-14 | AM70: 2.90503966e-14 | AN70: 2.80379721e-14 | AO70: 2.701685475e-14 | AP70: 2.598670085e-14 | AQ70: 2.494712422e-14 | AR70: 2.389768641e-14 | AS70: 2.283788432e-14 | AT70: 2.17671347e-14 | AU70: 2.068475462e-14 | AV70: 1.958993677e-14 | AW70: 1.848171849e-14 | AX70: 1.735894267e-14 | AY70: 1.622020839e-14 | AZ70: 1.506380888e-14 | BA70: 1.388765308e-14 | BB70: 1.268916691e-14 | BC70: 1.146516869e-14 | BD70: 1.021171195e-14 | BE70: 8.923887368e-15 | BF70: 7.595572738e-15 | BG70: 6.219117761e-15 | BH70: 4.784946362e-15 | BI70: 3.281055075e-15 | BJ70: 1.692380279e-15 | BK70: 0
A71: 61 | B71: 6.214935619e-14 | C71: 6.214935619e-14 | D71: 6.133766802e-14 | E71: 6.052250434e-14 | F71: 5.970379023e-14 | G71: 5.888144877e-14 | H71: 5.80554009e-14 | I71: 5.722556546e-14 | J71: 5.639185906e-14 | K71: 5.555419604e-14 | L71: 5.471248838e-14 | M71: 5.386664569e-14 | N71: 5.301657505e-14 | O71: 5.216218103e-14 | P71: 5.13033655e-14 | Q71: 5.044002765e-14 | R71: 4.957206383e-14 | S71: 4.869936747e-14 | T71: 4.782182899e-14 | U71: 4.693933564e-14 | V71: 4.605177142e-14 | W71: 4.515901693e-14 | X71: 4.426094917e-14 | Y71: 4.33574414e-14 | Z71: 4.244836291e-14 | AA71: 4.15335788e-14 | AB71: 4.061294967e-14 | AC71: 3.968633129e-14 | AD71: 3.875357424e-14 | AE71: 3.781452338e-14 | AF71: 3.686901729e-14 | AG71: 3.591688758e-14 | AH71: 3.495795802e-14 | AI71: 3.399204345e-14 | AJ71: 3.30189485e-14 | AK71: 3.203846596e-14 | AL71: 3.105037472e-14 | AM71: 3.005443729e-14 | AN71: 2.90503966e-14 | AO71: 2.80379721e-14 | AP71: 2.701685475e-14 | AQ71: 2.598670085e-14 | AR71: 2.494712422e-14 | AS71: 2.389768641e-14 | AT71: 2.283788432e-14 | AU71: 2.17671347e-14 | AV71: 2.068475462e-14 | AW71: 1.958993677e-14 | AX71: 1.848171849e-14 | AY71: 1.735894267e-14 | AZ71: 1.622020839e-14 | BA71: 1.506380888e-14 | BB71: 1.388765308e-14 | BC71: 1.268916691e-14 | BD71: 1.146516869e-14 | BE71: 1.021171195e-14 | BF71: 8.923887368e-15 | BG71: 7.595572738e-15 | BH71: 6.219117761e-15 | BI71: 4.784946362e-15 | BJ71: 3.281055075e-15 | BK71: 1.692380279e-15 | BL71: 0
A72: 62 | B72: 6.29576418e-14 | C72: 6.29576418e-14 | D72: 6.214935619e-14 | E72: 6.133766802e-14 | F72: 6.052250434e-14 | G72: 5.970379023e-14 | H72: 5.888144877e-14 | I72: 5.80554009e-14 | J72: 5.722556546e-14 | K72: 5.639185906e-14 | L72: 5.555419604e-14 | M72: 5.471248838e-14 | N72: 5.386664569e-14 | O72: 5.301657505e-14 | P72: 5.216218103e-14 | Q72: 5.13033655e-14 | R72: 5.044002765e-14 | S72: 4.957206383e-14 | T72: 4.869936747e-14 | U72: 4.782182899e-14 | V72: 4.693933564e-14 | W72: 4.605177142e-14 | X72: 4.515901693e-14 | Y72: 4.426094917e-14 | Z72: 4.33574414e-14 | AA72: 4.244836291e-14 | AB72: 4.15335788e-14 | AC72: 4.061294967e-14 | AD72: 3.968633129e-14 | AE72: 3.875357424e-14 | AF72: 3.781452338e-14 | AG72: 3.686901729e-14 | AH72: 3.591688758e-14 | AI72: 3.495795802e-14 | AJ72: 3.399204345e-14 | AK72: 3.30189485e-14 | AL72: 3.203846596e-14 | AM72: 3.105037472e-14 | AN72: 3.005443729e-14 | AO72: 2.90503966e-14 | AP72: 2.80379721e-14 | AQ72: 2.701685475e-14 | AR72: 2.598670085e-14 | AS72: 2.494712422e-14 | AT72: 2.389768641e-14 | AU72: 2.283788432e-14 | AV72: 2.17671347e-14 | AW72: 2.068475462e-14 | AX72: 1.958993677e-14 | AY72: 1.848171849e-14 | AZ72: 1.735894267e-14 | BA72: 1.622020839e-14 | BB72: 1.506380888e-14 | BC72: 1.388765308e-14 | BD72: 1.268916691e-14 | BE72: 1.146516869e-14 | BF72: 1.021171195e-14 | BG72: 8.923887368e-15 | BH72: 7.595572738e-15 | BI72: 6.219117761e-15 | BJ72: 4.784946362e-15 | BK72: 3.281055075e-15 | BL72: 1.692380279e-15 | BM72: 0
A73: 63 | B73: 6.376259585e-14 | C73: 6.376259585e-14 | D73: 6.29576418e-14 | E73: 6.214935619e-14 | F73: 6.133766802e-14 | G73: 6.052250434e-14 | H73: 5.970379023e-14 | I73: 5.888144877e-14 | J73: 5.80554009e-14 | K73: 5.722556546e-14 | L73: 5.639185906e-14 | M73: 5.555419604e-14 | N73: 5.471248838e-14 | O73: 5.386664569e-14 | P73: 5.301657505e-14 | Q73: 5.216218103e-14 | R73: 5.13033655e-14 | S73: 5.044002765e-14 | T73: 4.957206383e-14 | U73: 4.869936747e-14 | V73: 4.782182899e-14 | W73: 4.693933564e-14 | X73: 4.605177142e-14 | Y73: 4.515901693e-14 | Z73: 4.426094917e-14 | AA73: 4.33574414e-14 | AB73: 4.244836291e-14 | AC73: 4.15335788e-14 | AD73: 4.061294967e-14 | AE73: 3.968633129e-14 | AF73: 3.875357424e-14 | AG73: 3.781452338e-14 | AH73: 3.686901729e-14 | AI73: 3.591688758e-14 | AJ73: 3.495795802e-14 | AK73: 3.399204345e-14 | AL73: 3.30189485e-14 | AM73: 3.203846596e-14 | AN73: 3.105037472e-14 | AO73: 3.005443729e-14 | AP73: 2.90503966e-14 | AQ73: 2.80379721e-14 | AR73: 2.701685475e-14 | AS73: 2.598670085e-14 | AT73: 2.494712422e-14 | AU73: 2.389768641e-14 | AV73: 2.283788432e-14 | AW73: 2.17671347e-14 | AX73: 2.068475462e-14 | AY73: 1.958993677e-14 | AZ73: 1.848171849e-14 | BA73: 1.735894267e-14 | BB73: 1.622020839e-14 | BC73: 1.506380888e-14 | BD73: 1.388765308e-14 | BE73: 1.268916691e-14 | BF73: 1.146516869e-14 | BG73: 1.021171195e-14 | BH73: 8.923887368e-15 | BI73: 7.595572738e-15 | BJ73: 6.219117761e-15 | BK73: 4.784946362e-15 | BL73: 3.281055075e-15 | BM73: 1.692380279e-15 | BN73: 0
A74: 64 | B74: 6.456428751e-14 | C74: 6.456428751e-14 | D74: 6.376259585e-14 | E74: 6.29576418e-14 | F74: 6.214935619e-14 | G74: 6.133766802e-14 | H74: 6.052250434e-14 | I74: 5.970379023e-14 | J74: 5.888144877e-14 | K74: 5.80554009e-14 | L74: 5.722556546e-14 | M74: 5.639185906e-14 | N74: 5.555419604e-14 | O74: 5.471248838e-14 | P74: 5.386664569e-14 | Q74: 5.301657505e-14 | R74: 5.216218103e-14 | S74: 5.13033655e-14 | T74: 5.044002765e-14 | U74: 4.957206383e-14 | V74: 4.869936747e-14 | W74: 4.782182899e-14 | X74: 4.693933564e-14 | Y74: 4.605177142e-14 | Z74: 4.515901693e-14 | AA74: 4.426094917e-14 | AB74: 4.33574414e-14 | AC74: 4.244836291e-14 | AD74: 4.15335788e-14 | AE74: 4.061294967e-14 | AF74: 3.968633129e-14 | AG74: 3.875357424e-14 | AH74: 3.781452338e-14 | AI74: 3.686901729e-14 | AJ74: 3.591688758e-14 | AK74: 3.495795802e-14 | AL74: 3.399204345e-14 | AM74: 3.30189485e-14 | AN74: 3.203846596e-14 | AO74: 3.105037472e-14 | AP74: 3.005443729e-14 | AQ74: 2.90503966e-14 | AR74: 2.80379721e-14 | AS74: 2.701685475e-14 | AT74: 2.598670085e-14 | AU74: 2.494712422e-14 | AV74: 2.389768641e-14 | AW74: 2.283788432e-14 | AX74: 2.17671347e-14 | AY74: 2.068475462e-14 | AZ74: 1.958993677e-14 | BA74: 1.848171849e-14 | BB74: 1.735894267e-14 | BC74: 1.622020839e-14 | BD74: 1.506380888e-14 | BE74: 1.388765308e-14 | BF74: 1.268916691e-14 | BG74: 1.146516869e-14 | BH74: 1.021171195e-14 | BI74: 8.923887368e-15 | BJ74: 7.595572738e-15 | BK74: 6.219117761e-15 | BL74: 4.784946362e-15 | BM74: 3.281055075e-15 | BN74: 1.692380279e-15 | BO74: 0
A75: 65 | B75: 6.536278411e-14 | C75: 6.536278411e-14 | D75: 6.456428751e-14 | E75: 6.376259585e-14 | F75: 6.29576418e-14 | G75: 6.214935619e-14 | H75: 6.133766802e-14 | I75: 6.052250434e-14 | J75: 5.970379023e-14 | K75: 5.888144877e-14 | L75: 5.80554009e-14 | M75: 5.722556546e-14 | N75: 5.639185906e-14 | O75: 5.555419604e-14 | P75: 5.471248838e-14 | Q75: 5.386664569e-14 | R75: 5.301657505e-14 | S75: 5.216218103e-14 | T75: 5.13033655e-14 | U75: 5.044002765e-14 | V75: 4.957206383e-14 | W75: 4.869936747e-14 | X75: 4.782182899e-14 | Y75: 4.693933564e-14 | Z75: 4.605177142e-14 | AA75: 4.515901693e-14 | AB75: 4.426094917e-14 | AC75: 4.33574414e-14 | AD75: 4.244836291e-14 | AE75: 4.15335788e-14 | AF75: 4.061294967e-14 | AG75: 3.968633129e-14 | AH75: 3.875357424e-14 | AI75: 3.781452338e-14 | AJ75: 3.686901729e-14 | AK75: 3.591688758e-14 | AL75: 3.495795802e-14 | AM75: 3.399204345e-14 | AN75: 3.30189485e-14 | AO75: 3.203846596e-14 | AP75: 3.105037472e-14 | AQ75: 3.005443729e-14 | AR75: 2.90503966e-14 | AS75: 2.80379721e-14 | AT75: 2.701685475e-14 | AU75: 2.598670085e-14 | AV75: 2.494712422e-14 | AW75: 2.389768641e-14 | AX75: 2.283788432e-14 | AY75: 2.17671347e-14 | AZ75: 2.068475462e-14 | BA75: 1.958993677e-14 | BB75: 1.848171849e-14 | BC75: 1.735894267e-14 | BD75: 1.622020839e-14 | BE75: 1.506380888e-14 | BF75: 1.388765308e-14 | BG75: 1.268916691e-14 | BH75: 1.146516869e-14 | BI75: 1.021171195e-14 | BJ75: 8.923887368e-15 | BK75: 7.595572738e-15 | BL75: 6.219117761e-15 | BM75: 4.784946362e-15 | BN75: 3.281055075e-15 | BO75: 1.692380279e-15 | BP75: 0
A76: 66 | B76: 6.615815121e-14 | C76: 6.615815121e-14 | D76: 6.536278411e-14 | E76: 6.456428751e-14 | F76: 6.376259585e-14 | G76: 6.29576418e-14 | H76: 6.214935619e-14 | I76: 6.133766802e-14 | J76: 6.052250434e-14 | K76: 5.970379023e-14 | L76: 5.888144877e-14 | M76: 5.80554009e-14 | N76: 5.722556546e-14 | O76: 5.639185906e-14 | P76: 5.555419604e-14 | Q76: 5.471248838e-14 | R76: 5.386664569e-14 | S76: 5.301657505e-14 | T76: 5.216218103e-14 | U76: 5.13033655e-14 | V76: 5.044002765e-14 | W76: 4.957206383e-14 | X76: 4.869936747e-14 | Y76: 4.782182899e-14 | Z76: 4.693933564e-14 | AA76: 4.605177142e-14 | AB76: 4.515901693e-14 | AC76: 4.426094917e-14 | AD76: 4.33574414e-14 | AE76: 4.244836291e-14 | AF76: 4.15335788e-14 | AG76: 4.061294967e-14 | AH76: 3.968633129e-14 | AI76: 3.875357424e-14 | AJ76: 3.781452338e-14 | AK76: 3.686901729e-14 | AL76: 3.591688758e-14 | AM76: 3.495795802e-14 | AN76: 3.399204345e-14 | AO76: 3.30189485e-14 | AP76: 3.203846596e-14 | AQ76: 3.105037472e-14 | AR76: 3.005443729e-14 | AS76: 2.90503966e-14 | AT76: 2.80379721e-14 | AU76: 2.701685475e-14 | AV76: 2.598670085e-14 | AW76: 2.494712422e-14 | AX76: 2.389768641e-14 | AY76: 2.283788432e-14 | AZ76: 2.17671347e-14 | BA76: 2.068475462e-14 | BB76: 1.958993677e-14 | BC76: 1.848171849e-14 | BD76: 1.735894267e-14 | BE76: 1.622020839e-14 | BF76: 1.506380888e-14 | BG76: 1.388765308e-14 | BH76: 1.268916691e-14 | BI76: 1.146516869e-14 | BJ76: 1.021171195e-14 | BK76: 8.923887368e-15 | BL76: 7.595572738e-15 | BM76: 6.219117761e-15 | BN76: 4.784946362e-15 | BO76: 3.281055075e-15 | BP76: 1.692380279e-15 | BQ76: 0
A77: 67 | B77: 6.695045268e-14 | C77: 6.695045268e-14 | D77: 6.615815121e-14 | E77: 6.536278411e-14 | F77: 6.456428751e-14 | G77: 6.376259585e-14 | H77: 6.29576418e-14 | I77: 6.214935619e-14 | J77: 6.133766802e-14 | K77: 6.052250434e-14 | L77: 5.970379023e-14 | M77: 5.888144877e-14 | N77: 5.80554009e-14 | O77: 5.722556546e-14 | P77: 5.639185906e-14 | Q77: 5.555419604e-14 | R77: 5.471248838e-14 | S77: 5.386664569e-14 | T77: 5.301657505e-14 | U77: 5.216218103e-14 | V77: 5.13033655e-14 | W77: 5.044002765e-14 | X77: 4.957206383e-14 | Y77: 4.869936747e-14 | Z77: 4.782182899e-14 | AA77: 4.693933564e-14 | AB77: 4.605177142e-14 | AC77: 4.515901693e-14 | AD77: 4.426094917e-14 | AE77: 4.33574414e-14 | AF77: 4.244836291e-14 | AG77: 4.15335788e-14 | AH77: 4.061294967e-14 | AI77: 3.968633129e-14 | AJ77: 3.875357424e-14 | AK77: 3.781452338e-14 | AL77: 3.686901729e-14 | AM77: 3.591688758e-14 | AN77: 3.495795802e-14 | AO77: 3.399204345e-14 | AP77: 3.30189485e-14 | AQ77: 3.203846596e-14 | AR77: 3.105037472e-14 | AS77: 3.005443729e-14 | AT77: 2.90503966e-14 | AU77: 2.80379721e-14 | AV77: 2.701685475e-14 | AW77: 2.598670085e-14 | AX77: 2.494712422e-14 | AY77: 2.389768641e-14 | AZ77: 2.283788432e-14 | BA77: 2.17671347e-14 | BB77: 2.068475462e-14 | BC77: 1.958993677e-14 | BD77: 1.848171849e-14 | BE77: 1.735894267e-14 | BF77: 1.622020839e-14 | BG77: 1.506380888e-14 | BH77: 1.388765308e-14 | BI77: 1.268916691e-14 | BJ77: 1.146516869e-14 | BK77: 1.021171195e-14 | BL77: 8.923887368e-15 | BM77: 7.595572738e-15 | BN77: 6.219117761e-15 | BO77: 4.784946362e-15 | BP77: 3.281055075e-15 | BQ77: 1.692380279e-15 | BR77: 0
A78: 68 | B78: 6.773975067e-14 | C78: 6.773975067e-14 | D78: 6.695045268e-14 | E78: 6.615815121e-14 | F78: 6.536278411e-14 | G78: 6.456428751e-14 | H78: 6.376259585e-14 | I78: 6.29576418e-14 | J78: 6.214935619e-14 | K78: 6.133766802e-14 | L78: 6.052250434e-14 | M78: 5.970379023e-14 | N78: 5.888144877e-14 | O78: 5.80554009e-14 | P78: 5.722556546e-14 | Q78: 5.639185906e-14 | R78: 5.555419604e-14 | S78: 5.471248838e-14 | T78: 5.386664569e-14 | U78: 5.301657505e-14 | V78: 5.216218103e-14 | W78: 5.13033655e-14 | X78: 5.044002765e-14 | Y78: 4.957206383e-14 | Z78: 4.869936747e-14 | AA78: 4.782182899e-14 | AB78: 4.693933564e-14 | AC78: 4.605177142e-14 | AD78: 4.515901693e-14 | AE78: 4.426094917e-14 | AF78: 4.33574414e-14 | AG78: 4.244836291e-14 | AH78: 4.15335788e-14 | AI78: 4.061294967e-14 | AJ78: 3.968633129e-14 | AK78: 3.875357424e-14 | AL78: 3.781452338e-14 | AM78: 3.686901729e-14 | AN78: 3.591688758e-14 | AO78: 3.495795802e-14 | AP78: 3.399204345e-14 | AQ78: 3.30189485e-14 | AR78: 3.203846596e-14 | AS78: 3.105037472e-14 | AT78: 3.005443729e-14 | AU78: 2.90503966e-14 | AV78: 2.80379721e-14 | AW78: 2.701685475e-14 | AX78: 2.598670085e-14 | AY78: 2.494712422e-14 | AZ78: 2.389768641e-14 | BA78: 2.283788432e-14 | BB78: 2.17671347e-14 | BC78: 2.068475462e-14 | BD78: 1.958993677e-14 | BE78: 1.848171849e-14 | BF78: 1.735894267e-14 | BG78: 1.622020839e-14 | BH78: 1.506380888e-14 | BI78: 1.388765308e-14 | BJ78: 1.268916691e-14 | BK78: 1.146516869e-14 | BL78: 1.021171195e-14 | BM78: 8.923887368e-15 | BN78: 7.595572738e-15 | BO78: 6.219117761e-15 | BP78: 4.784946362e-15 | BQ78: 3.281055075e-15 | BR78: 1.692380279e-15 | BS78: 0
A79: 69 | B79: 6.852610575e-14 | C79: 6.852610575e-14 | D79: 6.773975067e-14 | E79: 6.695045268e-14 | F79: 6.615815121e-14 | G79: 6.536278411e-14 | H79: 6.456428751e-14 | I79: 6.376259585e-14 | J79: 6.29576418e-14 | K79: 6.214935619e-14 | L79: 6.133766802e-14 | M79: 6.052250434e-14 | N79: 5.970379023e-14 | O79: 5.888144877e-14 | P79: 5.80554009e-14 | Q79: 5.722556546e-14 | R79: 5.639185906e-14 | S79: 5.555419604e-14 | T79: 5.471248838e-14 | U79: 5.386664569e-14 | V79: 5.301657505e-14 | W79: 5.216218103e-14 | X79: 5.13033655e-14 | Y79: 5.044002765e-14 | Z79: 4.957206383e-14 | AA79: 4.869936747e-14 | AB79: 4.782182899e-14 | AC79: 4.693933564e-14 | AD79: 4.605177142e-14 | AE79: 4.515901693e-14 | AF79: 4.426094917e-14 | AG79: 4.33574414e-14 | AH79: 4.244836291e-14 | AI79: 4.15335788e-14 | AJ79: 4.061294967e-14 | AK79: 3.968633129e-14 | AL79: 3.875357424e-14 | AM79: 3.781452338e-14 | AN79: 3.686901729e-14 | AO79: 3.591688758e-14 | AP79: 3.495795802e-14 | AQ79: 3.399204345e-14 | AR79: 3.30189485e-14 | AS79: 3.203846596e-14 | AT79: 3.105037472e-14 | AU79: 3.005443729e-14 | AV79: 2.90503966e-14 | AW79: 2.80379721e-14 | AX79: 2.701685475e-14 | AY79: 2.598670085e-14 | AZ79: 2.494712422e-14 | BA79: 2.389768641e-14 | BB79: 2.283788432e-14 | BC79: 2.17671347e-14 | BD79: 2.068475462e-14 | BE79: 1.958993677e-14 | BF79: 1.848171849e-14 | BG79: 1.735894267e-14 | BH79: 1.622020839e-14 | BI79: 1.506380888e-14 | BJ79: 1.388765308e-14 | BK79: 1.268916691e-14 | BL79: 1.146516869e-14 | BM79: 1.021171195e-14 | BN79: 8.923887368e-15 | BO79: 7.595572738e-15 | BP79: 6.219117761e-15 | BQ79: 4.784946362e-15 | BR79: 3.281055075e-15 | BS79: 1.692380279e-15 | BT79: 0
A80: 70 | B80: 6.930957688e-14 | C80: 6.930957688e-14 | D80: 6.852610575e-14 | E80: 6.773975067e-14 | F80: 6.695045268e-14 | G80: 6.615815121e-14 | H80: 6.536278411e-14 | I80: 6.456428751e-14 | J80: 6.376259585e-14 | K80: 6.29576418e-14 | L80: 6.214935619e-14 | M80: 6.133766802e-14 | N80: 6.052250434e-14 | O80: 5.970379023e-14 | P80: 5.888144877e-14 | Q80: 5.80554009e-14 | R80: 5.722556546e-14 | S80: 5.639185906e-14 | T80: 5.555419604e-14 | U80: 5.471248838e-14 | V80: 5.386664569e-14 | W80: 5.301657505e-14 | X80: 5.216218103e-14 | Y80: 5.13033655e-14 | Z80: 5.044002765e-14 | AA80: 4.957206383e-14 | AB80: 4.869936747e-14 | AC80: 4.782182899e-14 | AD80: 4.693933564e-14 | AE80: 4.605177142e-14 | AF80: 4.515901693e-14 | AG80: 4.426094917e-14 | AH80: 4.33574414e-14 | AI80: 4.244836291e-14 | AJ80: 4.15335788e-14 | AK80: 4.061294967e-14 | AL80: 3.968633129e-14 | AM80: 3.875357424e-14 | AN80: 3.781452338e-14 | AO80: 3.686901729e-14 | AP80: 3.591688758e-14 | AQ80: 3.495795802e-14 | AR80: 3.399204345e-14 | AS80: 3.30189485e-14 | AT80: 3.203846596e-14 | AU80: 3.105037472e-14 | AV80: 3.005443729e-14 | AW80: 2.90503966e-14 | AX80: 2.80379721e-14 | AY80: 2.701685475e-14 | AZ80: 2.598670085e-14 | BA80: 2.494712422e-14 | BB80: 2.389768641e-14 | BC80: 2.283788432e-14 | BD80: 2.17671347e-14 | BE80: 2.068475462e-14 | BF80: 1.958993677e-14 | BG80: 1.848171849e-14 | BH80: 1.735894267e-14 | BI80: 1.622020839e-14 | BJ80: 1.506380888e-14 | BK80: 1.388765308e-14 | BL80: 1.268916691e-14 | BM80: 1.146516869e-14 | BN80: 1.021171195e-14 | BO80: 8.923887368e-15 | BP80: 7.595572738e-15 | BQ80: 6.219117761e-15 | BR80: 4.784946362e-15 | BS80: 3.281055075e-15 | BT80: 1.692380279e-15 | BU80: 0
A81: 71 | B81: 7.009022149e-14 | C81: 7.009022149e-14 | D81: 6.930957688e-14 | E81: 6.852610575e-14 | F81: 6.773975067e-14 | G81: 6.695045268e-14 | H81: 6.615815121e-14 | I81: 6.536278411e-14 | J81: 6.456428751e-14 | K81: 6.376259585e-14 | L81: 6.29576418e-14 | M81: 6.214935619e-14 | N81: 6.133766802e-14 | O81: 6.052250434e-14 | P81: 5.970379023e-14 | Q81: 5.888144877e-14 | R81: 5.80554009e-14 | S81: 5.722556546e-14 | T81: 5.639185906e-14 | U81: 5.555419604e-14 | V81: 5.471248838e-14 | W81: 5.386664569e-14 | X81: 5.301657505e-14 | Y81: 5.216218103e-14 | Z81: 5.13033655e-14 | AA81: 5.044002765e-14 | AB81: 4.957206383e-14 | AC81: 4.869936747e-14 | AD81: 4.782182899e-14 | AE81: 4.693933564e-14 | AF81: 4.605177142e-14 | AG81: 4.515901693e-14 | AH81: 4.426094917e-14 | AI81: 4.33574414e-14 | AJ81: 4.244836291e-14 | AK81: 4.15335788e-14 | AL81: 4.061294967e-14 | AM81: 3.968633129e-14 | AN81: 3.875357424e-14 | AO81: 3.781452338e-14 | AP81: 3.686901729e-14 | AQ81: 3.591688758e-14 | AR81: 3.495795802e-14 | AS81: 3.399204345e-14 | AT81: 3.30189485e-14 | AU81: 3.203846596e-14 | AV81: 3.105037472e-14 | AW81: 3.005443729e-14 | AX81: 2.90503966e-14 | AY81: 2.80379721e-14 | AZ81: 2.701685475e-14 | BA81: 2.598670085e-14 | BB81: 2.494712422e-14 | BC81: 2.389768641e-14 | BD81: 2.283788432e-14 | BE81: 2.17671347e-14 | BF81: 2.068475462e-14 | BG81: 1.958993677e-14 | BH81: 1.848171849e-14 | BI81: 1.735894267e-14 | BJ81: 1.622020839e-14 | BK81: 1.506380888e-14 | BL81: 1.388765308e-14 | BM81: 1.268916691e-14 | BN81: 1.146516869e-14 | BO81: 1.021171195e-14 | BP81: 8.923887368e-15 | BQ81: 7.595572738e-15 | BR81: 6.219117761e-15 | BS81: 4.784946362e-15 | BT81: 3.281055075e-15 | BU81: 1.692380279e-15 | BV81: 0
A82: 72 | B82: 7.086809549e-14 | C82: 7.086809549e-14 | D82: 7.009022149e-14 | E82: 6.930957688e-14 | F82: 6.852610575e-14 | G82: 6.773975067e-14 | H82: 6.695045268e-14 | I82: 6.615815121e-14 | J82: 6.536278411e-14 | K82: 6.456428751e-14 | L82: 6.376259585e-14 | M82: 6.29576418e-14 | N82: 6.214935619e-14 | O82: 6.133766802e-14 | P82: 6.052250434e-14 | Q82: 5.970379023e-14 | R82: 5.888144877e-14 | S82: 5.80554009e-14 | T82: 5.722556546e-14 | U82: 5.639185906e-14 | V82: 5.555419604e-14 | W82: 5.471248838e-14 | X82: 5.386664569e-14 | Y82: 5.301657505e-14 | Z82: 5.216218103e-14 | AA82: 5.13033655e-14 | AB82: 5.044002765e-14 | AC82: 4.957206383e-14 | AD82: 4.869936747e-14 | AE82: 4.782182899e-14 | AF82: 4.693933564e-14 | AG82: 4.605177142e-14 | AH82: 4.515901693e-14 | AI82: 4.426094917e-14 | AJ82: 4.33574414e-14 | AK82: 4.244836291e-14 | AL82: 4.15335788e-14 | AM82: 4.061294967e-14 | AN82: 3.968633129e-14 | AO82: 3.875357424e-14 | AP82: 3.781452338e-14 | AQ82: 3.686901729e-14 | AR82: 3.591688758e-14 | AS82: 3.495795802e-14 | AT82: 3.399204345e-14 | AU82: 3.30189485e-14 | AV82: 3.203846596e-14 | AW82: 3.105037472e-14 | AX82: 3.005443729e-14 | AY82: 2.90503966e-14 | AZ82: 2.80379721e-14 | BA82: 2.701685475e-14 | BB82: 2.598670085e-14 | BC82: 2.494712422e-14 | BD82: 2.389768641e-14 | BE82: 2.283788432e-14 | BF82: 2.17671347e-14 | BG82: 2.068475462e-14 | BH82: 1.958993677e-14 | BI82: 1.848171849e-14 | BJ82: 1.735894267e-14 | BK82: 1.622020839e-14 | BL82: 1.506380888e-14 | BM82: 1.388765308e-14 | BN82: 1.268916691e-14 | BO82: 1.146516869e-14 | BP82: 1.021171195e-14 | BQ82: 8.923887368e-15 | BR82: 7.595572738e-15 | BS82: 6.219117761e-15 | BT82: 4.784946362e-15 | BU82: 3.281055075e-15 | BV82: 1.692380279e-15 | BW82: 0
A83: 73 | B83: 7.164325337e-14 | C83: 7.164325337e-14 | D83: 7.086809549e-14 | E83: 7.009022149e-14 | F83: 6.930957688e-14 | G83: 6.852610575e-14 | H83: 6.773975067e-14 | I83: 6.695045268e-14 | J83: 6.615815121e-14 | K83: 6.536278411e-14 | L83: 6.456428751e-14 | M83: 6.376259585e-14 | N83: 6.29576418e-14 | O83: 6.214935619e-14 | P83: 6.133766802e-14 | Q83: 6.052250434e-14 | R83: 5.970379023e-14 | S83: 5.888144877e-14 | T83: 5.80554009e-14 | U83: 5.722556546e-14 | V83: 5.639185906e-14 | W83: 5.555419604e-14 | X83: 5.471248838e-14 | Y83: 5.386664569e-14 | Z83: 5.301657505e-14 | AA83: 5.216218103e-14 | AB83: 5.13033655e-14 | AC83: 5.044002765e-14 | AD83: 4.957206383e-14 | AE83: 4.869936747e-14 | AF83: 4.782182899e-14 | AG83: 4.693933564e-14 | AH83: 4.605177142e-14 | AI83: 4.515901693e-14 | AJ83: 4.426094917e-14 | AK83: 4.33574414e-14 | AL83: 4.244836291e-14 | AM83: 4.15335788e-14 | AN83: 4.061294967e-14 | AO83: 3.968633129e-14 | AP83: 3.875357424e-14 | AQ83: 3.781452338e-14 | AR83: 3.686901729e-14 | AS83: 3.591688758e-14 | AT83: 3.495795802e-14 | AU83: 3.399204345e-14 | AV83: 3.30189485e-14 | AW83: 3.203846596e-14 | AX83: 3.105037472e-14 | AY83: 3.005443729e-14 | AZ83: 2.90503966e-14 | BA83: 2.80379721e-14 | BB83: 2.701685475e-14 | BC83: 2.598670085e-14 | BD83: 2.494712422e-14 | BE83: 2.389768641e-14 | BF83: 2.283788432e-14 | BG83: 2.17671347e-14 | BH83: 2.068475462e-14 | BI83: 1.958993677e-14 | BJ83: 1.848171849e-14 | BK83: 1.735894267e-14 | BL83: 1.622020839e-14 | BM83: 1.506380888e-14 | BN83: 1.388765308e-14 | BO83: 1.268916691e-14 | BP83: 1.146516869e-14 | BQ83: 1.021171195e-14 | BR83: 8.923887368e-15 | BS83: 7.595572738e-15 | BT83: 6.219117761e-15 | BU83: 4.784946362e-15 | BV83: 3.281055075e-15 | BW83: 1.692380279e-15 | BX83: 0
A84: 74 | B84: 7.241574816e-14 | C84: 7.241574816e-14 | D84: 7.164325337e-14 | E84: 7.086809549e-14 | F84: 7.009022149e-14 | G84: 6.930957688e-14 | H84: 6.852610575e-14 | I84: 6.773975067e-14 | J84: 6.695045268e-14 | K84: 6.615815121e-14 | L84: 6.536278411e-14 | M84: 6.456428751e-14 | N84: 6.376259585e-14 | O84: 6.29576418e-14 | P84: 6.214935619e-14 | Q84: 6.133766802e-14 | R84: 6.052250434e-14 | S84: 5.970379023e-14 | T84: 5.888144877e-14 | U84: 5.80554009e-14 | V84: 5.722556546e-14 | W84: 5.639185906e-14 | X84: 5.555419604e-14 | Y84: 5.471248838e-14 | Z84: 5.386664569e-14 | AA84: 5.301657505e-14 | AB84: 5.216218103e-14 | AC84: 5.13033655e-14 | AD84: 5.044002765e-14 | AE84: 4.957206383e-14 | AF84: 4.869936747e-14 | AG84: 4.782182899e-14 | AH84: 4.693933564e-14 | AI84: 4.605177142e-14 | AJ84: 4.515901693e-14 | AK84: 4.426094917e-14 | AL84: 4.33574414e-14 | AM84: 4.244836291e-14 | AN84: 4.15335788e-14 | AO84: 4.061294967e-14 | AP84: 3.968633129e-14 | AQ84: 3.875357424e-14 | AR84: 3.781452338e-14 | AS84: 3.686901729e-14 | AT84: 3.591688758e-14 | AU84: 3.495795802e-14 | AV84: 3.399204345e-14 | AW84: 3.30189485e-14 | AX84: 3.203846596e-14 | AY84: 3.105037472e-14 | AZ84: 3.005443729e-14 | BA84: 2.90503966e-14 | BB84: 2.80379721e-14 | BC84: 2.701685475e-14 | BD84: 2.598670085e-14 | BE84: 2.494712422e-14 | BF84: 2.389768641e-14 | BG84: 2.283788432e-14 | BH84: 2.17671347e-14 | BI84: 2.068475462e-14 | BJ84: 1.958993677e-14 | BK84: 1.848171849e-14 | BL84: 1.735894267e-14 | BM84: 1.622020839e-14 | BN84: 1.506380888e-14 | BO84: 1.388765308e-14 | BP84: 1.268916691e-14 | BQ84: 1.146516869e-14 | BR84: 1.021171195e-14 | BS84: 8.923887368e-15 | BT84: 7.595572738e-15 | BU84: 6.219117761e-15 | BV84: 4.784946362e-15 | BW84: 3.281055075e-15 | BX84: 1.692380279e-15 | BY84: 0
A85: 75 | B85: 7.318563154e-14 | C85: 7.318563154e-14 | D85: 7.241574816e-14 | E85: 7.164325337e-14 | F85: 7.086809549e-14 | G85: 7.009022149e-14 | H85: 6.930957688e-14 | I85: 6.852610575e-14 | J85: 6.773975067e-14 | K85: 6.695045268e-14 | L85: 6.615815121e-14 | M85: 6.536278411e-14 | N85: 6.456428751e-14 | O85: 6.376259585e-14 | P85: 6.29576418e-14 | Q85: 6.214935619e-14 | R85: 6.133766802e-14 | S85: 6.052250434e-14 | T85: 5.970379023e-14 | U85: 5.888144877e-14 | V85: 5.80554009e-14 | W85: 5.722556546e-14 | X85: 5.639185906e-14 | Y85: 5.555419604e-14 | Z85: 5.471248838e-14 | AA85: 5.386664569e-14 | AB85: 5.301657505e-14 | AC85: 5.216218103e-14 | AD85: 5.13033655e-14 | AE85: 5.044002765e-14 | AF85: 4.957206383e-14 | AG85: 4.869936747e-14 | AH85: 4.782182899e-14 | AI85: 4.693933564e-14 | AJ85: 4.605177142e-14 | AK85: 4.515901693e-14 | AL85: 4.426094917e-14 | AM85: 4.33574414e-14 | AN85: 4.244836291e-14 | AO85: 4.15335788e-14 | AP85: 4.061294967e-14 | AQ85: 3.968633129e-14 | AR85: 3.875357424e-14 | AS85: 3.781452338e-14 | AT85: 3.686901729e-14 | AU85: 3.591688758e-14 | AV85: 3.495795802e-14 | AW85: 3.399204345e-14 | AX85: 3.30189485e-14 | AY85: 3.203846596e-14 | AZ85: 3.105037472e-14 | BA85: 3.005443729e-14 | BB85: 2.90503966e-14 | BC85: 2.80379721e-14 | BD85: 2.701685475e-14 | BE85: 2.598670085e-14 | BF85: 2.494712422e-14 | BG85: 2.389768641e-14 | BH85: 2.283788432e-14 | BI85: 2.17671347e-14 | BJ85: 2.068475462e-14 | BK85: 1.958993677e-14 | BL85: 1.848171849e-14 | BM85: 1.735894267e-14 | BN85: 1.622020839e-14 | BO85: 1.506380888e-14 | BP85: 1.388765308e-14 | BQ85: 1.268916691e-14 | BR85: 1.146516869e-14 | BS85: 1.021171195e-14 | BT85: 8.923887368e-15 | BU85: 7.595572738e-15 | BV85: 6.219117761e-15 | BW85: 4.784946362e-15 | BX85: 3.281055075e-15 | BY85: 1.692380279e-15 | BZ85: 0
A86: 76 | B86: 7.395295383e-14 | C86: 7.395295383e-14 | D86: 7.318563154e-14 | E86: 7.241574816e-14 | F86: 7.164325337e-14 | G86: 7.086809549e-14 | H86: 7.009022149e-14 | I86: 6.930957688e-14 | J86: 6.852610575e-14 | K86: 6.773975067e-14 | L86: 6.695045268e-14 | M86: 6.615815121e-14 | N86: 6.536278411e-14 | O86: 6.456428751e-14 | P86: 6.376259585e-14 | Q86: 6.29576418e-14 | R86: 6.214935619e-14 | S86: 6.133766802e-14 | T86: 6.052250434e-14 | U86: 5.970379023e-14 | V86: 5.888144877e-14 | W86: 5.80554009e-14 | X86: 5.722556546e-14 | Y86: 5.639185906e-14 | Z86: 5.555419604e-14 | AA86: 5.471248838e-14 | AB86: 5.386664569e-14 | AC86: 5.301657505e-14 | AD86: 5.216218103e-14 | AE86: 5.13033655e-14 | AF86: 5.044002765e-14 | AG86: 4.957206383e-14 | AH86: 4.869936747e-14 | AI86: 4.782182899e-14 | AJ86: 4.693933564e-14 | AK86: 4.605177142e-14 | AL86: 4.515901693e-14 | AM86: 4.426094917e-14 | AN86: 4.33574414e-14 | AO86: 4.244836291e-14 | AP86: 4.15335788e-14 | AQ86: 4.061294967e-14 | AR86: 3.968633129e-14 | AS86: 3.875357424e-14 | AT86: 3.781452338e-14 | AU86: 3.686901729e-14 | AV86: 3.591688758e-14 | AW86: 3.495795802e-14 | AX86: 3.399204345e-14 | AY86: 3.30189485e-14 | AZ86: 3.203846596e-14 | BA86: 3.105037472e-14 | BB86: 3.005443729e-14 | BC86: 2.90503966e-14 | BD86: 2.80379721e-14 | BE86: 2.701685475e-14 | BF86: 2.598670085e-14 | BG86: 2.494712422e-14 | BH86: 2.389768641e-14 | BI86: 2.283788432e-14 | BJ86: 2.17671347e-14 | BK86: 2.068475462e-14 | BL86: 1.958993677e-14 | BM86: 1.848171849e-14 | BN86: 1.735894267e-14 | BO86: 1.622020839e-14 | BP86: 1.506380888e-14 | BQ86: 1.388765308e-14 | BR86: 1.268916691e-14 | BS86: 1.146516869e-14 | BT86: 1.021171195e-14 | BU86: 8.923887368e-15 | BV86: 7.595572738e-15 | BW86: 6.219117761e-15 | BX86: 4.784946362e-15 | BY86: 3.281055075e-15 | BZ86: 1.692380279e-15 | CA86: 0
A87: 77 | B87: 7.471776405e-14 | C87: 7.471776405e-14 | D87: 7.395295383e-14 | E87: 7.318563154e-14 | F87: 7.241574816e-14 | G87: 7.164325337e-14 | H87: 7.086809549e-14 | I87: 7.009022149e-14 | J87: 6.930957688e-14 | K87: 6.852610575e-14 | L87: 6.773975067e-14 | M87: 6.695045268e-14 | N87: 6.615815121e-14 | O87: 6.536278411e-14 | P87: 6.456428751e-14 | Q87: 6.376259585e-14 | R87: 6.29576418e-14 | S87: 6.214935619e-14 | T87: 6.133766802e-14 | U87: 6.052250434e-14 | V87: 5.970379023e-14 | W87: 5.888144877e-14 | X87: 5.80554009e-14 | Y87: 5.722556546e-14 | Z87: 5.639185906e-14 | AA87: 5.555419604e-14 | AB87: 5.471248838e-14 | AC87: 5.386664569e-14 | AD87: 5.301657505e-14 | AE87: 5.216218103e-14 | AF87: 5.13033655e-14 | AG87: 5.044002765e-14 | AH87: 4.957206383e-14 | AI87: 4.869936747e-14 | AJ87: 4.782182899e-14 | AK87: 4.693933564e-14 | AL87: 4.605177142e-14 | AM87: 4.515901693e-14 | AN87: 4.426094917e-14 | AO87: 4.33574414e-14 | AP87: 4.244836291e-14 | AQ87: 4.15335788e-14 | AR87: 4.061294967e-14 | AS87: 3.968633129e-14 | AT87: 3.875357424e-14 | AU87: 3.781452338e-14 | AV87: 3.686901729e-14 | AW87: 3.591688758e-14 | AX87: 3.495795802e-14 | AY87: 3.399204345e-14 | AZ87: 3.30189485e-14 | BA87: 3.203846596e-14 | BB87: 3.105037472e-14 | BC87: 3.005443729e-14 | BD87: 2.90503966e-14 | BE87: 2.80379721e-14 | BF87: 2.701685475e-14 | BG87: 2.598670085e-14 | BH87: 2.494712422e-14 | BI87: 2.389768641e-14 | BJ87: 2.283788432e-14 | BK87: 2.17671347e-14 | BL87: 2.068475462e-14 | BM87: 1.958993677e-14 | BN87: 1.848171849e-14 | BO87: 1.735894267e-14 | BP87: 1.622020839e-14 | BQ87: 1.506380888e-14 | BR87: 1.388765308e-14 | BS87: 1.268916691e-14 | BT87: 1.146516869e-14 | BU87: 1.021171195e-14 | BV87: 8.923887368e-15 | BW87: 7.595572738e-15 | BX87: 6.219117761e-15 | BY87: 4.784946362e-15 | BZ87: 3.281055075e-15 | CA87: 1.692380279e-15 | CB87: 0
A88: 78 | B88: 7.548010994e-14 | C88: 7.548010994e-14 | D88: 7.471776405e-14 | E88: 7.395295383e-14 | F88: 7.318563154e-14 | G88: 7.241574816e-14 | H88: 7.164325337e-14 | I88: 7.086809549e-14 | J88: 7.009022149e-14 | K88: 6.930957688e-14 | L88: 6.852610575e-14 | M88: 6.773975067e-14 | N88: 6.695045268e-14 | O88: 6.615815121e-14 | P88: 6.536278411e-14 | Q88: 6.456428751e-14 | R88: 6.376259585e-14 | S88: 6.29576418e-14 | T88: 6.214935619e-14 | U88: 6.133766802e-14 | V88: 6.052250434e-14 | W88: 5.970379023e-14 | X88: 5.888144877e-14 | Y88: 5.80554009e-14 | Z88: 5.722556546e-14 | AA88: 5.639185906e-14 | AB88: 5.555419604e-14 | AC88: 5.471248838e-14 | AD88: 5.386664569e-14 | AE88: 5.301657505e-14 | AF88: 5.216218103e-14 | AG88: 5.13033655e-14 | AH88: 5.044002765e-14 | AI88: 4.957206383e-14 | AJ88: 4.869936747e-14 | AK88: 4.782182899e-14 | AL88: 4.693933564e-14 | AM88: 4.605177142e-14 | AN88: 4.515901693e-14 | AO88: 4.426094917e-14 | AP88: 4.33574414e-14 | AQ88: 4.244836291e-14 | AR88: 4.15335788e-14 | AS88: 4.061294967e-14 | AT88: 3.968633129e-14 | AU88: 3.875357424e-14 | AV88: 3.781452338e-14 | AW88: 3.686901729e-14 | AX88: 3.591688758e-14 | AY88: 3.495795802e-14 | AZ88: 3.399204345e-14 | BA88: 3.30189485e-14 | BB88: 3.203846596e-14 | BC88: 3.105037472e-14 | BD88: 3.005443729e-14 | BE88: 2.90503966e-14 | BF88: 2.80379721e-14 | BG88: 2.701685475e-14 | BH88: 2.598670085e-14 | BI88: 2.494712422e-14 | BJ88: 2.389768641e-14 | BK88: 2.283788432e-14 | BL88: 2.17671347e-14 | BM88: 2.068475462e-14 | BN88: 1.958993677e-14 | BO88: 1.848171849e-14 | BP88: 1.735894267e-14 | BQ88: 1.622020839e-14 | BR88: 1.506380888e-14 | BS88: 1.388765308e-14 | BT88: 1.268916691e-14 | BU88: 1.146516869e-14 | BV88: 1.021171195e-14 | BW88: 8.923887368e-15 | BX88: 7.595572738e-15 | BY88: 6.219117761e-15 | BZ88: 4.784946362e-15 | CA88: 3.281055075e-15 | CB88: 1.692380279e-15 | CC88: 0
A89: 79 | B89: 7.6240038e-14 | C89: 7.6240038e-14 | D89: 7.548010994e-14 | E89: 7.471776405e-14 | F89: 7.395295383e-14 | G89: 7.318563154e-14 | H89: 7.241574816e-14 | I89: 7.164325337e-14 | J89: 7.086809549e-14 | K89: 7.009022149e-14 | L89: 6.930957688e-14 | M89: 6.852610575e-14 | N89: 6.773975067e-14 | O89: 6.695045268e-14 | P89: 6.615815121e-14 | Q89: 6.536278411e-14 | R89: 6.456428751e-14 | S89: 6.376259585e-14 | T89: 6.29576418e-14 | U89: 6.214935619e-14 | V89: 6.133766802e-14 | W89: 6.052250434e-14 | X89: 5.970379023e-14 | Y89: 5.888144877e-14 | Z89: 5.80554009e-14 | AA89: 5.722556546e-14 | AB89: 5.639185906e-14 | AC89: 5.555419604e-14 | AD89: 5.471248838e-14 | AE89: 5.386664569e-14 | AF89: 5.301657505e-14 | AG89: 5.216218103e-14 | AH89: 5.13033655e-14 | AI89: 5.044002765e-14 | AJ89: 4.957206383e-14 | AK89: 4.869936747e-14 | AL89: 4.782182899e-14 | AM89: 4.693933564e-14 | AN89: 4.605177142e-14 | AO89: 4.515901693e-14 | AP89: 4.426094917e-14 | AQ89: 4.33574414e-14 | AR89: 4.244836291e-14 | AS89: 4.15335788e-14 | AT89: 4.061294967e-14 | AU89: 3.968633129e-14 | AV89: 3.875357424e-14 | AW89: 3.781452338e-14 | AX89: 3.686901729e-14 | AY89: 3.591688758e-14 | AZ89: 3.495795802e-14 | BA89: 3.399204345e-14 | BB89: 3.30189485e-14 | BC89: 3.203846596e-14 | BD89: 3.105037472e-14 | BE89: 3.005443729e-14 | BF89: 2.90503966e-14 | BG89: 2.80379721e-14 | BH89: 2.701685475e-14 | BI89: 2.598670085e-14 | BJ89: 2.494712422e-14 | BK89: 2.389768641e-14 | BL89: 2.283788432e-14 | BM89: 2.17671347e-14 | BN89: 2.068475462e-14 | BO89: 1.958993677e-14 | BP89: 1.848171849e-14 | BQ89: 1.735894267e-14 | BR89: 1.622020839e-14 | BS89: 1.506380888e-14 | BT89: 1.388765308e-14 | BU89: 1.268916691e-14 | BV89: 1.146516869e-14 | BW89: 1.021171195e-14 | BX89: 8.923887368e-15 | BY89: 7.595572738e-15 | BZ89: 6.219117761e-15 | CA89: 4.784946362e-15 | CB89: 3.281055075e-15 | CC89: 1.692380279e-15 | CD89: 0
A90: 80 | B90: 7.699759355e-14 | C90: 7.699759355e-14 | D90: 7.6240038e-14 | E90: 7.548010994e-14 | F90: 7.471776405e-14 | G90: 7.395295383e-14 | H90: 7.318563154e-14 | I90: 7.241574816e-14 | J90: 7.164325337e-14 | K90: 7.086809549e-14 | L90: 7.009022149e-14 | M90: 6.930957688e-14 | N90: 6.852610575e-14 | O90: 6.773975067e-14 | P90: 6.695045268e-14 | Q90: 6.615815121e-14 | R90: 6.536278411e-14 | S90: 6.456428751e-14 | T90: 6.376259585e-14 | U90: 6.29576418e-14 | V90: 6.214935619e-14 | W90: 6.133766802e-14 | X90: 6.052250434e-14 | Y90: 5.970379023e-14 | Z90: 5.888144877e-14 | AA90: 5.80554009e-14 | AB90: 5.722556546e-14 | AC90: 5.639185906e-14 | AD90: 5.555419604e-14 | AE90: 5.471248838e-14 | AF90: 5.386664569e-14 | AG90: 5.301657505e-14 | AH90: 5.216218103e-14 | AI90: 5.13033655e-14 | AJ90: 5.044002765e-14 | AK90: 4.957206383e-14 | AL90: 4.869936747e-14 | AM90: 4.782182899e-14 | AN90: 4.693933564e-14 | AO90: 4.605177142e-14 | AP90: 4.515901693e-14 | AQ90: 4.426094917e-14 | AR90: 4.33574414e-14 | AS90: 4.244836291e-14 | AT90: 4.15335788e-14 | AU90: 4.061294967e-14 | AV90: 3.968633129e-14 | AW90: 3.875357424e-14 | AX90: 3.781452338e-14 | AY90: 3.686901729e-14 | AZ90: 3.591688758e-14 | BA90: 3.495795802e-14 | BB90: 3.399204345e-14 | BC90: 3.30189485e-14 | BD90: 3.203846596e-14 | BE90: 3.105037472e-14 | BF90: 3.005443729e-14 | BG90: 2.90503966e-14 | BH90: 2.80379721e-14 | BI90: 2.701685475e-14 | BJ90: 2.598670085e-14 | BK90: 2.494712422e-14 | BL90: 2.389768641e-14 | BM90: 2.283788432e-14 | BN90: 2.17671347e-14 | BO90: 2.068475462e-14 | BP90: 1.958993677e-14 | BQ90: 1.848171849e-14 | BR90: 1.735894267e-14 | BS90: 1.622020839e-14 | BT90: 1.506380888e-14 | BU90: 1.388765308e-14 | BV90: 1.268916691e-14 | BW90: 1.146516869e-14 | BX90: 1.021171195e-14 | BY90: 8.923887368e-15 | BZ90: 7.595572738e-15 | CA90: 6.219117761e-15 | CB90: 4.784946362e-15 | CC90: 3.281055075e-15 | CD90: 1.692380279e-15 | CE90: 0
A91: 81 | B91: 7.77528207e-14 | C91: 7.77528207e-14 | D91: 7.699759355e-14 | E91: 7.6240038e-14 | F91: 7.548010994e-14 | G91: 7.471776405e-14 | H91: 7.395295383e-14 | I91: 7.318563154e-14 | J91: 7.241574816e-14 | K91: 7.164325337e-14 | L91: 7.086809549e-14 | M91: 7.009022149e-14 | N91: 6.930957688e-14 | O91: 6.852610575e-14 | P91: 6.773975067e-14 | Q91: 6.695045268e-14 | R91: 6.615815121e-14 | S91: 6.536278411e-14 | T91: 6.456428751e-14 | U91: 6.376259585e-14 | V91: 6.29576418e-14 | W91: 6.214935619e-14 | X91: 6.133766802e-14 | Y91: 6.052250434e-14 | Z91: 5.970379023e-14 | AA91: 5.888144877e-14 | AB91: 5.80554009e-14 | AC91: 5.722556546e-14 | AD91: 5.639185906e-14 | AE91: 5.555419604e-14 | AF91: 5.471248838e-14 | AG91: 5.386664569e-14 | AH91: 5.301657505e-14 | AI91: 5.216218103e-14 | AJ91: 5.13033655e-14 | AK91: 5.044002765e-14 | AL91: 4.957206383e-14 | AM91: 4.869936747e-14 | AN91: 4.782182899e-14 | AO91: 4.693933564e-14 | AP91: 4.605177142e-14 | AQ91: 4.515901693e-14 | AR91: 4.426094917e-14 | AS91: 4.33574414e-14 | AT91: 4.244836291e-14 | AU91: 4.15335788e-14 | AV91: 4.061294967e-14 | AW91: 3.968633129e-14 | AX91: 3.875357424e-14 | AY91: 3.781452338e-14 | AZ91: 3.686901729e-14 | BA91: 3.591688758e-14 | BB91: 3.495795802e-14 | BC91: 3.399204345e-14 | BD91: 3.30189485e-14 | BE91: 3.203846596e-14 | BF91: 3.105037472e-14 | BG91: 3.005443729e-14 | BH91: 2.90503966e-14 | BI91: 2.80379721e-14 | BJ91: 2.701685475e-14 | BK91: 2.598670085e-14 | BL91: 2.494712422e-14 | BM91: 2.389768641e-14 | BN91: 2.283788432e-14 | BO91: 2.17671347e-14 | BP91: 2.068475462e-14 | BQ91: 1.958993677e-14 | BR91: 1.848171849e-14 | BS91: 1.735894267e-14 | BT91: 1.622020839e-14 | BU91: 1.506380888e-14 | BV91: 1.388765308e-14 | BW91: 1.268916691e-14 | BX91: 1.146516869e-14 | BY91: 1.021171195e-14 | BZ91: 8.923887368e-15 | CA91: 7.595572738e-15 | CB91: 6.219117761e-15 | CC91: 4.784946362e-15 | CD91: 3.281055075e-15 | CE91: 1.692380279e-15 | CF91: 0
A92: 82 | B92: 7.850576244e-14 | C92: 7.850576244e-14 | D92: 7.77528207e-14 | E92: 7.699759355e-14 | F92: 7.6240038e-14 | G92: 7.548010994e-14 | H92: 7.471776405e-14 | I92: 7.395295383e-14 | J92: 7.318563154e-14 | K92: 7.241574816e-14 | L92: 7.164325337e-14 | M92: 7.086809549e-14 | N92: 7.009022149e-14 | O92: 6.930957688e-14 | P92: 6.852610575e-14 | Q92: 6.773975067e-14 | R92: 6.695045268e-14 | S92: 6.615815121e-14 | T92: 6.536278411e-14 | U92: 6.456428751e-14 | V92: 6.376259585e-14 | W92: 6.29576418e-14 | X92: 6.214935619e-14 | Y92: 6.133766802e-14 | Z92: 6.052250434e-14 | AA92: 5.970379023e-14 | AB92: 5.888144877e-14 | AC92: 5.80554009e-14 | AD92: 5.722556546e-14 | AE92: 5.639185906e-14 | AF92: 5.555419604e-14 | AG92: 5.471248838e-14 | AH92: 5.386664569e-14 | AI92: 5.301657505e-14 | AJ92: 5.216218103e-14 | AK92: 5.13033655e-14 | AL92: 5.044002765e-14 | AM92: 4.957206383e-14 | AN92: 4.869936747e-14 | AO92: 4.782182899e-14 | AP92: 4.693933564e-14 | AQ92: 4.605177142e-14 | AR92: 4.515901693e-14 | AS92: 4.426094917e-14 | AT92: 4.33574414e-14 | AU92: 4.244836291e-14 | AV92: 4.15335788e-14 | AW92: 4.061294967e-14 | AX92: 3.968633129e-14 | AY92: 3.875357424e-14 | AZ92: 3.781452338e-14 | BA92: 3.686901729e-14 | BB92: 3.591688758e-14 | BC92: 3.495795802e-14 | BD92: 3.399204345e-14 | BE92: 3.30189485e-14 | BF92: 3.203846596e-14 | BG92: 3.105037472e-14 | BH92: 3.005443729e-14 | BI92: 2.90503966e-14 | BJ92: 2.80379721e-14 | BK92: 2.701685475e-14 | BL92: 2.598670085e-14 | BM92: 2.494712422e-14 | BN92: 2.389768641e-14 | BO92: 2.283788432e-14 | BP92: 2.17671347e-14 | BQ92: 2.068475462e-14 | BR92: 1.958993677e-14 | BS92: 1.848171849e-14 | BT92: 1.735894267e-14 | BU92: 1.622020839e-14 | BV92: 1.506380888e-14 | BW92: 1.388765308e-14 | BX92: 1.268916691e-14 | BY92: 1.146516869e-14 | BZ92: 1.021171195e-14 | CA92: 8.923887368e-15 | CB92: 7.595572738e-15 | CC92: 6.219117761e-15 | CD92: 4.784946362e-15 | CE92: 3.281055075e-15 | CF92: 1.692380279e-15 | CG92: 0
A93: 83 | B93: 7.925646065e-14 | C93: 7.925646065e-14 | D93: 7.850576244e-14 | E93: 7.77528207e-14 | F93: 7.699759355e-14 | G93: 7.6240038e-14 | H93: 7.548010994e-14 | I93: 7.471776405e-14 | J93: 7.395295383e-14 | K93: 7.318563154e-14 | L93: 7.241574816e-14 | M93: 7.164325337e-14 | N93: 7.086809549e-14 | O93: 7.009022149e-14 | P93: 6.930957688e-14 | Q93: 6.852610575e-14 | R93: 6.773975067e-14 | S93: 6.695045268e-14 | T93: 6.615815121e-14 | U93: 6.536278411e-14 | V93: 6.456428751e-14 | W93: 6.376259585e-14 | X93: 6.29576418e-14 | Y93: 6.214935619e-14 | Z93: 6.133766802e-14 | AA93: 6.052250434e-14 | AB93: 5.970379023e-14 | AC93: 5.888144877e-14 | AD93: 5.80554009e-14 | AE93: 5.722556546e-14 | AF93: 5.639185906e-14 | AG93: 5.555419604e-14 | AH93: 5.471248838e-14 | AI93: 5.386664569e-14 | AJ93: 5.301657505e-14 | AK93: 5.216218103e-14 | AL93: 5.13033655e-14 | AM93: 5.044002765e-14 | AN93: 4.957206383e-14 | AO93: 4.869936747e-14 | AP93: 4.782182899e-14 | AQ93: 4.693933564e-14 | AR93: 4.605177142e-14 | AS93: 4.515901693e-14 | AT93: 4.426094917e-14 | AU93: 4.33574414e-14 | AV93: 4.244836291e-14 | AW93: 4.15335788e-14 | AX93: 4.061294967e-14 | AY93: 3.968633129e-14 | AZ93: 3.875357424e-14 | BA93: 3.781452338e-14 | BB93: 3.686901729e-14 | BC93: 3.591688758e-14 | BD93: 3.495795802e-14 | BE93: 3.399204345e-14 | BF93: 3.30189485e-14 | BG93: 3.203846596e-14 | BH93: 3.105037472e-14 | BI93: 3.005443729e-14 | BJ93: 2.90503966e-14 | BK93: 2.80379721e-14 | BL93: 2.701685475e-14 | BM93: 2.598670085e-14 | BN93: 2.494712422e-14 | BO93: 2.389768641e-14 | BP93: 2.283788432e-14 | BQ93: 2.17671347e-14 | BR93: 2.068475462e-14 | BS93: 1.958993677e-14 | BT93: 1.848171849e-14 | BU93: 1.735894267e-14 | BV93: 1.622020839e-14 | BW93: 1.506380888e-14 | BX93: 1.388765308e-14 | BY93: 1.268916691e-14 | BZ93: 1.146516869e-14 | CA93: 1.021171195e-14 | CB93: 8.923887368e-15 | CC93: 7.595572738e-15 | CD93: 6.219117761e-15 | CE93: 4.784946362e-15 | CF93: 3.281055075e-15 | CG93: 1.692380279e-15 | CH93: 0
A94: 84 | B94: 8.000495613e-14 | C94: 8.000495613e-14 | D94: 7.925646065e-14 | E94: 7.850576244e-14 | F94: 7.77528207e-14 | G94: 7.699759355e-14 | H94: 7.6240038e-14 | I94: 7.548010994e-14 | J94: 7.471776405e-14 | K94: 7.395295383e-14 | L94: 7.318563154e-14 | M94: 7.241574816e-14 | N94: 7.164325337e-14 | O94: 7.086809549e-14 | P94: 7.009022149e-14 | Q94: 6.930957688e-14 | R94: 6.852610575e-14 | S94: 6.773975067e-14 | T94: 6.695045268e-14 | U94: 6.615815121e-14 | V94: 6.536278411e-14 | W94: 6.456428751e-14 | X94: 6.376259585e-14 | Y94: 6.29576418e-14 | Z94: 6.214935619e-14 | AA94: 6.133766802e-14 | AB94: 6.052250434e-14 | AC94: 5.970379023e-14 | AD94: 5.888144877e-14 | AE94: 5.80554009e-14 | AF94: 5.722556546e-14 | AG94: 5.639185906e-14 | AH94: 5.555419604e-14 | AI94: 5.471248838e-14 | AJ94: 5.386664569e-14 | AK94: 5.301657505e-14 | AL94: 5.216218103e-14 | AM94: 5.13033655e-14 | AN94: 5.044002765e-14 | AO94: 4.957206383e-14 | AP94: 4.869936747e-14 | AQ94: 4.782182899e-14 | AR94: 4.693933564e-14 | AS94: 4.605177142e-14 | AT94: 4.515901693e-14 | AU94: 4.426094917e-14 | AV94: 4.33574414e-14 | AW94: 4.244836291e-14 | AX94: 4.15335788e-14 | AY94: 4.061294967e-14 | AZ94: 3.968633129e-14 | BA94: 3.875357424e-14 | BB94: 3.781452338e-14 | BC94: 3.686901729e-14 | BD94: 3.591688758e-14 | BE94: 3.495795802e-14 | BF94: 3.399204345e-14 | BG94: 3.30189485e-14 | BH94: 3.203846596e-14 | BI94: 3.105037472e-14 | BJ94: 3.005443729e-14 | BK94: 2.90503966e-14 | BL94: 2.80379721e-14 | BM94: 2.701685475e-14 | BN94: 2.598670085e-14 | BO94: 2.494712422e-14 | BP94: 2.389768641e-14 | BQ94: 2.283788432e-14 | BR94: 2.17671347e-14 | BS94: 2.068475462e-14 | BT94: 1.958993677e-14 | BU94: 1.848171849e-14 | BV94: 1.735894267e-14 | BW94: 1.622020839e-14 | BX94: 1.506380888e-14 | BY94: 1.388765308e-14 | BZ94: 1.268916691e-14 | CA94: 1.146516869e-14 | CB94: 1.021171195e-14 | CC94: 8.923887368e-15 | CD94: 7.595572738e-15 | CE94: 6.219117761e-15 | CF94: 4.784946362e-15 | CG94: 3.281055075e-15 | CH94: 1.692380279e-15 | CI94: 0
A95: 85 | B95: 8.075128863e-14 | C95: 8.075128863e-14 | D95: 8.000495613e-14 | E95: 7.925646065e-14 | F95: 7.850576244e-14 | G95: 7.77528207e-14 | H95: 7.699759355e-14 | I95: 7.6240038e-14 | J95: 7.548010994e-14 | K95: 7.471776405e-14 | L95: 7.395295383e-14 | M95: 7.318563154e-14 | N95: 7.241574816e-14 | O95: 7.164325337e-14 | P95: 7.086809549e-14 | Q95: 7.009022149e-14 | R95: 6.930957688e-14 | S95: 6.852610575e-14 | T95: 6.773975067e-14 | U95: 6.695045268e-14 | V95: 6.615815121e-14 | W95: 6.536278411e-14 | X95: 6.456428751e-14 | Y95: 6.376259585e-14 | Z95: 6.29576418e-14 | AA95: 6.214935619e-14 | AB95: 6.133766802e-14 | AC95: 6.052250434e-14 | AD95: 5.970379023e-14 | AE95: 5.888144877e-14 | AF95: 5.80554009e-14 | AG95: 5.722556546e-14 | AH95: 5.639185906e-14 | AI95: 5.555419604e-14 | AJ95: 5.471248838e-14 | AK95: 5.386664569e-14 | AL95: 5.301657505e-14 | AM95: 5.216218103e-14 | AN95: 5.13033655e-14 | AO95: 5.044002765e-14 | AP95: 4.957206383e-14 | AQ95: 4.869936747e-14 | AR95: 4.782182899e-14 | AS95: 4.693933564e-14 | AT95: 4.605177142e-14 | AU95: 4.515901693e-14 | AV95: 4.426094917e-14 | AW95: 4.33574414e-14 | AX95: 4.244836291e-14 | AY95: 4.15335788e-14 | AZ95: 4.061294967e-14 | BA95: 3.968633129e-14 | BB95: 3.875357424e-14 | BC95: 3.781452338e-14 | BD95: 3.686901729e-14 | BE95: 3.591688758e-14 | BF95: 3.495795802e-14 | BG95: 3.399204345e-14 | BH95: 3.30189485e-14 | BI95: 3.203846596e-14 | BJ95: 3.105037472e-14 | BK95: 3.005443729e-14 | BL95: 2.90503966e-14 | BM95: 2.80379721e-14 | BN95: 2.701685475e-14 | BO95: 2.598670085e-14 | BP95: 2.494712422e-14 | BQ95: 2.389768641e-14 | BR95: 2.283788432e-14 | BS95: 2.17671347e-14 | BT95: 2.068475462e-14 | BU95: 1.958993677e-14 | BV95: 1.848171849e-14 | BW95: 1.735894267e-14 | BX95: 1.622020839e-14 | BY95: 1.506380888e-14 | BZ95: 1.388765308e-14 | CA95: 1.268916691e-14 | CB95: 1.146516869e-14 | CC95: 1.021171195e-14 | CD95: 8.923887368e-15 | CE95: 7.595572738e-15 | CF95: 6.219117761e-15 | CG95: 4.784946362e-15 | CH95: 3.281055075e-15 | CI95: 1.692380279e-15 | CJ95: 0
A96: 86 | B96: 8.149549686e-14 | C96: 8.149549686e-14 | D96: 8.075128863e-14 | E96: 8.000495613e-14 | F96: 7.925646065e-14 | G96: 7.850576244e-14 | H96: 7.77528207e-14 | I96: 7.699759355e-14 | J96: 7.6240038e-14 | K96: 7.548010994e-14 | L96: 7.471776405e-14 | M96: 7.395295383e-14 | N96: 7.318563154e-14 | O96: 7.241574816e-14 | P96: 7.164325337e-14 | Q96: 7.086809549e-14 | R96: 7.009022149e-14 | S96: 6.930957688e-14 | T96: 6.852610575e-14 | U96: 6.773975067e-14 | V96: 6.695045268e-14 | W96: 6.615815121e-14 | X96: 6.536278411e-14 | Y96: 6.456428751e-14 | Z96: 6.376259585e-14 | AA96: 6.29576418e-14 | AB96: 6.214935619e-14 | AC96: 6.133766802e-14 | AD96: 6.052250434e-14 | AE96: 5.970379023e-14 | AF96: 5.888144877e-14 | AG96: 5.80554009e-14 | AH96: 5.722556546e-14 | AI96: 5.639185906e-14 | AJ96: 5.555419604e-14 | AK96: 5.471248838e-14 | AL96: 5.386664569e-14 | AM96: 5.301657505e-14 | AN96: 5.216218103e-14 | AO96: 5.13033655e-14 | AP96: 5.044002765e-14 | AQ96: 4.957206383e-14 | AR96: 4.869936747e-14 | AS96: 4.782182899e-14 | AT96: 4.693933564e-14 | AU96: 4.605177142e-14 | AV96: 4.515901693e-14 | AW96: 4.426094917e-14 | AX96: 4.33574414e-14 | AY96: 4.244836291e-14 | AZ96: 4.15335788e-14 | BA96: 4.061294967e-14 | BB96: 3.968633129e-14 | BC96: 3.875357424e-14 | BD96: 3.781452338e-14 | BE96: 3.686901729e-14 | BF96: 3.591688758e-14 | BG96: 3.495795802e-14 | BH96: 3.399204345e-14 | BI96: 3.30189485e-14 | BJ96: 3.203846596e-14 | BK96: 3.105037472e-14 | BL96: 3.005443729e-14 | BM96: 2.90503966e-14 | BN96: 2.80379721e-14 | BO96: 2.701685475e-14 | BP96: 2.598670085e-14 | BQ96: 2.494712422e-14 | BR96: 2.389768641e-14 | BS96: 2.283788432e-14 | BT96: 2.17671347e-14 | BU96: 2.068475462e-14 | BV96: 1.958993677e-14 | BW96: 1.848171849e-14 | BX96: 1.735894267e-14 | BY96: 1.622020839e-14 | BZ96: 1.506380888e-14 | CA96: 1.388765308e-14 | CB96: 1.268916691e-14 | CC96: 1.146516869e-14 | CD96: 1.021171195e-14 | CE96: 8.923887368e-15 | CF96: 7.595572738e-15 | CG96: 6.219117761e-15 | CH96: 4.784946362e-15 | CI96: 3.281055075e-15 | CJ96: 1.692380279e-15 | CK96: 0
A97: 87 | B97: 8.223761855e-14 | C97: 8.223761855e-14 | D97: 8.149549686e-14 | E97: 8.075128863e-14 | F97: 8.000495613e-14 | G97: 7.925646065e-14 | H97: 7.850576244e-14 | I97: 7.77528207e-14 | J97: 7.699759355e-14 | K97: 7.6240038e-14 | L97: 7.548010994e-14 | M97: 7.471776405e-14 | N97: 7.395295383e-14 | O97: 7.318563154e-14 | P97: 7.241574816e-14 | Q97: 7.164325337e-14 | R97: 7.086809549e-14 | S97: 7.009022149e-14 | T97: 6.930957688e-14 | U97: 6.852610575e-14 | V97: 6.773975067e-14 | W97: 6.695045268e-14 | X97: 6.615815121e-14 | Y97: 6.536278411e-14 | Z97: 6.456428751e-14 | AA97: 6.376259585e-14 | AB97: 6.29576418e-14 | AC97: 6.214935619e-14 | AD97: 6.133766802e-14 | AE97: 6.052250434e-14 | AF97: 5.970379023e-14 | AG97: 5.888144877e-14 | AH97: 5.80554009e-14 | AI97: 5.722556546e-14 | AJ97: 5.639185906e-14 | AK97: 5.555419604e-14 | AL97: 5.471248838e-14 | AM97: 5.386664569e-14 | AN97: 5.301657505e-14 | AO97: 5.216218103e-14 | AP97: 5.13033655e-14 | AQ97: 5.044002765e-14 | AR97: 4.957206383e-14 | AS97: 4.869936747e-14 | AT97: 4.782182899e-14 | AU97: 4.693933564e-14 | AV97: 4.605177142e-14 | AW97: 4.515901693e-14 | AX97: 4.426094917e-14 | AY97: 4.33574414e-14 | AZ97: 4.244836291e-14 | BA97: 4.15335788e-14 | BB97: 4.061294967e-14 | BC97: 3.968633129e-14 | BD97: 3.875357424e-14 | BE97: 3.781452338e-14 | BF97: 3.686901729e-14 | BG97: 3.591688758e-14 | BH97: 3.495795802e-14 | BI97: 3.399204345e-14 | BJ97: 3.30189485e-14 | BK97: 3.203846596e-14 | BL97: 3.105037472e-14 | BM97: 3.005443729e-14 | BN97: 2.90503966e-14 | BO97: 2.80379721e-14 | BP97: 2.701685475e-14 | BQ97: 2.598670085e-14 | BR97: 2.494712422e-14 | BS97: 2.389768641e-14 | BT97: 2.283788432e-14 | BU97: 2.17671347e-14 | BV97: 2.068475462e-14 | BW97: 1.958993677e-14 | BX97: 1.848171849e-14 | BY97: 1.735894267e-14 | BZ97: 1.622020839e-14 | CA97: 1.506380888e-14 | CB97: 1.388765308e-14 | CC97: 1.268916691e-14 | CD97: 1.146516869e-14 | CE97: 1.021171195e-14 | CF97: 8.923887368e-15 | CG97: 7.595572738e-15 | CH97: 6.219117761e-15 | CI97: 4.784946362e-15 | CJ97: 3.281055075e-15 | CK97: 1.692380279e-15 | CL97: 0
A98: 88 | B98: 8.297769047e-14 | C98: 8.297769047e-14 | D98: 8.223761855e-14 | E98: 8.149549686e-14 | F98: 8.075128863e-14 | G98: 8.000495613e-14 | H98: 7.925646065e-14 | I98: 7.850576244e-14 | J98: 7.77528207e-14 | K98: 7.699759355e-14 | L98: 7.6240038e-14 | M98: 7.548010994e-14 | N98: 7.471776405e-14 | O98: 7.395295383e-14 | P98: 7.318563154e-14 | Q98: 7.241574816e-14 | R98: 7.164325337e-14 | S98: 7.086809549e-14 | T98: 7.009022149e-14 | U98: 6.930957688e-14 | V98: 6.852610575e-14 | W98: 6.773975067e-14 | X98: 6.695045268e-14 | Y98: 6.615815121e-14 | Z98: 6.536278411e-14 | AA98: 6.456428751e-14 | AB98: 6.376259585e-14 | AC98: 6.29576418e-14 | AD98: 6.214935619e-14 | AE98: 6.133766802e-14 | AF98: 6.052250434e-14 | AG98: 5.970379023e-14 | AH98: 5.888144877e-14 | AI98: 5.80554009e-14 | AJ98: 5.722556546e-14 | AK98: 5.639185906e-14 | AL98: 5.555419604e-14 | AM98: 5.471248838e-14 | AN98: 5.386664569e-14 | AO98: 5.301657505e-14 | AP98: 5.216218103e-14 | AQ98: 5.13033655e-14 | AR98: 5.044002765e-14 | AS98: 4.957206383e-14 | AT98: 4.869936747e-14 | AU98: 4.782182899e-14 | AV98: 4.693933564e-14 | AW98: 4.605177142e-14 | AX98: 4.515901693e-14 | AY98: 4.426094917e-14 | AZ98: 4.33574414e-14 | BA98: 4.244836291e-14 | BB98: 4.15335788e-14 | BC98: 4.061294967e-14 | BD98: 3.968633129e-14 | BE98: 3.875357424e-14 | BF98: 3.781452338e-14 | BG98: 3.686901729e-14 | BH98: 3.591688758e-14 | BI98: 3.495795802e-14 | BJ98: 3.399204345e-14 | BK98: 3.30189485e-14 | BL98: 3.203846596e-14 | BM98: 3.105037472e-14 | BN98: 3.005443729e-14 | BO98: 2.90503966e-14 | BP98: 2.80379721e-14 | BQ98: 2.701685475e-14 | BR98: 2.598670085e-14 | BS98: 2.494712422e-14 | BT98: 2.389768641e-14 | BU98: 2.283788432e-14 | BV98: 2.17671347e-14 | BW98: 2.068475462e-14 | BX98: 1.958993677e-14 | BY98: 1.848171849e-14 | BZ98: 1.735894267e-14 | CA98: 1.622020839e-14 | CB98: 1.506380888e-14 | CC98: 1.388765308e-14 | CD98: 1.268916691e-14 | CE98: 1.146516869e-14 | CF98: 1.021171195e-14 | CG98: 8.923887368e-15 | CH98: 7.595572738e-15 | CI98: 6.219117761e-15 | CJ98: 4.784946362e-15 | CK98: 3.281055075e-15 | CL98: 1.692380279e-15 | CM98: 0
A99: 89 | B99: 8.371574843e-14 | C99: 8.371574843e-14 | D99: 8.297769047e-14 | E99: 8.223761855e-14 | F99: 8.149549686e-14 | G99: 8.075128863e-14 | H99: 8.000495613e-14 | I99: 7.925646065e-14 | J99: 7.850576244e-14 | K99: 7.77528207e-14 | L99: 7.699759355e-14 | M99: 7.6240038e-14 | N99: 7.548010994e-14 | O99: 7.471776405e-14 | P99: 7.395295383e-14 | Q99: 7.318563154e-14 | R99: 7.241574816e-14 | S99: 7.164325337e-14 | T99: 7.086809549e-14 | U99: 7.009022149e-14 | V99: 6.930957688e-14 | W99: 6.852610575e-14 | X99: 6.773975067e-14 | Y99: 6.695045268e-14 | Z99: 6.615815121e-14 | AA99: 6.536278411e-14 | AB99: 6.456428751e-14 | AC99: 6.376259585e-14 | AD99: 6.29576418e-14 | AE99: 6.214935619e-14 | AF99: 6.133766802e-14 | AG99: 6.052250434e-14 | AH99: 5.970379023e-14 | AI99: 5.888144877e-14 | AJ99: 5.80554009e-14 | AK99: 5.722556546e-14 | AL99: 5.639185906e-14 | AM99: 5.555419604e-14 | AN99: 5.471248838e-14 | AO99: 5.386664569e-14 | AP99: 5.301657505e-14 | AQ99: 5.216218103e-14 | AR99: 5.13033655e-14 | AS99: 5.044002765e-14 | AT99: 4.957206383e-14 | AU99: 4.869936747e-14 | AV99: 4.782182899e-14 | AW99: 4.693933564e-14 | AX99: 4.605177142e-14 | AY99: 4.515901693e-14 | AZ99: 4.426094917e-14 | BA99: 4.33574414e-14 | BB99: 4.244836291e-14 | BC99: 4.15335788e-14 | BD99: 4.061294967e-14 | BE99: 3.968633129e-14 | BF99: 3.875357424e-14 | BG99: 3.781452338e-14 | BH99: 3.686901729e-14 | BI99: 3.591688758e-14 | BJ99: 3.495795802e-14 | BK99: 3.399204345e-14 | BL99: 3.30189485e-14 | BM99: 3.203846596e-14 | BN99: 3.105037472e-14 | BO99: 3.005443729e-14 | BP99: 2.90503966e-14 | BQ99: 2.80379721e-14 | BR99: 2.701685475e-14 | BS99: 2.598670085e-14 | BT99: 2.494712422e-14 | BU99: 2.389768641e-14 | BV99: 2.283788432e-14 | BW99: 2.17671347e-14 | BX99: 2.068475462e-14 | BY99: 1.958993677e-14 | BZ99: 1.848171849e-14 | CA99: 1.735894267e-14 | CB99: 1.622020839e-14 | CC99: 1.506380888e-14 | CD99: 1.388765308e-14 | CE99: 1.268916691e-14 | CF99: 1.146516869e-14 | CG99: 1.021171195e-14 | CH99: 8.923887368e-15 | CI99: 7.595572738e-15 | CJ99: 6.219117761e-15 | CK99: 4.784946362e-15 | CL99: 3.281055075e-15 | CM99: 1.692380279e-15 | CN99: 0
A100: 90 | B100: 8.445182731e-14 | C100: 8.445182731e-14 | D100: 8.371574843e-14 | E100: 8.297769047e-14 | F100: 8.223761855e-14 | G100: 8.149549686e-14 | H100: 8.075128863e-14 | I100: 8.000495613e-14 | J100: 7.925646065e-14 | K100: 7.850576244e-14 | L100: 7.77528207e-14 | M100: 7.699759355e-14 | N100: 7.6240038e-14 | O100: 7.548010994e-14 | P100: 7.471776405e-14 | Q100: 7.395295383e-14 | R100: 7.318563154e-14 | S100: 7.241574816e-14 | T100: 7.164325337e-14 | U100: 7.086809549e-14 | V100: 7.009022149e-14 | W100: 6.930957688e-14 | X100: 6.852610575e-14 | Y100: 6.773975067e-14 | Z100: 6.695045268e-14 | AA100: 6.615815121e-14 | AB100: 6.536278411e-14 | AC100: 6.456428751e-14 | AD100: 6.376259585e-14 | AE100: 6.29576418e-14 | AF100: 6.214935619e-14 | AG100: 6.133766802e-14 | AH100: 6.052250434e-14 | AI100: 5.970379023e-14 | AJ100: 5.888144877e-14 | AK100: 5.80554009e-14 | AL100: 5.722556546e-14 | AM100: 5.639185906e-14 | AN100: 5.555419604e-14 | AO100: 5.471248838e-14 | AP100: 5.386664569e-14 | AQ100: 5.301657505e-14 | AR100: 5.216218103e-14 | AS100: 5.13033655e-14 | AT100: 5.044002765e-14 | AU100: 4.957206383e-14 | AV100: 4.869936747e-14 | AW100: 4.782182899e-14 | AX100: 4.693933564e-14 | AY100: 4.605177142e-14 | AZ100: 4.515901693e-14 | BA100: 4.426094917e-14 | BB100: 4.33574414e-14 | BC100: 4.244836291e-14 | BD100: 4.15335788e-14 | BE100: 4.061294967e-14 | BF100: 3.968633129e-14 | BG100: 3.875357424e-14 | BH100: 3.781452338e-14 | BI100: 3.686901729e-14 | BJ100: 3.591688758e-14 | BK100: 3.495795802e-14 | BL100: 3.399204345e-14 | BM100: 3.30189485e-14 | BN100: 3.203846596e-14 | BO100: 3.105037472e-14 | BP100: 3.005443729e-14 | BQ100: 2.90503966e-14 | BR100: 2.80379721e-14 | BS100: 2.701685475e-14 | BT100: 2.598670085e-14 | BU100: 2.494712422e-14 | BV100: 2.389768641e-14 | BW100: 2.283788432e-14 | BX100: 2.17671347e-14 | BY100: 2.068475462e-14 | BZ100: 1.958993677e-14 | CA100: 1.848171849e-14 | CB100: 1.735894267e-14 | CC100: 1.622020839e-14 | CD100: 1.506380888e-14 | CE100: 1.388765308e-14 | CF100: 1.268916691e-14 | CG100: 1.146516869e-14 | CH100: 1.021171195e-14 | CI100: 8.923887368e-15 | CJ100: 7.595572738e-15 | CK100: 6.219117761e-15 | CL100: 4.784946362e-15 | CM100: 3.281055075e-15 | CN100: 1.692380279e-15 | CO100: 0
A101: 91 | B101: 8.518596115e-14 | C101: 8.518596115e-14 | D101: 8.445182731e-14 | E101: 8.371574843e-14 | F101: 8.297769047e-14 | G101: 8.223761855e-14 | H101: 8.149549686e-14 | I101: 8.075128863e-14 | J101: 8.000495613e-14 | K101: 7.925646065e-14 | L101: 7.850576244e-14 | M101: 7.77528207e-14 | N101: 7.699759355e-14 | O101: 7.6240038e-14 | P101: 7.548010994e-14 | Q101: 7.471776405e-14 | R101: 7.395295383e-14 | S101: 7.318563154e-14 | T101: 7.241574816e-14 | U101: 7.164325337e-14 | V101: 7.086809549e-14 | W101: 7.009022149e-14 | X101: 6.930957688e-14 | Y101: 6.852610575e-14 | Z101: 6.773975067e-14 | AA101: 6.695045268e-14 | AB101: 6.615815121e-14 | AC101: 6.536278411e-14 | AD101: 6.456428751e-14 | AE101: 6.376259585e-14 | AF101: 6.29576418e-14 | AG101: 6.214935619e-14 | AH101: 6.133766802e-14 | AI101: 6.052250434e-14 | AJ101: 5.970379023e-14 | AK101: 5.888144877e-14 | AL101: 5.80554009e-14 | AM101: 5.722556546e-14 | AN101: 5.639185906e-14 | AO101: 5.555419604e-14 | AP101: 5.471248838e-14 | AQ101: 5.386664569e-14 | AR101: 5.301657505e-14 | AS101: 5.216218103e-14 | AT101: 5.13033655e-14 | AU101: 5.044002765e-14 | AV101: 4.957206383e-14 | AW101: 4.869936747e-14 | AX101: 4.782182899e-14 | AY101: 4.693933564e-14 | AZ101: 4.605177142e-14 | BA101: 4.515901693e-14 | BB101: 4.426094917e-14 | BC101: 4.33574414e-14 | BD101: 4.244836291e-14 | BE101: 4.15335788e-14 | BF101: 4.061294967e-14 | BG101: 3.968633129e-14 | BH101: 3.875357424e-14 | BI101: 3.781452338e-14 | BJ101: 3.686901729e-14 | BK101: 3.591688758e-14 | BL101: 3.495795802e-14 | BM101: 3.399204345e-14 | BN101: 3.30189485e-14 | BO101: 3.203846596e-14 | BP101: 3.105037472e-14 | BQ101: 3.005443729e-14 | BR101: 2.90503966e-14 | BS101: 2.80379721e-14 | BT101: 2.701685475e-14 | BU101: 2.598670085e-14 | BV101: 2.494712422e-14 | BW101: 2.389768641e-14 | BX101: 2.283788432e-14 | BY101: 2.17671347e-14 | BZ101: 2.068475462e-14 | CA101: 1.958993677e-14 | CB101: 1.848171849e-14 | CC101: 1.735894267e-14 | CD101: 1.622020839e-14 | CE101: 1.506380888e-14 | CF101: 1.388765308e-14 | CG101: 1.268916691e-14 | CH101: 1.146516869e-14 | CI101: 1.021171195e-14 | CJ101: 8.923887368e-15 | CK101: 7.595572738e-15 | CL101: 6.219117761e-15 | CM101: 4.784946362e-15 | CN101: 3.281055075e-15 | CO101: 1.692380279e-15 | CP101: 0
A102: 92 | B102: 8.591818305e-14 | C102: 8.591818305e-14 | D102: 8.518596115e-14 | E102: 8.445182731e-14 | F102: 8.371574843e-14 | G102: 8.297769047e-14 | H102: 8.223761855e-14 | I102: 8.149549686e-14 | J102: 8.075128863e-14 | K102: 8.000495613e-14 | L102: 7.925646065e-14 | M102: 7.850576244e-14 | N102: 7.77528207e-14 | O102: 7.699759355e-14 | P102: 7.6240038e-14 | Q102: 7.548010994e-14 | R102: 7.471776405e-14 | S102: 7.395295383e-14 | T102: 7.318563154e-14 | U102: 7.241574816e-14 | V102: 7.164325337e-14 | W102: 7.086809549e-14 | X102: 7.009022149e-14 | Y102: 6.930957688e-14 | Z102: 6.852610575e-14 | AA102: 6.773975067e-14 | AB102: 6.695045268e-14 | AC102: 6.615815121e-14 | AD102: 6.536278411e-14 | AE102: 6.456428751e-14 | AF102: 6.376259585e-14 | AG102: 6.29576418e-14 | AH102: 6.214935619e-14 | AI102: 6.133766802e-14 | AJ102: 6.052250434e-14 | AK102: 5.970379023e-14 | AL102: 5.888144877e-14 | AM102: 5.80554009e-14 | AN102: 5.722556546e-14 | AO102: 5.639185906e-14 | AP102: 5.555419604e-14 | AQ102: 5.471248838e-14 | AR102: 5.386664569e-14 | AS102: 5.301657505e-14 | AT102: 5.216218103e-14 | AU102: 5.13033655e-14 | AV102: 5.044002765e-14 | AW102: 4.957206383e-14 | AX102: 4.869936747e-14 | AY102: 4.782182899e-14 | AZ102: 4.693933564e-14 | BA102: 4.605177142e-14 | BB102: 4.515901693e-14 | BC102: 4.426094917e-14 | BD102: 4.33574414e-14 | BE102: 4.244836291e-14 | BF102: 4.15335788e-14 | BG102: 4.061294967e-14 | BH102: 3.968633129e-14 | BI102: 3.875357424e-14 | BJ102: 3.781452338e-14 | BK102: 3.686901729e-14 | BL102: 3.591688758e-14 | BM102: 3.495795802e-14 | BN102: 3.399204345e-14 | BO102: 3.30189485e-14 | BP102: 3.203846596e-14 | BQ102: 3.105037472e-14 | BR102: 3.005443729e-14 | BS102: 2.90503966e-14 | BT102: 2.80379721e-14 | BU102: 2.701685475e-14 | BV102: 2.598670085e-14 | BW102: 2.494712422e-14 | BX102: 2.389768641e-14 | BY102: 2.283788432e-14 | BZ102: 2.17671347e-14 | CA102: 2.068475462e-14 | CB102: 1.958993677e-14 | CC102: 1.848171849e-14 | CD102: 1.735894267e-14 | CE102: 1.622020839e-14 | CF102: 1.506380888e-14 | CG102: 1.388765308e-14 | CH102: 1.268916691e-14 | CI102: 1.146516869e-14 | CJ102: 1.021171195e-14 | CK102: 8.923887368e-15 | CL102: 7.595572738e-15 | CM102: 6.219117761e-15 | CN102: 4.784946362e-15 | CO102: 3.281055075e-15 | CP102: 1.692380279e-15 | CQ102: 0
A103: 93 | B103: 8.664852533e-14 | C103: 8.664852533e-14 | D103: 8.591818305e-14 | E103: 8.518596115e-14 | F103: 8.445182731e-14 | G103: 8.371574843e-14 | H103: 8.297769047e-14 | I103: 8.223761855e-14 | J103: 8.149549686e-14 | K103: 8.075128863e-14 | L103: 8.000495613e-14 | M103: 7.925646065e-14 | N103: 7.850576244e-14 | O103: 7.77528207e-14 | P103: 7.699759355e-14 | Q103: 7.6240038e-14 | R103: 7.548010994e-14 | S103: 7.471776405e-14 | T103: 7.395295383e-14 | U103: 7.318563154e-14 | V103: 7.241574816e-14 | W103: 7.164325337e-14 | X103: 7.086809549e-14 | Y103: 7.009022149e-14 | Z103: 6.930957688e-14 | AA103: 6.852610575e-14 | AB103: 6.773975067e-14 | AC103: 6.695045268e-14 | AD103: 6.615815121e-14 | AE103: 6.536278411e-14 | AF103: 6.456428751e-14 | AG103: 6.376259585e-14 | AH103: 6.29576418e-14 | AI103: 6.214935619e-14 | AJ103: 6.133766802e-14 | AK103: 6.052250434e-14 | AL103: 5.970379023e-14 | AM103: 5.888144877e-14 | AN103: 5.80554009e-14 | AO103: 5.722556546e-14 | AP103: 5.639185906e-14 | AQ103: 5.555419604e-14 | AR103: 5.471248838e-14 | AS103: 5.386664569e-14 | AT103: 5.301657505e-14 | AU103: 5.216218103e-14 | AV103: 5.13033655e-14 | AW103: 5.044002765e-14 | AX103: 4.957206383e-14 | AY103: 4.869936747e-14 | AZ103: 4.782182899e-14 | BA103: 4.693933564e-14 | BB103: 4.605177142e-14 | BC103: 4.515901693e-14 | BD103: 4.426094917e-14 | BE103: 4.33574414e-14 | BF103: 4.244836291e-14 | BG103: 4.15335788e-14 | BH103: 4.061294967e-14 | BI103: 3.968633129e-14 | BJ103: 3.875357424e-14 | BK103: 3.781452338e-14 | BL103: 3.686901729e-14 | BM103: 3.591688758e-14 | BN103: 3.495795802e-14 | BO103: 3.399204345e-14 | BP103: 3.30189485e-14 | BQ103: 3.203846596e-14 | BR103: 3.105037472e-14 | BS103: 3.005443729e-14 | BT103: 2.90503966e-14 | BU103: 2.80379721e-14 | BV103: 2.701685475e-14 | BW103: 2.598670085e-14 | BX103: 2.494712422e-14 | BY103: 2.389768641e-14 | BZ103: 2.283788432e-14 | CA103: 2.17671347e-14 | CB103: 2.068475462e-14 | CC103: 1.958993677e-14 | CD103: 1.848171849e-14 | CE103: 1.735894267e-14 | CF103: 1.622020839e-14 | CG103: 1.506380888e-14 | CH103: 1.388765308e-14 | CI103: 1.268916691e-14 | CJ103: 1.146516869e-14 | CK103: 1.021171195e-14 | CL103: 8.923887368e-15 | CM103: 7.595572738e-15 | CN103: 6.219117761e-15 | CO103: 4.784946362e-15 | CP103: 3.281055075e-15 | CQ103: 1.692380279e-15 | CR103: 0
A104: 94 | B104: 8.737701944e-14 | C104: 8.737701944e-14 | D104: 8.664852533e-14 | E104: 8.591818305e-14 | F104: 8.518596115e-14 | G104: 8.445182731e-14 | H104: 8.371574843e-14 | I104: 8.297769047e-14 | J104: 8.223761855e-14 | K104: 8.149549686e-14 | L104: 8.075128863e-14 | M104: 8.000495613e-14 | N104: 7.925646065e-14 | O104: 7.850576244e-14 | P104: 7.77528207e-14 | Q104: 7.699759355e-14 | R104: 7.6240038e-14 | S104: 7.548010994e-14 | T104: 7.471776405e-14 | U104: 7.395295383e-14 | V104: 7.318563154e-14 | W104: 7.241574816e-14 | X104: 7.164325337e-14 | Y104: 7.086809549e-14 | Z104: 7.009022149e-14 | AA104: 6.930957688e-14 | AB104: 6.852610575e-14 | AC104: 6.773975067e-14 | AD104: 6.695045268e-14 | AE104: 6.615815121e-14 | AF104: 6.536278411e-14 | AG104: 6.456428751e-14 | AH104: 6.376259585e-14 | AI104: 6.29576418e-14 | AJ104: 6.214935619e-14 | AK104: 6.133766802e-14 | AL104: 6.052250434e-14 | AM104: 5.970379023e-14 | AN104: 5.888144877e-14 | AO104: 5.80554009e-14 | AP104: 5.722556546e-14 | AQ104: 5.639185906e-14 | AR104: 5.555419604e-14 | AS104: 5.471248838e-14 | AT104: 5.386664569e-14 | AU104: 5.301657505e-14 | AV104: 5.216218103e-14 | AW104: 5.13033655e-14 | AX104: 5.044002765e-14 | AY104: 4.957206383e-14 | AZ104: 4.869936747e-14 | BA104: 4.782182899e-14 | BB104: 4.693933564e-14 | BC104: 4.605177142e-14 | BD104: 4.515901693e-14 | BE104: 4.426094917e-14 | BF104: 4.33574414e-14 | BG104: 4.244836291e-14 | BH104: 4.15335788e-14 | BI104: 4.061294967e-14 | BJ104: 3.968633129e-14 | BK104: 3.875357424e-14 | BL104: 3.781452338e-14 | BM104: 3.686901729e-14 | BN104: 3.591688758e-14 | BO104: 3.495795802e-14 | BP104: 3.399204345e-14 | BQ104: 3.30189485e-14 | BR104: 3.203846596e-14 | BS104: 3.105037472e-14 | BT104: 3.005443729e-14 | BU104: 2.90503966e-14 | BV104: 2.80379721e-14 | BW104: 2.701685475e-14 | BX104: 2.598670085e-14 | BY104: 2.494712422e-14 | BZ104: 2.389768641e-14 | CA104: 2.283788432e-14 | CB104: 2.17671347e-14 | CC104: 2.068475462e-14 | CD104: 1.958993677e-14 | CE104: 1.848171849e-14 | CF104: 1.735894267e-14 | CG104: 1.622020839e-14 | CH104: 1.506380888e-14 | CI104: 1.388765308e-14 | CJ104: 1.268916691e-14 | CK104: 1.146516869e-14 | CL104: 1.021171195e-14 | CM104: 8.923887368e-15 | CN104: 7.595572738e-15 | CO104: 6.219117761e-15 | CP104: 4.784946362e-15 | CQ104: 3.281055075e-15 | CR104: 1.692380279e-15 | CS104: 0
A105: 95 | B105: 8.810369605e-14 | C105: 8.810369605e-14 | D105: 8.737701944e-14 | E105: 8.664852533e-14 | F105: 8.591818305e-14 | G105: 8.518596115e-14 | H105: 8.445182731e-14 | I105: 8.371574843e-14 | J105: 8.297769047e-14 | K105: 8.223761855e-14 | L105: 8.149549686e-14 | M105: 8.075128863e-14 | N105: 8.000495613e-14 | O105: 7.925646065e-14 | P105: 7.850576244e-14 | Q105: 7.77528207e-14 | R105: 7.699759355e-14 | S105: 7.6240038e-14 | T105: 7.548010994e-14 | U105: 7.471776405e-14 | V105: 7.395295383e-14 | W105: 7.318563154e-14 | X105: 7.241574816e-14 | Y105: 7.164325337e-14 | Z105: 7.086809549e-14 | AA105: 7.009022149e-14 | AB105: 6.930957688e-14 | AC105: 6.852610575e-14 | AD105: 6.773975067e-14 | AE105: 6.695045268e-14 | AF105: 6.615815121e-14 | AG105: 6.536278411e-14 | AH105: 6.456428751e-14 | AI105: 6.376259585e-14 | AJ105: 6.29576418e-14 | AK105: 6.214935619e-14 | AL105: 6.133766802e-14 | AM105: 6.052250434e-14 | AN105: 5.970379023e-14 | AO105: 5.888144877e-14 | AP105: 5.80554009e-14 | AQ105: 5.722556546e-14 | AR105: 5.639185906e-14 | AS105: 5.555419604e-14 | AT105: 5.471248838e-14 | AU105: 5.386664569e-14 | AV105: 5.301657505e-14 | AW105: 5.216218103e-14 | AX105: 5.13033655e-14 | AY105: 5.044002765e-14 | AZ105: 4.957206383e-14 | BA105: 4.869936747e-14 | BB105: 4.782182899e-14 | BC105: 4.693933564e-14 | BD105: 4.605177142e-14 | BE105: 4.515901693e-14 | BF105: 4.426094917e-14 | BG105: 4.33574414e-14 | BH105: 4.244836291e-14 | BI105: 4.15335788e-14 | BJ105: 4.061294967e-14 | BK105: 3.968633129e-14 | BL105: 3.875357424e-14 | BM105: 3.781452338e-14 | BN105: 3.686901729e-14 | BO105: 3.591688758e-14 | BP105: 3.495795802e-14 | BQ105: 3.399204345e-14 | BR105: 3.30189485e-14 | BS105: 3.203846596e-14 | BT105: 3.105037472e-14 | BU105: 3.005443729e-14 | BV105: 2.90503966e-14 | BW105: 2.80379721e-14 | BX105: 2.701685475e-14 | BY105: 2.598670085e-14 | BZ105: 2.494712422e-14 | CA105: 2.389768641e-14 | CB105: 2.283788432e-14 | CC105: 2.17671347e-14 | CD105: 2.068475462e-14 | CE105: 1.958993677e-14 | CF105: 1.848171849e-14 | CG105: 1.735894267e-14 | CH105: 1.622020839e-14 | CI105: 1.506380888e-14 | CJ105: 1.388765308e-14 | CK105: 1.268916691e-14 | CL105: 1.146516869e-14 | CM105: 1.021171195e-14 | CN105: 8.923887368e-15 | CO105: 7.595572738e-15 | CP105: 6.219117761e-15 | CQ105: 4.784946362e-15 | CR105: 3.281055075e-15 | CS105: 1.692380279e-15 | CT105: 0
A106: 96 | B106: 8.882858506e-14 | C106: 8.882858506e-14 | D106: 8.810369605e-14 | E106: 8.737701944e-14 | F106: 8.664852533e-14 | G106: 8.591818305e-14 | H106: 8.518596115e-14 | I106: 8.445182731e-14 | J106: 8.371574843e-14 | K106: 8.297769047e-14 | L106: 8.223761855e-14 | M106: 8.149549686e-14 | N106: 8.075128863e-14 | O106: 8.000495613e-14 | P106: 7.925646065e-14 | Q106: 7.850576244e-14 | R106: 7.77528207e-14 | S106: 7.699759355e-14 | T106: 7.6240038e-14 | U106: 7.548010994e-14 | V106: 7.471776405e-14 | W106: 7.395295383e-14 | X106: 7.318563154e-14 | Y106: 7.241574816e-14 | Z106: 7.164325337e-14 | AA106: 7.086809549e-14 | AB106: 7.009022149e-14 | AC106: 6.930957688e-14 | AD106: 6.852610575e-14 | AE106: 6.773975067e-14 | AF106: 6.695045268e-14 | AG106: 6.615815121e-14 | AH106: 6.536278411e-14 | AI106: 6.456428751e-14 | AJ106: 6.376259585e-14 | AK106: 6.29576418e-14 | AL106: 6.214935619e-14 | AM106: 6.133766802e-14 | AN106: 6.052250434e-14 | AO106: 5.970379023e-14 | AP106: 5.888144877e-14 | AQ106: 5.80554009e-14 | AR106: 5.722556546e-14 | AS106: 5.639185906e-14 | AT106: 5.555419604e-14 | AU106: 5.471248838e-14 | AV106: 5.386664569e-14 | AW106: 5.301657505e-14 | AX106: 5.216218103e-14 | AY106: 5.13033655e-14 | AZ106: 5.044002765e-14 | BA106: 4.957206383e-14 | BB106: 4.869936747e-14 | BC106: 4.782182899e-14 | BD106: 4.693933564e-14 | BE106: 4.605177142e-14 | BF106: 4.515901693e-14 | BG106: 4.426094917e-14 | BH106: 4.33574414e-14 | BI106: 4.244836291e-14 | BJ106: 4.15335788e-14 | BK106: 4.061294967e-14 | BL106: 3.968633129e-14 | BM106: 3.875357424e-14 | BN106: 3.781452338e-14 | BO106: 3.686901729e-14 | BP106: 3.591688758e-14 | BQ106: 3.495795802e-14 | BR106: 3.399204345e-14 | BS106: 3.30189485e-14 | BT106: 3.203846596e-14 | BU106: 3.105037472e-14 | BV106: 3.005443729e-14 | BW106: 2.90503966e-14 | BX106: 2.80379721e-14 | BY106: 2.701685475e-14 | BZ106: 2.598670085e-14 | CA106: 2.494712422e-14 | CB106: 2.389768641e-14 | CC106: 2.283788432e-14 | CD106: 2.17671347e-14 | CE106: 2.068475462e-14 | CF106: 1.958993677e-14 | CG106: 1.848171849e-14 | CH106: 1.735894267e-14 | CI106: 1.622020839e-14 | CJ106: 1.506380888e-14 | CK106: 1.388765308e-14 | CL106: 1.268916691e-14 | CM106: 1.146516869e-14 | CN106: 1.021171195e-14 | CO106: 8.923887368e-15 | CP106: 7.595572738e-15 | CQ106: 6.219117761e-15 | CR106: 4.784946362e-15 | CS106: 3.281055075e-15 | CT106: 1.692380279e-15 | CU106: 0
A107: 97 | B107: 8.955171559e-14 | C107: 8.955171559e-14 | D107: 8.882858506e-14 | E107: 8.810369605e-14 | F107: 8.737701944e-14 | G107: 8.664852533e-14 | H107: 8.591818305e-14 | I107: 8.518596115e-14 | J107: 8.445182731e-14 | K107: 8.371574843e-14 | L107: 8.297769047e-14 | M107: 8.223761855e-14 | N107: 8.149549686e-14 | O107: 8.075128863e-14 | P107: 8.000495613e-14 | Q107: 7.925646065e-14 | R107: 7.850576244e-14 | S107: 7.77528207e-14 | T107: 7.699759355e-14 | U107: 7.6240038e-14 | V107: 7.548010994e-14 | W107: 7.471776405e-14 | X107: 7.395295383e-14 | Y107: 7.318563154e-14 | Z107: 7.241574816e-14 | AA107: 7.164325337e-14 | AB107: 7.086809549e-14 | AC107: 7.009022149e-14 | AD107: 6.930957688e-14 | AE107: 6.852610575e-14 | AF107: 6.773975067e-14 | AG107: 6.695045268e-14 | AH107: 6.615815121e-14 | AI107: 6.536278411e-14 | AJ107: 6.456428751e-14 | AK107: 6.376259585e-14 | AL107: 6.29576418e-14 | AM107: 6.214935619e-14 | AN107: 6.133766802e-14 | AO107: 6.052250434e-14 | AP107: 5.970379023e-14 | AQ107: 5.888144877e-14 | AR107: 5.80554009e-14 | AS107: 5.722556546e-14 | AT107: 5.639185906e-14 | AU107: 5.555419604e-14 | AV107: 5.471248838e-14 | AW107: 5.386664569e-14 | AX107: 5.301657505e-14 | AY107: 5.216218103e-14 | AZ107: 5.13033655e-14 | BA107: 5.044002765e-14 | BB107: 4.957206383e-14 | BC107: 4.869936747e-14 | BD107: 4.782182899e-14 | BE107: 4.693933564e-14 | BF107: 4.605177142e-14 | BG107: 4.515901693e-14 | BH107: 4.426094917e-14 | BI107: 4.33574414e-14 | BJ107: 4.244836291e-14 | BK107: 4.15335788e-14 | BL107: 4.061294967e-14 | BM107: 3.968633129e-14 | BN107: 3.875357424e-14 | BO107: 3.781452338e-14 | BP107: 3.686901729e-14 | BQ107: 3.591688758e-14 | BR107: 3.495795802e-14 | BS107: 3.399204345e-14 | BT107: 3.30189485e-14 | BU107: 3.203846596e-14 | BV107: 3.105037472e-14 | BW107: 3.005443729e-14 | BX107: 2.90503966e-14 | BY107: 2.80379721e-14 | BZ107: 2.701685475e-14 | CA107: 2.598670085e-14 | CB107: 2.494712422e-14 | CC107: 2.389768641e-14 | CD107: 2.283788432e-14 | CE107: 2.17671347e-14 | CF107: 2.068475462e-14 | CG107: 1.958993677e-14 | CH107: 1.848171849e-14 | CI107: 1.735894267e-14 | CJ107: 1.622020839e-14 | CK107: 1.506380888e-14 | CL107: 1.388765308e-14 | CM107: 1.268916691e-14 | CN107: 1.146516869e-14 | CO107: 1.021171195e-14 | CP107: 8.923887368e-15 | CQ107: 7.595572738e-15 | CR107: 6.219117761e-15 | CS107: 4.784946362e-15 | CT107: 3.281055075e-15 | CU107: 1.692380279e-15 | CV107: 0
A108: 98 | B108: 9.027311603e-14 | C108: 9.027311603e-14 | D108: 8.955171559e-14 | E108: 8.882858506e-14 | F108: 8.810369605e-14 | G108: 8.737701944e-14 | H108: 8.664852533e-14 | I108: 8.591818305e-14 | J108: 8.518596115e-14 | K108: 8.445182731e-14 | L108: 8.371574843e-14 | M108: 8.297769047e-14 | N108: 8.223761855e-14 | O108: 8.149549686e-14 | P108: 8.075128863e-14 | Q108: 8.000495613e-14 | R108: 7.925646065e-14 | S108: 7.850576244e-14 | T108: 7.77528207e-14 | U108: 7.699759355e-14 | V108: 7.6240038e-14 | W108: 7.548010994e-14 | X108: 7.471776405e-14 | Y108: 7.395295383e-14 | Z108: 7.318563154e-14 | AA108: 7.241574816e-14 | AB108: 7.164325337e-14 | AC108: 7.086809549e-14 | AD108: 7.009022149e-14 | AE108: 6.930957688e-14 | AF108: 6.852610575e-14 | AG108: 6.773975067e-14 | AH108: 6.695045268e-14 | AI108: 6.615815121e-14 | AJ108: 6.536278411e-14 | AK108: 6.456428751e-14 | AL108: 6.376259585e-14 | AM108: 6.29576418e-14 | AN108: 6.214935619e-14 | AO108: 6.133766802e-14 | AP108: 6.052250434e-14 | AQ108: 5.970379023e-14 | AR108: 5.888144877e-14 | AS108: 5.80554009e-14 | AT108: 5.722556546e-14 | AU108: 5.639185906e-14 | AV108: 5.555419604e-14 | AW108: 5.471248838e-14 | AX108: 5.386664569e-14 | AY108: 5.301657505e-14 | AZ108: 5.216218103e-14 | BA108: 5.13033655e-14 | BB108: 5.044002765e-14 | BC108: 4.957206383e-14 | BD108: 4.869936747e-14 | BE108: 4.782182899e-14 | BF108: 4.693933564e-14 | BG108: 4.605177142e-14 | BH108: 4.515901693e-14 | BI108: 4.426094917e-14 | BJ108: 4.33574414e-14 | BK108: 4.244836291e-14 | BL108: 4.15335788e-14 | BM108: 4.061294967e-14 | BN108: 3.968633129e-14 | BO108: 3.875357424e-14 | BP108: 3.781452338e-14 | BQ108: 3.686901729e-14 | BR108: 3.591688758e-14 | BS108: 3.495795802e-14 | BT108: 3.399204345e-14 | BU108: 3.30189485e-14 | BV108: 3.203846596e-14 | BW108: 3.105037472e-14 | BX108: 3.005443729e-14 | BY108: 2.90503966e-14 | BZ108: 2.80379721e-14 | CA108: 2.701685475e-14 | CB108: 2.598670085e-14 | CC108: 2.494712422e-14 | CD108: 2.389768641e-14 | CE108: 2.283788432e-14 | CF108: 2.17671347e-14 | CG108: 2.068475462e-14 | CH108: 1.958993677e-14 | CI108: 1.848171849e-14 | CJ108: 1.735894267e-14 | CK108: 1.622020839e-14 | CL108: 1.506380888e-14 | CM108: 1.388765308e-14 | CN108: 1.268916691e-14 | CO108: 1.146516869e-14 | CP108: 1.021171195e-14 | CQ108: 8.923887368e-15 | CR108: 7.595572738e-15 | CS108: 6.219117761e-15 | CT108: 4.784946362e-15 | CU108: 3.281055075e-15 | CV108: 1.692380279e-15 | CW108: 0
A109: 99 | B109: 9.099281405e-14 | C109: 9.099281405e-14 | D109: 9.027311603e-14 | E109: 8.955171559e-14 | F109: 8.882858506e-14 | G109: 8.810369605e-14 | H109: 8.737701944e-14 | I109: 8.664852533e-14 | J109: 8.591818305e-14 | K109: 8.518596115e-14 | L109: 8.445182731e-14 | M109: 8.371574843e-14 | N109: 8.297769047e-14 | O109: 8.223761855e-14 | P109: 8.149549686e-14 | Q109: 8.075128863e-14 | R109: 8.000495613e-14 | S109: 7.925646065e-14 | T109: 7.850576244e-14 | U109: 7.77528207e-14 | V109: 7.699759355e-14 | W109: 7.6240038e-14 | X109: 7.548010994e-14 | Y109: 7.471776405e-14 | Z109: 7.395295383e-14 | AA109: 7.318563154e-14 | AB109: 7.241574816e-14 | AC109: 7.164325337e-14 | AD109: 7.086809549e-14 | AE109: 7.009022149e-14 | AF109: 6.930957688e-14 | AG109: 6.852610575e-14 | AH109: 6.773975067e-14 | AI109: 6.695045268e-14 | AJ109: 6.615815121e-14 | AK109: 6.536278411e-14 | AL109: 6.456428751e-14 | AM109: 6.376259585e-14 | AN109: 6.29576418e-14 | AO109: 6.214935619e-14 | AP109: 6.133766802e-14 | AQ109: 6.052250434e-14 | AR109: 5.970379023e-14 | AS109: 5.888144877e-14 | AT109: 5.80554009e-14 | AU109: 5.722556546e-14 | AV109: 5.639185906e-14 | AW109: 5.555419604e-14 | AX109: 5.471248838e-14 | AY109: 5.386664569e-14 | AZ109: 5.301657505e-14 | BA109: 5.216218103e-14 | BB109: 5.13033655e-14 | BC109: 5.044002765e-14 | BD109: 4.957206383e-14 | BE109: 4.869936747e-14 | BF109: 4.782182899e-14 | BG109: 4.693933564e-14 | BH109: 4.605177142e-14 | BI109: 4.515901693e-14 | BJ109: 4.426094917e-14 | BK109: 4.33574414e-14 | BL109: 4.244836291e-14 | BM109: 4.15335788e-14 | BN109: 4.061294967e-14 | BO109: 3.968633129e-14 | BP109: 3.875357424e-14 | BQ109: 3.781452338e-14 | BR109: 3.686901729e-14 | BS109: 3.591688758e-14 | BT109: 3.495795802e-14 | BU109: 3.399204345e-14 | BV109: 3.30189485e-14 | BW109: 3.203846596e-14 | BX109: 3.105037472e-14 | BY109: 3.005443729e-14 | BZ109: 2.90503966e-14 | CA109: 2.80379721e-14 | CB109: 2.701685475e-14 | CC109: 2.598670085e-14 | CD109: 2.494712422e-14 | CE109: 2.389768641e-14 | CF109: 2.283788432e-14 | CG109: 2.17671347e-14 | CH109: 2.068475462e-14 | CI109: 1.958993677e-14 | CJ109: 1.848171849e-14 | CK109: 1.735894267e-14 | CL109: 1.622020839e-14 | CM109: 1.506380888e-14 | CN109: 1.388765308e-14 | CO109: 1.268916691e-14 | CP109: 1.146516869e-14 | CQ109: 1.021171195e-14 | CR109: 8.923887368e-15 | CS109: 7.595572738e-15 | CT109: 6.219117761e-15 | CU109: 4.784946362e-15 | CV109: 3.281055075e-15 | CW109: 1.692380279e-15 | CX109: 0
A110: 100 | B110: 9.171083664e-14 | C110: 9.171083664e-14 | D110: 9.099281405e-14 | E110: 9.027311603e-14 | F110: 8.955171559e-14 | G110: 8.882858506e-14 | H110: 8.810369605e-14 | I110: 8.737701944e-14 | J110: 8.664852533e-14 | K110: 8.591818305e-14 | L110: 8.518596115e-14 | M110: 8.445182731e-14 | N110: 8.371574843e-14 | O110: 8.297769047e-14 | P110: 8.223761855e-14 | Q110: 8.149549686e-14 | R110: 8.075128863e-14 | S110: 8.000495613e-14 | T110: 7.925646065e-14 | U110: 7.850576244e-14 | V110: 7.77528207e-14 | W110: 7.699759355e-14 | X110: 7.6240038e-14 | Y110: 7.548010994e-14 | Z110: 7.471776405e-14 | AA110: 7.395295383e-14 | AB110: 7.318563154e-14 | AC110: 7.241574816e-14 | AD110: 7.164325337e-14 | AE110: 7.086809549e-14 | AF110: 7.009022149e-14 | AG110: 6.930957688e-14 | AH110: 6.852610575e-14 | AI110: 6.773975067e-14 | AJ110: 6.695045268e-14 | AK110: 6.615815121e-14 | AL110: 6.536278411e-14 | AM110: 6.456428751e-14 | AN110: 6.376259585e-14 | AO110: 6.29576418e-14 | AP110: 6.214935619e-14 | AQ110: 6.133766802e-14 | AR110: 6.052250434e-14 | AS110: 5.970379023e-14 | AT110: 5.888144877e-14 | AU110: 5.80554009e-14 | AV110: 5.722556546e-14 | AW110: 5.639185906e-14 | AX110: 5.555419604e-14 | AY110: 5.471248838e-14 | AZ110: 5.386664569e-14 | BA110: 5.301657505e-14 | BB110: 5.216218103e-14 | BC110: 5.13033655e-14 | BD110: 5.044002765e-14 | BE110: 4.957206383e-14 | BF110: 4.869936747e-14 | BG110: 4.782182899e-14 | BH110: 4.693933564e-14 | BI110: 4.605177142e-14 | BJ110: 4.515901693e-14 | BK110: 4.426094917e-14 | BL110: 4.33574414e-14 | BM110: 4.244836291e-14 | BN110: 4.15335788e-14 | BO110: 4.061294967e-14 | BP110: 3.968633129e-14 | BQ110: 3.875357424e-14 | BR110: 3.781452338e-14 | BS110: 3.686901729e-14 | BT110: 3.591688758e-14 | BU110: 3.495795802e-14 | BV110: 3.399204345e-14 | BW110: 3.30189485e-14 | BX110: 3.203846596e-14 | BY110: 3.105037472e-14 | BZ110: 3.005443729e-14 | CA110: 2.90503966e-14 | CB110: 2.80379721e-14 | CC110: 2.701685475e-14 | CD110: 2.598670085e-14 | CE110: 2.494712422e-14 | CF110: 2.389768641e-14 | CG110: 2.283788432e-14 | CH110: 2.17671347e-14 | CI110: 2.068475462e-14 | CJ110: 1.958993677e-14 | CK110: 1.848171849e-14 | CL110: 1.735894267e-14 | CM110: 1.622020839e-14 | CN110: 1.506380888e-14 | CO110: 1.388765308e-14 | CP110: 1.268916691e-14 | CQ110: 1.146516869e-14 | CR110: 1.021171195e-14 | CS110: 8.923887368e-15 | CT110: 7.595572738e-15 | CU110: 6.219117761e-15 | CV110: 4.784946362e-15 | CW110: 3.281055075e-15 | CX110: 1.692380279e-15 | CY110: 0
A111: 101 | B111: 9.242721009e-14 | C111: 9.242721009e-14 | D111: 9.171083664e-14 | E111: 9.099281405e-14 | F111: 9.027311603e-14 | G111: 8.955171559e-14 | H111: 8.882858506e-14 | I111: 8.810369605e-14 | J111: 8.737701944e-14 | K111: 8.664852533e-14 | L111: 8.591818305e-14 | M111: 8.518596115e-14 | N111: 8.445182731e-14 | O111: 8.371574843e-14 | P111: 8.297769047e-14 | Q111: 8.223761855e-14 | R111: 8.149549686e-14 | S111: 8.075128863e-14 | T111: 8.000495613e-14 | U111: 7.925646065e-14 | V111: 7.850576244e-14 | W111: 7.77528207e-14 | X111: 7.699759355e-14 | Y111: 7.6240038e-14 | Z111: 7.548010994e-14 | AA111: 7.471776405e-14 | AB111: 7.395295383e-14 | AC111: 7.318563154e-14 | AD111: 7.241574816e-14 | AE111: 7.164325337e-14 | AF111: 7.086809549e-14 | AG111: 7.009022149e-14 | AH111: 6.930957688e-14 | AI111: 6.852610575e-14 | AJ111: 6.773975067e-14 | AK111: 6.695045268e-14 | AL111: 6.615815121e-14 | AM111: 6.536278411e-14 | AN111: 6.456428751e-14 | AO111: 6.376259585e-14 | AP111: 6.29576418e-14 | AQ111: 6.214935619e-14 | AR111: 6.133766802e-14 | AS111: 6.052250434e-14 | AT111: 5.970379023e-14 | AU111: 5.888144877e-14 | AV111: 5.80554009e-14 | AW111: 5.722556546e-14 | AX111: 5.639185906e-14 | AY111: 5.555419604e-14 | AZ111: 5.471248838e-14 | BA111: 5.386664569e-14 | BB111: 5.301657505e-14 | BC111: 5.216218103e-14 | BD111: 5.13033655e-14 | BE111: 5.044002765e-14 | BF111: 4.957206383e-14 | BG111: 4.869936747e-14 | BH111: 4.782182899e-14 | BI111: 4.693933564e-14 | BJ111: 4.605177142e-14 | BK111: 4.515901693e-14 | BL111: 4.426094917e-14 | BM111: 4.33574414e-14 | BN111: 4.244836291e-14 | BO111: 4.15335788e-14 | BP111: 4.061294967e-14 | BQ111: 3.968633129e-14 | BR111: 3.875357424e-14 | BS111: 3.781452338e-14 | BT111: 3.686901729e-14 | BU111: 3.591688758e-14 | BV111: 3.495795802e-14 | BW111: 3.399204345e-14 | BX111: 3.30189485e-14 | BY111: 3.203846596e-14 | BZ111: 3.105037472e-14 | CA111: 3.005443729e-14 | CB111: 2.90503966e-14 | CC111: 2.80379721e-14 | CD111: 2.701685475e-14 | CE111: 2.598670085e-14 | CF111: 2.494712422e-14 | CG111: 2.389768641e-14 | CH111: 2.283788432e-14 | CI111: 2.17671347e-14 | CJ111: 2.068475462e-14 | CK111: 1.958993677e-14 | CL111: 1.848171849e-14 | CM111: 1.735894267e-14 | CN111: 1.622020839e-14 | CO111: 1.506380888e-14 | CP111: 1.388765308e-14 | CQ111: 1.268916691e-14 | CR111: 1.146516869e-14 | CS111: 1.021171195e-14 | CT111: 8.923887368e-15 | CU111: 7.595572738e-15 | CV111: 6.219117761e-15 | CW111: 4.784946362e-15 | CX111: 3.281055075e-15 | CY111: 1.692380279e-15
A112: 102 | B112: 9.314196002e-14 | C112: 9.314196002e-14 | D112: 9.242721009e-14 | E112: 9.171083664e-14 | F112: 9.099281405e-14 | G112: 9.027311603e-14 | H112: 8.955171559e-14 | I112: 8.882858506e-14 | J112: 8.810369605e-14 | K112: 8.737701944e-14 | L112: 8.664852533e-14 | M112: 8.591818305e-14 | N112: 8.518596115e-14 | O112: 8.445182731e-14 | P112: 8.371574843e-14 | Q112: 8.297769047e-14 | R112: 8.223761855e-14 | S112: 8.149549686e-14 | T112: 8.075128863e-14 | U112: 8.000495613e-14 | V112: 7.925646065e-14 | W112: 7.850576244e-14 | X112: 7.77528207e-14 | Y112: 7.699759355e-14 | Z112: 7.6240038e-14 | AA112: 7.548010994e-14 | AB112: 7.471776405e-14 | AC112: 7.395295383e-14 | AD112: 7.318563154e-14 | AE112: 7.241574816e-14 | AF112: 7.164325337e-14 | AG112: 7.086809549e-14 | AH112: 7.009022149e-14 | AI112: 6.930957688e-14 | AJ112: 6.852610575e-14 | AK112: 6.773975067e-14 | AL112: 6.695045268e-14 | AM112: 6.615815121e-14 | AN112: 6.536278411e-14 | AO112: 6.456428751e-14 | AP112: 6.376259585e-14 | AQ112: 6.29576418e-14 | AR112: 6.214935619e-14 | AS112: 6.133766802e-14 | AT112: 6.052250434e-14 | AU112: 5.970379023e-14 | AV112: 5.888144877e-14 | AW112: 5.80554009e-14 | AX112: 5.722556546e-14 | AY112: 5.639185906e-14 | AZ112: 5.555419604e-14 | BA112: 5.471248838e-14 | BB112: 5.386664569e-14 | BC112: 5.301657505e-14 | BD112: 5.216218103e-14 | BE112: 5.13033655e-14 | BF112: 5.044002765e-14 | BG112: 4.957206383e-14 | BH112: 4.869936747e-14 | BI112: 4.782182899e-14 | BJ112: 4.693933564e-14 | BK112: 4.605177142e-14 | BL112: 4.515901693e-14 | BM112: 4.426094917e-14 | BN112: 4.33574414e-14 | BO112: 4.244836291e-14 | BP112: 4.15335788e-14 | BQ112: 4.061294967e-14 | BR112: 3.968633129e-14 | BS112: 3.875357424e-14 | BT112: 3.781452338e-14 | BU112: 3.686901729e-14 | BV112: 3.591688758e-14 | BW112: 3.495795802e-14 | BX112: 3.399204345e-14 | BY112: 3.30189485e-14 | BZ112: 3.203846596e-14 | CA112: 3.105037472e-14 | CB112: 3.005443729e-14 | CC112: 2.90503966e-14 | CD112: 2.80379721e-14 | CE112: 2.701685475e-14 | CF112: 2.598670085e-14 | CG112: 2.494712422e-14 | CH112: 2.389768641e-14 | CI112: 2.283788432e-14 | CJ112: 2.17671347e-14 | CK112: 2.068475462e-14 | CL112: 1.958993677e-14 | CM112: 1.848171849e-14 | CN112: 1.735894267e-14 | CO112: 1.622020839e-14 | CP112: 1.506380888e-14 | CQ112: 1.388765308e-14 | CR112: 1.268916691e-14 | CS112: 1.146516869e-14 | CT112: 1.021171195e-14 | CU112: 8.923887368e-15 | CV112: 7.595572738e-15 | CW112: 6.219117761e-15 | CX112: 4.784946362e-15 | CY112: 3.281055075e-15
A113: 103 | B113: 9.385511143e-14 | C113: 9.385511143e-14 | D113: 9.314196002e-14 | E113: 9.242721009e-14 | F113: 9.171083664e-14 | G113: 9.099281405e-14 | H113: 9.027311603e-14 | I113: 8.955171559e-14 | J113: 8.882858506e-14 | K113: 8.810369605e-14 | L113: 8.737701944e-14 | M113: 8.664852533e-14 | N113: 8.591818305e-14 | O113: 8.518596115e-14 | P113: 8.445182731e-14 | Q113: 8.371574843e-14 | R113: 8.297769047e-14 | S113: 8.223761855e-14 | T113: 8.149549686e-14 | U113: 8.075128863e-14 | V113: 8.000495613e-14 | W113: 7.925646065e-14 | X113: 7.850576244e-14 | Y113: 7.77528207e-14 | Z113: 7.699759355e-14 | AA113: 7.6240038e-14 | AB113: 7.548010994e-14 | AC113: 7.471776405e-14 | AD113: 7.395295383e-14 | AE113: 7.318563154e-14 | AF113: 7.241574816e-14 | AG113: 7.164325337e-14 | AH113: 7.086809549e-14 | AI113: 7.009022149e-14 | AJ113: 6.930957688e-14 | AK113: 6.852610575e-14 | AL113: 6.773975067e-14 | AM113: 6.695045268e-14 | AN113: 6.615815121e-14 | AO113: 6.536278411e-14 | AP113: 6.456428751e-14 | AQ113: 6.376259585e-14 | AR113: 6.29576418e-14 | AS113: 6.214935619e-14 | AT113: 6.133766802e-14 | AU113: 6.052250434e-14 | AV113: 5.970379023e-14 | AW113: 5.888144877e-14 | AX113: 5.80554009e-14 | AY113: 5.722556546e-14 | AZ113: 5.639185906e-14 | BA113: 5.555419604e-14 | BB113: 5.471248838e-14 | BC113: 5.386664569e-14 | BD113: 5.301657505e-14 | BE113: 5.216218103e-14 | BF113: 5.13033655e-14 | BG113: 5.044002765e-14 | BH113: 4.957206383e-14 | BI113: 4.869936747e-14 | BJ113: 4.782182899e-14 | BK113: 4.693933564e-14 | BL113: 4.605177142e-14 | BM113: 4.515901693e-14 | BN113: 4.426094917e-14 | BO113: 4.33574414e-14 | BP113: 4.244836291e-14 | BQ113: 4.15335788e-14 | BR113: 4.061294967e-14 | BS113: 3.968633129e-14 | BT113: 3.875357424e-14 | BU113: 3.781452338e-14 | BV113: 3.686901729e-14 | BW113: 3.591688758e-14 | BX113: 3.495795802e-14 | BY113: 3.399204345e-14 | BZ113: 3.30189485e-14 | CA113: 3.203846596e-14 | CB113: 3.105037472e-14 | CC113: 3.005443729e-14 | CD113: 2.90503966e-14 | CE113: 2.80379721e-14 | CF113: 2.701685475e-14 | CG113: 2.598670085e-14 | CH113: 2.494712422e-14 | CI113: 2.389768641e-14 | CJ113: 2.283788432e-14 | CK113: 2.17671347e-14 | CL113: 2.068475462e-14 | CM113: 1.958993677e-14 | CN113: 1.848171849e-14 | CO113: 1.735894267e-14 | CP113: 1.622020839e-14 | CQ113: 1.506380888e-14 | CR113: 1.388765308e-14 | CS113: 1.268916691e-14 | CT113: 1.146516869e-14 | CU113: 1.021171195e-14 | CV113: 8.923887368e-15 | CW113: 7.595572738e-15 | CX113: 6.219117761e-15 | CY113: 4.784946362e-15
A114: 104 | B114: 9.456668869e-14 | C114: 9.456668869e-14 | D114: 9.385511143e-14 | E114: 9.314196002e-14 | F114: 9.242721009e-14 | G114: 9.171083664e-14 | H114: 9.099281405e-14 | I114: 9.027311603e-14 | J114: 8.955171559e-14 | K114: 8.882858506e-14 | L114: 8.810369605e-14 | M114: 8.737701944e-14 | N114: 8.664852533e-14 | O114: 8.591818305e-14 | P114: 8.518596115e-14 | Q114: 8.445182731e-14 | R114: 8.371574843e-14 | S114: 8.297769047e-14 | T114: 8.223761855e-14 | U114: 8.149549686e-14 | V114: 8.075128863e-14 | W114: 8.000495613e-14 | X114: 7.925646065e-14 | Y114: 7.850576244e-14 | Z114: 7.77528207e-14 | AA114: 7.699759355e-14 | AB114: 7.6240038e-14 | AC114: 7.548010994e-14 | AD114: 7.471776405e-14 | AE114: 7.395295383e-14 | AF114: 7.318563154e-14 | AG114: 7.241574816e-14 | AH114: 7.164325337e-14 | AI114: 7.086809549e-14 | AJ114: 7.009022149e-14 | AK114: 6.930957688e-14 | AL114: 6.852610575e-14 | AM114: 6.773975067e-14 | AN114: 6.695045268e-14 | AO114: 6.615815121e-14 | AP114: 6.536278411e-14 | AQ114: 6.456428751e-14 | AR114: 6.376259585e-14 | AS114: 6.29576418e-14 | AT114: 6.214935619e-14 | AU114: 6.133766802e-14 | AV114: 6.052250434e-14 | AW114: 5.970379023e-14 | AX114: 5.888144877e-14 | AY114: 5.80554009e-14 | AZ114: 5.722556546e-14 | BA114: 5.639185906e-14 | BB114: 5.555419604e-14 | BC114: 5.471248838e-14 | BD114: 5.386664569e-14 | BE114: 5.301657505e-14 | BF114: 5.216218103e-14 | BG114: 5.13033655e-14 | BH114: 5.044002765e-14 | BI114: 4.957206383e-14 | BJ114: 4.869936747e-14 | BK114: 4.782182899e-14 | BL114: 4.693933564e-14 | BM114: 4.605177142e-14 | BN114: 4.515901693e-14 | BO114: 4.426094917e-14 | BP114: 4.33574414e-14 | BQ114: 4.244836291e-14 | BR114: 4.15335788e-14 | BS114: 4.061294967e-14 | BT114: 3.968633129e-14 | BU114: 3.875357424e-14 | BV114: 3.781452338e-14 | BW114: 3.686901729e-14 | BX114: 3.591688758e-14 | BY114: 3.495795802e-14 | BZ114: 3.399204345e-14 | CA114: 3.30189485e-14 | CB114: 3.203846596e-14 | CC114: 3.105037472e-14 | CD114: 3.005443729e-14 | CE114: 2.90503966e-14 | CF114: 2.80379721e-14 | CG114: 2.701685475e-14 | CH114: 2.598670085e-14 | CI114: 2.494712422e-14 | CJ114: 2.389768641e-14 | CK114: 2.283788432e-14 | CL114: 2.17671347e-14 | CM114: 2.068475462e-14 | CN114: 1.958993677e-14 | CO114: 1.848171849e-14 | CP114: 1.735894267e-14 | CQ114: 1.622020839e-14 | CR114: 1.506380888e-14 | CS114: 1.388765308e-14 | CT114: 1.268916691e-14 | CU114: 1.146516869e-14 | CV114: 1.021171195e-14 | CW114: 8.923887368e-15 | CX114: 7.595572738e-15 | CY114: 6.219117761e-15
A115: 105 | B115: 9.527671553e-14 | C115: 9.527671553e-14 | D115: 9.456668869e-14 | E115: 9.385511143e-14 | F115: 9.314196002e-14 | G115: 9.242721009e-14 | H115: 9.171083664e-14 | I115: 9.099281405e-14 | J115: 9.027311603e-14 | K115: 8.955171559e-14 | L115: 8.882858506e-14 | M115: 8.810369605e-14 | N115: 8.737701944e-14 | O115: 8.664852533e-14 | P115: 8.591818305e-14 | Q115: 8.518596115e-14 | R115: 8.445182731e-14 | S115: 8.371574843e-14 | T115: 8.297769047e-14 | U115: 8.223761855e-14 | V115: 8.149549686e-14 | W115: 8.075128863e-14 | X115: 8.000495613e-14 | Y115: 7.925646065e-14 | Z115: 7.850576244e-14 | AA115: 7.77528207e-14 | AB115: 7.699759355e-14 | AC115: 7.6240038e-14 | AD115: 7.548010994e-14 | AE115: 7.471776405e-14 | AF115: 7.395295383e-14 | AG115: 7.318563154e-14 | AH115: 7.241574816e-14 | AI115: 7.164325337e-14 | AJ115: 7.086809549e-14 | AK115: 7.009022149e-14 | AL115: 6.930957688e-14 | AM115: 6.852610575e-14 | AN115: 6.773975067e-14 | AO115: 6.695045268e-14 | AP115: 6.615815121e-14 | AQ115: 6.536278411e-14 | AR115: 6.456428751e-14 | AS115: 6.376259585e-14 | AT115: 6.29576418e-14 | AU115: 6.214935619e-14 | AV115: 6.133766802e-14 | AW115: 6.052250434e-14 | AX115: 5.970379023e-14 | AY115: 5.888144877e-14 | AZ115: 5.80554009e-14 | BA115: 5.722556546e-14 | BB115: 5.639185906e-14 | BC115: 5.555419604e-14 | BD115: 5.471248838e-14 | BE115: 5.386664569e-14 | BF115: 5.301657505e-14 | BG115: 5.216218103e-14 | BH115: 5.13033655e-14 | BI115: 5.044002765e-14 | BJ115: 4.957206383e-14 | BK115: 4.869936747e-14 | BL115: 4.782182899e-14 | BM115: 4.693933564e-14 | BN115: 4.605177142e-14 | BO115: 4.515901693e-14 | BP115: 4.426094917e-14 | BQ115: 4.33574414e-14 | BR115: 4.244836291e-14 | BS115: 4.15335788e-14 | BT115: 4.061294967e-14 | BU115: 3.968633129e-14 | BV115: 3.875357424e-14 | BW115: 3.781452338e-14 | BX115: 3.686901729e-14 | BY115: 3.591688758e-14 | BZ115: 3.495795802e-14 | CA115: 3.399204345e-14 | CB115: 3.30189485e-14 | CC115: 3.203846596e-14 | CD115: 3.105037472e-14 | CE115: 3.005443729e-14 | CF115: 2.90503966e-14 | CG115: 2.80379721e-14 | CH115: 2.701685475e-14 | CI115: 2.598670085e-14 | CJ115: 2.494712422e-14 | CK115: 2.389768641e-14 | CL115: 2.283788432e-14 | CM115: 2.17671347e-14 | CN115: 2.068475462e-14 | CO115: 1.958993677e-14 | CP115: 1.848171849e-14 | CQ115: 1.735894267e-14 | CR115: 1.622020839e-14 | CS115: 1.506380888e-14 | CT115: 1.388765308e-14 | CU115: 1.268916691e-14 | CV115: 1.146516869e-14 | CW115: 1.021171195e-14 | CX115: 8.923887368e-15 | CY115: 7.595572738e-15
A116: 106 | B116: 9.598521512e-14 | C116: 9.598521512e-14 | D116: 9.527671553e-14 | E116: 9.456668869e-14 | F116: 9.385511143e-14 | G116: 9.314196002e-14 | H116: 9.242721009e-14 | I116: 9.171083664e-14 | J116: 9.099281405e-14 | K116: 9.027311603e-14 | L116: 8.955171559e-14 | M116: 8.882858506e-14 | N116: 8.810369605e-14 | O116: 8.737701944e-14 | P116: 8.664852533e-14 | Q116: 8.591818305e-14 | R116: 8.518596115e-14 | S116: 8.445182731e-14 | T116: 8.371574843e-14 | U116: 8.297769047e-14 | V116: 8.223761855e-14 | W116: 8.149549686e-14 | X116: 8.075128863e-14 | Y116: 8.000495613e-14 | Z116: 7.925646065e-14 | AA116: 7.850576244e-14 | AB116: 7.77528207e-14 | AC116: 7.699759355e-14 | AD116: 7.6240038e-14 | AE116: 7.548010994e-14 | AF116: 7.471776405e-14 | AG116: 7.395295383e-14 | AH116: 7.318563154e-14 | AI116: 7.241574816e-14 | AJ116: 7.164325337e-14 | AK116: 7.086809549e-14 | AL116: 7.009022149e-14 | AM116: 6.930957688e-14 | AN116: 6.852610575e-14 | AO116: 6.773975067e-14 | AP116: 6.695045268e-14 | AQ116: 6.615815121e-14 | AR116: 6.536278411e-14 | AS116: 6.456428751e-14 | AT116: 6.376259585e-14 | AU116: 6.29576418e-14 | AV116: 6.214935619e-14 | AW116: 6.133766802e-14 | AX116: 6.052250434e-14 | AY116: 5.970379023e-14 | AZ116: 5.888144877e-14 | BA116: 5.80554009e-14 | BB116: 5.722556546e-14 | BC116: 5.639185906e-14 | BD116: 5.555419604e-14 | BE116: 5.471248838e-14 | BF116: 5.386664569e-14 | BG116: 5.301657505e-14 | BH116: 5.216218103e-14 | BI116: 5.13033655e-14 | BJ116: 5.044002765e-14 | BK116: 4.957206383e-14 | BL116: 4.869936747e-14 | BM116: 4.782182899e-14 | BN116: 4.693933564e-14 | BO116: 4.605177142e-14 | BP116: 4.515901693e-14 | BQ116: 4.426094917e-14 | BR116: 4.33574414e-14 | BS116: 4.244836291e-14 | BT116: 4.15335788e-14 | BU116: 4.061294967e-14 | BV116: 3.968633129e-14 | BW116: 3.875357424e-14 | BX116: 3.781452338e-14 | BY116: 3.686901729e-14 | BZ116: 3.591688758e-14 | CA116: 3.495795802e-14 | CB116: 3.399204345e-14 | CC116: 3.30189485e-14 | CD116: 3.203846596e-14 | CE116: 3.105037472e-14 | CF116: 3.005443729e-14 | CG116: 2.90503966e-14 | CH116: 2.80379721e-14 | CI116: 2.701685475e-14 | CJ116: 2.598670085e-14 | CK116: 2.494712422e-14 | CL116: 2.389768641e-14 | CM116: 2.283788432e-14 | CN116: 2.17671347e-14 | CO116: 2.068475462e-14 | CP116: 1.958993677e-14 | CQ116: 1.848171849e-14 | CR116: 1.735894267e-14 | CS116: 1.622020839e-14 | CT116: 1.506380888e-14 | CU116: 1.388765308e-14 | CV116: 1.268916691e-14 | CW116: 1.146516869e-14 | CX116: 1.021171195e-14 | CY116: 8.923887368e-15
A117: 107 | B117: 9.669221004e-14 | C117: 9.669221004e-14 | D117: 9.598521512e-14 | E117: 9.527671553e-14 | F117: 9.456668869e-14 | G117: 9.385511143e-14 | H117: 9.314196002e-14 | I117: 9.242721009e-14 | J117: 9.171083664e-14 | K117: 9.099281405e-14 | L117: 9.027311603e-14 | M117: 8.955171559e-14 | N117: 8.882858506e-14 | O117: 8.810369605e-14 | P117: 8.737701944e-14 | Q117: 8.664852533e-14 | R117: 8.591818305e-14 | S117: 8.518596115e-14 | T117: 8.445182731e-14 | U117: 8.371574843e-14 | V117: 8.297769047e-14 | W117: 8.223761855e-14 | X117: 8.149549686e-14 | Y117: 8.075128863e-14 | Z117: 8.000495613e-14 | AA117: 7.925646065e-14 | AB117: 7.850576244e-14 | AC117: 7.77528207e-14 | AD117: 7.699759355e-14 | AE117: 7.6240038e-14 | AF117: 7.548010994e-14 | AG117: 7.471776405e-14 | AH117: 7.395295383e-14 | AI117: 7.318563154e-14 | AJ117: 7.241574816e-14 | AK117: 7.164325337e-14 | AL117: 7.086809549e-14 | AM117: 7.009022149e-14 | AN117: 6.930957688e-14 | AO117: 6.852610575e-14 | AP117: 6.773975067e-14 | AQ117: 6.695045268e-14 | AR117: 6.615815121e-14 | AS117: 6.536278411e-14 | AT117: 6.456428751e-14 | AU117: 6.376259585e-14 | AV117: 6.29576418e-14 | AW117: 6.214935619e-14 | AX117: 6.133766802e-14 | AY117: 6.052250434e-14 | AZ117: 5.970379023e-14 | BA117: 5.888144877e-14 | BB117: 5.80554009e-14 | BC117: 5.722556546e-14 | BD117: 5.639185906e-14 | BE117: 5.555419604e-14 | BF117: 5.471248838e-14 | BG117: 5.386664569e-14 | BH117: 5.301657505e-14 | BI117: 5.216218103e-14 | BJ117: 5.13033655e-14 | BK117: 5.044002765e-14 | BL117: 4.957206383e-14 | BM117: 4.869936747e-14 | BN117: 4.782182899e-14 | BO117: 4.693933564e-14 | BP117: 4.605177142e-14 | BQ117: 4.515901693e-14 | BR117: 4.426094917e-14 | BS117: 4.33574414e-14 | BT117: 4.244836291e-14 | BU117: 4.15335788e-14 | BV117: 4.061294967e-14 | BW117: 3.968633129e-14 | BX117: 3.875357424e-14 | BY117: 3.781452338e-14 | BZ117: 3.686901729e-14 | CA117: 3.591688758e-14 | CB117: 3.495795802e-14 | CC117: 3.399204345e-14 | CD117: 3.30189485e-14 | CE117: 3.203846596e-14 | CF117: 3.105037472e-14 | CG117: 3.005443729e-14 | CH117: 2.90503966e-14 | CI117: 2.80379721e-14 | CJ117: 2.701685475e-14 | CK117: 2.598670085e-14 | CL117: 2.494712422e-14 | CM117: 2.389768641e-14 | CN117: 2.283788432e-14 | CO117: 2.17671347e-14 | CP117: 2.068475462e-14 | CQ117: 1.958993677e-14 | CR117: 1.848171849e-14 | CS117: 1.735894267e-14 | CT117: 1.622020839e-14 | CU117: 1.506380888e-14 | CV117: 1.388765308e-14 | CW117: 1.268916691e-14 | CX117: 1.146516869e-14 | CY117: 1.021171195e-14
A118: 108 | B118: 9.739772231e-14 | C118: 9.739772231e-14 | D118: 9.669221004e-14 | E118: 9.598521512e-14 | F118: 9.527671553e-14 | G118: 9.456668869e-14 | H118: 9.385511143e-14 | I118: 9.314196002e-14 | J118: 9.242721009e-14 | K118: 9.171083664e-14 | L118: 9.099281405e-14 | M118: 9.027311603e-14 | N118: 8.955171559e-14 | O118: 8.882858506e-14 | P118: 8.810369605e-14 | Q118: 8.737701944e-14 | R118: 8.664852533e-14 | S118: 8.591818305e-14 | T118: 8.518596115e-14 | U118: 8.445182731e-14 | V118: 8.371574843e-14 | W118: 8.297769047e-14 | X118: 8.223761855e-14 | Y118: 8.149549686e-14 | Z118: 8.075128863e-14 | AA118: 8.000495613e-14 | AB118: 7.925646065e-14 | AC118: 7.850576244e-14 | AD118: 7.77528207e-14 | AE118: 7.699759355e-14 | AF118: 7.6240038e-14 | AG118: 7.548010994e-14 | AH118: 7.471776405e-14 | AI118: 7.395295383e-14 | AJ118: 7.318563154e-14 | AK118: 7.241574816e-14 | AL118: 7.164325337e-14 | AM118: 7.086809549e-14 | AN118: 7.009022149e-14 | AO118: 6.930957688e-14 | AP118: 6.852610575e-14 | AQ118: 6.773975067e-14 | AR118: 6.695045268e-14 | AS118: 6.615815121e-14 | AT118: 6.536278411e-14 | AU118: 6.456428751e-14 | AV118: 6.376259585e-14 | AW118: 6.29576418e-14 | AX118: 6.214935619e-14 | AY118: 6.133766802e-14 | AZ118: 6.052250434e-14 | BA118: 5.970379023e-14 | BB118: 5.888144877e-14 | BC118: 5.80554009e-14 | BD118: 5.722556546e-14 | BE118: 5.639185906e-14 | BF118: 5.555419604e-14 | BG118: 5.471248838e-14 | BH118: 5.386664569e-14 | BI118: 5.301657505e-14 | BJ118: 5.216218103e-14 | BK118: 5.13033655e-14 | BL118: 5.044002765e-14 | BM118: 4.957206383e-14 | BN118: 4.869936747e-14 | BO118: 4.782182899e-14 | BP118: 4.693933564e-14 | BQ118: 4.605177142e-14 | BR118: 4.515901693e-14 | BS118: 4.426094917e-14 | BT118: 4.33574414e-14 | BU118: 4.244836291e-14 | BV118: 4.15335788e-14 | BW118: 4.061294967e-14 | BX118: 3.968633129e-14 | BY118: 3.875357424e-14 | BZ118: 3.781452338e-14 | CA118: 3.686901729e-14 | CB118: 3.591688758e-14 | CC118: 3.495795802e-14 | CD118: 3.399204345e-14 | CE118: 3.30189485e-14 | CF118: 3.203846596e-14 | CG118: 3.105037472e-14 | CH118: 3.005443729e-14 | CI118: 2.90503966e-14 | CJ118: 2.80379721e-14 | CK118: 2.701685475e-14 | CL118: 2.598670085e-14 | CM118: 2.494712422e-14 | CN118: 2.389768641e-14 | CO118: 2.283788432e-14 | CP118: 2.17671347e-14 | CQ118: 2.068475462e-14 | CR118: 1.958993677e-14 | CS118: 1.848171849e-14 | CT118: 1.735894267e-14 | CU118: 1.622020839e-14 | CV118: 1.506380888e-14 | CW118: 1.388765308e-14 | CX118: 1.268916691e-14 | CY118: 1.146516869e-14
A119: 109 | B119: 9.81017734e-14 | C119: 9.81017734e-14 | D119: 9.739772231e-14 | E119: 9.669221004e-14 | F119: 9.598521512e-14 | G119: 9.527671553e-14 | H119: 9.456668869e-14 | I119: 9.385511143e-14 | J119: 9.314196002e-14 | K119: 9.242721009e-14 | L119: 9.171083664e-14 | M119: 9.099281405e-14 | N119: 9.027311603e-14 | O119: 8.955171559e-14 | P119: 8.882858506e-14 | Q119: 8.810369605e-14 | R119: 8.737701944e-14 | S119: 8.664852533e-14 | T119: 8.591818305e-14 | U119: 8.518596115e-14 | V119: 8.445182731e-14 | W119: 8.371574843e-14 | X119: 8.297769047e-14 | Y119: 8.223761855e-14 | Z119: 8.149549686e-14 | AA119: 8.075128863e-14 | AB119: 8.000495613e-14 | AC119: 7.925646065e-14 | AD119: 7.850576244e-14 | AE119: 7.77528207e-14 | AF119: 7.699759355e-14 | AG119: 7.6240038e-14 | AH119: 7.548010994e-14 | AI119: 7.471776405e-14 | AJ119: 7.395295383e-14 | AK119: 7.318563154e-14 | AL119: 7.241574816e-14 | AM119: 7.164325337e-14 | AN119: 7.086809549e-14 | AO119: 7.009022149e-14 | AP119: 6.930957688e-14 | AQ119: 6.852610575e-14 | AR119: 6.773975067e-14 | AS119: 6.695045268e-14 | AT119: 6.615815121e-14 | AU119: 6.536278411e-14 | AV119: 6.456428751e-14 | AW119: 6.376259585e-14 | AX119: 6.29576418e-14 | AY119: 6.214935619e-14 | AZ119: 6.133766802e-14 | BA119: 6.052250434e-14 | BB119: 5.970379023e-14 | BC119: 5.888144877e-14 | BD119: 5.80554009e-14 | BE119: 5.722556546e-14 | BF119: 5.639185906e-14 | BG119: 5.555419604e-14 | BH119: 5.471248838e-14 | BI119: 5.386664569e-14 | BJ119: 5.301657505e-14 | BK119: 5.216218103e-14 | BL119: 5.13033655e-14 | BM119: 5.044002765e-14 | BN119: 4.957206383e-14 | BO119: 4.869936747e-14 | BP119: 4.782182899e-14 | BQ119: 4.693933564e-14 | BR119: 4.605177142e-14 | BS119: 4.515901693e-14 | BT119: 4.426094917e-14 | BU119: 4.33574414e-14 | BV119: 4.244836291e-14 | BW119: 4.15335788e-14 | BX119: 4.061294967e-14 | BY119: 3.968633129e-14 | BZ119: 3.875357424e-14 | CA119: 3.781452338e-14 | CB119: 3.686901729e-14 | CC119: 3.591688758e-14 | CD119: 3.495795802e-14 | CE119: 3.399204345e-14 | CF119: 3.30189485e-14 | CG119: 3.203846596e-14 | CH119: 3.105037472e-14 | CI119: 3.005443729e-14 | CJ119: 2.90503966e-14 | CK119: 2.80379721e-14 | CL119: 2.701685475e-14 | CM119: 2.598670085e-14 | CN119: 2.494712422e-14 | CO119: 2.389768641e-14 | CP119: 2.283788432e-14 | CQ119: 2.17671347e-14 | CR119: 2.068475462e-14 | CS119: 1.958993677e-14 | CT119: 1.848171849e-14 | CU119: 1.735894267e-14 | CV119: 1.622020839e-14 | CW119: 1.506380888e-14 | CX119: 1.388765308e-14 | CY119: 1.268916691e-14
A120: 110 | B120: 9.880438424e-14 | C120: 9.880438424e-14 | D120: 9.81017734e-14 | E120: 9.739772231e-14 | F120: 9.669221004e-14 | G120: 9.598521512e-14 | H120: 9.527671553e-14 | I120: 9.456668869e-14 | J120: 9.385511143e-14 | K120: 9.314196002e-14 | L120: 9.242721009e-14 | M120: 9.171083664e-14 | N120: 9.099281405e-14 | O120: 9.027311603e-14 | P120: 8.955171559e-14 | Q120: 8.882858506e-14 | R120: 8.810369605e-14 | S120: 8.737701944e-14 | T120: 8.664852533e-14 | U120: 8.591818305e-14 | V120: 8.518596115e-14 | W120: 8.445182731e-14 | X120: 8.371574843e-14 | Y120: 8.297769047e-14 | Z120: 8.223761855e-14 | AA120: 8.149549686e-14 | AB120: 8.075128863e-14 | AC120: 8.000495613e-14 | AD120: 7.925646065e-14 | AE120: 7.850576244e-14 | AF120: 7.77528207e-14 | AG120: 7.699759355e-14 | AH120: 7.6240038e-14 | AI120: 7.548010994e-14 | AJ120: 7.471776405e-14 | AK120: 7.395295383e-14 | AL120: 7.318563154e-14 | AM120: 7.241574816e-14 | AN120: 7.164325337e-14 | AO120: 7.086809549e-14 | AP120: 7.009022149e-14 | AQ120: 6.930957688e-14 | AR120: 6.852610575e-14 | AS120: 6.773975067e-14 | AT120: 6.695045268e-14 | AU120: 6.615815121e-14 | AV120: 6.536278411e-14 | AW120: 6.456428751e-14 | AX120: 6.376259585e-14 | AY120: 6.29576418e-14 | AZ120: 6.214935619e-14 | BA120: 6.133766802e-14 | BB120: 6.052250434e-14 | BC120: 5.970379023e-14 | BD120: 5.888144877e-14 | BE120: 5.80554009e-14 | BF120: 5.722556546e-14 | BG120: 5.639185906e-14 | BH120: 5.555419604e-14 | BI120: 5.471248838e-14 | BJ120: 5.386664569e-14 | BK120: 5.301657505e-14 | BL120: 5.216218103e-14 | BM120: 5.13033655e-14 | BN120: 5.044002765e-14 | BO120: 4.957206383e-14 | BP120: 4.869936747e-14 | BQ120: 4.782182899e-14 | BR120: 4.693933564e-14 | BS120: 4.605177142e-14 | BT120: 4.515901693e-14 | BU120: 4.426094917e-14 | BV120: 4.33574414e-14 | BW120: 4.244836291e-14 | BX120: 4.15335788e-14 | BY120: 4.061294967e-14 | BZ120: 3.968633129e-14 | CA120: 3.875357424e-14 | CB120: 3.781452338e-14 | CC120: 3.686901729e-14 | CD120: 3.591688758e-14 | CE120: 3.495795802e-14 | CF120: 3.399204345e-14 | CG120: 3.30189485e-14 | CH120: 3.203846596e-14 | CI120: 3.105037472e-14 | CJ120: 3.005443729e-14 | CK120: 2.90503966e-14 | CL120: 2.80379721e-14 | CM120: 2.701685475e-14 | CN120: 2.598670085e-14 | CO120: 2.494712422e-14 | CP120: 2.389768641e-14 | CQ120: 2.283788432e-14 | CR120: 2.17671347e-14 | CS120: 2.068475462e-14 | CT120: 1.958993677e-14 | CU120: 1.848171849e-14 | CV120: 1.735894267e-14 | CW120: 1.622020839e-14 | CX120: 1.506380888e-14 | CY120: 1.388765308e-14
A121: 111 | B121: 9.950557526e-14 | C121: 9.950557526e-14 | D121: 9.880438424e-14 | E121: 9.81017734e-14 | F121: 9.739772231e-14 | G121: 9.669221004e-14 | H121: 9.598521512e-14 | I121: 9.527671553e-14 | J121: 9.456668869e-14 | K121: 9.385511143e-14 | L121: 9.314196002e-14 | M121: 9.242721009e-14 | N121: 9.171083664e-14 | O121: 9.099281405e-14 | P121: 9.027311603e-14 | Q121: 8.955171559e-14 | R121: 8.882858506e-14 | S121: 8.810369605e-14 | T121: 8.737701944e-14 | U121: 8.664852533e-14 | V121: 8.591818305e-14 | W121: 8.518596115e-14 | X121: 8.445182731e-14 | Y121: 8.371574843e-14 | Z121: 8.297769047e-14 | AA121: 8.223761855e-14 | AB121: 8.149549686e-14 | AC121: 8.075128863e-14 | AD121: 8.000495613e-14 | AE121: 7.925646065e-14 | AF121: 7.850576244e-14 | AG121: 7.77528207e-14 | AH121: 7.699759355e-14 | AI121: 7.6240038e-14 | AJ121: 7.548010994e-14 | AK121: 7.471776405e-14 | AL121: 7.395295383e-14 | AM121: 7.318563154e-14 | AN121: 7.241574816e-14 | AO121: 7.164325337e-14 | AP121: 7.086809549e-14 | AQ121: 7.009022149e-14 | AR121: 6.930957688e-14 | AS121: 6.852610575e-14 | AT121: 6.773975067e-14 | AU121: 6.695045268e-14 | AV121: 6.615815121e-14 | AW121: 6.536278411e-14 | AX121: 6.456428751e-14 | AY121: 6.376259585e-14 | AZ121: 6.29576418e-14 | BA121: 6.214935619e-14 | BB121: 6.133766802e-14 | BC121: 6.052250434e-14 | BD121: 5.970379023e-14 | BE121: 5.888144877e-14 | BF121: 5.80554009e-14 | BG121: 5.722556546e-14 | BH121: 5.639185906e-14 | BI121: 5.555419604e-14 | BJ121: 5.471248838e-14 | BK121: 5.386664569e-14 | BL121: 5.301657505e-14 | BM121: 5.216218103e-14 | BN121: 5.13033655e-14 | BO121: 5.044002765e-14 | BP121: 4.957206383e-14 | BQ121: 4.869936747e-14 | BR121: 4.782182899e-14 | BS121: 4.693933564e-14 | BT121: 4.605177142e-14 | BU121: 4.515901693e-14 | BV121: 4.426094917e-14 | BW121: 4.33574414e-14 | BX121: 4.244836291e-14 | BY121: 4.15335788e-14 | BZ121: 4.061294967e-14 | CA121: 3.968633129e-14 | CB121: 3.875357424e-14 | CC121: 3.781452338e-14 | CD121: 3.686901729e-14 | CE121: 3.591688758e-14 | CF121: 3.495795802e-14 | CG121: 3.399204345e-14 | CH121: 3.30189485e-14 | CI121: 3.203846596e-14 | CJ121: 3.105037472e-14 | CK121: 3.005443729e-14 | CL121: 2.90503966e-14 | CM121: 2.80379721e-14 | CN121: 2.701685475e-14 | CO121: 2.598670085e-14 | CP121: 2.494712422e-14 | CQ121: 2.389768641e-14 | CR121: 2.283788432e-14 | CS121: 2.17671347e-14 | CT121: 2.068475462e-14 | CU121: 1.958993677e-14 | CV121: 1.848171849e-14 | CW121: 1.735894267e-14 | CX121: 1.622020839e-14 | CY121: 1.506380888e-14
A122: 112 | B122: 1.002053664e-13 | C122: 1.002053664e-13 | D122: 9.950557526e-14 | E122: 9.880438424e-14 | F122: 9.81017734e-14 | G122: 9.739772231e-14 | H122: 9.669221004e-14 | I122: 9.598521512e-14 | J122: 9.527671553e-14 | K122: 9.456668869e-14 | L122: 9.385511143e-14 | M122: 9.314196002e-14 | N122: 9.242721009e-14 | O122: 9.171083664e-14 | P122: 9.099281405e-14 | Q122: 9.027311603e-14 | R122: 8.955171559e-14 | S122: 8.882858506e-14 | T122: 8.810369605e-14 | U122: 8.737701944e-14 | V122: 8.664852533e-14 | W122: 8.591818305e-14 | X122: 8.518596115e-14 | Y122: 8.445182731e-14 | Z122: 8.371574843e-14 | AA122: 8.297769047e-14 | AB122: 8.223761855e-14 | AC122: 8.149549686e-14 | AD122: 8.075128863e-14 | AE122: 8.000495613e-14 | AF122: 7.925646065e-14 | AG122: 7.850576244e-14 | AH122: 7.77528207e-14 | AI122: 7.699759355e-14 | AJ122: 7.6240038e-14 | AK122: 7.548010994e-14 | AL122: 7.471776405e-14 | AM122: 7.395295383e-14 | AN122: 7.318563154e-14 | AO122: 7.241574816e-14 | AP122: 7.164325337e-14 | AQ122: 7.086809549e-14 | AR122: 7.009022149e-14 | AS122: 6.930957688e-14 | AT122: 6.852610575e-14 | AU122: 6.773975067e-14 | AV122: 6.695045268e-14 | AW122: 6.615815121e-14 | AX122: 6.536278411e-14 | AY122: 6.456428751e-14 | AZ122: 6.376259585e-14 | BA122: 6.29576418e-14 | BB122: 6.214935619e-14 | BC122: 6.133766802e-14 | BD122: 6.052250434e-14 | BE122: 5.970379023e-14 | BF122: 5.888144877e-14 | BG122: 5.80554009e-14 | BH122: 5.722556546e-14 | BI122: 5.639185906e-14 | BJ122: 5.555419604e-14 | BK122: 5.471248838e-14 | BL122: 5.386664569e-14 | BM122: 5.301657505e-14 | BN122: 5.216218103e-14 | BO122: 5.13033655e-14 | BP122: 5.044002765e-14 | BQ122: 4.957206383e-14 | BR122: 4.869936747e-14 | BS122: 4.782182899e-14 | BT122: 4.693933564e-14 | BU122: 4.605177142e-14 | BV122: 4.515901693e-14 | BW122: 4.426094917e-14 | BX122: 4.33574414e-14 | BY122: 4.244836291e-14 | BZ122: 4.15335788e-14 | CA122: 4.061294967e-14 | CB122: 3.968633129e-14 | CC122: 3.875357424e-14 | CD122: 3.781452338e-14 | CE122: 3.686901729e-14 | CF122: 3.591688758e-14 | CG122: 3.495795802e-14 | CH122: 3.399204345e-14 | CI122: 3.30189485e-14 | CJ122: 3.203846596e-14 | CK122: 3.105037472e-14 | CL122: 3.005443729e-14 | CM122: 2.90503966e-14 | CN122: 2.80379721e-14 | CO122: 2.701685475e-14 | CP122: 2.598670085e-14 | CQ122: 2.494712422e-14 | CR122: 2.389768641e-14 | CS122: 2.283788432e-14 | CT122: 2.17671347e-14 | CU122: 2.068475462e-14 | CV122: 1.958993677e-14 | CW122: 1.848171849e-14 | CX122: 1.735894267e-14 | CY122: 1.622020839e-14
A123: 113 | B123: 1.00903777e-13 | C123: 1.00903777e-13 | D123: 1.002053664e-13 | E123: 9.950557526e-14 | F123: 9.880438424e-14 | G123: 9.81017734e-14 | H123: 9.739772231e-14 | I123: 9.669221004e-14 | J123: 9.598521512e-14 | K123: 9.527671553e-14 | L123: 9.456668869e-14 | M123: 9.385511143e-14 | N123: 9.314196002e-14 | O123: 9.242721009e-14 | P123: 9.171083664e-14 | Q123: 9.099281405e-14 | R123: 9.027311603e-14 | S123: 8.955171559e-14 | T123: 8.882858506e-14 | U123: 8.810369605e-14 | V123: 8.737701944e-14 | W123: 8.664852533e-14 | X123: 8.591818305e-14 | Y123: 8.518596115e-14 | Z123: 8.445182731e-14 | AA123: 8.371574843e-14 | AB123: 8.297769047e-14 | AC123: 8.223761855e-14 | AD123: 8.149549686e-14 | AE123: 8.075128863e-14 | AF123: 8.000495613e-14 | AG123: 7.925646065e-14 | AH123: 7.850576244e-14 | AI123: 7.77528207e-14 | AJ123: 7.699759355e-14 | AK123: 7.6240038e-14 | AL123: 7.548010994e-14 | AM123: 7.471776405e-14 | AN123: 7.395295383e-14 | AO123: 7.318563154e-14 | AP123: 7.241574816e-14 | AQ123: 7.164325337e-14 | AR123: 7.086809549e-14 | AS123: 7.009022149e-14 | AT123: 6.930957688e-14 | AU123: 6.852610575e-14 | AV123: 6.773975067e-14 | AW123: 6.695045268e-14 | AX123: 6.615815121e-14 | AY123: 6.536278411e-14 | AZ123: 6.456428751e-14 | BA123: 6.376259585e-14 | BB123: 6.29576418e-14 | BC123: 6.214935619e-14 | BD123: 6.133766802e-14 | BE123: 6.052250434e-14 | BF123: 5.970379023e-14 | BG123: 5.888144877e-14 | BH123: 5.80554009e-14 | BI123: 5.722556546e-14 | BJ123: 5.639185906e-14 | BK123: 5.555419604e-14 | BL123: 5.471248838e-14 | BM123: 5.386664569e-14 | BN123: 5.301657505e-14 | BO123: 5.216218103e-14 | BP123: 5.13033655e-14 | BQ123: 5.044002765e-14 | BR123: 4.957206383e-14 | BS123: 4.869936747e-14 | BT123: 4.782182899e-14 | BU123: 4.693933564e-14 | BV123: 4.605177142e-14 | BW123: 4.515901693e-14 | BX123: 4.426094917e-14 | BY123: 4.33574414e-14 | BZ123: 4.244836291e-14 | CA123: 4.15335788e-14 | CB123: 4.061294967e-14 | CC123: 3.968633129e-14 | CD123: 3.875357424e-14 | CE123: 3.781452338e-14 | CF123: 3.686901729e-14 | CG123: 3.591688758e-14 | CH123: 3.495795802e-14 | CI123: 3.399204345e-14 | CJ123: 3.30189485e-14 | CK123: 3.203846596e-14 | CL123: 3.105037472e-14 | CM123: 3.005443729e-14 | CN123: 2.90503966e-14 | CO123: 2.80379721e-14 | CP123: 2.701685475e-14 | CQ123: 2.598670085e-14 | CR123: 2.494712422e-14 | CS123: 2.389768641e-14 | CT123: 2.283788432e-14 | CU123: 2.17671347e-14 | CV123: 2.068475462e-14 | CW123: 1.958993677e-14 | CX123: 1.848171849e-14 | CY123: 1.735894267e-14
A124: 114 | B124: 1.016008261e-13 | C124: 1.016008261e-13 | D124: 1.00903777e-13 | E124: 1.002053664e-13 | F124: 9.950557526e-14 | G124: 9.880438424e-14 | H124: 9.81017734e-14 | I124: 9.739772231e-14 | J124: 9.669221004e-14 | K124: 9.598521512e-14 | L124: 9.527671553e-14 | M124: 9.456668869e-14 | N124: 9.385511143e-14 | O124: 9.314196002e-14 | P124: 9.242721009e-14 | Q124: 9.171083664e-14 | R124: 9.099281405e-14 | S124: 9.027311603e-14 | T124: 8.955171559e-14 | U124: 8.882858506e-14 | V124: 8.810369605e-14 | W124: 8.737701944e-14 | X124: 8.664852533e-14 | Y124: 8.591818305e-14 | Z124: 8.518596115e-14 | AA124: 8.445182731e-14 | AB124: 8.371574843e-14 | AC124: 8.297769047e-14 | AD124: 8.223761855e-14 | AE124: 8.149549686e-14 | AF124: 8.075128863e-14 | AG124: 8.000495613e-14 | AH124: 7.925646065e-14 | AI124: 7.850576244e-14 | AJ124: 7.77528207e-14 | AK124: 7.699759355e-14 | AL124: 7.6240038e-14 | AM124: 7.548010994e-14 | AN124: 7.471776405e-14 | AO124: 7.395295383e-14 | AP124: 7.318563154e-14 | AQ124: 7.241574816e-14 | AR124: 7.164325337e-14 | AS124: 7.086809549e-14 | AT124: 7.009022149e-14 | AU124: 6.930957688e-14 | AV124: 6.852610575e-14 | AW124: 6.773975067e-14 | AX124: 6.695045268e-14 | AY124: 6.615815121e-14 | AZ124: 6.536278411e-14 | BA124: 6.456428751e-14 | BB124: 6.376259585e-14 | BC124: 6.29576418e-14 | BD124: 6.214935619e-14 | BE124: 6.133766802e-14 | BF124: 6.052250434e-14 | BG124: 5.970379023e-14 | BH124: 5.888144877e-14 | BI124: 5.80554009e-14 | BJ124: 5.722556546e-14 | BK124: 5.639185906e-14 | BL124: 5.555419604e-14 | BM124: 5.471248838e-14 | BN124: 5.386664569e-14 | BO124: 5.301657505e-14 | BP124: 5.216218103e-14 | BQ124: 5.13033655e-14 | BR124: 5.044002765e-14 | BS124: 4.957206383e-14 | BT124: 4.869936747e-14 | BU124: 4.782182899e-14 | BV124: 4.693933564e-14 | BW124: 4.605177142e-14 | BX124: 4.515901693e-14 | BY124: 4.426094917e-14 | BZ124: 4.33574414e-14 | CA124: 4.244836291e-14 | CB124: 4.15335788e-14 | CC124: 4.061294967e-14 | CD124: 3.968633129e-14 | CE124: 3.875357424e-14 | CF124: 3.781452338e-14 | CG124: 3.686901729e-14 | CH124: 3.591688758e-14 | CI124: 3.495795802e-14 | CJ124: 3.399204345e-14 | CK124: 3.30189485e-14 | CL124: 3.203846596e-14 | CM124: 3.105037472e-14 | CN124: 3.005443729e-14 | CO124: 2.90503966e-14 | CP124: 2.80379721e-14 | CQ124: 2.701685475e-14 | CR124: 2.598670085e-14 | CS124: 2.494712422e-14 | CT124: 2.389768641e-14 | CU124: 2.283788432e-14 | CV124: 2.17671347e-14 | CW124: 2.068475462e-14 | CX124: 1.958993677e-14 | CY124: 1.848171849e-14
A125: 115 | B125: 1.022965321e-13 | C125: 1.022965321e-13 | D125: 1.016008261e-13 | E125: 1.00903777e-13 | F125: 1.002053664e-13 | G125: 9.950557526e-14 | H125: 9.880438424e-14 | I125: 9.81017734e-14 | J125: 9.739772231e-14 | K125: 9.669221004e-14 | L125: 9.598521512e-14 | M125: 9.527671553e-14 | N125: 9.456668869e-14 | O125: 9.385511143e-14 | P125: 9.314196002e-14 | Q125: 9.242721009e-14 | R125: 9.171083664e-14 | S125: 9.099281405e-14 | T125: 9.027311603e-14 | U125: 8.955171559e-14 | V125: 8.882858506e-14 | W125: 8.810369605e-14 | X125: 8.737701944e-14 | Y125: 8.664852533e-14 | Z125: 8.591818305e-14 | AA125: 8.518596115e-14 | AB125: 8.445182731e-14 | AC125: 8.371574843e-14 | AD125: 8.297769047e-14 | AE125: 8.223761855e-14 | AF125: 8.149549686e-14 | AG125: 8.075128863e-14 | AH125: 8.000495613e-14 | AI125: 7.925646065e-14 | AJ125: 7.850576244e-14 | AK125: 7.77528207e-14 | AL125: 7.699759355e-14 | AM125: 7.6240038e-14 | AN125: 7.548010994e-14 | AO125: 7.471776405e-14 | AP125: 7.395295383e-14 | AQ125: 7.318563154e-14 | AR125: 7.241574816e-14 | AS125: 7.164325337e-14 | AT125: 7.086809549e-14 | AU125: 7.009022149e-14 | AV125: 6.930957688e-14 | AW125: 6.852610575e-14 | AX125: 6.773975067e-14 | AY125: 6.695045268e-14 | AZ125: 6.615815121e-14 | BA125: 6.536278411e-14 | BB125: 6.456428751e-14 | BC125: 6.376259585e-14 | BD125: 6.29576418e-14 | BE125: 6.214935619e-14 | BF125: 6.133766802e-14 | BG125: 6.052250434e-14 | BH125: 5.970379023e-14 | BI125: 5.888144877e-14 | BJ125: 5.80554009e-14 | BK125: 5.722556546e-14 | BL125: 5.639185906e-14 | BM125: 5.555419604e-14 | BN125: 5.471248838e-14 | BO125: 5.386664569e-14 | BP125: 5.301657505e-14 | BQ125: 5.216218103e-14 | BR125: 5.13033655e-14 | BS125: 5.044002765e-14 | BT125: 4.957206383e-14 | BU125: 4.869936747e-14 | BV125: 4.782182899e-14 | BW125: 4.693933564e-14 | BX125: 4.605177142e-14 | BY125: 4.515901693e-14 | BZ125: 4.426094917e-14 | CA125: 4.33574414e-14 | CB125: 4.244836291e-14 | CC125: 4.15335788e-14 | CD125: 4.061294967e-14 | CE125: 3.968633129e-14 | CF125: 3.875357424e-14 | CG125: 3.781452338e-14 | CH125: 3.686901729e-14 | CI125: 3.591688758e-14 | CJ125: 3.495795802e-14 | CK125: 3.399204345e-14 | CL125: 3.30189485e-14 | CM125: 3.203846596e-14 | CN125: 3.105037472e-14 | CO125: 3.005443729e-14 | CP125: 2.90503966e-14 | CQ125: 2.80379721e-14 | CR125: 2.701685475e-14 | CS125: 2.598670085e-14 | CT125: 2.494712422e-14 | CU125: 2.389768641e-14 | CV125: 2.283788432e-14 | CW125: 2.17671347e-14 | CX125: 2.068475462e-14 | CY125: 1.958993677e-14
A126: 116 | B126: 1.029909131e-13 | C126: 1.029909131e-13 | D126: 1.022965321e-13 | E126: 1.016008261e-13 | F126: 1.00903777e-13 | G126: 1.002053664e-13 | H126: 9.950557526e-14 | I126: 9.880438424e-14 | J126: 9.81017734e-14 | K126: 9.739772231e-14 | L126: 9.669221004e-14 | M126: 9.598521512e-14 | N126: 9.527671553e-14 | O126: 9.456668869e-14 | P126: 9.385511143e-14 | Q126: 9.314196002e-14 | R126: 9.242721009e-14 | S126: 9.171083664e-14 | T126: 9.099281405e-14 | U126: 9.027311603e-14 | V126: 8.955171559e-14 | W126: 8.882858506e-14 | X126: 8.810369605e-14 | Y126: 8.737701944e-14 | Z126: 8.664852533e-14 | AA126: 8.591818305e-14 | AB126: 8.518596115e-14 | AC126: 8.445182731e-14 | AD126: 8.371574843e-14 | AE126: 8.297769047e-14 | AF126: 8.223761855e-14 | AG126: 8.149549686e-14 | AH126: 8.075128863e-14 | AI126: 8.000495613e-14 | AJ126: 7.925646065e-14 | AK126: 7.850576244e-14 | AL126: 7.77528207e-14 | AM126: 7.699759355e-14 | AN126: 7.6240038e-14 | AO126: 7.548010994e-14 | AP126: 7.471776405e-14 | AQ126: 7.395295383e-14 | AR126: 7.318563154e-14 | AS126: 7.241574816e-14 | AT126: 7.164325337e-14 | AU126: 7.086809549e-14 | AV126: 7.009022149e-14 | AW126: 6.930957688e-14 | AX126: 6.852610575e-14 | AY126: 6.773975067e-14 | AZ126: 6.695045268e-14 | BA126: 6.615815121e-14 | BB126: 6.536278411e-14 | BC126: 6.456428751e-14 | BD126: 6.376259585e-14 | BE126: 6.29576418e-14 | BF126: 6.214935619e-14 | BG126: 6.133766802e-14 | BH126: 6.052250434e-14 | BI126: 5.970379023e-14 | BJ126: 5.888144877e-14 | BK126: 5.80554009e-14 | BL126: 5.722556546e-14 | BM126: 5.639185906e-14 | BN126: 5.555419604e-14 | BO126: 5.471248838e-14 | BP126: 5.386664569e-14 | BQ126: 5.301657505e-14 | BR126: 5.216218103e-14 | BS126: 5.13033655e-14 | BT126: 5.044002765e-14 | BU126: 4.957206383e-14 | BV126: 4.869936747e-14 | BW126: 4.782182899e-14 | BX126: 4.693933564e-14 | BY126: 4.605177142e-14 | BZ126: 4.515901693e-14 | CA126: 4.426094917e-14 | CB126: 4.33574414e-14 | CC126: 4.244836291e-14 | CD126: 4.15335788e-14 | CE126: 4.061294967e-14 | CF126: 3.968633129e-14 | CG126: 3.875357424e-14 | CH126: 3.781452338e-14 | CI126: 3.686901729e-14 | CJ126: 3.591688758e-14 | CK126: 3.495795802e-14 | CL126: 3.399204345e-14 | CM126: 3.30189485e-14 | CN126: 3.203846596e-14 | CO126: 3.105037472e-14 | CP126: 3.005443729e-14 | CQ126: 2.90503966e-14 | CR126: 2.80379721e-14 | CS126: 2.701685475e-14 | CT126: 2.598670085e-14 | CU126: 2.494712422e-14 | CV126: 2.389768641e-14 | CW126: 2.283788432e-14 | CX126: 2.17671347e-14 | CY126: 2.068475462e-14
A127: 117 | B127: 1.036839866e-13 | C127: 1.036839866e-13 | D127: 1.029909131e-13 | E127: 1.022965321e-13 | F127: 1.016008261e-13 | G127: 1.00903777e-13 | H127: 1.002053664e-13 | I127: 9.950557526e-14 | J127: 9.880438424e-14 | K127: 9.81017734e-14 | L127: 9.739772231e-14 | M127: 9.669221004e-14 | N127: 9.598521512e-14 | O127: 9.527671553e-14 | P127: 9.456668869e-14 | Q127: 9.385511143e-14 | R127: 9.314196002e-14 | S127: 9.242721009e-14 | T127: 9.171083664e-14 | U127: 9.099281405e-14 | V127: 9.027311603e-14 | W127: 8.955171559e-14 | X127: 8.882858506e-14 | Y127: 8.810369605e-14 | Z127: 8.737701944e-14 | AA127: 8.664852533e-14 | AB127: 8.591818305e-14 | AC127: 8.518596115e-14 | AD127: 8.445182731e-14 | AE127: 8.371574843e-14 | AF127: 8.297769047e-14 | AG127: 8.223761855e-14 | AH127: 8.149549686e-14 | AI127: 8.075128863e-14 | AJ127: 8.000495613e-14 | AK127: 7.925646065e-14 | AL127: 7.850576244e-14 | AM127: 7.77528207e-14 | AN127: 7.699759355e-14 | AO127: 7.6240038e-14 | AP127: 7.548010994e-14 | AQ127: 7.471776405e-14 | AR127: 7.395295383e-14 | AS127: 7.318563154e-14 | AT127: 7.241574816e-14 | AU127: 7.164325337e-14 | AV127: 7.086809549e-14 | AW127: 7.009022149e-14 | AX127: 6.930957688e-14 | AY127: 6.852610575e-14 | AZ127: 6.773975067e-14 | BA127: 6.695045268e-14 | BB127: 6.615815121e-14 | BC127: 6.536278411e-14 | BD127: 6.456428751e-14 | BE127: 6.376259585e-14 | BF127: 6.29576418e-14 | BG127: 6.214935619e-14 | BH127: 6.133766802e-14 | BI127: 6.052250434e-14 | BJ127: 5.970379023e-14 | BK127: 5.888144877e-14 | BL127: 5.80554009e-14 | BM127: 5.722556546e-14 | BN127: 5.639185906e-14 | BO127: 5.555419604e-14 | BP127: 5.471248838e-14 | BQ127: 5.386664569e-14 | BR127: 5.301657505e-14 | BS127: 5.216218103e-14 | BT127: 5.13033655e-14 | BU127: 5.044002765e-14 | BV127: 4.957206383e-14 | BW127: 4.869936747e-14 | BX127: 4.782182899e-14 | BY127: 4.693933564e-14 | BZ127: 4.605177142e-14 | CA127: 4.515901693e-14 | CB127: 4.426094917e-14 | CC127: 4.33574414e-14 | CD127: 4.244836291e-14 | CE127: 4.15335788e-14 | CF127: 4.061294967e-14 | CG127: 3.968633129e-14 | CH127: 3.875357424e-14 | CI127: 3.781452338e-14 | CJ127: 3.686901729e-14 | CK127: 3.591688758e-14 | CL127: 3.495795802e-14 | CM127: 3.399204345e-14 | CN127: 3.30189485e-14 | CO127: 3.203846596e-14 | CP127: 3.105037472e-14 | CQ127: 3.005443729e-14 | CR127: 2.90503966e-14 | CS127: 2.80379721e-14 | CT127: 2.701685475e-14 | CU127: 2.598670085e-14 | CV127: 2.494712422e-14 | CW127: 2.389768641e-14 | CX127: 2.283788432e-14 | CY127: 2.17671347e-14
A128: 118 | B128: 1.043757699e-13 | C128: 1.043757699e-13 | D128: 1.036839866e-13 | E128: 1.029909131e-13 | F128: 1.022965321e-13 | G128: 1.016008261e-13 | H128: 1.00903777e-13 | I128: 1.002053664e-13 | J128: 9.950557526e-14 | K128: 9.880438424e-14 | L128: 9.81017734e-14 | M128: 9.739772231e-14 | N128: 9.669221004e-14 | O128: 9.598521512e-14 | P128: 9.527671553e-14 | Q128: 9.456668869e-14 | R128: 9.385511143e-14 | S128: 9.314196002e-14 | T128: 9.242721009e-14 | U128: 9.171083664e-14 | V128: 9.099281405e-14 | W128: 9.027311603e-14 | X128: 8.955171559e-14 | Y128: 8.882858506e-14 | Z128: 8.810369605e-14 | AA128: 8.737701944e-14 | AB128: 8.664852533e-14 | AC128: 8.591818305e-14 | AD128: 8.518596115e-14 | AE128: 8.445182731e-14 | AF128: 8.371574843e-14 | AG128: 8.297769047e-14 | AH128: 8.223761855e-14 | AI128: 8.149549686e-14 | AJ128: 8.075128863e-14 | AK128: 8.000495613e-14 | AL128: 7.925646065e-14 | AM128: 7.850576244e-14 | AN128: 7.77528207e-14 | AO128: 7.699759355e-14 | AP128: 7.6240038e-14 | AQ128: 7.548010994e-14 | AR128: 7.471776405e-14 | AS128: 7.395295383e-14 | AT128: 7.318563154e-14 | AU128: 7.241574816e-14 | AV128: 7.164325337e-14 | AW128: 7.086809549e-14 | AX128: 7.009022149e-14 | AY128: 6.930957688e-14 | AZ128: 6.852610575e-14 | BA128: 6.773975067e-14 | BB128: 6.695045268e-14 | BC128: 6.615815121e-14 | BD128: 6.536278411e-14 | BE128: 6.456428751e-14 | BF128: 6.376259585e-14 | BG128: 6.29576418e-14 | BH128: 6.214935619e-14 | BI128: 6.133766802e-14 | BJ128: 6.052250434e-14 | BK128: 5.970379023e-14 | BL128: 5.888144877e-14 | BM128: 5.80554009e-14 | BN128: 5.722556546e-14 | BO128: 5.639185906e-14 | BP128: 5.555419604e-14 | BQ128: 5.471248838e-14 | BR128: 5.386664569e-14 | BS128: 5.301657505e-14 | BT128: 5.216218103e-14 | BU128: 5.13033655e-14 | BV128: 5.044002765e-14 | BW128: 4.957206383e-14 | BX128: 4.869936747e-14 | BY128: 4.782182899e-14 | BZ128: 4.693933564e-14 | CA128: 4.605177142e-14 | CB128: 4.515901693e-14 | CC128: 4.426094917e-14 | CD128: 4.33574414e-14 | CE128: 4.244836291e-14 | CF128: 4.15335788e-14 | CG128: 4.061294967e-14 | CH128: 3.968633129e-14 | CI128: 3.875357424e-14 | CJ128: 3.781452338e-14 | CK128: 3.686901729e-14 | CL128: 3.591688758e-14 | CM128: 3.495795802e-14 | CN128: 3.399204345e-14 | CO128: 3.30189485e-14 | CP128: 3.203846596e-14 | CQ128: 3.105037472e-14 | CR128: 3.005443729e-14 | CS128: 2.90503966e-14 | CT128: 2.80379721e-14 | CU128: 2.701685475e-14 | CV128: 2.598670085e-14 | CW128: 2.494712422e-14 | CX128: 2.389768641e-14 | CY128: 2.283788432e-14
A129: 119 | B129: 1.050662796e-13 | C129: 1.050662796e-13 | D129: 1.043757699e-13 | E129: 1.036839866e-13 | F129: 1.029909131e-13 | G129: 1.022965321e-13 | H129: 1.016008261e-13 | I129: 1.00903777e-13 | J129: 1.002053664e-13 | K129: 9.950557526e-14 | L129: 9.880438424e-14 | M129: 9.81017734e-14 | N129: 9.739772231e-14 | O129: 9.669221004e-14 | P129: 9.598521512e-14 | Q129: 9.527671553e-14 | R129: 9.456668869e-14 | S129: 9.385511143e-14 | T129: 9.314196002e-14 | U129: 9.242721009e-14 | V129: 9.171083664e-14 | W129: 9.099281405e-14 | X129: 9.027311603e-14 | Y129: 8.955171559e-14 | Z129: 8.882858506e-14 | AA129: 8.810369605e-14 | AB129: 8.737701944e-14 | AC129: 8.664852533e-14 | AD129: 8.591818305e-14 | AE129: 8.518596115e-14 | AF129: 8.445182731e-14 | AG129: 8.371574843e-14 | AH129: 8.297769047e-14 | AI129: 8.223761855e-14 | AJ129: 8.149549686e-14 | AK129: 8.075128863e-14 | AL129: 8.000495613e-14 | AM129: 7.925646065e-14 | AN129: 7.850576244e-14 | AO129: 7.77528207e-14 | AP129: 7.699759355e-14 | AQ129: 7.6240038e-14 | AR129: 7.548010994e-14 | AS129: 7.471776405e-14 | AT129: 7.395295383e-14 | AU129: 7.318563154e-14 | AV129: 7.241574816e-14 | AW129: 7.164325337e-14 | AX129: 7.086809549e-14 | AY129: 7.009022149e-14 | AZ129: 6.930957688e-14 | BA129: 6.852610575e-14 | BB129: 6.773975067e-14 | BC129: 6.695045268e-14 | BD129: 6.615815121e-14 | BE129: 6.536278411e-14 | BF129: 6.456428751e-14 | BG129: 6.376259585e-14 | BH129: 6.29576418e-14 | BI129: 6.214935619e-14 | BJ129: 6.133766802e-14 | BK129: 6.052250434e-14 | BL129: 5.970379023e-14 | BM129: 5.888144877e-14 | BN129: 5.80554009e-14 | BO129: 5.722556546e-14 | BP129: 5.639185906e-14 | BQ129: 5.555419604e-14 | BR129: 5.471248838e-14 | BS129: 5.386664569e-14 | BT129: 5.301657505e-14 | BU129: 5.216218103e-14 | BV129: 5.13033655e-14 | BW129: 5.044002765e-14 | BX129: 4.957206383e-14 | BY129: 4.869936747e-14 | BZ129: 4.782182899e-14 | CA129: 4.693933564e-14 | CB129: 4.605177142e-14 | CC129: 4.515901693e-14 | CD129: 4.426094917e-14 | CE129: 4.33574414e-14 | CF129: 4.244836291e-14 | CG129: 4.15335788e-14 | CH129: 4.061294967e-14 | CI129: 3.968633129e-14 | CJ129: 3.875357424e-14 | CK129: 3.781452338e-14 | CL129: 3.686901729e-14 | CM129: 3.591688758e-14 | CN129: 3.495795802e-14 | CO129: 3.399204345e-14 | CP129: 3.30189485e-14 | CQ129: 3.203846596e-14 | CR129: 3.105037472e-14 | CS129: 3.005443729e-14 | CT129: 2.90503966e-14 | CU129: 2.80379721e-14 | CV129: 2.701685475e-14 | CW129: 2.598670085e-14 | CX129: 2.494712422e-14 | CY129: 2.389768641e-14
A130: 120 | B130: 1.057555321e-13 | C130: 1.057555321e-13 | D130: 1.050662796e-13 | E130: 1.043757699e-13 | F130: 1.036839866e-13 | G130: 1.029909131e-13 | H130: 1.022965321e-13 | I130: 1.016008261e-13 | J130: 1.00903777e-13 | K130: 1.002053664e-13 | L130: 9.950557526e-14 | M130: 9.880438424e-14 | N130: 9.81017734e-14 | O130: 9.739772231e-14 | P130: 9.669221004e-14 | Q130: 9.598521512e-14 | R130: 9.527671553e-14 | S130: 9.456668869e-14 | T130: 9.385511143e-14 | U130: 9.314196002e-14 | V130: 9.242721009e-14 | W130: 9.171083664e-14 | X130: 9.099281405e-14 | Y130: 9.027311603e-14 | Z130: 8.955171559e-14 | AA130: 8.882858506e-14 | AB130: 8.810369605e-14 | AC130: 8.737701944e-14 | AD130: 8.664852533e-14 | AE130: 8.591818305e-14 | AF130: 8.518596115e-14 | AG130: 8.445182731e-14 | AH130: 8.371574843e-14 | AI130: 8.297769047e-14 | AJ130: 8.223761855e-14 | AK130: 8.149549686e-14 | AL130: 8.075128863e-14 | AM130: 8.000495613e-14 | AN130: 7.925646065e-14 | AO130: 7.850576244e-14 | AP130: 7.77528207e-14 | AQ130: 7.699759355e-14 | AR130: 7.6240038e-14 | AS130: 7.548010994e-14 | AT130: 7.471776405e-14 | AU130: 7.395295383e-14 | AV130: 7.318563154e-14 | AW130: 7.241574816e-14 | AX130: 7.164325337e-14 | AY130: 7.086809549e-14 | AZ130: 7.009022149e-14 | BA130: 6.930957688e-14 | BB130: 6.852610575e-14 | BC130: 6.773975067e-14 | BD130: 6.695045268e-14 | BE130: 6.615815121e-14 | BF130: 6.536278411e-14 | BG130: 6.456428751e-14 | BH130: 6.376259585e-14 | BI130: 6.29576418e-14 | BJ130: 6.214935619e-14 | BK130: 6.133766802e-14 | BL130: 6.052250434e-14 | BM130: 5.970379023e-14 | BN130: 5.888144877e-14 | BO130: 5.80554009e-14 | BP130: 5.722556546e-14 | BQ130: 5.639185906e-14 | BR130: 5.555419604e-14 | BS130: 5.471248838e-14 | BT130: 5.386664569e-14 | BU130: 5.301657505e-14 | BV130: 5.216218103e-14 | BW130: 5.13033655e-14 | BX130: 5.044002765e-14 | BY130: 4.957206383e-14 | BZ130: 4.869936747e-14 | CA130: 4.782182899e-14 | CB130: 4.693933564e-14 | CC130: 4.605177142e-14 | CD130: 4.515901693e-14 | CE130: 4.426094917e-14 | CF130: 4.33574414e-14 | CG130: 4.244836291e-14 | CH130: 4.15335788e-14 | CI130: 4.061294967e-14 | CJ130: 3.968633129e-14 | CK130: 3.875357424e-14 | CL130: 3.781452338e-14 | CM130: 3.686901729e-14 | CN130: 3.591688758e-14 | CO130: 3.495795802e-14 | CP130: 3.399204345e-14 | CQ130: 3.30189485e-14 | CR130: 3.203846596e-14 | CS130: 3.105037472e-14 | CT130: 3.005443729e-14 | CU130: 2.90503966e-14 | CV130: 2.80379721e-14 | CW130: 2.701685475e-14 | CX130: 2.598670085e-14 | CY130: 2.494712422e-14
A131: 121 | B131: 1.064435434e-13 | C131: 1.064435434e-13 | D131: 1.057555321e-13 | E131: 1.050662796e-13 | F131: 1.043757699e-13 | G131: 1.036839866e-13 | H131: 1.029909131e-13 | I131: 1.022965321e-13 | J131: 1.016008261e-13 | K131: 1.00903777e-13 | L131: 1.002053664e-13 | M131: 9.950557526e-14 | N131: 9.880438424e-14 | O131: 9.81017734e-14 | P131: 9.739772231e-14 | Q131: 9.669221004e-14 | R131: 9.598521512e-14 | S131: 9.527671553e-14 | T131: 9.456668869e-14 | U131: 9.385511143e-14 | V131: 9.314196002e-14 | W131: 9.242721009e-14 | X131: 9.171083664e-14 | Y131: 9.099281405e-14 | Z131: 9.027311603e-14 | AA131: 8.955171559e-14 | AB131: 8.882858506e-14 | AC131: 8.810369605e-14 | AD131: 8.737701944e-14 | AE131: 8.664852533e-14 | AF131: 8.591818305e-14 | AG131: 8.518596115e-14 | AH131: 8.445182731e-14 | AI131: 8.371574843e-14 | AJ131: 8.297769047e-14 | AK131: 8.223761855e-14 | AL131: 8.149549686e-14 | AM131: 8.075128863e-14 | AN131: 8.000495613e-14 | AO131: 7.925646065e-14 | AP131: 7.850576244e-14 | AQ131: 7.77528207e-14 | AR131: 7.699759355e-14 | AS131: 7.6240038e-14 | AT131: 7.548010994e-14 | AU131: 7.471776405e-14 | AV131: 7.395295383e-14 | AW131: 7.318563154e-14 | AX131: 7.241574816e-14 | AY131: 7.164325337e-14 | AZ131: 7.086809549e-14 | BA131: 7.009022149e-14 | BB131: 6.930957688e-14 | BC131: 6.852610575e-14 | BD131: 6.773975067e-14 | BE131: 6.695045268e-14 | BF131: 6.615815121e-14 | BG131: 6.536278411e-14 | BH131: 6.456428751e-14 | BI131: 6.376259585e-14 | BJ131: 6.29576418e-14 | BK131: 6.214935619e-14 | BL131: 6.133766802e-14 | BM131: 6.052250434e-14 | BN131: 5.970379023e-14 | BO131: 5.888144877e-14 | BP131: 5.80554009e-14 | BQ131: 5.722556546e-14 | BR131: 5.639185906e-14 | BS131: 5.555419604e-14 | BT131: 5.471248838e-14 | BU131: 5.386664569e-14 | BV131: 5.301657505e-14 | BW131: 5.216218103e-14 | BX131: 5.13033655e-14 | BY131: 5.044002765e-14 | BZ131: 4.957206383e-14 | CA131: 4.869936747e-14 | CB131: 4.782182899e-14 | CC131: 4.693933564e-14 | CD131: 4.605177142e-14 | CE131: 4.515901693e-14 | CF131: 4.426094917e-14 | CG131: 4.33574414e-14 | CH131: 4.244836291e-14 | CI131: 4.15335788e-14 | CJ131: 4.061294967e-14 | CK131: 3.968633129e-14 | CL131: 3.875357424e-14 | CM131: 3.781452338e-14 | CN131: 3.686901729e-14 | CO131: 3.591688758e-14 | CP131: 3.495795802e-14 | CQ131: 3.399204345e-14 | CR131: 3.30189485e-14 | CS131: 3.203846596e-14 | CT131: 3.105037472e-14 | CU131: 3.005443729e-14 | CV131: 2.90503966e-14 | CW131: 2.80379721e-14 | CX131: 2.701685475e-14 | CY131: 2.598670085e-14
A132: 122 | B132: 1.071303289e-13 | C132: 1.071303289e-13 | D132: 1.064435434e-13 | E132: 1.057555321e-13 | F132: 1.050662796e-13 | G132: 1.043757699e-13 | H132: 1.036839866e-13 | I132: 1.029909131e-13 | J132: 1.022965321e-13 | K132: 1.016008261e-13 | L132: 1.00903777e-13 | M132: 1.002053664e-13 | N132: 9.950557526e-14 | O132: 9.880438424e-14 | P132: 9.81017734e-14 | Q132: 9.739772231e-14 | R132: 9.669221004e-14 | S132: 9.598521512e-14 | T132: 9.527671553e-14 | U132: 9.456668869e-14 | V132: 9.385511143e-14 | W132: 9.314196002e-14 | X132: 9.242721009e-14 | Y132: 9.171083664e-14 | Z132: 9.099281405e-14 | AA132: 9.027311603e-14 | AB132: 8.955171559e-14 | AC132: 8.882858506e-14 | AD132: 8.810369605e-14 | AE132: 8.737701944e-14 | AF132: 8.664852533e-14 | AG132: 8.591818305e-14 | AH132: 8.518596115e-14 | AI132: 8.445182731e-14 | AJ132: 8.371574843e-14 | AK132: 8.297769047e-14 | AL132: 8.223761855e-14 | AM132: 8.149549686e-14 | AN132: 8.075128863e-14 | AO132: 8.000495613e-14 | AP132: 7.925646065e-14 | AQ132: 7.850576244e-14 | AR132: 7.77528207e-14 | AS132: 7.699759355e-14 | AT132: 7.6240038e-14 | AU132: 7.548010994e-14 | AV132: 7.471776405e-14 | AW132: 7.395295383e-14 | AX132: 7.318563154e-14 | AY132: 7.241574816e-14 | AZ132: 7.164325337e-14 | BA132: 7.086809549e-14 | BB132: 7.009022149e-14 | BC132: 6.930957688e-14 | BD132: 6.852610575e-14 | BE132: 6.773975067e-14 | BF132: 6.695045268e-14 | BG132: 6.615815121e-14 | BH132: 6.536278411e-14 | BI132: 6.456428751e-14 | BJ132: 6.376259585e-14 | BK132: 6.29576418e-14 | BL132: 6.214935619e-14 | BM132: 6.133766802e-14 | BN132: 6.052250434e-14 | BO132: 5.970379023e-14 | BP132: 5.888144877e-14 | BQ132: 5.80554009e-14 | BR132: 5.722556546e-14 | BS132: 5.639185906e-14 | BT132: 5.555419604e-14 | BU132: 5.471248838e-14 | BV132: 5.386664569e-14 | BW132: 5.301657505e-14 | BX132: 5.216218103e-14 | BY132: 5.13033655e-14 | BZ132: 5.044002765e-14 | CA132: 4.957206383e-14 | CB132: 4.869936747e-14 | CC132: 4.782182899e-14 | CD132: 4.693933564e-14 | CE132: 4.605177142e-14 | CF132: 4.515901693e-14 | CG132: 4.426094917e-14 | CH132: 4.33574414e-14 | CI132: 4.244836291e-14 | CJ132: 4.15335788e-14 | CK132: 4.061294967e-14 | CL132: 3.968633129e-14 | CM132: 3.875357424e-14 | CN132: 3.781452338e-14 | CO132: 3.686901729e-14 | CP132: 3.591688758e-14 | CQ132: 3.495795802e-14 | CR132: 3.399204345e-14 | CS132: 3.30189485e-14 | CT132: 3.203846596e-14 | CU132: 3.105037472e-14 | CV132: 3.005443729e-14 | CW132: 2.90503966e-14 | CX132: 2.80379721e-14 | CY132: 2.701685475e-14
A133: 123 | B133: 1.078159039e-13 | C133: 1.078159039e-13 | D133: 1.071303289e-13 | E133: 1.064435434e-13 | F133: 1.057555321e-13 | G133: 1.050662796e-13 | H133: 1.043757699e-13 | I133: 1.036839866e-13 | J133: 1.029909131e-13 | K133: 1.022965321e-13 | L133: 1.016008261e-13 | M133: 1.00903777e-13 | N133: 1.002053664e-13 | O133: 9.950557526e-14 | P133: 9.880438424e-14 | Q133: 9.81017734e-14 | R133: 9.739772231e-14 | S133: 9.669221004e-14 | T133: 9.598521512e-14 | U133: 9.527671553e-14 | V133: 9.456668869e-14 | W133: 9.385511143e-14 | X133: 9.314196002e-14 | Y133: 9.242721009e-14 | Z133: 9.171083664e-14 | AA133: 9.099281405e-14 | AB133: 9.027311603e-14 | AC133: 8.955171559e-14 | AD133: 8.882858506e-14 | AE133: 8.810369605e-14 | AF133: 8.737701944e-14 | AG133: 8.664852533e-14 | AH133: 8.591818305e-14 | AI133: 8.518596115e-14 | AJ133: 8.445182731e-14 | AK133: 8.371574843e-14 | AL133: 8.297769047e-14 | AM133: 8.223761855e-14 | AN133: 8.149549686e-14 | AO133: 8.075128863e-14 | AP133: 8.000495613e-14 | AQ133: 7.925646065e-14 | AR133: 7.850576244e-14 | AS133: 7.77528207e-14 | AT133: 7.699759355e-14 | AU133: 7.6240038e-14 | AV133: 7.548010994e-14 | AW133: 7.471776405e-14 | AX133: 7.395295383e-14 | AY133: 7.318563154e-14 | AZ133: 7.241574816e-14 | BA133: 7.164325337e-14 | BB133: 7.086809549e-14 | BC133: 7.009022149e-14 | BD133: 6.930957688e-14 | BE133: 6.852610575e-14 | BF133: 6.773975067e-14 | BG133: 6.695045268e-14 | BH133: 6.615815121e-14 | BI133: 6.536278411e-14 | BJ133: 6.456428751e-14 | BK133: 6.376259585e-14 | BL133: 6.29576418e-14 | BM133: 6.214935619e-14 | BN133: 6.133766802e-14 | BO133: 6.052250434e-14 | BP133: 5.970379023e-14 | BQ133: 5.888144877e-14 | BR133: 5.80554009e-14 | BS133: 5.722556546e-14 | BT133: 5.639185906e-14 | BU133: 5.555419604e-14 | BV133: 5.471248838e-14 | BW133: 5.386664569e-14 | BX133: 5.301657505e-14 | BY133: 5.216218103e-14 | BZ133: 5.13033655e-14 | CA133: 5.044002765e-14 | CB133: 4.957206383e-14 | CC133: 4.869936747e-14 | CD133: 4.782182899e-14 | CE133: 4.693933564e-14 | CF133: 4.605177142e-14 | CG133: 4.515901693e-14 | CH133: 4.426094917e-14 | CI133: 4.33574414e-14 | CJ133: 4.244836291e-14 | CK133: 4.15335788e-14 | CL133: 4.061294967e-14 | CM133: 3.968633129e-14 | CN133: 3.875357424e-14 | CO133: 3.781452338e-14 | CP133: 3.686901729e-14 | CQ133: 3.591688758e-14 | CR133: 3.495795802e-14 | CS133: 3.399204345e-14 | CT133: 3.30189485e-14 | CU133: 3.203846596e-14 | CV133: 3.105037472e-14 | CW133: 3.005443729e-14 | CX133: 2.90503966e-14 | CY133: 2.80379721e-14
A134: 124 | B134: 1.085002832e-13 | C134: 1.085002832e-13 | D134: 1.078159039e-13 | E134: 1.071303289e-13 | F134: 1.064435434e-13 | G134: 1.057555321e-13 | H134: 1.050662796e-13 | I134: 1.043757699e-13 | J134: 1.036839866e-13 | K134: 1.029909131e-13 | L134: 1.022965321e-13 | M134: 1.016008261e-13 | N134: 1.00903777e-13 | O134: 1.002053664e-13 | P134: 9.950557526e-14 | Q134: 9.880438424e-14 | R134: 9.81017734e-14 | S134: 9.739772231e-14 | T134: 9.669221004e-14 | U134: 9.598521512e-14 | V134: 9.527671553e-14 | W134: 9.456668869e-14 | X134: 9.385511143e-14 | Y134: 9.314196002e-14 | Z134: 9.242721009e-14 | AA134: 9.171083664e-14 | AB134: 9.099281405e-14 | AC134: 9.027311603e-14 | AD134: 8.955171559e-14 | AE134: 8.882858506e-14 | AF134: 8.810369605e-14 | AG134: 8.737701944e-14 | AH134: 8.664852533e-14 | AI134: 8.591818305e-14 | AJ134: 8.518596115e-14 | AK134: 8.445182731e-14 | AL134: 8.371574843e-14 | AM134: 8.297769047e-14 | AN134: 8.223761855e-14 | AO134: 8.149549686e-14 | AP134: 8.075128863e-14 | AQ134: 8.000495613e-14 | AR134: 7.925646065e-14 | AS134: 7.850576244e-14 | AT134: 7.77528207e-14 | AU134: 7.699759355e-14 | AV134: 7.6240038e-14 | AW134: 7.548010994e-14 | AX134: 7.471776405e-14 | AY134: 7.395295383e-14 | AZ134: 7.318563154e-14 | BA134: 7.241574816e-14 | BB134: 7.164325337e-14 | BC134: 7.086809549e-14 | BD134: 7.009022149e-14 | BE134: 6.930957688e-14 | BF134: 6.852610575e-14 | BG134: 6.773975067e-14 | BH134: 6.695045268e-14 | BI134: 6.615815121e-14 | BJ134: 6.536278411e-14 | BK134: 6.456428751e-14 | BL134: 6.376259585e-14 | BM134: 6.29576418e-14 | BN134: 6.214935619e-14 | BO134: 6.133766802e-14 | BP134: 6.052250434e-14 | BQ134: 5.970379023e-14 | BR134: 5.888144877e-14 | BS134: 5.80554009e-14 | BT134: 5.722556546e-14 | BU134: 5.639185906e-14 | BV134: 5.555419604e-14 | BW134: 5.471248838e-14 | BX134: 5.386664569e-14 | BY134: 5.301657505e-14 | BZ134: 5.216218103e-14 | CA134: 5.13033655e-14 | CB134: 5.044002765e-14 | CC134: 4.957206383e-14 | CD134: 4.869936747e-14 | CE134: 4.782182899e-14 | CF134: 4.693933564e-14 | CG134: 4.605177142e-14 | CH134: 4.515901693e-14 | CI134: 4.426094917e-14 | CJ134: 4.33574414e-14 | CK134: 4.244836291e-14 | CL134: 4.15335788e-14 | CM134: 4.061294967e-14 | CN134: 3.968633129e-14 | CO134: 3.875357424e-14 | CP134: 3.781452338e-14 | CQ134: 3.686901729e-14 | CR134: 3.591688758e-14 | CS134: 3.495795802e-14 | CT134: 3.399204345e-14 | CU134: 3.30189485e-14 | CV134: 3.203846596e-14 | CW134: 3.105037472e-14 | CX134: 3.005443729e-14 | CY134: 2.90503966e-14
A135: 125 | B135: 1.091834813e-13 | C135: 1.091834813e-13 | D135: 1.085002832e-13 | E135: 1.078159039e-13 | F135: 1.071303289e-13 | G135: 1.064435434e-13 | H135: 1.057555321e-13 | I135: 1.050662796e-13 | J135: 1.043757699e-13 | K135: 1.036839866e-13 | L135: 1.029909131e-13 | M135: 1.022965321e-13 | N135: 1.016008261e-13 | O135: 1.00903777e-13 | P135: 1.002053664e-13 | Q135: 9.950557526e-14 | R135: 9.880438424e-14 | S135: 9.81017734e-14 | T135: 9.739772231e-14 | U135: 9.669221004e-14 | V135: 9.598521512e-14 | W135: 9.527671553e-14 | X135: 9.456668869e-14 | Y135: 9.385511143e-14 | Z135: 9.314196002e-14 | AA135: 9.242721009e-14 | AB135: 9.171083664e-14 | AC135: 9.099281405e-14 | AD135: 9.027311603e-14 | AE135: 8.955171559e-14 | AF135: 8.882858506e-14 | AG135: 8.810369605e-14 | AH135: 8.737701944e-14 | AI135: 8.664852533e-14 | AJ135: 8.591818305e-14 | AK135: 8.518596115e-14 | AL135: 8.445182731e-14 | AM135: 8.371574843e-14 | AN135: 8.297769047e-14 | AO135: 8.223761855e-14 | AP135: 8.149549686e-14 | AQ135: 8.075128863e-14 | AR135: 8.000495613e-14 | AS135: 7.925646065e-14 | AT135: 7.850576244e-14 | AU135: 7.77528207e-14 | AV135: 7.699759355e-14 | AW135: 7.6240038e-14 | AX135: 7.548010994e-14 | AY135: 7.471776405e-14 | AZ135: 7.395295383e-14 | BA135: 7.318563154e-14 | BB135: 7.241574816e-14 | BC135: 7.164325337e-14 | BD135: 7.086809549e-14 | BE135: 7.009022149e-14 | BF135: 6.930957688e-14 | BG135: 6.852610575e-14 | BH135: 6.773975067e-14 | BI135: 6.695045268e-14 | BJ135: 6.615815121e-14 | BK135: 6.536278411e-14 | BL135: 6.456428751e-14 | BM135: 6.376259585e-14 | BN135: 6.29576418e-14 | BO135: 6.214935619e-14 | BP135: 6.133766802e-14 | BQ135: 6.052250434e-14 | BR135: 5.970379023e-14 | BS135: 5.888144877e-14 | BT135: 5.80554009e-14 | BU135: 5.722556546e-14 | BV135: 5.639185906e-14 | BW135: 5.555419604e-14 | BX135: 5.471248838e-14 | BY135: 5.386664569e-14 | BZ135: 5.301657505e-14 | CA135: 5.216218103e-14 | CB135: 5.13033655e-14 | CC135: 5.044002765e-14 | CD135: 4.957206383e-14 | CE135: 4.869936747e-14 | CF135: 4.782182899e-14 | CG135: 4.693933564e-14 | CH135: 4.605177142e-14 | CI135: 4.515901693e-14 | CJ135: 4.426094917e-14 | CK135: 4.33574414e-14 | CL135: 4.244836291e-14 | CM135: 4.15335788e-14 | CN135: 4.061294967e-14 | CO135: 3.968633129e-14 | CP135: 3.875357424e-14 | CQ135: 3.781452338e-14 | CR135: 3.686901729e-14 | CS135: 3.591688758e-14 | CT135: 3.495795802e-14 | CU135: 3.399204345e-14 | CV135: 3.30189485e-14 | CW135: 3.203846596e-14 | CX135: 3.105037472e-14 | CY135: 3.005443729e-14
A136: 126 | B136: 1.098655122e-13 | C136: 1.098655122e-13 | D136: 1.091834813e-13 | E136: 1.085002832e-13 | F136: 1.078159039e-13 | G136: 1.071303289e-13 | H136: 1.064435434e-13 | I136: 1.057555321e-13 | J136: 1.050662796e-13 | K136: 1.043757699e-13 | L136: 1.036839866e-13 | M136: 1.029909131e-13 | N136: 1.022965321e-13 | O136: 1.016008261e-13 | P136: 1.00903777e-13 | Q136: 1.002053664e-13 | R136: 9.950557526e-14 | S136: 9.880438424e-14 | T136: 9.81017734e-14 | U136: 9.739772231e-14 | V136: 9.669221004e-14 | W136: 9.598521512e-14 | X136: 9.527671553e-14 | Y136: 9.456668869e-14 | Z136: 9.385511143e-14 | AA136: 9.314196002e-14 | AB136: 9.242721009e-14 | AC136: 9.171083664e-14 | AD136: 9.099281405e-14 | AE136: 9.027311603e-14 | AF136: 8.955171559e-14 | AG136: 8.882858506e-14 | AH136: 8.810369605e-14 | AI136: 8.737701944e-14 | AJ136: 8.664852533e-14 | AK136: 8.591818305e-14 | AL136: 8.518596115e-14 | AM136: 8.445182731e-14 | AN136: 8.371574843e-14 | AO136: 8.297769047e-14 | AP136: 8.223761855e-14 | AQ136: 8.149549686e-14 | AR136: 8.075128863e-14 | AS136: 8.000495613e-14 | AT136: 7.925646065e-14 | AU136: 7.850576244e-14 | AV136: 7.77528207e-14 | AW136: 7.699759355e-14 | AX136: 7.6240038e-14 | AY136: 7.548010994e-14 | AZ136: 7.471776405e-14 | BA136: 7.395295383e-14 | BB136: 7.318563154e-14 | BC136: 7.241574816e-14 | BD136: 7.164325337e-14 | BE136: 7.086809549e-14 | BF136: 7.009022149e-14 | BG136: 6.930957688e-14 | BH136: 6.852610575e-14 | BI136: 6.773975067e-14 | BJ136: 6.695045268e-14 | BK136: 6.615815121e-14 | BL136: 6.536278411e-14 | BM136: 6.456428751e-14 | BN136: 6.376259585e-14 | BO136: 6.29576418e-14 | BP136: 6.214935619e-14 | BQ136: 6.133766802e-14 | BR136: 6.052250434e-14 | BS136: 5.970379023e-14 | BT136: 5.888144877e-14 | BU136: 5.80554009e-14 | BV136: 5.722556546e-14 | BW136: 5.639185906e-14 | BX136: 5.555419604e-14 | BY136: 5.471248838e-14 | BZ136: 5.386664569e-14 | CA136: 5.301657505e-14 | CB136: 5.216218103e-14 | CC136: 5.13033655e-14 | CD136: 5.044002765e-14 | CE136: 4.957206383e-14 | CF136: 4.869936747e-14 | CG136: 4.782182899e-14 | CH136: 4.693933564e-14 | CI136: 4.605177142e-14 | CJ136: 4.515901693e-14 | CK136: 4.426094917e-14 | CL136: 4.33574414e-14 | CM136: 4.244836291e-14 | CN136: 4.15335788e-14 | CO136: 4.061294967e-14 | CP136: 3.968633129e-14 | CQ136: 3.875357424e-14 | CR136: 3.781452338e-14 | CS136: 3.686901729e-14 | CT136: 3.591688758e-14 | CU136: 3.495795802e-14 | CV136: 3.399204345e-14 | CW136: 3.30189485e-14 | CX136: 3.203846596e-14 | CY136: 3.105037472e-14
A137: 127 | B137: 1.105463897e-13 | C137: 1.105463897e-13 | D137: 1.098655122e-13 | E137: 1.091834813e-13 | F137: 1.085002832e-13 | G137: 1.078159039e-13 | H137: 1.071303289e-13 | I137: 1.064435434e-13 | J137: 1.057555321e-13 | K137: 1.050662796e-13 | L137: 1.043757699e-13 | M137: 1.036839866e-13 | N137: 1.029909131e-13 | O137: 1.022965321e-13 | P137: 1.016008261e-13 | Q137: 1.00903777e-13 | R137: 1.002053664e-13 | S137: 9.950557526e-14 | T137: 9.880438424e-14 | U137: 9.81017734e-14 | V137: 9.739772231e-14 | W137: 9.669221004e-14 | X137: 9.598521512e-14 | Y137: 9.527671553e-14 | Z137: 9.456668869e-14 | AA137: 9.385511143e-14 | AB137: 9.314196002e-14 | AC137: 9.242721009e-14 | AD137: 9.171083664e-14 | AE137: 9.099281405e-14 | AF137: 9.027311603e-14 | AG137: 8.955171559e-14 | AH137: 8.882858506e-14 | AI137: 8.810369605e-14 | AJ137: 8.737701944e-14 | AK137: 8.664852533e-14 | AL137: 8.591818305e-14 | AM137: 8.518596115e-14 | AN137: 8.445182731e-14 | AO137: 8.371574843e-14 | AP137: 8.297769047e-14 | AQ137: 8.223761855e-14 | AR137: 8.149549686e-14 | AS137: 8.075128863e-14 | AT137: 8.000495613e-14 | AU137: 7.925646065e-14 | AV137: 7.850576244e-14 | AW137: 7.77528207e-14 | AX137: 7.699759355e-14 | AY137: 7.6240038e-14 | AZ137: 7.548010994e-14 | BA137: 7.471776405e-14 | BB137: 7.395295383e-14 | BC137: 7.318563154e-14 | BD137: 7.241574816e-14 | BE137: 7.164325337e-14 | BF137: 7.086809549e-14 | BG137: 7.009022149e-14 | BH137: 6.930957688e-14 | BI137: 6.852610575e-14 | BJ137: 6.773975067e-14 | BK137: 6.695045268e-14 | BL137: 6.615815121e-14 | BM137: 6.536278411e-14 | BN137: 6.456428751e-14 | BO137: 6.376259585e-14 | BP137: 6.29576418e-14 | BQ137: 6.214935619e-14 | BR137: 6.133766802e-14 | BS137: 6.052250434e-14 | BT137: 5.970379023e-14 | BU137: 5.888144877e-14 | BV137: 5.80554009e-14 | BW137: 5.722556546e-14 | BX137: 5.639185906e-14 | BY137: 5.555419604e-14 | BZ137: 5.471248838e-14 | CA137: 5.386664569e-14 | CB137: 5.301657505e-14 | CC137: 5.216218103e-14 | CD137: 5.13033655e-14 | CE137: 5.044002765e-14 | CF137: 4.957206383e-14 | CG137: 4.869936747e-14 | CH137: 4.782182899e-14 | CI137: 4.693933564e-14 | CJ137: 4.605177142e-14 | CK137: 4.515901693e-14 | CL137: 4.426094917e-14 | CM137: 4.33574414e-14 | CN137: 4.244836291e-14 | CO137: 4.15335788e-14 | CP137: 4.061294967e-14 | CQ137: 3.968633129e-14 | CR137: 3.875357424e-14 | CS137: 3.781452338e-14 | CT137: 3.686901729e-14 | CU137: 3.591688758e-14 | CV137: 3.495795802e-14 | CW137: 3.399204345e-14 | CX137: 3.30189485e-14 | CY137: 3.203846596e-14
A138: 128 | B138: 1.112261274e-13 | C138: 1.112261274e-13 | D138: 1.105463897e-13 | E138: 1.098655122e-13 | F138: 1.091834813e-13 | G138: 1.085002832e-13 | H138: 1.078159039e-13 | I138: 1.071303289e-13 | J138: 1.064435434e-13 | K138: 1.057555321e-13 | L138: 1.050662796e-13 | M138: 1.043757699e-13 | N138: 1.036839866e-13 | O138: 1.029909131e-13 | P138: 1.022965321e-13 | Q138: 1.016008261e-13 | R138: 1.00903777e-13 | S138: 1.002053664e-13 | T138: 9.950557526e-14 | U138: 9.880438424e-14 | V138: 9.81017734e-14 | W138: 9.739772231e-14 | X138: 9.669221004e-14 | Y138: 9.598521512e-14 | Z138: 9.527671553e-14 | AA138: 9.456668869e-14 | AB138: 9.385511143e-14 | AC138: 9.314196002e-14 | AD138: 9.242721009e-14 | AE138: 9.171083664e-14 | AF138: 9.099281405e-14 | AG138: 9.027311603e-14 | AH138: 8.955171559e-14 | AI138: 8.882858506e-14 | AJ138: 8.810369605e-14 | AK138: 8.737701944e-14 | AL138: 8.664852533e-14 | AM138: 8.591818305e-14 | AN138: 8.518596115e-14 | AO138: 8.445182731e-14 | AP138: 8.371574843e-14 | AQ138: 8.297769047e-14 | AR138: 8.223761855e-14 | AS138: 8.149549686e-14 | AT138: 8.075128863e-14 | AU138: 8.000495613e-14 | AV138: 7.925646065e-14 | AW138: 7.850576244e-14 | AX138: 7.77528207e-14 | AY138: 7.699759355e-14 | AZ138: 7.6240038e-14 | BA138: 7.548010994e-14 | BB138: 7.471776405e-14 | BC138: 7.395295383e-14 | BD138: 7.318563154e-14 | BE138: 7.241574816e-14 | BF138: 7.164325337e-14 | BG138: 7.086809549e-14 | BH138: 7.009022149e-14 | BI138: 6.930957688e-14 | BJ138: 6.852610575e-14 | BK138: 6.773975067e-14 | BL138: 6.695045268e-14 | BM138: 6.615815121e-14 | BN138: 6.536278411e-14 | BO138: 6.456428751e-14 | BP138: 6.376259585e-14 | BQ138: 6.29576418e-14 | BR138: 6.214935619e-14 | BS138: 6.133766802e-14 | BT138: 6.052250434e-14 | BU138: 5.970379023e-14 | BV138: 5.888144877e-14 | BW138: 5.80554009e-14 | BX138: 5.722556546e-14 | BY138: 5.639185906e-14 | BZ138: 5.555419604e-14 | CA138: 5.471248838e-14 | CB138: 5.386664569e-14 | CC138: 5.301657505e-14 | CD138: 5.216218103e-14 | CE138: 5.13033655e-14 | CF138: 5.044002765e-14 | CG138: 4.957206383e-14 | CH138: 4.869936747e-14 | CI138: 4.782182899e-14 | CJ138: 4.693933564e-14 | CK138: 4.605177142e-14 | CL138: 4.515901693e-14 | CM138: 4.426094917e-14 | CN138: 4.33574414e-14 | CO138: 4.244836291e-14 | CP138: 4.15335788e-14 | CQ138: 4.061294967e-14 | CR138: 3.968633129e-14 | CS138: 3.875357424e-14 | CT138: 3.781452338e-14 | CU138: 3.686901729e-14 | CV138: 3.591688758e-14 | CW138: 3.495795802e-14 | CX138: 3.399204345e-14 | CY138: 3.30189485e-14
A139: 129 | B139: 1.119047383e-13 | C139: 1.119047383e-13 | D139: 1.112261274e-13 | E139: 1.105463897e-13 | F139: 1.098655122e-13 | G139: 1.091834813e-13 | H139: 1.085002832e-13 | I139: 1.078159039e-13 | J139: 1.071303289e-13 | K139: 1.064435434e-13 | L139: 1.057555321e-13 | M139: 1.050662796e-13 | N139: 1.043757699e-13 | O139: 1.036839866e-13 | P139: 1.029909131e-13 | Q139: 1.022965321e-13 | R139: 1.016008261e-13 | S139: 1.00903777e-13 | T139: 1.002053664e-13 | U139: 9.950557526e-14 | V139: 9.880438424e-14 | W139: 9.81017734e-14 | X139: 9.739772231e-14 | Y139: 9.669221004e-14 | Z139: 9.598521512e-14 | AA139: 9.527671553e-14 | AB139: 9.456668869e-14 | AC139: 9.385511143e-14 | AD139: 9.314196002e-14 | AE139: 9.242721009e-14 | AF139: 9.171083664e-14 | AG139: 9.099281405e-14 | AH139: 9.027311603e-14 | AI139: 8.955171559e-14 | AJ139: 8.882858506e-14 | AK139: 8.810369605e-14 | AL139: 8.737701944e-14 | AM139: 8.664852533e-14 | AN139: 8.591818305e-14 | AO139: 8.518596115e-14 | AP139: 8.445182731e-14 | AQ139: 8.371574843e-14 | AR139: 8.297769047e-14 | AS139: 8.223761855e-14 | AT139: 8.149549686e-14 | AU139: 8.075128863e-14 | AV139: 8.000495613e-14 | AW139: 7.925646065e-14 | AX139: 7.850576244e-14 | AY139: 7.77528207e-14 | AZ139: 7.699759355e-14 | BA139: 7.6240038e-14 | BB139: 7.548010994e-14 | BC139: 7.471776405e-14 | BD139: 7.395295383e-14 | BE139: 7.318563154e-14 | BF139: 7.241574816e-14 | BG139: 7.164325337e-14 | BH139: 7.086809549e-14 | BI139: 7.009022149e-14 | BJ139: 6.930957688e-14 | BK139: 6.852610575e-14 | BL139: 6.773975067e-14 | BM139: 6.695045268e-14 | BN139: 6.615815121e-14 | BO139: 6.536278411e-14 | BP139: 6.456428751e-14 | BQ139: 6.376259585e-14 | BR139: 6.29576418e-14 | BS139: 6.214935619e-14 | BT139: 6.133766802e-14 | BU139: 6.052250434e-14 | BV139: 5.970379023e-14 | BW139: 5.888144877e-14 | BX139: 5.80554009e-14 | BY139: 5.722556546e-14 | BZ139: 5.639185906e-14 | CA139: 5.555419604e-14 | CB139: 5.471248838e-14 | CC139: 5.386664569e-14 | CD139: 5.301657505e-14 | CE139: 5.216218103e-14 | CF139: 5.13033655e-14 | CG139: 5.044002765e-14 | CH139: 4.957206383e-14 | CI139: 4.869936747e-14 | CJ139: 4.782182899e-14 | CK139: 4.693933564e-14 | CL139: 4.605177142e-14 | CM139: 4.515901693e-14 | CN139: 4.426094917e-14 | CO139: 4.33574414e-14 | CP139: 4.244836291e-14 | CQ139: 4.15335788e-14 | CR139: 4.061294967e-14 | CS139: 3.968633129e-14 | CT139: 3.875357424e-14 | CU139: 3.781452338e-14 | CV139: 3.686901729e-14 | CW139: 3.591688758e-14 | CX139: 3.495795802e-14 | CY139: 3.399204345e-14
A140: 130 | B140: 1.125822352e-13 | C140: 1.125822352e-13 | D140: 1.119047383e-13 | E140: 1.112261274e-13 | F140: 1.105463897e-13 | G140: 1.098655122e-13 | H140: 1.091834813e-13 | I140: 1.085002832e-13 | J140: 1.078159039e-13 | K140: 1.071303289e-13 | L140: 1.064435434e-13 | M140: 1.057555321e-13 | N140: 1.050662796e-13 | O140: 1.043757699e-13 | P140: 1.036839866e-13 | Q140: 1.029909131e-13 | R140: 1.022965321e-13 | S140: 1.016008261e-13 | T140: 1.00903777e-13 | U140: 1.002053664e-13 | V140: 9.950557526e-14 | W140: 9.880438424e-14 | X140: 9.81017734e-14 | Y140: 9.739772231e-14 | Z140: 9.669221004e-14 | AA140: 9.598521512e-14 | AB140: 9.527671553e-14 | AC140: 9.456668869e-14 | AD140: 9.385511143e-14 | AE140: 9.314196002e-14 | AF140: 9.242721009e-14 | AG140: 9.171083664e-14 | AH140: 9.099281405e-14 | AI140: 9.027311603e-14 | AJ140: 8.955171559e-14 | AK140: 8.882858506e-14 | AL140: 8.810369605e-14 | AM140: 8.737701944e-14 | AN140: 8.664852533e-14 | AO140: 8.591818305e-14 | AP140: 8.518596115e-14 | AQ140: 8.445182731e-14 | AR140: 8.371574843e-14 | AS140: 8.297769047e-14 | AT140: 8.223761855e-14 | AU140: 8.149549686e-14 | AV140: 8.075128863e-14 | AW140: 8.000495613e-14 | AX140: 7.925646065e-14 | AY140: 7.850576244e-14 | AZ140: 7.77528207e-14 | BA140: 7.699759355e-14 | BB140: 7.6240038e-14 | BC140: 7.548010994e-14 | BD140: 7.471776405e-14 | BE140: 7.395295383e-14 | BF140: 7.318563154e-14 | BG140: 7.241574816e-14 | BH140: 7.164325337e-14 | BI140: 7.086809549e-14 | BJ140: 7.009022149e-14 | BK140: 6.930957688e-14 | BL140: 6.852610575e-14 | BM140: 6.773975067e-14 | BN140: 6.695045268e-14 | BO140: 6.615815121e-14 | BP140: 6.536278411e-14 | BQ140: 6.456428751e-14 | BR140: 6.376259585e-14 | BS140: 6.29576418e-14 | BT140: 6.214935619e-14 | BU140: 6.133766802e-14 | BV140: 6.052250434e-14 | BW140: 5.970379023e-14 | BX140: 5.888144877e-14 | BY140: 5.80554009e-14 | BZ140: 5.722556546e-14 | CA140: 5.639185906e-14 | CB140: 5.555419604e-14 | CC140: 5.471248838e-14 | CD140: 5.386664569e-14 | CE140: 5.301657505e-14 | CF140: 5.216218103e-14 | CG140: 5.13033655e-14 | CH140: 5.044002765e-14 | CI140: 4.957206383e-14 | CJ140: 4.869936747e-14 | CK140: 4.782182899e-14 | CL140: 4.693933564e-14 | CM140: 4.605177142e-14 | CN140: 4.515901693e-14 | CO140: 4.426094917e-14 | CP140: 4.33574414e-14 | CQ140: 4.244836291e-14 | CR140: 4.15335788e-14 | CS140: 4.061294967e-14 | CT140: 3.968633129e-14 | CU140: 3.875357424e-14 | CV140: 3.781452338e-14 | CW140: 3.686901729e-14 | CX140: 3.591688758e-14 | CY140: 3.495795802e-14
A141: 131 | B141: 1.132586307e-13 | C141: 1.132586307e-13 | D141: 1.125822352e-13 | E141: 1.119047383e-13 | F141: 1.112261274e-13 | G141: 1.105463897e-13 | H141: 1.098655122e-13 | I141: 1.091834813e-13 | J141: 1.085002832e-13 | K141: 1.078159039e-13 | L141: 1.071303289e-13 | M141: 1.064435434e-13 | N141: 1.057555321e-13 | O141: 1.050662796e-13 | P141: 1.043757699e-13 | Q141: 1.036839866e-13 | R141: 1.029909131e-13 | S141: 1.022965321e-13 | T141: 1.016008261e-13 | U141: 1.00903777e-13 | V141: 1.002053664e-13 | W141: 9.950557526e-14 | X141: 9.880438424e-14 | Y141: 9.81017734e-14 | Z141: 9.739772231e-14 | AA141: 9.669221004e-14 | AB141: 9.598521512e-14 | AC141: 9.527671553e-14 | AD141: 9.456668869e-14 | AE141: 9.385511143e-14 | AF141: 9.314196002e-14 | AG141: 9.242721009e-14 | AH141: 9.171083664e-14 | AI141: 9.099281405e-14 | AJ141: 9.027311603e-14 | AK141: 8.955171559e-14 | AL141: 8.882858506e-14 | AM141: 8.810369605e-14 | AN141: 8.737701944e-14 | AO141: 8.664852533e-14 | AP141: 8.591818305e-14 | AQ141: 8.518596115e-14 | AR141: 8.445182731e-14 | AS141: 8.371574843e-14 | AT141: 8.297769047e-14 | AU141: 8.223761855e-14 | AV141: 8.149549686e-14 | AW141: 8.075128863e-14 | AX141: 8.000495613e-14 | AY141: 7.925646065e-14 | AZ141: 7.850576244e-14 | BA141: 7.77528207e-14 | BB141: 7.699759355e-14 | BC141: 7.6240038e-14 | BD141: 7.548010994e-14 | BE141: 7.471776405e-14 | BF141: 7.395295383e-14 | BG141: 7.318563154e-14 | BH141: 7.241574816e-14 | BI141: 7.164325337e-14 | BJ141: 7.086809549e-14 | BK141: 7.009022149e-14 | BL141: 6.930957688e-14 | BM141: 6.852610575e-14 | BN141: 6.773975067e-14 | BO141: 6.695045268e-14 | BP141: 6.615815121e-14 | BQ141: 6.536278411e-14 | BR141: 6.456428751e-14 | BS141: 6.376259585e-14 | BT141: 6.29576418e-14 | BU141: 6.214935619e-14 | BV141: 6.133766802e-14 | BW141: 6.052250434e-14 | BX141: 5.970379023e-14 | BY141: 5.888144877e-14 | BZ141: 5.80554009e-14 | CA141: 5.722556546e-14 | CB141: 5.639185906e-14 | CC141: 5.555419604e-14 | CD141: 5.471248838e-14 | CE141: 5.386664569e-14 | CF141: 5.301657505e-14 | CG141: 5.216218103e-14 | CH141: 5.13033655e-14 | CI141: 5.044002765e-14 | CJ141: 4.957206383e-14 | CK141: 4.869936747e-14 | CL141: 4.782182899e-14 | CM141: 4.693933564e-14 | CN141: 4.605177142e-14 | CO141: 4.515901693e-14 | CP141: 4.426094917e-14 | CQ141: 4.33574414e-14 | CR141: 4.244836291e-14 | CS141: 4.15335788e-14 | CT141: 4.061294967e-14 | CU141: 3.968633129e-14 | CV141: 3.875357424e-14 | CW141: 3.781452338e-14 | CX141: 3.686901729e-14 | CY141: 3.591688758e-14
A142: 132 | B142: 1.139339371e-13 | C142: 1.139339371e-13 | D142: 1.132586307e-13 | E142: 1.125822352e-13 | F142: 1.119047383e-13 | G142: 1.112261274e-13 | H142: 1.105463897e-13 | I142: 1.098655122e-13 | J142: 1.091834813e-13 | K142: 1.085002832e-13 | L142: 1.078159039e-13 | M142: 1.071303289e-13 | N142: 1.064435434e-13 | O142: 1.057555321e-13 | P142: 1.050662796e-13 | Q142: 1.043757699e-13 | R142: 1.036839866e-13 | S142: 1.029909131e-13 | T142: 1.022965321e-13 | U142: 1.016008261e-13 | V142: 1.00903777e-13 | W142: 1.002053664e-13 | X142: 9.950557526e-14 | Y142: 9.880438424e-14 | Z142: 9.81017734e-14 | AA142: 9.739772231e-14 | AB142: 9.669221004e-14 | AC142: 9.598521512e-14 | AD142: 9.527671553e-14 | AE142: 9.456668869e-14 | AF142: 9.385511143e-14 | AG142: 9.314196002e-14 | AH142: 9.242721009e-14 | AI142: 9.171083664e-14 | AJ142: 9.099281405e-14 | AK142: 9.027311603e-14 | AL142: 8.955171559e-14 | AM142: 8.882858506e-14 | AN142: 8.810369605e-14 | AO142: 8.737701944e-14 | AP142: 8.664852533e-14 | AQ142: 8.591818305e-14 | AR142: 8.518596115e-14 | AS142: 8.445182731e-14 | AT142: 8.371574843e-14 | AU142: 8.297769047e-14 | AV142: 8.223761855e-14 | AW142: 8.149549686e-14 | AX142: 8.075128863e-14 | AY142: 8.000495613e-14 | AZ142: 7.925646065e-14 | BA142: 7.850576244e-14 | BB142: 7.77528207e-14 | BC142: 7.699759355e-14 | BD142: 7.6240038e-14 | BE142: 7.548010994e-14 | BF142: 7.471776405e-14 | BG142: 7.395295383e-14 | BH142: 7.318563154e-14 | BI142: 7.241574816e-14 | BJ142: 7.164325337e-14 | BK142: 7.086809549e-14 | BL142: 7.009022149e-14 | BM142: 6.930957688e-14 | BN142: 6.852610575e-14 | BO142: 6.773975067e-14 | BP142: 6.695045268e-14 | BQ142: 6.615815121e-14 | BR142: 6.536278411e-14 | BS142: 6.456428751e-14 | BT142: 6.376259585e-14 | BU142: 6.29576418e-14 | BV142: 6.214935619e-14 | BW142: 6.133766802e-14 | BX142: 6.052250434e-14 | BY142: 5.970379023e-14 | BZ142: 5.888144877e-14 | CA142: 5.80554009e-14 | CB142: 5.722556546e-14 | CC142: 5.639185906e-14 | CD142: 5.555419604e-14 | CE142: 5.471248838e-14 | CF142: 5.386664569e-14 | CG142: 5.301657505e-14 | CH142: 5.216218103e-14 | CI142: 5.13033655e-14 | CJ142: 5.044002765e-14 | CK142: 4.957206383e-14 | CL142: 4.869936747e-14 | CM142: 4.782182899e-14 | CN142: 4.693933564e-14 | CO142: 4.605177142e-14 | CP142: 4.515901693e-14 | CQ142: 4.426094917e-14 | CR142: 4.33574414e-14 | CS142: 4.244836291e-14 | CT142: 4.15335788e-14 | CU142: 4.061294967e-14 | CV142: 3.968633129e-14 | CW142: 3.875357424e-14 | CX142: 3.781452338e-14 | CY142: 3.686901729e-14
A143: 133 | B143: 1.146081662e-13 | C143: 1.146081662e-13 | D143: 1.139339371e-13 | E143: 1.132586307e-13 | F143: 1.125822352e-13 | G143: 1.119047383e-13 | H143: 1.112261274e-13 | I143: 1.105463897e-13 | J143: 1.098655122e-13 | K143: 1.091834813e-13 | L143: 1.085002832e-13 | M143: 1.078159039e-13 | N143: 1.071303289e-13 | O143: 1.064435434e-13 | P143: 1.057555321e-13 | Q143: 1.050662796e-13 | R143: 1.043757699e-13 | S143: 1.036839866e-13 | T143: 1.029909131e-13 | U143: 1.022965321e-13 | V143: 1.016008261e-13 | W143: 1.00903777e-13 | X143: 1.002053664e-13 | Y143: 9.950557526e-14 | Z143: 9.880438424e-14 | AA143: 9.81017734e-14 | AB143: 9.739772231e-14 | AC143: 9.669221004e-14 | AD143: 9.598521512e-14 | AE143: 9.527671553e-14 | AF143: 9.456668869e-14 | AG143: 9.385511143e-14 | AH143: 9.314196002e-14 | AI143: 9.242721009e-14 | AJ143: 9.171083664e-14 | AK143: 9.099281405e-14 | AL143: 9.027311603e-14 | AM143: 8.955171559e-14 | AN143: 8.882858506e-14 | AO143: 8.810369605e-14 | AP143: 8.737701944e-14 | AQ143: 8.664852533e-14 | AR143: 8.591818305e-14 | AS143: 8.518596115e-14 | AT143: 8.445182731e-14 | AU143: 8.371574843e-14 | AV143: 8.297769047e-14 | AW143: 8.223761855e-14 | AX143: 8.149549686e-14 | AY143: 8.075128863e-14 | AZ143: 8.000495613e-14 | BA143: 7.925646065e-14 | BB143: 7.850576244e-14 | BC143: 7.77528207e-14 | BD143: 7.699759355e-14 | BE143: 7.6240038e-14 | BF143: 7.548010994e-14 | BG143: 7.471776405e-14 | BH143: 7.395295383e-14 | BI143: 7.318563154e-14 | BJ143: 7.241574816e-14 | BK143: 7.164325337e-14 | BL143: 7.086809549e-14 | BM143: 7.009022149e-14 | BN143: 6.930957688e-14 | BO143: 6.852610575e-14 | BP143: 6.773975067e-14 | BQ143: 6.695045268e-14 | BR143: 6.615815121e-14 | BS143: 6.536278411e-14 | BT143: 6.456428751e-14 | BU143: 6.376259585e-14 | BV143: 6.29576418e-14 | BW143: 6.214935619e-14 | BX143: 6.133766802e-14 | BY143: 6.052250434e-14 | BZ143: 5.970379023e-14 | CA143: 5.888144877e-14 | CB143: 5.80554009e-14 | CC143: 5.722556546e-14 | CD143: 5.639185906e-14 | CE143: 5.555419604e-14 | CF143: 5.471248838e-14 | CG143: 5.386664569e-14 | CH143: 5.301657505e-14 | CI143: 5.216218103e-14 | CJ143: 5.13033655e-14 | CK143: 5.044002765e-14 | CL143: 4.957206383e-14 | CM143: 4.869936747e-14 | CN143: 4.782182899e-14 | CO143: 4.693933564e-14 | CP143: 4.605177142e-14 | CQ143: 4.515901693e-14 | CR143: 4.426094917e-14 | CS143: 4.33574414e-14 | CT143: 4.244836291e-14 | CU143: 4.15335788e-14 | CV143: 4.061294967e-14 | CW143: 3.968633129e-14 | CX143: 3.875357424e-14 | CY143: 3.781452338e-14
A144: 134 | B144: 1.152813297e-13 | C144: 1.152813297e-13 | D144: 1.146081662e-13 | E144: 1.139339371e-13 | F144: 1.132586307e-13 | G144: 1.125822352e-13 | H144: 1.119047383e-13 | I144: 1.112261274e-13 | J144: 1.105463897e-13 | K144: 1.098655122e-13 | L144: 1.091834813e-13 | M144: 1.085002832e-13 | N144: 1.078159039e-13 | O144: 1.071303289e-13 | P144: 1.064435434e-13 | Q144: 1.057555321e-13 | R144: 1.050662796e-13 | S144: 1.043757699e-13 | T144: 1.036839866e-13 | U144: 1.029909131e-13 | V144: 1.022965321e-13 | W144: 1.016008261e-13 | X144: 1.00903777e-13 | Y144: 1.002053664e-13 | Z144: 9.950557526e-14 | AA144: 9.880438424e-14 | AB144: 9.81017734e-14 | AC144: 9.739772231e-14 | AD144: 9.669221004e-14 | AE144: 9.598521512e-14 | AF144: 9.527671553e-14 | AG144: 9.456668869e-14 | AH144: 9.385511143e-14 | AI144: 9.314196002e-14 | AJ144: 9.242721009e-14 | AK144: 9.171083664e-14 | AL144: 9.099281405e-14 | AM144: 9.027311603e-14 | AN144: 8.955171559e-14 | AO144: 8.882858506e-14 | AP144: 8.810369605e-14 | AQ144: 8.737701944e-14 | AR144: 8.664852533e-14 | AS144: 8.591818305e-14 | AT144: 8.518596115e-14 | AU144: 8.445182731e-14 | AV144: 8.371574843e-14 | AW144: 8.297769047e-14 | AX144: 8.223761855e-14 | AY144: 8.149549686e-14 | AZ144: 8.075128863e-14 | BA144: 8.000495613e-14 | BB144: 7.925646065e-14 | BC144: 7.850576244e-14 | BD144: 7.77528207e-14 | BE144: 7.699759355e-14 | BF144: 7.6240038e-14 | BG144: 7.548010994e-14 | BH144: 7.471776405e-14 | BI144: 7.395295383e-14 | BJ144: 7.318563154e-14 | BK144: 7.241574816e-14 | BL144: 7.164325337e-14 | BM144: 7.086809549e-14 | BN144: 7.009022149e-14 | BO144: 6.930957688e-14 | BP144: 6.852610575e-14 | BQ144: 6.773975067e-14 | BR144: 6.695045268e-14 | BS144: 6.615815121e-14 | BT144: 6.536278411e-14 | BU144: 6.456428751e-14 | BV144: 6.376259585e-14 | BW144: 6.29576418e-14 | BX144: 6.214935619e-14 | BY144: 6.133766802e-14 | BZ144: 6.052250434e-14 | CA144: 5.970379023e-14 | CB144: 5.888144877e-14 | CC144: 5.80554009e-14 | CD144: 5.722556546e-14 | CE144: 5.639185906e-14 | CF144: 5.555419604e-14 | CG144: 5.471248838e-14 | CH144: 5.386664569e-14 | CI144: 5.301657505e-14 | CJ144: 5.216218103e-14 | CK144: 5.13033655e-14 | CL144: 5.044002765e-14 | CM144: 4.957206383e-14 | CN144: 4.869936747e-14 | CO144: 4.782182899e-14 | CP144: 4.693933564e-14 | CQ144: 4.605177142e-14 | CR144: 4.515901693e-14 | CS144: 4.426094917e-14 | CT144: 4.33574414e-14 | CU144: 4.244836291e-14 | CV144: 4.15335788e-14 | CW144: 4.061294967e-14 | CX144: 3.968633129e-14 | CY144: 3.875357424e-14
A145: 135 | B145: 1.159534391e-13 | C145: 1.159534391e-13 | D145: 1.152813297e-13 | E145: 1.146081662e-13 | F145: 1.139339371e-13 | G145: 1.132586307e-13 | H145: 1.125822352e-13 | I145: 1.119047383e-13 | J145: 1.112261274e-13 | K145: 1.105463897e-13 | L145: 1.098655122e-13 | M145: 1.091834813e-13 | N145: 1.085002832e-13 | O145: 1.078159039e-13 | P145: 1.071303289e-13 | Q145: 1.064435434e-13 | R145: 1.057555321e-13 | S145: 1.050662796e-13 | T145: 1.043757699e-13 | U145: 1.036839866e-13 | V145: 1.029909131e-13 | W145: 1.022965321e-13 | X145: 1.016008261e-13 | Y145: 1.00903777e-13 | Z145: 1.002053664e-13 | AA145: 9.950557526e-14 | AB145: 9.880438424e-14 | AC145: 9.81017734e-14 | AD145: 9.739772231e-14 | AE145: 9.669221004e-14 | AF145: 9.598521512e-14 | AG145: 9.527671553e-14 | AH145: 9.456668869e-14 | AI145: 9.385511143e-14 | AJ145: 9.314196002e-14 | AK145: 9.242721009e-14 | AL145: 9.171083664e-14 | AM145: 9.099281405e-14 | AN145: 9.027311603e-14 | AO145: 8.955171559e-14 | AP145: 8.882858506e-14 | AQ145: 8.810369605e-14 | AR145: 8.737701944e-14 | AS145: 8.664852533e-14 | AT145: 8.591818305e-14 | AU145: 8.518596115e-14 | AV145: 8.445182731e-14 | AW145: 8.371574843e-14 | AX145: 8.297769047e-14 | AY145: 8.223761855e-14 | AZ145: 8.149549686e-14 | BA145: 8.075128863e-14 | BB145: 8.000495613e-14 | BC145: 7.925646065e-14 | BD145: 7.850576244e-14 | BE145: 7.77528207e-14 | BF145: 7.699759355e-14 | BG145: 7.6240038e-14 | BH145: 7.548010994e-14 | BI145: 7.471776405e-14 | BJ145: 7.395295383e-14 | BK145: 7.318563154e-14 | BL145: 7.241574816e-14 | BM145: 7.164325337e-14 | BN145: 7.086809549e-14 | BO145: 7.009022149e-14 | BP145: 6.930957688e-14 | BQ145: 6.852610575e-14 | BR145: 6.773975067e-14 | BS145: 6.695045268e-14 | BT145: 6.615815121e-14 | BU145: 6.536278411e-14 | BV145: 6.456428751e-14 | BW145: 6.376259585e-14 | BX145: 6.29576418e-14 | BY145: 6.214935619e-14 | BZ145: 6.133766802e-14 | CA145: 6.052250434e-14 | CB145: 5.970379023e-14 | CC145: 5.888144877e-14 | CD145: 5.80554009e-14 | CE145: 5.722556546e-14 | CF145: 5.639185906e-14 | CG145: 5.555419604e-14 | CH145: 5.471248838e-14 | CI145: 5.386664569e-14 | CJ145: 5.301657505e-14 | CK145: 5.216218103e-14 | CL145: 5.13033655e-14 | CM145: 5.044002765e-14 | CN145: 4.957206383e-14 | CO145: 4.869936747e-14 | CP145: 4.782182899e-14 | CQ145: 4.693933564e-14 | CR145: 4.605177142e-14 | CS145: 4.515901693e-14 | CT145: 4.426094917e-14 | CU145: 4.33574414e-14 | CV145: 4.244836291e-14 | CW145: 4.15335788e-14 | CX145: 4.061294967e-14 | CY145: 3.968633129e-14
A146: 136 | B146: 1.166245053e-13 | C146: 1.166245053e-13 | D146: 1.159534391e-13 | E146: 1.152813297e-13 | F146: 1.146081662e-13 | G146: 1.139339371e-13 | H146: 1.132586307e-13 | I146: 1.125822352e-13 | J146: 1.119047383e-13 | K146: 1.112261274e-13 | L146: 1.105463897e-13 | M146: 1.098655122e-13 | N146: 1.091834813e-13 | O146: 1.085002832e-13 | P146: 1.078159039e-13 | Q146: 1.071303289e-13 | R146: 1.064435434e-13 | S146: 1.057555321e-13 | T146: 1.050662796e-13 | U146: 1.043757699e-13 | V146: 1.036839866e-13 | W146: 1.029909131e-13 | X146: 1.022965321e-13 | Y146: 1.016008261e-13 | Z146: 1.00903777e-13 | AA146: 1.002053664e-13 | AB146: 9.950557526e-14 | AC146: 9.880438424e-14 | AD146: 9.81017734e-14 | AE146: 9.739772231e-14 | AF146: 9.669221004e-14 | AG146: 9.598521512e-14 | AH146: 9.527671553e-14 | AI146: 9.456668869e-14 | AJ146: 9.385511143e-14 | AK146: 9.314196002e-14 | AL146: 9.242721009e-14 | AM146: 9.171083664e-14 | AN146: 9.099281405e-14 | AO146: 9.027311603e-14 | AP146: 8.955171559e-14 | AQ146: 8.882858506e-14 | AR146: 8.810369605e-14 | AS146: 8.737701944e-14 | AT146: 8.664852533e-14 | AU146: 8.591818305e-14 | AV146: 8.518596115e-14 | AW146: 8.445182731e-14 | AX146: 8.371574843e-14 | AY146: 8.297769047e-14 | AZ146: 8.223761855e-14 | BA146: 8.149549686e-14 | BB146: 8.075128863e-14 | BC146: 8.000495613e-14 | BD146: 7.925646065e-14 | BE146: 7.850576244e-14 | BF146: 7.77528207e-14 | BG146: 7.699759355e-14 | BH146: 7.6240038e-14 | BI146: 7.548010994e-14 | BJ146: 7.471776405e-14 | BK146: 7.395295383e-14 | BL146: 7.318563154e-14 | BM146: 7.241574816e-14 | BN146: 7.164325337e-14 | BO146: 7.086809549e-14 | BP146: 7.009022149e-14 | BQ146: 6.930957688e-14 | BR146: 6.852610575e-14 | BS146: 6.773975067e-14 | BT146: 6.695045268e-14 | BU146: 6.615815121e-14 | BV146: 6.536278411e-14 | BW146: 6.456428751e-14 | BX146: 6.376259585e-14 | BY146: 6.29576418e-14 | BZ146: 6.214935619e-14 | CA146: 6.133766802e-14 | CB146: 6.052250434e-14 | CC146: 5.970379023e-14 | CD146: 5.888144877e-14 | CE146: 5.80554009e-14 | CF146: 5.722556546e-14 | CG146: 5.639185906e-14 | CH146: 5.555419604e-14 | CI146: 5.471248838e-14 | CJ146: 5.386664569e-14 | CK146: 5.301657505e-14 | CL146: 5.216218103e-14 | CM146: 5.13033655e-14 | CN146: 5.044002765e-14 | CO146: 4.957206383e-14 | CP146: 4.869936747e-14 | CQ146: 4.782182899e-14 | CR146: 4.693933564e-14 | CS146: 4.605177142e-14 | CT146: 4.515901693e-14 | CU146: 4.426094917e-14 | CV146: 4.33574414e-14 | CW146: 4.244836291e-14 | CX146: 4.15335788e-14 | CY146: 4.061294967e-14
A147: 137 | B147: 1.172945395e-13 | C147: 1.172945395e-13 | D147: 1.166245053e-13 | E147: 1.159534391e-13 | F147: 1.152813297e-13 | G147: 1.146081662e-13 | H147: 1.139339371e-13 | I147: 1.132586307e-13 | J147: 1.125822352e-13 | K147: 1.119047383e-13 | L147: 1.112261274e-13 | M147: 1.105463897e-13 | N147: 1.098655122e-13 | O147: 1.091834813e-13 | P147: 1.085002832e-13 | Q147: 1.078159039e-13 | R147: 1.071303289e-13 | S147: 1.064435434e-13 | T147: 1.057555321e-13 | U147: 1.050662796e-13 | V147: 1.043757699e-13 | W147: 1.036839866e-13 | X147: 1.029909131e-13 | Y147: 1.022965321e-13 | Z147: 1.016008261e-13 | AA147: 1.00903777e-13 | AB147: 1.002053664e-13 | AC147: 9.950557526e-14 | AD147: 9.880438424e-14 | AE147: 9.81017734e-14 | AF147: 9.739772231e-14 | AG147: 9.669221004e-14 | AH147: 9.598521512e-14 | AI147: 9.527671553e-14 | AJ147: 9.456668869e-14 | AK147: 9.385511143e-14 | AL147: 9.314196002e-14 | AM147: 9.242721009e-14 | AN147: 9.171083664e-14 | AO147: 9.099281405e-14 | AP147: 9.027311603e-14 | AQ147: 8.955171559e-14 | AR147: 8.882858506e-14 | AS147: 8.810369605e-14 | AT147: 8.737701944e-14 | AU147: 8.664852533e-14 | AV147: 8.591818305e-14 | AW147: 8.518596115e-14 | AX147: 8.445182731e-14 | AY147: 8.371574843e-14 | AZ147: 8.297769047e-14 | BA147: 8.223761855e-14 | BB147: 8.149549686e-14 | BC147: 8.075128863e-14 | BD147: 8.000495613e-14 | BE147: 7.925646065e-14 | BF147: 7.850576244e-14 | BG147: 7.77528207e-14 | BH147: 7.699759355e-14 | BI147: 7.6240038e-14 | BJ147: 7.548010994e-14 | BK147: 7.471776405e-14 | BL147: 7.395295383e-14 | BM147: 7.318563154e-14 | BN147: 7.241574816e-14 | BO147: 7.164325337e-14 | BP147: 7.086809549e-14 | BQ147: 7.009022149e-14 | BR147: 6.930957688e-14 | BS147: 6.852610575e-14 | BT147: 6.773975067e-14 | BU147: 6.695045268e-14 | BV147: 6.615815121e-14 | BW147: 6.536278411e-14 | BX147: 6.456428751e-14 | BY147: 6.376259585e-14 | BZ147: 6.29576418e-14 | CA147: 6.214935619e-14 | CB147: 6.133766802e-14 | CC147: 6.052250434e-14 | CD147: 5.970379023e-14 | CE147: 5.888144877e-14 | CF147: 5.80554009e-14 | CG147: 5.722556546e-14 | CH147: 5.639185906e-14 | CI147: 5.555419604e-14 | CJ147: 5.471248838e-14 | CK147: 5.386664569e-14 | CL147: 5.301657505e-14 | CM147: 5.216218103e-14 | CN147: 5.13033655e-14 | CO147: 5.044002765e-14 | CP147: 4.957206383e-14 | CQ147: 4.869936747e-14 | CR147: 4.782182899e-14 | CS147: 4.693933564e-14 | CT147: 4.605177142e-14 | CU147: 4.515901693e-14 | CV147: 4.426094917e-14 | CW147: 4.33574414e-14 | CX147: 4.244836291e-14 | CY147: 4.15335788e-14
A148: 138 | B148: 1.17963552e-13 | C148: 1.17963552e-13 | D148: 1.172945395e-13 | E148: 1.166245053e-13 | F148: 1.159534391e-13 | G148: 1.152813297e-13 | H148: 1.146081662e-13 | I148: 1.139339371e-13 | J148: 1.132586307e-13 | K148: 1.125822352e-13 | L148: 1.119047383e-13 | M148: 1.112261274e-13 | N148: 1.105463897e-13 | O148: 1.098655122e-13 | P148: 1.091834813e-13 | Q148: 1.085002832e-13 | R148: 1.078159039e-13 | S148: 1.071303289e-13 | T148: 1.064435434e-13 | U148: 1.057555321e-13 | V148: 1.050662796e-13 | W148: 1.043757699e-13 | X148: 1.036839866e-13 | Y148: 1.029909131e-13 | Z148: 1.022965321e-13 | AA148: 1.016008261e-13 | AB148: 1.00903777e-13 | AC148: 1.002053664e-13 | AD148: 9.950557526e-14 | AE148: 9.880438424e-14 | AF148: 9.81017734e-14 | AG148: 9.739772231e-14 | AH148: 9.669221004e-14 | AI148: 9.598521512e-14 | AJ148: 9.527671553e-14 | AK148: 9.456668869e-14 | AL148: 9.385511143e-14 | AM148: 9.314196002e-14 | AN148: 9.242721009e-14 | AO148: 9.171083664e-14 | AP148: 9.099281405e-14 | AQ148: 9.027311603e-14 | AR148: 8.955171559e-14 | AS148: 8.882858506e-14 | AT148: 8.810369605e-14 | AU148: 8.737701944e-14 | AV148: 8.664852533e-14 | AW148: 8.591818305e-14 | AX148: 8.518596115e-14 | AY148: 8.445182731e-14 | AZ148: 8.371574843e-14 | BA148: 8.297769047e-14 | BB148: 8.223761855e-14 | BC148: 8.149549686e-14 | BD148: 8.075128863e-14 | BE148: 8.000495613e-14 | BF148: 7.925646065e-14 | BG148: 7.850576244e-14 | BH148: 7.77528207e-14 | BI148: 7.699759355e-14 | BJ148: 7.6240038e-14 | BK148: 7.548010994e-14 | BL148: 7.471776405e-14 | BM148: 7.395295383e-14 | BN148: 7.318563154e-14 | BO148: 7.241574816e-14 | BP148: 7.164325337e-14 | BQ148: 7.086809549e-14 | BR148: 7.009022149e-14 | BS148: 6.930957688e-14 | BT148: 6.852610575e-14 | BU148: 6.773975067e-14 | BV148: 6.695045268e-14 | BW148: 6.615815121e-14 | BX148: 6.536278411e-14 | BY148: 6.456428751e-14 | BZ148: 6.376259585e-14 | CA148: 6.29576418e-14 | CB148: 6.214935619e-14 | CC148: 6.133766802e-14 | CD148: 6.052250434e-14 | CE148: 5.970379023e-14 | CF148: 5.888144877e-14 | CG148: 5.80554009e-14 | CH148: 5.722556546e-14 | CI148: 5.639185906e-14 | CJ148: 5.555419604e-14 | CK148: 5.471248838e-14 | CL148: 5.386664569e-14 | CM148: 5.301657505e-14 | CN148: 5.216218103e-14 | CO148: 5.13033655e-14 | CP148: 5.044002765e-14 | CQ148: 4.957206383e-14 | CR148: 4.869936747e-14 | CS148: 4.782182899e-14 | CT148: 4.693933564e-14 | CU148: 4.605177142e-14 | CV148: 4.515901693e-14 | CW148: 4.426094917e-14 | CX148: 4.33574414e-14 | CY148: 4.244836291e-14
A149: 139 | B149: 1.186315534e-13 | C149: 1.186315534e-13 | D149: 1.17963552e-13 | E149: 1.172945395e-13 | F149: 1.166245053e-13 | G149: 1.159534391e-13 | H149: 1.152813297e-13 | I149: 1.146081662e-13 | J149: 1.139339371e-13 | K149: 1.132586307e-13 | L149: 1.125822352e-13 | M149: 1.119047383e-13 | N149: 1.112261274e-13 | O149: 1.105463897e-13 | P149: 1.098655122e-13 | Q149: 1.091834813e-13 | R149: 1.085002832e-13 | S149: 1.078159039e-13 | T149: 1.071303289e-13 | U149: 1.064435434e-13 | V149: 1.057555321e-13 | W149: 1.050662796e-13 | X149: 1.043757699e-13 | Y149: 1.036839866e-13 | Z149: 1.029909131e-13 | AA149: 1.022965321e-13 | AB149: 1.016008261e-13 | AC149: 1.00903777e-13 | AD149: 1.002053664e-13 | AE149: 9.950557526e-14 | AF149: 9.880438424e-14 | AG149: 9.81017734e-14 | AH149: 9.739772231e-14 | AI149: 9.669221004e-14 | AJ149: 9.598521512e-14 | AK149: 9.527671553e-14 | AL149: 9.456668869e-14 | AM149: 9.385511143e-14 | AN149: 9.314196002e-14 | AO149: 9.242721009e-14 | AP149: 9.171083664e-14 | AQ149: 9.099281405e-14 | AR149: 9.027311603e-14 | AS149: 8.955171559e-14 | AT149: 8.882858506e-14 | AU149: 8.810369605e-14 | AV149: 8.737701944e-14 | AW149: 8.664852533e-14 | AX149: 8.591818305e-14 | AY149: 8.518596115e-14 | AZ149: 8.445182731e-14 | BA149: 8.371574843e-14 | BB149: 8.297769047e-14 | BC149: 8.223761855e-14 | BD149: 8.149549686e-14 | BE149: 8.075128863e-14 | BF149: 8.000495613e-14 | BG149: 7.925646065e-14 | BH149: 7.850576244e-14 | BI149: 7.77528207e-14 | BJ149: 7.699759355e-14 | BK149: 7.6240038e-14 | BL149: 7.548010994e-14 | BM149: 7.471776405e-14 | BN149: 7.395295383e-14 | BO149: 7.318563154e-14 | BP149: 7.241574816e-14 | BQ149: 7.164325337e-14 | BR149: 7.086809549e-14 | BS149: 7.009022149e-14 | BT149: 6.930957688e-14 | BU149: 6.852610575e-14 | BV149: 6.773975067e-14 | BW149: 6.695045268e-14 | BX149: 6.615815121e-14 | BY149: 6.536278411e-14 | BZ149: 6.456428751e-14 | CA149: 6.376259585e-14 | CB149: 6.29576418e-14 | CC149: 6.214935619e-14 | CD149: 6.133766802e-14 | CE149: 6.052250434e-14 | CF149: 5.970379023e-14 | CG149: 5.888144877e-14 | CH149: 5.80554009e-14 | CI149: 5.722556546e-14 | CJ149: 5.639185906e-14 | CK149: 5.555419604e-14 | CL149: 5.471248838e-14 | CM149: 5.386664569e-14 | CN149: 5.301657505e-14 | CO149: 5.216218103e-14 | CP149: 5.13033655e-14 | CQ149: 5.044002765e-14 | CR149: 4.957206383e-14 | CS149: 4.869936747e-14 | CT149: 4.782182899e-14 | CU149: 4.693933564e-14 | CV149: 4.605177142e-14 | CW149: 4.515901693e-14 | CX149: 4.426094917e-14 | CY149: 4.33574414e-14
A150: 140 | B150: 1.192985538e-13 | C150: 1.192985538e-13 | D150: 1.186315534e-13 | E150: 1.17963552e-13 | F150: 1.172945395e-13 | G150: 1.166245053e-13 | H150: 1.159534391e-13 | I150: 1.152813297e-13 | J150: 1.146081662e-13 | K150: 1.139339371e-13 | L150: 1.132586307e-13 | M150: 1.125822352e-13 | N150: 1.119047383e-13 | O150: 1.112261274e-13 | P150: 1.105463897e-13 | Q150: 1.098655122e-13 | R150: 1.091834813e-13 | S150: 1.085002832e-13 | T150: 1.078159039e-13 | U150: 1.071303289e-13 | V150: 1.064435434e-13 | W150: 1.057555321e-13 | X150: 1.050662796e-13 | Y150: 1.043757699e-13 | Z150: 1.036839866e-13 | AA150: 1.029909131e-13 | AB150: 1.022965321e-13 | AC150: 1.016008261e-13 | AD150: 1.00903777e-13 | AE150: 1.002053664e-13 | AF150: 9.950557526e-14 | AG150: 9.880438424e-14 | AH150: 9.81017734e-14 | AI150: 9.739772231e-14 | AJ150: 9.669221004e-14 | AK150: 9.598521512e-14 | AL150: 9.527671553e-14 | AM150: 9.456668869e-14 | AN150: 9.385511143e-14 | AO150: 9.314196002e-14 | AP150: 9.242721009e-14 | AQ150: 9.171083664e-14 | AR150: 9.099281405e-14 | AS150: 9.027311603e-14 | AT150: 8.955171559e-14 | AU150: 8.882858506e-14 | AV150: 8.810369605e-14 | AW150: 8.737701944e-14 | AX150: 8.664852533e-14 | AY150: 8.591818305e-14 | AZ150: 8.518596115e-14 | BA150: 8.445182731e-14 | BB150: 8.371574843e-14 | BC150: 8.297769047e-14 | BD150: 8.223761855e-14 | BE150: 8.149549686e-14 | BF150: 8.075128863e-14 | BG150: 8.000495613e-14 | BH150: 7.925646065e-14 | BI150: 7.850576244e-14 | BJ150: 7.77528207e-14 | BK150: 7.699759355e-14 | BL150: 7.6240038e-14 | BM150: 7.548010994e-14 | BN150: 7.471776405e-14 | BO150: 7.395295383e-14 | BP150: 7.318563154e-14 | BQ150: 7.241574816e-14 | BR150: 7.164325337e-14 | BS150: 7.086809549e-14 | BT150: 7.009022149e-14 | BU150: 6.930957688e-14 | BV150: 6.852610575e-14 | BW150: 6.773975067e-14 | BX150: 6.695045268e-14 | BY150: 6.615815121e-14 | BZ150: 6.536278411e-14 | CA150: 6.456428751e-14 | CB150: 6.376259585e-14 | CC150: 6.29576418e-14 | CD150: 6.214935619e-14 | CE150: 6.133766802e-14 | CF150: 6.052250434e-14 | CG150: 5.970379023e-14 | CH150: 5.888144877e-14 | CI150: 5.80554009e-14 | CJ150: 5.722556546e-14 | CK150: 5.639185906e-14 | CL150: 5.555419604e-14 | CM150: 5.471248838e-14 | CN150: 5.386664569e-14 | CO150: 5.301657505e-14 | CP150: 5.216218103e-14 | CQ150: 5.13033655e-14 | CR150: 5.044002765e-14 | CS150: 4.957206383e-14 | CT150: 4.869936747e-14 | CU150: 4.782182899e-14 | CV150: 4.693933564e-14 | CW150: 4.605177142e-14 | CX150: 4.515901693e-14 | CY150: 4.426094917e-14
A151: 141 | B151: 1.19964563e-13 | C151: 1.19964563e-13 | D151: 1.192985538e-13 | E151: 1.186315534e-13 | F151: 1.17963552e-13 | G151: 1.172945395e-13 | H151: 1.166245053e-13 | I151: 1.159534391e-13 | J151: 1.152813297e-13 | K151: 1.146081662e-13 | L151: 1.139339371e-13 | M151: 1.132586307e-13 | N151: 1.125822352e-13 | O151: 1.119047383e-13 | P151: 1.112261274e-13 | Q151: 1.105463897e-13 | R151: 1.098655122e-13 | S151: 1.091834813e-13 | T151: 1.085002832e-13 | U151: 1.078159039e-13 | V151: 1.071303289e-13 | W151: 1.064435434e-13 | X151: 1.057555321e-13 | Y151: 1.050662796e-13 | Z151: 1.043757699e-13 | AA151: 1.036839866e-13 | AB151: 1.029909131e-13 | AC151: 1.022965321e-13 | AD151: 1.016008261e-13 | AE151: 1.00903777e-13 | AF151: 1.002053664e-13 | AG151: 9.950557526e-14 | AH151: 9.880438424e-14 | AI151: 9.81017734e-14 | AJ151: 9.739772231e-14 | AK151: 9.669221004e-14 | AL151: 9.598521512e-14 | AM151: 9.527671553e-14 | AN151: 9.456668869e-14 | AO151: 9.385511143e-14 | AP151: 9.314196002e-14 | AQ151: 9.242721009e-14 | AR151: 9.171083664e-14 | AS151: 9.099281405e-14 | AT151: 9.027311603e-14 | AU151: 8.955171559e-14 | AV151: 8.882858506e-14 | AW151: 8.810369605e-14 | AX151: 8.737701944e-14 | AY151: 8.664852533e-14 | AZ151: 8.591818305e-14 | BA151: 8.518596115e-14 | BB151: 8.445182731e-14 | BC151: 8.371574843e-14 | BD151: 8.297769047e-14 | BE151: 8.223761855e-14 | BF151: 8.149549686e-14 | BG151: 8.075128863e-14 | BH151: 8.000495613e-14 | BI151: 7.925646065e-14 | BJ151: 7.850576244e-14 | BK151: 7.77528207e-14 | BL151: 7.699759355e-14 | BM151: 7.6240038e-14 | BN151: 7.548010994e-14 | BO151: 7.471776405e-14 | BP151: 7.395295383e-14 | BQ151: 7.318563154e-14 | BR151: 7.241574816e-14 | BS151: 7.164325337e-14 | BT151: 7.086809549e-14 | BU151: 7.009022149e-14 | BV151: 6.930957688e-14 | BW151: 6.852610575e-14 | BX151: 6.773975067e-14 | BY151: 6.695045268e-14 | BZ151: 6.615815121e-14 | CA151: 6.536278411e-14 | CB151: 6.456428751e-14 | CC151: 6.376259585e-14 | CD151: 6.29576418e-14 | CE151: 6.214935619e-14 | CF151: 6.133766802e-14 | CG151: 6.052250434e-14 | CH151: 5.970379023e-14 | CI151: 5.888144877e-14 | CJ151: 5.80554009e-14 | CK151: 5.722556546e-14 | CL151: 5.639185906e-14 | CM151: 5.555419604e-14 | CN151: 5.471248838e-14 | CO151: 5.386664569e-14 | CP151: 5.301657505e-14 | CQ151: 5.216218103e-14 | CR151: 5.13033655e-14 | CS151: 5.044002765e-14 | CT151: 4.957206383e-14 | CU151: 4.869936747e-14 | CV151: 4.782182899e-14 | CW151: 4.693933564e-14 | CX151: 4.605177142e-14 | CY151: 4.515901693e-14
A152: 142 | B152: 1.206295908e-13 | C152: 1.206295908e-13 | D152: 1.19964563e-13 | E152: 1.192985538e-13 | F152: 1.186315534e-13 | G152: 1.17963552e-13 | H152: 1.172945395e-13 | I152: 1.166245053e-13 | J152: 1.159534391e-13 | K152: 1.152813297e-13 | L152: 1.146081662e-13 | M152: 1.139339371e-13 | N152: 1.132586307e-13 | O152: 1.125822352e-13 | P152: 1.119047383e-13 | Q152: 1.112261274e-13 | R152: 1.105463897e-13 | S152: 1.098655122e-13 | T152: 1.091834813e-13 | U152: 1.085002832e-13 | V152: 1.078159039e-13 | W152: 1.071303289e-13 | X152: 1.064435434e-13 | Y152: 1.057555321e-13 | Z152: 1.050662796e-13 | AA152: 1.043757699e-13 | AB152: 1.036839866e-13 | AC152: 1.029909131e-13 | AD152: 1.022965321e-13 | AE152: 1.016008261e-13 | AF152: 1.00903777e-13 | AG152: 1.002053664e-13 | AH152: 9.950557526e-14 | AI152: 9.880438424e-14 | AJ152: 9.81017734e-14 | AK152: 9.739772231e-14 | AL152: 9.669221004e-14 | AM152: 9.598521512e-14 | AN152: 9.527671553e-14 | AO152: 9.456668869e-14 | AP152: 9.385511143e-14 | AQ152: 9.314196002e-14 | AR152: 9.242721009e-14 | AS152: 9.171083664e-14 | AT152: 9.099281405e-14 | AU152: 9.027311603e-14 | AV152: 8.955171559e-14 | AW152: 8.882858506e-14 | AX152: 8.810369605e-14 | AY152: 8.737701944e-14 | AZ152: 8.664852533e-14 | BA152: 8.591818305e-14 | BB152: 8.518596115e-14 | BC152: 8.445182731e-14 | BD152: 8.371574843e-14 | BE152: 8.297769047e-14 | BF152: 8.223761855e-14 | BG152: 8.149549686e-14 | BH152: 8.075128863e-14 | BI152: 8.000495613e-14 | BJ152: 7.925646065e-14 | BK152: 7.850576244e-14 | BL152: 7.77528207e-14 | BM152: 7.699759355e-14 | BN152: 7.6240038e-14 | BO152: 7.548010994e-14 | BP152: 7.471776405e-14 | BQ152: 7.395295383e-14 | BR152: 7.318563154e-14 | BS152: 7.241574816e-14 | BT152: 7.164325337e-14 | BU152: 7.086809549e-14 | BV152: 7.009022149e-14 | BW152: 6.930957688e-14 | BX152: 6.852610575e-14 | BY152: 6.773975067e-14 | BZ152: 6.695045268e-14 | CA152: 6.615815121e-14 | CB152: 6.536278411e-14 | CC152: 6.456428751e-14 | CD152: 6.376259585e-14 | CE152: 6.29576418e-14 | CF152: 6.214935619e-14 | CG152: 6.133766802e-14 | CH152: 6.052250434e-14 | CI152: 5.970379023e-14 | CJ152: 5.888144877e-14 | CK152: 5.80554009e-14 | CL152: 5.722556546e-14 | CM152: 5.639185906e-14 | CN152: 5.555419604e-14 | CO152: 5.471248838e-14 | CP152: 5.386664569e-14 | CQ152: 5.301657505e-14 | CR152: 5.216218103e-14 | CS152: 5.13033655e-14 | CT152: 5.044002765e-14 | CU152: 4.957206383e-14 | CV152: 4.869936747e-14 | CW152: 4.782182899e-14 | CX152: 4.693933564e-14 | CY152: 4.605177142e-14
A153: 143 | B153: 1.212936467e-13 | C153: 1.212936467e-13 | D153: 1.206295908e-13 | E153: 1.19964563e-13 | F153: 1.192985538e-13 | G153: 1.186315534e-13 | H153: 1.17963552e-13 | I153: 1.172945395e-13 | J153: 1.166245053e-13 | K153: 1.159534391e-13 | L153: 1.152813297e-13 | M153: 1.146081662e-13 | N153: 1.139339371e-13 | O153: 1.132586307e-13 | P153: 1.125822352e-13 | Q153: 1.119047383e-13 | R153: 1.112261274e-13 | S153: 1.105463897e-13 | T153: 1.098655122e-13 | U153: 1.091834813e-13 | V153: 1.085002832e-13 | W153: 1.078159039e-13 | X153: 1.071303289e-13 | Y153: 1.064435434e-13 | Z153: 1.057555321e-13 | AA153: 1.050662796e-13 | AB153: 1.043757699e-13 | AC153: 1.036839866e-13 | AD153: 1.029909131e-13 | AE153: 1.022965321e-13 | AF153: 1.016008261e-13 | AG153: 1.00903777e-13 | AH153: 1.002053664e-13 | AI153: 9.950557526e-14 | AJ153: 9.880438424e-14 | AK153: 9.81017734e-14 | AL153: 9.739772231e-14 | AM153: 9.669221004e-14 | AN153: 9.598521512e-14 | AO153: 9.527671553e-14 | AP153: 9.456668869e-14 | AQ153: 9.385511143e-14 | AR153: 9.314196002e-14 | AS153: 9.242721009e-14 | AT153: 9.171083664e-14 | AU153: 9.099281405e-14 | AV153: 9.027311603e-14 | AW153: 8.955171559e-14 | AX153: 8.882858506e-14 | AY153: 8.810369605e-14 | AZ153: 8.737701944e-14 | BA153: 8.664852533e-14 | BB153: 8.591818305e-14 | BC153: 8.518596115e-14 | BD153: 8.445182731e-14 | BE153: 8.371574843e-14 | BF153: 8.297769047e-14 | BG153: 8.223761855e-14 | BH153: 8.149549686e-14 | BI153: 8.075128863e-14 | BJ153: 8.000495613e-14 | BK153: 7.925646065e-14 | BL153: 7.850576244e-14 | BM153: 7.77528207e-14 | BN153: 7.699759355e-14 | BO153: 7.6240038e-14 | BP153: 7.548010994e-14 | BQ153: 7.471776405e-14 | BR153: 7.395295383e-14 | BS153: 7.318563154e-14 | BT153: 7.241574816e-14 | BU153: 7.164325337e-14 | BV153: 7.086809549e-14 | BW153: 7.009022149e-14 | BX153: 6.930957688e-14 | BY153: 6.852610575e-14 | BZ153: 6.773975067e-14 | CA153: 6.695045268e-14 | CB153: 6.615815121e-14 | CC153: 6.536278411e-14 | CD153: 6.456428751e-14 | CE153: 6.376259585e-14 | CF153: 6.29576418e-14 | CG153: 6.214935619e-14 | CH153: 6.133766802e-14 | CI153: 6.052250434e-14 | CJ153: 5.970379023e-14 | CK153: 5.888144877e-14 | CL153: 5.80554009e-14 | CM153: 5.722556546e-14 | CN153: 5.639185906e-14 | CO153: 5.555419604e-14 | CP153: 5.471248838e-14 | CQ153: 5.386664569e-14 | CR153: 5.301657505e-14 | CS153: 5.216218103e-14 | CT153: 5.13033655e-14 | CU153: 5.044002765e-14 | CV153: 4.957206383e-14 | CW153: 4.869936747e-14 | CX153: 4.782182899e-14 | CY153: 4.693933564e-14
A154: 144 | B154: 1.219567399e-13 | C154: 1.219567399e-13 | D154: 1.212936467e-13 | E154: 1.206295908e-13 | F154: 1.19964563e-13 | G154: 1.192985538e-13 | H154: 1.186315534e-13 | I154: 1.17963552e-13 | J154: 1.172945395e-13 | K154: 1.166245053e-13 | L154: 1.159534391e-13 | M154: 1.152813297e-13 | N154: 1.146081662e-13 | O154: 1.139339371e-13 | P154: 1.132586307e-13 | Q154: 1.125822352e-13 | R154: 1.119047383e-13 | S154: 1.112261274e-13 | T154: 1.105463897e-13 | U154: 1.098655122e-13 | V154: 1.091834813e-13 | W154: 1.085002832e-13 | X154: 1.078159039e-13 | Y154: 1.071303289e-13 | Z154: 1.064435434e-13 | AA154: 1.057555321e-13 | AB154: 1.050662796e-13 | AC154: 1.043757699e-13 | AD154: 1.036839866e-13 | AE154: 1.029909131e-13 | AF154: 1.022965321e-13 | AG154: 1.016008261e-13 | AH154: 1.00903777e-13 | AI154: 1.002053664e-13 | AJ154: 9.950557526e-14 | AK154: 9.880438424e-14 | AL154: 9.81017734e-14 | AM154: 9.739772231e-14 | AN154: 9.669221004e-14 | AO154: 9.598521512e-14 | AP154: 9.527671553e-14 | AQ154: 9.456668869e-14 | AR154: 9.385511143e-14 | AS154: 9.314196002e-14 | AT154: 9.242721009e-14 | AU154: 9.171083664e-14 | AV154: 9.099281405e-14 | AW154: 9.027311603e-14 | AX154: 8.955171559e-14 | AY154: 8.882858506e-14 | AZ154: 8.810369605e-14 | BA154: 8.737701944e-14 | BB154: 8.664852533e-14 | BC154: 8.591818305e-14 | BD154: 8.518596115e-14 | BE154: 8.445182731e-14 | BF154: 8.371574843e-14 | BG154: 8.297769047e-14 | BH154: 8.223761855e-14 | BI154: 8.149549686e-14 | BJ154: 8.075128863e-14 | BK154: 8.000495613e-14 | BL154: 7.925646065e-14 | BM154: 7.850576244e-14 | BN154: 7.77528207e-14 | BO154: 7.699759355e-14 | BP154: 7.6240038e-14 | BQ154: 7.548010994e-14 | BR154: 7.471776405e-14 | BS154: 7.395295383e-14 | BT154: 7.318563154e-14 | BU154: 7.241574816e-14 | BV154: 7.164325337e-14 | BW154: 7.086809549e-14 | BX154: 7.009022149e-14 | BY154: 6.930957688e-14 | BZ154: 6.852610575e-14 | CA154: 6.773975067e-14 | CB154: 6.695045268e-14 | CC154: 6.615815121e-14 | CD154: 6.536278411e-14 | CE154: 6.456428751e-14 | CF154: 6.376259585e-14 | CG154: 6.29576418e-14 | CH154: 6.214935619e-14 | CI154: 6.133766802e-14 | CJ154: 6.052250434e-14 | CK154: 5.970379023e-14 | CL154: 5.888144877e-14 | CM154: 5.80554009e-14 | CN154: 5.722556546e-14 | CO154: 5.639185906e-14 | CP154: 5.555419604e-14 | CQ154: 5.471248838e-14 | CR154: 5.386664569e-14 | CS154: 5.301657505e-14 | CT154: 5.216218103e-14 | CU154: 5.13033655e-14 | CV154: 5.044002765e-14 | CW154: 4.957206383e-14 | CX154: 4.869936747e-14 | CY154: 4.782182899e-14
A155: 145 | B155: 1.226188794e-13 | C155: 1.226188794e-13 | D155: 1.219567399e-13 | E155: 1.212936467e-13 | F155: 1.206295908e-13 | G155: 1.19964563e-13 | H155: 1.192985538e-13 | I155: 1.186315534e-13 | J155: 1.17963552e-13 | K155: 1.172945395e-13 | L155: 1.166245053e-13 | M155: 1.159534391e-13 | N155: 1.152813297e-13 | O155: 1.146081662e-13 | P155: 1.139339371e-13 | Q155: 1.132586307e-13 | R155: 1.125822352e-13 | S155: 1.119047383e-13 | T155: 1.112261274e-13 | U155: 1.105463897e-13 | V155: 1.098655122e-13 | W155: 1.091834813e-13 | X155: 1.085002832e-13 | Y155: 1.078159039e-13 | Z155: 1.071303289e-13 | AA155: 1.064435434e-13 | AB155: 1.057555321e-13 | AC155: 1.050662796e-13 | AD155: 1.043757699e-13 | AE155: 1.036839866e-13 | AF155: 1.029909131e-13 | AG155: 1.022965321e-13 | AH155: 1.016008261e-13 | AI155: 1.00903777e-13 | AJ155: 1.002053664e-13 | AK155: 9.950557526e-14 | AL155: 9.880438424e-14 | AM155: 9.81017734e-14 | AN155: 9.739772231e-14 | AO155: 9.669221004e-14 | AP155: 9.598521512e-14 | AQ155: 9.527671553e-14 | AR155: 9.456668869e-14 | AS155: 9.385511143e-14 | AT155: 9.314196002e-14 | AU155: 9.242721009e-14 | AV155: 9.171083664e-14 | AW155: 9.099281405e-14 | AX155: 9.027311603e-14 | AY155: 8.955171559e-14 | AZ155: 8.882858506e-14 | BA155: 8.810369605e-14 | BB155: 8.737701944e-14 | BC155: 8.664852533e-14 | BD155: 8.591818305e-14 | BE155: 8.518596115e-14 | BF155: 8.445182731e-14 | BG155: 8.371574843e-14 | BH155: 8.297769047e-14 | BI155: 8.223761855e-14 | BJ155: 8.149549686e-14 | BK155: 8.075128863e-14 | BL155: 8.000495613e-14 | BM155: 7.925646065e-14 | BN155: 7.850576244e-14 | BO155: 7.77528207e-14 | BP155: 7.699759355e-14 | BQ155: 7.6240038e-14 | BR155: 7.548010994e-14 | BS155: 7.471776405e-14 | BT155: 7.395295383e-14 | BU155: 7.318563154e-14 | BV155: 7.241574816e-14 | BW155: 7.164325337e-14 | BX155: 7.086809549e-14 | BY155: 7.009022149e-14 | BZ155: 6.930957688e-14 | CA155: 6.852610575e-14 | CB155: 6.773975067e-14 | CC155: 6.695045268e-14 | CD155: 6.615815121e-14 | CE155: 6.536278411e-14 | CF155: 6.456428751e-14 | CG155: 6.376259585e-14 | CH155: 6.29576418e-14 | CI155: 6.214935619e-14 | CJ155: 6.133766802e-14 | CK155: 6.052250434e-14 | CL155: 5.970379023e-14 | CM155: 5.888144877e-14 | CN155: 5.80554009e-14 | CO155: 5.722556546e-14 | CP155: 5.639185906e-14 | CQ155: 5.555419604e-14 | CR155: 5.471248838e-14 | CS155: 5.386664569e-14 | CT155: 5.301657505e-14 | CU155: 5.216218103e-14 | CV155: 5.13033655e-14 | CW155: 5.044002765e-14 | CX155: 4.957206383e-14 | CY155: 4.869936747e-14
A156: 146 | B156: 1.232800742e-13 | C156: 1.232800742e-13 | D156: 1.226188794e-13 | E156: 1.219567399e-13 | F156: 1.212936467e-13 | G156: 1.206295908e-13 | H156: 1.19964563e-13 | I156: 1.192985538e-13 | J156: 1.186315534e-13 | K156: 1.17963552e-13 | L156: 1.172945395e-13 | M156: 1.166245053e-13 | N156: 1.159534391e-13 | O156: 1.152813297e-13 | P156: 1.146081662e-13 | Q156: 1.139339371e-13 | R156: 1.132586307e-13 | S156: 1.125822352e-13 | T156: 1.119047383e-13 | U156: 1.112261274e-13 | V156: 1.105463897e-13 | W156: 1.098655122e-13 | X156: 1.091834813e-13 | Y156: 1.085002832e-13 | Z156: 1.078159039e-13 | AA156: 1.071303289e-13 | AB156: 1.064435434e-13 | AC156: 1.057555321e-13 | AD156: 1.050662796e-13 | AE156: 1.043757699e-13 | AF156: 1.036839866e-13 | AG156: 1.029909131e-13 | AH156: 1.022965321e-13 | AI156: 1.016008261e-13 | AJ156: 1.00903777e-13 | AK156: 1.002053664e-13 | AL156: 9.950557526e-14 | AM156: 9.880438424e-14 | AN156: 9.81017734e-14 | AO156: 9.739772231e-14 | AP156: 9.669221004e-14 | AQ156: 9.598521512e-14 | AR156: 9.527671553e-14 | AS156: 9.456668869e-14 | AT156: 9.385511143e-14 | AU156: 9.314196002e-14 | AV156: 9.242721009e-14 | AW156: 9.171083664e-14 | AX156: 9.099281405e-14 | AY156: 9.027311603e-14 | AZ156: 8.955171559e-14 | BA156: 8.882858506e-14 | BB156: 8.810369605e-14 | BC156: 8.737701944e-14 | BD156: 8.664852533e-14 | BE156: 8.591818305e-14 | BF156: 8.518596115e-14 | BG156: 8.445182731e-14 | BH156: 8.371574843e-14 | BI156: 8.297769047e-14 | BJ156: 8.223761855e-14 | BK156: 8.149549686e-14 | BL156: 8.075128863e-14 | BM156: 8.000495613e-14 | BN156: 7.925646065e-14 | BO156: 7.850576244e-14 | BP156: 7.77528207e-14 | BQ156: 7.699759355e-14 | BR156: 7.6240038e-14 | BS156: 7.548010994e-14 | BT156: 7.471776405e-14 | BU156: 7.395295383e-14 | BV156: 7.318563154e-14 | BW156: 7.241574816e-14 | BX156: 7.164325337e-14 | BY156: 7.086809549e-14 | BZ156: 7.009022149e-14 | CA156: 6.930957688e-14 | CB156: 6.852610575e-14 | CC156: 6.773975067e-14 | CD156: 6.695045268e-14 | CE156: 6.615815121e-14 | CF156: 6.536278411e-14 | CG156: 6.456428751e-14 | CH156: 6.376259585e-14 | CI156: 6.29576418e-14 | CJ156: 6.214935619e-14 | CK156: 6.133766802e-14 | CL156: 6.052250434e-14 | CM156: 5.970379023e-14 | CN156: 5.888144877e-14 | CO156: 5.80554009e-14 | CP156: 5.722556546e-14 | CQ156: 5.639185906e-14 | CR156: 5.555419604e-14 | CS156: 5.471248838e-14 | CT156: 5.386664569e-14 | CU156: 5.301657505e-14 | CV156: 5.216218103e-14 | CW156: 5.13033655e-14 | CX156: 5.044002765e-14 | CY156: 4.957206383e-14
A157: 147 | B157: 1.239403328e-13 | C157: 1.239403328e-13 | D157: 1.232800742e-13 | E157: 1.226188794e-13 | F157: 1.219567399e-13 | G157: 1.212936467e-13 | H157: 1.206295908e-13 | I157: 1.19964563e-13 | J157: 1.192985538e-13 | K157: 1.186315534e-13 | L157: 1.17963552e-13 | M157: 1.172945395e-13 | N157: 1.166245053e-13 | O157: 1.159534391e-13 | P157: 1.152813297e-13 | Q157: 1.146081662e-13 | R157: 1.139339371e-13 | S157: 1.132586307e-13 | T157: 1.125822352e-13 | U157: 1.119047383e-13 | V157: 1.112261274e-13 | W157: 1.105463897e-13 | X157: 1.098655122e-13 | Y157: 1.091834813e-13 | Z157: 1.085002832e-13 | AA157: 1.078159039e-13 | AB157: 1.071303289e-13 | AC157: 1.064435434e-13 | AD157: 1.057555321e-13 | AE157: 1.050662796e-13 | AF157: 1.043757699e-13 | AG157: 1.036839866e-13 | AH157: 1.029909131e-13 | AI157: 1.022965321e-13 | AJ157: 1.016008261e-13 | AK157: 1.00903777e-13 | AL157: 1.002053664e-13 | AM157: 9.950557526e-14 | AN157: 9.880438424e-14 | AO157: 9.81017734e-14 | AP157: 9.739772231e-14 | AQ157: 9.669221004e-14 | AR157: 9.598521512e-14 | AS157: 9.527671553e-14 | AT157: 9.456668869e-14 | AU157: 9.385511143e-14 | AV157: 9.314196002e-14 | AW157: 9.242721009e-14 | AX157: 9.171083664e-14 | AY157: 9.099281405e-14 | AZ157: 9.027311603e-14 | BA157: 8.955171559e-14 | BB157: 8.882858506e-14 | BC157: 8.810369605e-14 | BD157: 8.737701944e-14 | BE157: 8.664852533e-14 | BF157: 8.591818305e-14 | BG157: 8.518596115e-14 | BH157: 8.445182731e-14 | BI157: 8.371574843e-14 | BJ157: 8.297769047e-14 | BK157: 8.223761855e-14 | BL157: 8.149549686e-14 | BM157: 8.075128863e-14 | BN157: 8.000495613e-14 | BO157: 7.925646065e-14 | BP157: 7.850576244e-14 | BQ157: 7.77528207e-14 | BR157: 7.699759355e-14 | BS157: 7.6240038e-14 | BT157: 7.548010994e-14 | BU157: 7.471776405e-14 | BV157: 7.395295383e-14 | BW157: 7.318563154e-14 | BX157: 7.241574816e-14 | BY157: 7.164325337e-14 | BZ157: 7.086809549e-14 | CA157: 7.009022149e-14 | CB157: 6.930957688e-14 | CC157: 6.852610575e-14 | CD157: 6.773975067e-14 | CE157: 6.695045268e-14 | CF157: 6.615815121e-14 | CG157: 6.536278411e-14 | CH157: 6.456428751e-14 | CI157: 6.376259585e-14 | CJ157: 6.29576418e-14 | CK157: 6.214935619e-14 | CL157: 6.133766802e-14 | CM157: 6.052250434e-14 | CN157: 5.970379023e-14 | CO157: 5.888144877e-14 | CP157: 5.80554009e-14 | CQ157: 5.722556546e-14 | CR157: 5.639185906e-14 | CS157: 5.555419604e-14 | CT157: 5.471248838e-14 | CU157: 5.386664569e-14 | CV157: 5.301657505e-14 | CW157: 5.216218103e-14 | CX157: 5.13033655e-14 | CY157: 5.044002765e-14
A158: 148 | B158: 1.245996638e-13 | C158: 1.245996638e-13 | D158: 1.239403328e-13 | E158: 1.232800742e-13 | F158: 1.226188794e-13 | G158: 1.219567399e-13 | H158: 1.212936467e-13 | I158: 1.206295908e-13 | J158: 1.19964563e-13 | K158: 1.192985538e-13 | L158: 1.186315534e-13 | M158: 1.17963552e-13 | N158: 1.172945395e-13 | O158: 1.166245053e-13 | P158: 1.159534391e-13 | Q158: 1.152813297e-13 | R158: 1.146081662e-13 | S158: 1.139339371e-13 | T158: 1.132586307e-13 | U158: 1.125822352e-13 | V158: 1.119047383e-13 | W158: 1.112261274e-13 | X158: 1.105463897e-13 | Y158: 1.098655122e-13 | Z158: 1.091834813e-13 | AA158: 1.085002832e-13 | AB158: 1.078159039e-13 | AC158: 1.071303289e-13 | AD158: 1.064435434e-13 | AE158: 1.057555321e-13 | AF158: 1.050662796e-13 | AG158: 1.043757699e-13 | AH158: 1.036839866e-13 | AI158: 1.029909131e-13 | AJ158: 1.022965321e-13 | AK158: 1.016008261e-13 | AL158: 1.00903777e-13 | AM158: 1.002053664e-13 | AN158: 9.950557526e-14 | AO158: 9.880438424e-14 | AP158: 9.81017734e-14 | AQ158: 9.739772231e-14 | AR158: 9.669221004e-14 | AS158: 9.598521512e-14 | AT158: 9.527671553e-14 | AU158: 9.456668869e-14 | AV158: 9.385511143e-14 | AW158: 9.314196002e-14 | AX158: 9.242721009e-14 | AY158: 9.171083664e-14 | AZ158: 9.099281405e-14 | BA158: 9.027311603e-14 | BB158: 8.955171559e-14 | BC158: 8.882858506e-14 | BD158: 8.810369605e-14 | BE158: 8.737701944e-14 | BF158: 8.664852533e-14 | BG158: 8.591818305e-14 | BH158: 8.518596115e-14 | BI158: 8.445182731e-14 | BJ158: 8.371574843e-14 | BK158: 8.297769047e-14 | BL158: 8.223761855e-14 | BM158: 8.149549686e-14 | BN158: 8.075128863e-14 | BO158: 8.000495613e-14 | BP158: 7.925646065e-14 | BQ158: 7.850576244e-14 | BR158: 7.77528207e-14 | BS158: 7.699759355e-14 | BT158: 7.6240038e-14 | BU158: 7.548010994e-14 | BV158: 7.471776405e-14 | BW158: 7.395295383e-14 | BX158: 7.318563154e-14 | BY158: 7.241574816e-14 | BZ158: 7.164325337e-14 | CA158: 7.086809549e-14 | CB158: 7.009022149e-14 | CC158: 6.930957688e-14 | CD158: 6.852610575e-14 | CE158: 6.773975067e-14 | CF158: 6.695045268e-14 | CG158: 6.615815121e-14 | CH158: 6.536278411e-14 | CI158: 6.456428751e-14 | CJ158: 6.376259585e-14 | CK158: 6.29576418e-14 | CL158: 6.214935619e-14 | CM158: 6.133766802e-14 | CN158: 6.052250434e-14 | CO158: 5.970379023e-14 | CP158: 5.888144877e-14 | CQ158: 5.80554009e-14 | CR158: 5.722556546e-14 | CS158: 5.639185906e-14 | CT158: 5.555419604e-14 | CU158: 5.471248838e-14 | CV158: 5.386664569e-14 | CW158: 5.301657505e-14 | CX158: 5.216218103e-14 | CY158: 5.13033655e-14
A159: 149 | B159: 1.252580753e-13 | C159: 1.252580753e-13 | D159: 1.245996638e-13 | E159: 1.239403328e-13 | F159: 1.232800742e-13 | G159: 1.226188794e-13 | H159: 1.219567399e-13 | I159: 1.212936467e-13 | J159: 1.206295908e-13 | K159: 1.19964563e-13 | L159: 1.192985538e-13 | M159: 1.186315534e-13 | N159: 1.17963552e-13 | O159: 1.172945395e-13 | P159: 1.166245053e-13 | Q159: 1.159534391e-13 | R159: 1.152813297e-13 | S159: 1.146081662e-13 | T159: 1.139339371e-13 | U159: 1.132586307e-13 | V159: 1.125822352e-13 | W159: 1.119047383e-13 | X159: 1.112261274e-13 | Y159: 1.105463897e-13 | Z159: 1.098655122e-13 | AA159: 1.091834813e-13 | AB159: 1.085002832e-13 | AC159: 1.078159039e-13 | AD159: 1.071303289e-13 | AE159: 1.064435434e-13 | AF159: 1.057555321e-13 | AG159: 1.050662796e-13 | AH159: 1.043757699e-13 | AI159: 1.036839866e-13 | AJ159: 1.029909131e-13 | AK159: 1.022965321e-13 | AL159: 1.016008261e-13 | AM159: 1.00903777e-13 | AN159: 1.002053664e-13 | AO159: 9.950557526e-14 | AP159: 9.880438424e-14 | AQ159: 9.81017734e-14 | AR159: 9.739772231e-14 | AS159: 9.669221004e-14 | AT159: 9.598521512e-14 | AU159: 9.527671553e-14 | AV159: 9.456668869e-14 | AW159: 9.385511143e-14 | AX159: 9.314196002e-14 | AY159: 9.242721009e-14 | AZ159: 9.171083664e-14 | BA159: 9.099281405e-14 | BB159: 9.027311603e-14 | BC159: 8.955171559e-14 | BD159: 8.882858506e-14 | BE159: 8.810369605e-14 | BF159: 8.737701944e-14 | BG159: 8.664852533e-14 | BH159: 8.591818305e-14 | BI159: 8.518596115e-14 | BJ159: 8.445182731e-14 | BK159: 8.371574843e-14 | BL159: 8.297769047e-14 | BM159: 8.223761855e-14 | BN159: 8.149549686e-14 | BO159: 8.075128863e-14 | BP159: 8.000495613e-14 | BQ159: 7.925646065e-14 | BR159: 7.850576244e-14 | BS159: 7.77528207e-14 | BT159: 7.699759355e-14 | BU159: 7.6240038e-14 | BV159: 7.548010994e-14 | BW159: 7.471776405e-14 | BX159: 7.395295383e-14 | BY159: 7.318563154e-14 | BZ159: 7.241574816e-14 | CA159: 7.164325337e-14 | CB159: 7.086809549e-14 | CC159: 7.009022149e-14 | CD159: 6.930957688e-14 | CE159: 6.852610575e-14 | CF159: 6.773975067e-14 | CG159: 6.695045268e-14 | CH159: 6.615815121e-14 | CI159: 6.536278411e-14 | CJ159: 6.456428751e-14 | CK159: 6.376259585e-14 | CL159: 6.29576418e-14 | CM159: 6.214935619e-14 | CN159: 6.133766802e-14 | CO159: 6.052250434e-14 | CP159: 5.970379023e-14 | CQ159: 5.888144877e-14 | CR159: 5.80554009e-14 | CS159: 5.722556546e-14 | CT159: 5.639185906e-14 | CU159: 5.555419604e-14 | CV159: 5.471248838e-14 | CW159: 5.386664569e-14 | CX159: 5.301657505e-14 | CY159: 5.216218103e-14
A160: 150 | B160: 1.259155756e-13 | C160: 1.259155756e-13 | D160: 1.252580753e-13 | E160: 1.245996638e-13 | F160: 1.239403328e-13 | G160: 1.232800742e-13 | H160: 1.226188794e-13 | I160: 1.219567399e-13 | J160: 1.212936467e-13 | K160: 1.206295908e-13 | L160: 1.19964563e-13 | M160: 1.192985538e-13 | N160: 1.186315534e-13 | O160: 1.17963552e-13 | P160: 1.172945395e-13 | Q160: 1.166245053e-13 | R160: 1.159534391e-13 | S160: 1.152813297e-13 | T160: 1.146081662e-13 | U160: 1.139339371e-13 | V160: 1.132586307e-13 | W160: 1.125822352e-13 | X160: 1.119047383e-13 | Y160: 1.112261274e-13 | Z160: 1.105463897e-13 | AA160: 1.098655122e-13 | AB160: 1.091834813e-13 | AC160: 1.085002832e-13 | AD160: 1.078159039e-13 | AE160: 1.071303289e-13 | AF160: 1.064435434e-13 | AG160: 1.057555321e-13 | AH160: 1.050662796e-13 | AI160: 1.043757699e-13 | AJ160: 1.036839866e-13 | AK160: 1.029909131e-13 | AL160: 1.022965321e-13 | AM160: 1.016008261e-13 | AN160: 1.00903777e-13 | AO160: 1.002053664e-13 | AP160: 9.950557526e-14 | AQ160: 9.880438424e-14 | AR160: 9.81017734e-14 | AS160: 9.739772231e-14 | AT160: 9.669221004e-14 | AU160: 9.598521512e-14 | AV160: 9.527671553e-14 | AW160: 9.456668869e-14 | AX160: 9.385511143e-14 | AY160: 9.314196002e-14 | AZ160: 9.242721009e-14 | BA160: 9.171083664e-14 | BB160: 9.099281405e-14 | BC160: 9.027311603e-14 | BD160: 8.955171559e-14 | BE160: 8.882858506e-14 | BF160: 8.810369605e-14 | BG160: 8.737701944e-14 | BH160: 8.664852533e-14 | BI160: 8.591818305e-14 | BJ160: 8.518596115e-14 | BK160: 8.445182731e-14 | BL160: 8.371574843e-14 | BM160: 8.297769047e-14 | BN160: 8.223761855e-14 | BO160: 8.149549686e-14 | BP160: 8.075128863e-14 | BQ160: 8.000495613e-14 | BR160: 7.925646065e-14 | BS160: 7.850576244e-14 | BT160: 7.77528207e-14 | BU160: 7.699759355e-14 | BV160: 7.6240038e-14 | BW160: 7.548010994e-14 | BX160: 7.471776405e-14 | BY160: 7.395295383e-14 | BZ160: 7.318563154e-14 | CA160: 7.241574816e-14 | CB160: 7.164325337e-14 | CC160: 7.086809549e-14 | CD160: 7.009022149e-14 | CE160: 6.930957688e-14 | CF160: 6.852610575e-14 | CG160: 6.773975067e-14 | CH160: 6.695045268e-14 | CI160: 6.615815121e-14 | CJ160: 6.536278411e-14 | CK160: 6.456428751e-14 | CL160: 6.376259585e-14 | CM160: 6.29576418e-14 | CN160: 6.214935619e-14 | CO160: 6.133766802e-14 | CP160: 6.052250434e-14 | CQ160: 5.970379023e-14 | CR160: 5.888144877e-14 | CS160: 5.80554009e-14 | CT160: 5.722556546e-14 | CU160: 5.639185906e-14 | CV160: 5.555419604e-14 | CW160: 5.471248838e-14 | CX160: 5.386664569e-14 | CY160: 5.301657505e-14
A161: 151 | B161: 1.265721725e-13 | C161: 1.265721725e-13 | D161: 1.259155756e-13 | E161: 1.252580753e-13 | F161: 1.245996638e-13 | G161: 1.239403328e-13 | H161: 1.232800742e-13 | I161: 1.226188794e-13 | J161: 1.219567399e-13 | K161: 1.212936467e-13 | L161: 1.206295908e-13 | M161: 1.19964563e-13 | N161: 1.192985538e-13 | O161: 1.186315534e-13 | P161: 1.17963552e-13 | Q161: 1.172945395e-13 | R161: 1.166245053e-13 | S161: 1.159534391e-13 | T161: 1.152813297e-13 | U161: 1.146081662e-13 | V161: 1.139339371e-13 | W161: 1.132586307e-13 | X161: 1.125822352e-13 | Y161: 1.119047383e-13 | Z161: 1.112261274e-13 | AA161: 1.105463897e-13 | AB161: 1.098655122e-13 | AC161: 1.091834813e-13 | AD161: 1.085002832e-13 | AE161: 1.078159039e-13 | AF161: 1.071303289e-13 | AG161: 1.064435434e-13 | AH161: 1.057555321e-13 | AI161: 1.050662796e-13 | AJ161: 1.043757699e-13 | AK161: 1.036839866e-13 | AL161: 1.029909131e-13 | AM161: 1.022965321e-13 | AN161: 1.016008261e-13 | AO161: 1.00903777e-13 | AP161: 1.002053664e-13 | AQ161: 9.950557526e-14 | AR161: 9.880438424e-14 | AS161: 9.81017734e-14 | AT161: 9.739772231e-14 | AU161: 9.669221004e-14 | AV161: 9.598521512e-14 | AW161: 9.527671553e-14 | AX161: 9.456668869e-14 | AY161: 9.385511143e-14 | AZ161: 9.314196002e-14 | BA161: 9.242721009e-14 | BB161: 9.171083664e-14 | BC161: 9.099281405e-14 | BD161: 9.027311603e-14 | BE161: 8.955171559e-14 | BF161: 8.882858506e-14 | BG161: 8.810369605e-14 | BH161: 8.737701944e-14 | BI161: 8.664852533e-14 | BJ161: 8.591818305e-14 | BK161: 8.518596115e-14 | BL161: 8.445182731e-14 | BM161: 8.371574843e-14 | BN161: 8.297769047e-14 | BO161: 8.223761855e-14 | BP161: 8.149549686e-14 | BQ161: 8.075128863e-14 | BR161: 8.000495613e-14 | BS161: 7.925646065e-14 | BT161: 7.850576244e-14 | BU161: 7.77528207e-14 | BV161: 7.699759355e-14 | BW161: 7.6240038e-14 | BX161: 7.548010994e-14 | BY161: 7.471776405e-14 | BZ161: 7.395295383e-14 | CA161: 7.318563154e-14 | CB161: 7.241574816e-14 | CC161: 7.164325337e-14 | CD161: 7.086809549e-14 | CE161: 7.009022149e-14 | CF161: 6.930957688e-14 | CG161: 6.852610575e-14 | CH161: 6.773975067e-14 | CI161: 6.695045268e-14 | CJ161: 6.615815121e-14 | CK161: 6.536278411e-14 | CL161: 6.456428751e-14 | CM161: 6.376259585e-14 | CN161: 6.29576418e-14 | CO161: 6.214935619e-14 | CP161: 6.133766802e-14 | CQ161: 6.052250434e-14 | CR161: 5.970379023e-14 | CS161: 5.888144877e-14 | CT161: 5.80554009e-14 | CU161: 5.722556546e-14 | CV161: 5.639185906e-14 | CW161: 5.555419604e-14 | CX161: 5.471248838e-14 | CY161: 5.386664569e-14
A162: 152 | B162: 1.272278738e-13 | C162: 1.272278738e-13 | D162: 1.265721725e-13 | E162: 1.259155756e-13 | F162: 1.252580753e-13 | G162: 1.245996638e-13 | H162: 1.239403328e-13 | I162: 1.232800742e-13 | J162: 1.226188794e-13 | K162: 1.219567399e-13 | L162: 1.212936467e-13 | M162: 1.206295908e-13 | N162: 1.19964563e-13 | O162: 1.192985538e-13 | P162: 1.186315534e-13 | Q162: 1.17963552e-13 | R162: 1.172945395e-13 | S162: 1.166245053e-13 | T162: 1.159534391e-13 | U162: 1.152813297e-13 | V162: 1.146081662e-13 | W162: 1.139339371e-13 | X162: 1.132586307e-13 | Y162: 1.125822352e-13 | Z162: 1.119047383e-13 | AA162: 1.112261274e-13 | AB162: 1.105463897e-13 | AC162: 1.098655122e-13 | AD162: 1.091834813e-13 | AE162: 1.085002832e-13 | AF162: 1.078159039e-13 | AG162: 1.071303289e-13 | AH162: 1.064435434e-13 | AI162: 1.057555321e-13 | AJ162: 1.050662796e-13 | AK162: 1.043757699e-13 | AL162: 1.036839866e-13 | AM162: 1.029909131e-13 | AN162: 1.022965321e-13 | AO162: 1.016008261e-13 | AP162: 1.00903777e-13 | AQ162: 1.002053664e-13 | AR162: 9.950557526e-14 | AS162: 9.880438424e-14 | AT162: 9.81017734e-14 | AU162: 9.739772231e-14 | AV162: 9.669221004e-14 | AW162: 9.598521512e-14 | AX162: 9.527671553e-14 | AY162: 9.456668869e-14 | AZ162: 9.385511143e-14 | BA162: 9.314196002e-14 | BB162: 9.242721009e-14 | BC162: 9.171083664e-14 | BD162: 9.099281405e-14 | BE162: 9.027311603e-14 | BF162: 8.955171559e-14 | BG162: 8.882858506e-14 | BH162: 8.810369605e-14 | BI162: 8.737701944e-14 | BJ162: 8.664852533e-14 | BK162: 8.591818305e-14 | BL162: 8.518596115e-14 | BM162: 8.445182731e-14 | BN162: 8.371574843e-14 | BO162: 8.297769047e-14 | BP162: 8.223761855e-14 | BQ162: 8.149549686e-14 | BR162: 8.075128863e-14 | BS162: 8.000495613e-14 | BT162: 7.925646065e-14 | BU162: 7.850576244e-14 | BV162: 7.77528207e-14 | BW162: 7.699759355e-14 | BX162: 7.6240038e-14 | BY162: 7.548010994e-14 | BZ162: 7.471776405e-14 | CA162: 7.395295383e-14 | CB162: 7.318563154e-14 | CC162: 7.241574816e-14 | CD162: 7.164325337e-14 | CE162: 7.086809549e-14 | CF162: 7.009022149e-14 | CG162: 6.930957688e-14 | CH162: 6.852610575e-14 | CI162: 6.773975067e-14 | CJ162: 6.695045268e-14 | CK162: 6.615815121e-14 | CL162: 6.536278411e-14 | CM162: 6.456428751e-14 | CN162: 6.376259585e-14 | CO162: 6.29576418e-14 | CP162: 6.214935619e-14 | CQ162: 6.133766802e-14 | CR162: 6.052250434e-14 | CS162: 5.970379023e-14 | CT162: 5.888144877e-14 | CU162: 5.80554009e-14 | CV162: 5.722556546e-14 | CW162: 5.639185906e-14 | CX162: 5.555419604e-14 | CY162: 5.471248838e-14
A163: 153 | B163: 1.27882687e-13 | C163: 1.27882687e-13 | D163: 1.272278738e-13 | E163: 1.265721725e-13 | F163: 1.259155756e-13 | G163: 1.252580753e-13 | H163: 1.245996638e-13 | I163: 1.239403328e-13 | J163: 1.232800742e-13 | K163: 1.226188794e-13 | L163: 1.219567399e-13 | M163: 1.212936467e-13 | N163: 1.206295908e-13 | O163: 1.19964563e-13 | P163: 1.192985538e-13 | Q163: 1.186315534e-13 | R163: 1.17963552e-13 | S163: 1.172945395e-13 | T163: 1.166245053e-13 | U163: 1.159534391e-13 | V163: 1.152813297e-13 | W163: 1.146081662e-13 | X163: 1.139339371e-13 | Y163: 1.132586307e-13 | Z163: 1.125822352e-13 | AA163: 1.119047383e-13 | AB163: 1.112261274e-13 | AC163: 1.105463897e-13 | AD163: 1.098655122e-13 | AE163: 1.091834813e-13 | AF163: 1.085002832e-13 | AG163: 1.078159039e-13 | AH163: 1.071303289e-13 | AI163: 1.064435434e-13 | AJ163: 1.057555321e-13 | AK163: 1.050662796e-13 | AL163: 1.043757699e-13 | AM163: 1.036839866e-13 | AN163: 1.029909131e-13 | AO163: 1.022965321e-13 | AP163: 1.016008261e-13 | AQ163: 1.00903777e-13 | AR163: 1.002053664e-13 | AS163: 9.950557526e-14 | AT163: 9.880438424e-14 | AU163: 9.81017734e-14 | AV163: 9.739772231e-14 | AW163: 9.669221004e-14 | AX163: 9.598521512e-14 | AY163: 9.527671553e-14 | AZ163: 9.456668869e-14 | BA163: 9.385511143e-14 | BB163: 9.314196002e-14 | BC163: 9.242721009e-14 | BD163: 9.171083664e-14 | BE163: 9.099281405e-14 | BF163: 9.027311603e-14 | BG163: 8.955171559e-14 | BH163: 8.882858506e-14 | BI163: 8.810369605e-14 | BJ163: 8.737701944e-14 | BK163: 8.664852533e-14 | BL163: 8.591818305e-14 | BM163: 8.518596115e-14 | BN163: 8.445182731e-14 | BO163: 8.371574843e-14 | BP163: 8.297769047e-14 | BQ163: 8.223761855e-14 | BR163: 8.149549686e-14 | BS163: 8.075128863e-14 | BT163: 8.000495613e-14 | BU163: 7.925646065e-14 | BV163: 7.850576244e-14 | BW163: 7.77528207e-14 | BX163: 7.699759355e-14 | BY163: 7.6240038e-14 | BZ163: 7.548010994e-14 | CA163: 7.471776405e-14 | CB163: 7.395295383e-14 | CC163: 7.318563154e-14 | CD163: 7.241574816e-14 | CE163: 7.164325337e-14 | CF163: 7.086809549e-14 | CG163: 7.009022149e-14 | CH163: 6.930957688e-14 | CI163: 6.852610575e-14 | CJ163: 6.773975067e-14 | CK163: 6.695045268e-14 | CL163: 6.615815121e-14 | CM163: 6.536278411e-14 | CN163: 6.456428751e-14 | CO163: 6.376259585e-14 | CP163: 6.29576418e-14 | CQ163: 6.214935619e-14 | CR163: 6.133766802e-14 | CS163: 6.052250434e-14 | CT163: 5.970379023e-14 | CU163: 5.888144877e-14 | CV163: 5.80554009e-14 | CW163: 5.722556546e-14 | CX163: 5.639185906e-14 | CY163: 5.555419604e-14
A164: 154 | B164: 1.285366196e-13 | C164: 1.285366196e-13 | D164: 1.27882687e-13 | E164: 1.272278738e-13 | F164: 1.265721725e-13 | G164: 1.259155756e-13 | H164: 1.252580753e-13 | I164: 1.245996638e-13 | J164: 1.239403328e-13 | K164: 1.232800742e-13 | L164: 1.226188794e-13 | M164: 1.219567399e-13 | N164: 1.212936467e-13 | O164: 1.206295908e-13 | P164: 1.19964563e-13 | Q164: 1.192985538e-13 | R164: 1.186315534e-13 | S164: 1.17963552e-13 | T164: 1.172945395e-13 | U164: 1.166245053e-13 | V164: 1.159534391e-13 | W164: 1.152813297e-13 | X164: 1.146081662e-13 | Y164: 1.139339371e-13 | Z164: 1.132586307e-13 | AA164: 1.125822352e-13 | AB164: 1.119047383e-13 | AC164: 1.112261274e-13 | AD164: 1.105463897e-13 | AE164: 1.098655122e-13 | AF164: 1.091834813e-13 | AG164: 1.085002832e-13 | AH164: 1.078159039e-13 | AI164: 1.071303289e-13 | AJ164: 1.064435434e-13 | AK164: 1.057555321e-13 | AL164: 1.050662796e-13 | AM164: 1.043757699e-13 | AN164: 1.036839866e-13 | AO164: 1.029909131e-13 | AP164: 1.022965321e-13 | AQ164: 1.016008261e-13 | AR164: 1.00903777e-13 | AS164: 1.002053664e-13 | AT164: 9.950557526e-14 | AU164: 9.880438424e-14 | AV164: 9.81017734e-14 | AW164: 9.739772231e-14 | AX164: 9.669221004e-14 | AY164: 9.598521512e-14 | AZ164: 9.527671553e-14 | BA164: 9.456668869e-14 | BB164: 9.385511143e-14 | BC164: 9.314196002e-14 | BD164: 9.242721009e-14 | BE164: 9.171083664e-14 | BF164: 9.099281405e-14 | BG164: 9.027311603e-14 | BH164: 8.955171559e-14 | BI164: 8.882858506e-14 | BJ164: 8.810369605e-14 | BK164: 8.737701944e-14 | BL164: 8.664852533e-14 | BM164: 8.591818305e-14 | BN164: 8.518596115e-14 | BO164: 8.445182731e-14 | BP164: 8.371574843e-14 | BQ164: 8.297769047e-14 | BR164: 8.223761855e-14 | BS164: 8.149549686e-14 | BT164: 8.075128863e-14 | BU164: 8.000495613e-14 | BV164: 7.925646065e-14 | BW164: 7.850576244e-14 | BX164: 7.77528207e-14 | BY164: 7.699759355e-14 | BZ164: 7.6240038e-14 | CA164: 7.548010994e-14 | CB164: 7.471776405e-14 | CC164: 7.395295383e-14 | CD164: 7.318563154e-14 | CE164: 7.241574816e-14 | CF164: 7.164325337e-14 | CG164: 7.086809549e-14 | CH164: 7.009022149e-14 | CI164: 6.930957688e-14 | CJ164: 6.852610575e-14 | CK164: 6.773975067e-14 | CL164: 6.695045268e-14 | CM164: 6.615815121e-14 | CN164: 6.536278411e-14 | CO164: 6.456428751e-14 | CP164: 6.376259585e-14 | CQ164: 6.29576418e-14 | CR164: 6.214935619e-14 | CS164: 6.133766802e-14 | CT164: 6.052250434e-14 | CU164: 5.970379023e-14 | CV164: 5.888144877e-14 | CW164: 5.80554009e-14 | CX164: 5.722556546e-14 | CY164: 5.639185906e-14
A165: 155 | B165: 1.291896788e-13 | C165: 1.291896788e-13 | D165: 1.285366196e-13 | E165: 1.27882687e-13 | F165: 1.272278738e-13 | G165: 1.265721725e-13 | H165: 1.259155756e-13 | I165: 1.252580753e-13 | J165: 1.245996638e-13 | K165: 1.239403328e-13 | L165: 1.232800742e-13 | M165: 1.226188794e-13 | N165: 1.219567399e-13 | O165: 1.212936467e-13 | P165: 1.206295908e-13 | Q165: 1.19964563e-13 | R165: 1.192985538e-13 | S165: 1.186315534e-13 | T165: 1.17963552e-13 | U165: 1.172945395e-13 | V165: 1.166245053e-13 | W165: 1.159534391e-13 | X165: 1.152813297e-13 | Y165: 1.146081662e-13 | Z165: 1.139339371e-13 | AA165: 1.132586307e-13 | AB165: 1.125822352e-13 | AC165: 1.119047383e-13 | AD165: 1.112261274e-13 | AE165: 1.105463897e-13 | AF165: 1.098655122e-13 | AG165: 1.091834813e-13 | AH165: 1.085002832e-13 | AI165: 1.078159039e-13 | AJ165: 1.071303289e-13 | AK165: 1.064435434e-13 | AL165: 1.057555321e-13 | AM165: 1.050662796e-13 | AN165: 1.043757699e-13 | AO165: 1.036839866e-13 | AP165: 1.029909131e-13 | AQ165: 1.022965321e-13 | AR165: 1.016008261e-13 | AS165: 1.00903777e-13 | AT165: 1.002053664e-13 | AU165: 9.950557526e-14 | AV165: 9.880438424e-14 | AW165: 9.81017734e-14 | AX165: 9.739772231e-14 | AY165: 9.669221004e-14 | AZ165: 9.598521512e-14 | BA165: 9.527671553e-14 | BB165: 9.456668869e-14 | BC165: 9.385511143e-14 | BD165: 9.314196002e-14 | BE165: 9.242721009e-14 | BF165: 9.171083664e-14 | BG165: 9.099281405e-14 | BH165: 9.027311603e-14 | BI165: 8.955171559e-14 | BJ165: 8.882858506e-14 | BK165: 8.810369605e-14 | BL165: 8.737701944e-14 | BM165: 8.664852533e-14 | BN165: 8.591818305e-14 | BO165: 8.518596115e-14 | BP165: 8.445182731e-14 | BQ165: 8.371574843e-14 | BR165: 8.297769047e-14 | BS165: 8.223761855e-14 | BT165: 8.149549686e-14 | BU165: 8.075128863e-14 | BV165: 8.000495613e-14 | BW165: 7.925646065e-14 | BX165: 7.850576244e-14 | BY165: 7.77528207e-14 | BZ165: 7.699759355e-14 | CA165: 7.6240038e-14 | CB165: 7.548010994e-14 | CC165: 7.471776405e-14 | CD165: 7.395295383e-14 | CE165: 7.318563154e-14 | CF165: 7.241574816e-14 | CG165: 7.164325337e-14 | CH165: 7.086809549e-14 | CI165: 7.009022149e-14 | CJ165: 6.930957688e-14 | CK165: 6.852610575e-14 | CL165: 6.773975067e-14 | CM165: 6.695045268e-14 | CN165: 6.615815121e-14 | CO165: 6.536278411e-14 | CP165: 6.456428751e-14 | CQ165: 6.376259585e-14 | CR165: 6.29576418e-14 | CS165: 6.214935619e-14 | CT165: 6.133766802e-14 | CU165: 6.052250434e-14 | CV165: 5.970379023e-14 | CW165: 5.888144877e-14 | CX165: 5.80554009e-14 | CY165: 5.722556546e-14
A166: 156 | B166: 1.298418718e-13 | C166: 1.298418718e-13 | D166: 1.291896788e-13 | E166: 1.285366196e-13 | F166: 1.27882687e-13 | G166: 1.272278738e-13 | H166: 1.265721725e-13 | I166: 1.259155756e-13 | J166: 1.252580753e-13 | K166: 1.245996638e-13 | L166: 1.239403328e-13 | M166: 1.232800742e-13 | N166: 1.226188794e-13 | O166: 1.219567399e-13 | P166: 1.212936467e-13 | Q166: 1.206295908e-13 | R166: 1.19964563e-13 | S166: 1.192985538e-13 | T166: 1.186315534e-13 | U166: 1.17963552e-13 | V166: 1.172945395e-13 | W166: 1.166245053e-13 | X166: 1.159534391e-13 | Y166: 1.152813297e-13 | Z166: 1.146081662e-13 | AA166: 1.139339371e-13 | AB166: 1.132586307e-13 | AC166: 1.125822352e-13 | AD166: 1.119047383e-13 | AE166: 1.112261274e-13 | AF166: 1.105463897e-13 | AG166: 1.098655122e-13 | AH166: 1.091834813e-13 | AI166: 1.085002832e-13 | AJ166: 1.078159039e-13 | AK166: 1.071303289e-13 | AL166: 1.064435434e-13 | AM166: 1.057555321e-13 | AN166: 1.050662796e-13 | AO166: 1.043757699e-13 | AP166: 1.036839866e-13 | AQ166: 1.029909131e-13 | AR166: 1.022965321e-13 | AS166: 1.016008261e-13 | AT166: 1.00903777e-13 | AU166: 1.002053664e-13 | AV166: 9.950557526e-14 | AW166: 9.880438424e-14 | AX166: 9.81017734e-14 | AY166: 9.739772231e-14 | AZ166: 9.669221004e-14 | BA166: 9.598521512e-14 | BB166: 9.527671553e-14 | BC166: 9.456668869e-14 | BD166: 9.385511143e-14 | BE166: 9.314196002e-14 | BF166: 9.242721009e-14 | BG166: 9.171083664e-14 | BH166: 9.099281405e-14 | BI166: 9.027311603e-14 | BJ166: 8.955171559e-14 | BK166: 8.882858506e-14 | BL166: 8.810369605e-14 | BM166: 8.737701944e-14 | BN166: 8.664852533e-14 | BO166: 8.591818305e-14 | BP166: 8.518596115e-14 | BQ166: 8.445182731e-14 | BR166: 8.371574843e-14 | BS166: 8.297769047e-14 | BT166: 8.223761855e-14 | BU166: 8.149549686e-14 | BV166: 8.075128863e-14 | BW166: 8.000495613e-14 | BX166: 7.925646065e-14 | BY166: 7.850576244e-14 | BZ166: 7.77528207e-14 | CA166: 7.699759355e-14 | CB166: 7.6240038e-14 | CC166: 7.548010994e-14 | CD166: 7.471776405e-14 | CE166: 7.395295383e-14 | CF166: 7.318563154e-14 | CG166: 7.241574816e-14 | CH166: 7.164325337e-14 | CI166: 7.086809549e-14 | CJ166: 7.009022149e-14 | CK166: 6.930957688e-14 | CL166: 6.852610575e-14 | CM166: 6.773975067e-14 | CN166: 6.695045268e-14 | CO166: 6.615815121e-14 | CP166: 6.536278411e-14 | CQ166: 6.456428751e-14 | CR166: 6.376259585e-14 | CS166: 6.29576418e-14 | CT166: 6.214935619e-14 | CU166: 6.133766802e-14 | CV166: 6.052250434e-14 | CW166: 5.970379023e-14 | CX166: 5.888144877e-14 | CY166: 5.80554009e-14
A167: 157 | B167: 1.304932054e-13 | C167: 1.304932054e-13 | D167: 1.298418718e-13 | E167: 1.291896788e-13 | F167: 1.285366196e-13 | G167: 1.27882687e-13 | H167: 1.272278738e-13 | I167: 1.265721725e-13 | J167: 1.259155756e-13 | K167: 1.252580753e-13 | L167: 1.245996638e-13 | M167: 1.239403328e-13 | N167: 1.232800742e-13 | O167: 1.226188794e-13 | P167: 1.219567399e-13 | Q167: 1.212936467e-13 | R167: 1.206295908e-13 | S167: 1.19964563e-13 | T167: 1.192985538e-13 | U167: 1.186315534e-13 | V167: 1.17963552e-13 | W167: 1.172945395e-13 | X167: 1.166245053e-13 | Y167: 1.159534391e-13 | Z167: 1.152813297e-13 | AA167: 1.146081662e-13 | AB167: 1.139339371e-13 | AC167: 1.132586307e-13 | AD167: 1.125822352e-13 | AE167: 1.119047383e-13 | AF167: 1.112261274e-13 | AG167: 1.105463897e-13 | AH167: 1.098655122e-13 | AI167: 1.091834813e-13 | AJ167: 1.085002832e-13 | AK167: 1.078159039e-13 | AL167: 1.071303289e-13 | AM167: 1.064435434e-13 | AN167: 1.057555321e-13 | AO167: 1.050662796e-13 | AP167: 1.043757699e-13 | AQ167: 1.036839866e-13 | AR167: 1.029909131e-13 | AS167: 1.022965321e-13 | AT167: 1.016008261e-13 | AU167: 1.00903777e-13 | AV167: 1.002053664e-13 | AW167: 9.950557526e-14 | AX167: 9.880438424e-14 | AY167: 9.81017734e-14 | AZ167: 9.739772231e-14 | BA167: 9.669221004e-14 | BB167: 9.598521512e-14 | BC167: 9.527671553e-14 | BD167: 9.456668869e-14 | BE167: 9.385511143e-14 | BF167: 9.314196002e-14 | BG167: 9.242721009e-14 | BH167: 9.171083664e-14 | BI167: 9.099281405e-14 | BJ167: 9.027311603e-14 | BK167: 8.955171559e-14 | BL167: 8.882858506e-14 | BM167: 8.810369605e-14 | BN167: 8.737701944e-14 | BO167: 8.664852533e-14 | BP167: 8.591818305e-14 | BQ167: 8.518596115e-14 | BR167: 8.445182731e-14 | BS167: 8.371574843e-14 | BT167: 8.297769047e-14 | BU167: 8.223761855e-14 | BV167: 8.149549686e-14 | BW167: 8.075128863e-14 | BX167: 8.000495613e-14 | BY167: 7.925646065e-14 | BZ167: 7.850576244e-14 | CA167: 7.77528207e-14 | CB167: 7.699759355e-14 | CC167: 7.6240038e-14 | CD167: 7.548010994e-14 | CE167: 7.471776405e-14 | CF167: 7.395295383e-14 | CG167: 7.318563154e-14 | CH167: 7.241574816e-14 | CI167: 7.164325337e-14 | CJ167: 7.086809549e-14 | CK167: 7.009022149e-14 | CL167: 6.930957688e-14 | CM167: 6.852610575e-14 | CN167: 6.773975067e-14 | CO167: 6.695045268e-14 | CP167: 6.615815121e-14 | CQ167: 6.536278411e-14 | CR167: 6.456428751e-14 | CS167: 6.376259585e-14 | CT167: 6.29576418e-14 | CU167: 6.214935619e-14 | CV167: 6.133766802e-14 | CW167: 6.052250434e-14 | CX167: 5.970379023e-14 | CY167: 5.888144877e-14
A168: 158 | B168: 1.311436866e-13 | C168: 1.311436866e-13 | D168: 1.304932054e-13 | E168: 1.298418718e-13 | F168: 1.291896788e-13 | G168: 1.285366196e-13 | H168: 1.27882687e-13 | I168: 1.272278738e-13 | J168: 1.265721725e-13 | K168: 1.259155756e-13 | L168: 1.252580753e-13 | M168: 1.245996638e-13 | N168: 1.239403328e-13 | O168: 1.232800742e-13 | P168: 1.226188794e-13 | Q168: 1.219567399e-13 | R168: 1.212936467e-13 | S168: 1.206295908e-13 | T168: 1.19964563e-13 | U168: 1.192985538e-13 | V168: 1.186315534e-13 | W168: 1.17963552e-13 | X168: 1.172945395e-13 | Y168: 1.166245053e-13 | Z168: 1.159534391e-13 | AA168: 1.152813297e-13 | AB168: 1.146081662e-13 | AC168: 1.139339371e-13 | AD168: 1.132586307e-13 | AE168: 1.125822352e-13 | AF168: 1.119047383e-13 | AG168: 1.112261274e-13 | AH168: 1.105463897e-13 | AI168: 1.098655122e-13 | AJ168: 1.091834813e-13 | AK168: 1.085002832e-13 | AL168: 1.078159039e-13 | AM168: 1.071303289e-13 | AN168: 1.064435434e-13 | AO168: 1.057555321e-13 | AP168: 1.050662796e-13 | AQ168: 1.043757699e-13 | AR168: 1.036839866e-13 | AS168: 1.029909131e-13 | AT168: 1.022965321e-13 | AU168: 1.016008261e-13 | AV168: 1.00903777e-13 | AW168: 1.002053664e-13 | AX168: 9.950557526e-14 | AY168: 9.880438424e-14 | AZ168: 9.81017734e-14 | BA168: 9.739772231e-14 | BB168: 9.669221004e-14 | BC168: 9.598521512e-14 | BD168: 9.527671553e-14 | BE168: 9.456668869e-14 | BF168: 9.385511143e-14 | BG168: 9.314196002e-14 | BH168: 9.242721009e-14 | BI168: 9.171083664e-14 | BJ168: 9.099281405e-14 | BK168: 9.027311603e-14 | BL168: 8.955171559e-14 | BM168: 8.882858506e-14 | BN168: 8.810369605e-14 | BO168: 8.737701944e-14 | BP168: 8.664852533e-14 | BQ168: 8.591818305e-14 | BR168: 8.518596115e-14 | BS168: 8.445182731e-14 | BT168: 8.371574843e-14 | BU168: 8.297769047e-14 | BV168: 8.223761855e-14 | BW168: 8.149549686e-14 | BX168: 8.075128863e-14 | BY168: 8.000495613e-14 | BZ168: 7.925646065e-14 | CA168: 7.850576244e-14 | CB168: 7.77528207e-14 | CC168: 7.699759355e-14 | CD168: 7.6240038e-14 | CE168: 7.548010994e-14 | CF168: 7.471776405e-14 | CG168: 7.395295383e-14 | CH168: 7.318563154e-14 | CI168: 7.241574816e-14 | CJ168: 7.164325337e-14 | CK168: 7.086809549e-14 | CL168: 7.009022149e-14 | CM168: 6.930957688e-14 | CN168: 6.852610575e-14 | CO168: 6.773975067e-14 | CP168: 6.695045268e-14 | CQ168: 6.615815121e-14 | CR168: 6.536278411e-14 | CS168: 6.456428751e-14 | CT168: 6.376259585e-14 | CU168: 6.29576418e-14 | CV168: 6.214935619e-14 | CW168: 6.133766802e-14 | CX168: 6.052250434e-14 | CY168: 5.970379023e-14
A169: 159 | B169: 1.31793322e-13 | C169: 1.31793322e-13 | D169: 1.311436866e-13 | E169: 1.304932054e-13 | F169: 1.298418718e-13 | G169: 1.291896788e-13 | H169: 1.285366196e-13 | I169: 1.27882687e-13 | J169: 1.272278738e-13 | K169: 1.265721725e-13 | L169: 1.259155756e-13 | M169: 1.252580753e-13 | N169: 1.245996638e-13 | O169: 1.239403328e-13 | P169: 1.232800742e-13 | Q169: 1.226188794e-13 | R169: 1.219567399e-13 | S169: 1.212936467e-13 | T169: 1.206295908e-13 | U169: 1.19964563e-13 | V169: 1.192985538e-13 | W169: 1.186315534e-13 | X169: 1.17963552e-13 | Y169: 1.172945395e-13 | Z169: 1.166245053e-13 | AA169: 1.159534391e-13 | AB169: 1.152813297e-13 | AC169: 1.146081662e-13 | AD169: 1.139339371e-13 | AE169: 1.132586307e-13 | AF169: 1.125822352e-13 | AG169: 1.119047383e-13 | AH169: 1.112261274e-13 | AI169: 1.105463897e-13 | AJ169: 1.098655122e-13 | AK169: 1.091834813e-13 | AL169: 1.085002832e-13 | AM169: 1.078159039e-13 | AN169: 1.071303289e-13 | AO169: 1.064435434e-13 | AP169: 1.057555321e-13 | AQ169: 1.050662796e-13 | AR169: 1.043757699e-13 | AS169: 1.036839866e-13 | AT169: 1.029909131e-13 | AU169: 1.022965321e-13 | AV169: 1.016008261e-13 | AW169: 1.00903777e-13 | AX169: 1.002053664e-13 | AY169: 9.950557526e-14 | AZ169: 9.880438424e-14 | BA169: 9.81017734e-14 | BB169: 9.739772231e-14 | BC169: 9.669221004e-14 | BD169: 9.598521512e-14 | BE169: 9.527671553e-14 | BF169: 9.456668869e-14 | BG169: 9.385511143e-14 | BH169: 9.314196002e-14 | BI169: 9.242721009e-14 | BJ169: 9.171083664e-14 | BK169: 9.099281405e-14 | BL169: 9.027311603e-14 | BM169: 8.955171559e-14 | BN169: 8.882858506e-14 | BO169: 8.810369605e-14 | BP169: 8.737701944e-14 | BQ169: 8.664852533e-14 | BR169: 8.591818305e-14 | BS169: 8.518596115e-14 | BT169: 8.445182731e-14 | BU169: 8.371574843e-14 | BV169: 8.297769047e-14 | BW169: 8.223761855e-14 | BX169: 8.149549686e-14 | BY169: 8.075128863e-14 | BZ169: 8.000495613e-14 | CA169: 7.925646065e-14 | CB169: 7.850576244e-14 | CC169: 7.77528207e-14 | CD169: 7.699759355e-14 | CE169: 7.6240038e-14 | CF169: 7.548010994e-14 | CG169: 7.471776405e-14 | CH169: 7.395295383e-14 | CI169: 7.318563154e-14 | CJ169: 7.241574816e-14 | CK169: 7.164325337e-14 | CL169: 7.086809549e-14 | CM169: 7.009022149e-14 | CN169: 6.930957688e-14 | CO169: 6.852610575e-14 | CP169: 6.773975067e-14 | CQ169: 6.695045268e-14 | CR169: 6.615815121e-14 | CS169: 6.536278411e-14 | CT169: 6.456428751e-14 | CU169: 6.376259585e-14 | CV169: 6.29576418e-14 | CW169: 6.214935619e-14 | CX169: 6.133766802e-14 | CY169: 6.052250434e-14
A170: 160 | B170: 1.32442118e-13 | C170: 1.32442118e-13 | D170: 1.31793322e-13 | E170: 1.311436866e-13 | F170: 1.304932054e-13 | G170: 1.298418718e-13 | H170: 1.291896788e-13 | I170: 1.285366196e-13 | J170: 1.27882687e-13 | K170: 1.272278738e-13 | L170: 1.265721725e-13 | M170: 1.259155756e-13 | N170: 1.252580753e-13 | O170: 1.245996638e-13 | P170: 1.239403328e-13 | Q170: 1.232800742e-13 | R170: 1.226188794e-13 | S170: 1.219567399e-13 | T170: 1.212936467e-13 | U170: 1.206295908e-13 | V170: 1.19964563e-13 | W170: 1.192985538e-13 | X170: 1.186315534e-13 | Y170: 1.17963552e-13 | Z170: 1.172945395e-13 | AA170: 1.166245053e-13 | AB170: 1.159534391e-13 | AC170: 1.152813297e-13 | AD170: 1.146081662e-13 | AE170: 1.139339371e-13 | AF170: 1.132586307e-13 | AG170: 1.125822352e-13 | AH170: 1.119047383e-13 | AI170: 1.112261274e-13 | AJ170: 1.105463897e-13 | AK170: 1.098655122e-13 | AL170: 1.091834813e-13 | AM170: 1.085002832e-13 | AN170: 1.078159039e-13 | AO170: 1.071303289e-13 | AP170: 1.064435434e-13 | AQ170: 1.057555321e-13 | AR170: 1.050662796e-13 | AS170: 1.043757699e-13 | AT170: 1.036839866e-13 | AU170: 1.029909131e-13 | AV170: 1.022965321e-13 | AW170: 1.016008261e-13 | AX170: 1.00903777e-13 | AY170: 1.002053664e-13 | AZ170: 9.950557526e-14 | BA170: 9.880438424e-14 | BB170: 9.81017734e-14 | BC170: 9.739772231e-14 | BD170: 9.669221004e-14 | BE170: 9.598521512e-14 | BF170: 9.527671553e-14 | BG170: 9.456668869e-14 | BH170: 9.385511143e-14 | BI170: 9.314196002e-14 | BJ170: 9.242721009e-14 | BK170: 9.171083664e-14 | BL170: 9.099281405e-14 | BM170: 9.027311603e-14 | BN170: 8.955171559e-14 | BO170: 8.882858506e-14 | BP170: 8.810369605e-14 | BQ170: 8.737701944e-14 | BR170: 8.664852533e-14 | BS170: 8.591818305e-14 | BT170: 8.518596115e-14 | BU170: 8.445182731e-14 | BV170: 8.371574843e-14 | BW170: 8.297769047e-14 | BX170: 8.223761855e-14 | BY170: 8.149549686e-14 | BZ170: 8.075128863e-14 | CA170: 8.000495613e-14 | CB170: 7.925646065e-14 | CC170: 7.850576244e-14 | CD170: 7.77528207e-14 | CE170: 7.699759355e-14 | CF170: 7.6240038e-14 | CG170: 7.548010994e-14 | CH170: 7.471776405e-14 | CI170: 7.395295383e-14 | CJ170: 7.318563154e-14 | CK170: 7.241574816e-14 | CL170: 7.164325337e-14 | CM170: 7.086809549e-14 | CN170: 7.009022149e-14 | CO170: 6.930957688e-14 | CP170: 6.852610575e-14 | CQ170: 6.773975067e-14 | CR170: 6.695045268e-14 | CS170: 6.615815121e-14 | CT170: 6.536278411e-14 | CU170: 6.456428751e-14 | CV170: 6.376259585e-14 | CW170: 6.29576418e-14 | CX170: 6.214935619e-14 | CY170: 6.133766802e-14
A171: 161 | B171: 1.330900812e-13 | C171: 1.330900812e-13 | D171: 1.32442118e-13 | E171: 1.31793322e-13 | F171: 1.311436866e-13 | G171: 1.304932054e-13 | H171: 1.298418718e-13 | I171: 1.291896788e-13 | J171: 1.285366196e-13 | K171: 1.27882687e-13 | L171: 1.272278738e-13 | M171: 1.265721725e-13 | N171: 1.259155756e-13 | O171: 1.252580753e-13 | P171: 1.245996638e-13 | Q171: 1.239403328e-13 | R171: 1.232800742e-13 | S171: 1.226188794e-13 | T171: 1.219567399e-13 | U171: 1.212936467e-13 | V171: 1.206295908e-13 | W171: 1.19964563e-13 | X171: 1.192985538e-13 | Y171: 1.186315534e-13 | Z171: 1.17963552e-13 | AA171: 1.172945395e-13 | AB171: 1.166245053e-13 | AC171: 1.159534391e-13 | AD171: 1.152813297e-13 | AE171: 1.146081662e-13 | AF171: 1.139339371e-13 | AG171: 1.132586307e-13 | AH171: 1.125822352e-13 | AI171: 1.119047383e-13 | AJ171: 1.112261274e-13 | AK171: 1.105463897e-13 | AL171: 1.098655122e-13 | AM171: 1.091834813e-13 | AN171: 1.085002832e-13 | AO171: 1.078159039e-13 | AP171: 1.071303289e-13 | AQ171: 1.064435434e-13 | AR171: 1.057555321e-13 | AS171: 1.050662796e-13 | AT171: 1.043757699e-13 | AU171: 1.036839866e-13 | AV171: 1.029909131e-13 | AW171: 1.022965321e-13 | AX171: 1.016008261e-13 | AY171: 1.00903777e-13 | AZ171: 1.002053664e-13 | BA171: 9.950557526e-14 | BB171: 9.880438424e-14 | BC171: 9.81017734e-14 | BD171: 9.739772231e-14 | BE171: 9.669221004e-14 | BF171: 9.598521512e-14 | BG171: 9.527671553e-14 | BH171: 9.456668869e-14 | BI171: 9.385511143e-14 | BJ171: 9.314196002e-14 | BK171: 9.242721009e-14 | BL171: 9.171083664e-14 | BM171: 9.099281405e-14 | BN171: 9.027311603e-14 | BO171: 8.955171559e-14 | BP171: 8.882858506e-14 | BQ171: 8.810369605e-14 | BR171: 8.737701944e-14 | BS171: 8.664852533e-14 | BT171: 8.591818305e-14 | BU171: 8.518596115e-14 | BV171: 8.445182731e-14 | BW171: 8.371574843e-14 | BX171: 8.297769047e-14 | BY171: 8.223761855e-14 | BZ171: 8.149549686e-14 | CA171: 8.075128863e-14 | CB171: 8.000495613e-14 | CC171: 7.925646065e-14 | CD171: 7.850576244e-14 | CE171: 7.77528207e-14 | CF171: 7.699759355e-14 | CG171: 7.6240038e-14 | CH171: 7.548010994e-14 | CI171: 7.471776405e-14 | CJ171: 7.395295383e-14 | CK171: 7.318563154e-14 | CL171: 7.241574816e-14 | CM171: 7.164325337e-14 | CN171: 7.086809549e-14 | CO171: 7.009022149e-14 | CP171: 6.930957688e-14 | CQ171: 6.852610575e-14 | CR171: 6.773975067e-14 | CS171: 6.695045268e-14 | CT171: 6.615815121e-14 | CU171: 6.536278411e-14 | CV171: 6.456428751e-14 | CW171: 6.376259585e-14 | CX171: 6.29576418e-14 | CY171: 6.214935619e-14
A172: 162 | B172: 1.337372177e-13 | C172: 1.337372177e-13 | D172: 1.330900812e-13 | E172: 1.32442118e-13 | F172: 1.31793322e-13 | G172: 1.311436866e-13 | H172: 1.304932054e-13 | I172: 1.298418718e-13 | J172: 1.291896788e-13 | K172: 1.285366196e-13 | L172: 1.27882687e-13 | M172: 1.272278738e-13 | N172: 1.265721725e-13 | O172: 1.259155756e-13 | P172: 1.252580753e-13 | Q172: 1.245996638e-13 | R172: 1.239403328e-13 | S172: 1.232800742e-13 | T172: 1.226188794e-13 | U172: 1.219567399e-13 | V172: 1.212936467e-13 | W172: 1.206295908e-13 | X172: 1.19964563e-13 | Y172: 1.192985538e-13 | Z172: 1.186315534e-13 | AA172: 1.17963552e-13 | AB172: 1.172945395e-13 | AC172: 1.166245053e-13 | AD172: 1.159534391e-13 | AE172: 1.152813297e-13 | AF172: 1.146081662e-13 | AG172: 1.139339371e-13 | AH172: 1.132586307e-13 | AI172: 1.125822352e-13 | AJ172: 1.119047383e-13 | AK172: 1.112261274e-13 | AL172: 1.105463897e-13 | AM172: 1.098655122e-13 | AN172: 1.091834813e-13 | AO172: 1.085002832e-13 | AP172: 1.078159039e-13 | AQ172: 1.071303289e-13 | AR172: 1.064435434e-13 | AS172: 1.057555321e-13 | AT172: 1.050662796e-13 | AU172: 1.043757699e-13 | AV172: 1.036839866e-13 | AW172: 1.029909131e-13 | AX172: 1.022965321e-13 | AY172: 1.016008261e-13 | AZ172: 1.00903777e-13 | BA172: 1.002053664e-13 | BB172: 9.950557526e-14 | BC172: 9.880438424e-14 | BD172: 9.81017734e-14 | BE172: 9.739772231e-14 | BF172: 9.669221004e-14 | BG172: 9.598521512e-14 | BH172: 9.527671553e-14 | BI172: 9.456668869e-14 | BJ172: 9.385511143e-14 | BK172: 9.314196002e-14 | BL172: 9.242721009e-14 | BM172: 9.171083664e-14 | BN172: 9.099281405e-14 | BO172: 9.027311603e-14 | BP172: 8.955171559e-14 | BQ172: 8.882858506e-14 | BR172: 8.810369605e-14 | BS172: 8.737701944e-14 | BT172: 8.664852533e-14 | BU172: 8.591818305e-14 | BV172: 8.518596115e-14 | BW172: 8.445182731e-14 | BX172: 8.371574843e-14 | BY172: 8.297769047e-14 | BZ172: 8.223761855e-14 | CA172: 8.149549686e-14 | CB172: 8.075128863e-14 | CC172: 8.000495613e-14 | CD172: 7.925646065e-14 | CE172: 7.850576244e-14 | CF172: 7.77528207e-14 | CG172: 7.699759355e-14 | CH172: 7.6240038e-14 | CI172: 7.548010994e-14 | CJ172: 7.471776405e-14 | CK172: 7.395295383e-14 | CL172: 7.318563154e-14 | CM172: 7.241574816e-14 | CN172: 7.164325337e-14 | CO172: 7.086809549e-14 | CP172: 7.009022149e-14 | CQ172: 6.930957688e-14 | CR172: 6.852610575e-14 | CS172: 6.773975067e-14 | CT172: 6.695045268e-14 | CU172: 6.615815121e-14 | CV172: 6.536278411e-14 | CW172: 6.456428751e-14 | CX172: 6.376259585e-14 | CY172: 6.29576418e-14
A173: 163 | B173: 1.343835337e-13 | C173: 1.343835337e-13 | D173: 1.337372177e-13 | E173: 1.330900812e-13 | F173: 1.32442118e-13 | G173: 1.31793322e-13 | H173: 1.311436866e-13 | I173: 1.304932054e-13 | J173: 1.298418718e-13 | K173: 1.291896788e-13 | L173: 1.285366196e-13 | M173: 1.27882687e-13 | N173: 1.272278738e-13 | O173: 1.265721725e-13 | P173: 1.259155756e-13 | Q173: 1.252580753e-13 | R173: 1.245996638e-13 | S173: 1.239403328e-13 | T173: 1.232800742e-13 | U173: 1.226188794e-13 | V173: 1.219567399e-13 | W173: 1.212936467e-13 | X173: 1.206295908e-13 | Y173: 1.19964563e-13 | Z173: 1.192985538e-13 | AA173: 1.186315534e-13 | AB173: 1.17963552e-13 | AC173: 1.172945395e-13 | AD173: 1.166245053e-13 | AE173: 1.159534391e-13 | AF173: 1.152813297e-13 | AG173: 1.146081662e-13 | AH173: 1.139339371e-13 | AI173: 1.132586307e-13 | AJ173: 1.125822352e-13 | AK173: 1.119047383e-13 | AL173: 1.112261274e-13 | AM173: 1.105463897e-13 | AN173: 1.098655122e-13 | AO173: 1.091834813e-13 | AP173: 1.085002832e-13 | AQ173: 1.078159039e-13 | AR173: 1.071303289e-13 | AS173: 1.064435434e-13 | AT173: 1.057555321e-13 | AU173: 1.050662796e-13 | AV173: 1.043757699e-13 | AW173: 1.036839866e-13 | AX173: 1.029909131e-13 | AY173: 1.022965321e-13 | AZ173: 1.016008261e-13 | BA173: 1.00903777e-13 | BB173: 1.002053664e-13 | BC173: 9.950557526e-14 | BD173: 9.880438424e-14 | BE173: 9.81017734e-14 | BF173: 9.739772231e-14 | BG173: 9.669221004e-14 | BH173: 9.598521512e-14 | BI173: 9.527671553e-14 | BJ173: 9.456668869e-14 | BK173: 9.385511143e-14 | BL173: 9.314196002e-14 | BM173: 9.242721009e-14 | BN173: 9.171083664e-14 | BO173: 9.099281405e-14 | BP173: 9.027311603e-14 | BQ173: 8.955171559e-14 | BR173: 8.882858506e-14 | BS173: 8.810369605e-14 | BT173: 8.737701944e-14 | BU173: 8.664852533e-14 | BV173: 8.591818305e-14 | BW173: 8.518596115e-14 | BX173: 8.445182731e-14 | BY173: 8.371574843e-14 | BZ173: 8.297769047e-14 | CA173: 8.223761855e-14 | CB173: 8.149549686e-14 | CC173: 8.075128863e-14 | CD173: 8.000495613e-14 | CE173: 7.925646065e-14 | CF173: 7.850576244e-14 | CG173: 7.77528207e-14 | CH173: 7.699759355e-14 | CI173: 7.6240038e-14 | CJ173: 7.548010994e-14 | CK173: 7.471776405e-14 | CL173: 7.395295383e-14 | CM173: 7.318563154e-14 | CN173: 7.241574816e-14 | CO173: 7.164325337e-14 | CP173: 7.086809549e-14 | CQ173: 7.009022149e-14 | CR173: 6.930957688e-14 | CS173: 6.852610575e-14 | CT173: 6.773975067e-14 | CU173: 6.695045268e-14 | CV173: 6.615815121e-14 | CW173: 6.536278411e-14 | CX173: 6.456428751e-14 | CY173: 6.376259585e-14
A174: 164 | B174: 1.350290353e-13 | C174: 1.350290353e-13 | D174: 1.343835337e-13 | E174: 1.337372177e-13 | F174: 1.330900812e-13 | G174: 1.32442118e-13 | H174: 1.31793322e-13 | I174: 1.311436866e-13 | J174: 1.304932054e-13 | K174: 1.298418718e-13 | L174: 1.291896788e-13 | M174: 1.285366196e-13 | N174: 1.27882687e-13 | O174: 1.272278738e-13 | P174: 1.265721725e-13 | Q174: 1.259155756e-13 | R174: 1.252580753e-13 | S174: 1.245996638e-13 | T174: 1.239403328e-13 | U174: 1.232800742e-13 | V174: 1.226188794e-13 | W174: 1.219567399e-13 | X174: 1.212936467e-13 | Y174: 1.206295908e-13 | Z174: 1.19964563e-13 | AA174: 1.192985538e-13 | AB174: 1.186315534e-13 | AC174: 1.17963552e-13 | AD174: 1.172945395e-13 | AE174: 1.166245053e-13 | AF174: 1.159534391e-13 | AG174: 1.152813297e-13 | AH174: 1.146081662e-13 | AI174: 1.139339371e-13 | AJ174: 1.132586307e-13 | AK174: 1.125822352e-13 | AL174: 1.119047383e-13 | AM174: 1.112261274e-13 | AN174: 1.105463897e-13 | AO174: 1.098655122e-13 | AP174: 1.091834813e-13 | AQ174: 1.085002832e-13 | AR174: 1.078159039e-13 | AS174: 1.071303289e-13 | AT174: 1.064435434e-13 | AU174: 1.057555321e-13 | AV174: 1.050662796e-13 | AW174: 1.043757699e-13 | AX174: 1.036839866e-13 | AY174: 1.029909131e-13 | AZ174: 1.022965321e-13 | BA174: 1.016008261e-13 | BB174: 1.00903777e-13 | BC174: 1.002053664e-13 | BD174: 9.950557526e-14 | BE174: 9.880438424e-14 | BF174: 9.81017734e-14 | BG174: 9.739772231e-14 | BH174: 9.669221004e-14 | BI174: 9.598521512e-14 | BJ174: 9.527671553e-14 | BK174: 9.456668869e-14 | BL174: 9.385511143e-14 | BM174: 9.314196002e-14 | BN174: 9.242721009e-14 | BO174: 9.171083664e-14 | BP174: 9.099281405e-14 | BQ174: 9.027311603e-14 | BR174: 8.955171559e-14 | BS174: 8.882858506e-14 | BT174: 8.810369605e-14 | BU174: 8.737701944e-14 | BV174: 8.664852533e-14 | BW174: 8.591818305e-14 | BX174: 8.518596115e-14 | BY174: 8.445182731e-14 | BZ174: 8.371574843e-14 | CA174: 8.297769047e-14 | CB174: 8.223761855e-14 | CC174: 8.149549686e-14 | CD174: 8.075128863e-14 | CE174: 8.000495613e-14 | CF174: 7.925646065e-14 | CG174: 7.850576244e-14 | CH174: 7.77528207e-14 | CI174: 7.699759355e-14 | CJ174: 7.6240038e-14 | CK174: 7.548010994e-14 | CL174: 7.471776405e-14 | CM174: 7.395295383e-14 | CN174: 7.318563154e-14 | CO174: 7.241574816e-14 | CP174: 7.164325337e-14 | CQ174: 7.086809549e-14 | CR174: 7.009022149e-14 | CS174: 6.930957688e-14 | CT174: 6.852610575e-14 | CU174: 6.773975067e-14 | CV174: 6.695045268e-14 | CW174: 6.615815121e-14 | CX174: 6.536278411e-14 | CY174: 6.456428751e-14
